Workbook

Sheet Main
B3: PACIFIC EARTHQUAKE ENGINEERING RESEARCH CENTER
B6: WEIGHTED AVERAGE of 2014 NGA WEST-2 GMPEs
B7: Last updated: 04 14 15
B8: by Emel Seyhan, PhD, PEER & UCLA -- email: emel.seyhan@gmail.com, peer_center@berkeley.edu
B9: This excel file will be updated as necessary on the PEER website to fix any typos or other errors. Please check the website frequently for new versions at: http://peer.berkeley.edu/ngawest2/databases/
I10: Legend | J10: Pre-defined option | K10: Main input variable | L10: Calculated variable | M10: Input var. flag | N10: Internal variable
B11: GMPE averaging | C11: Geometric | D11: =IF(C11="Arithmetic","Weighted average of the spectral values","Weighted average of the natural logarithm of the spectral values") -> Weighted average of the natural logarithm of the spectral values
I12: ASK14 | J12: Abrahamson & Silva & Kamai 2014 NGA West-2 Model
B13: GMPEs | C13: ASK14 | D13: BSSA14 | E13: CB14 | F13: CY14 | G13: I14 | H13: =IF(AND(B39<450,G14>0,SUM(C14:F14)>0),"I08 Model cannot be used for Vs30 less than 450 m/sec. Results are obtained assuming 0 weight for I08 and normalizing the weights of the rest of the models",IF(AND(B39<450,G14>0),"I08 Model cannot be used for Vs30 less than 450 m/sec. ","")) ->  | I13: BSSA14 | J13: Boore & Stewart & Seyhan & Atkinson 2014 NGA West-2 Model
B14: Weight | C14: 0.25 | D14: 0.25 | E14: 0.25 | F14: 0.25 | G14: 0 | I14: CB14 | J14: Campbell & Bozorgnia 2014 NGA West-2 Model
I15: CY14 | J15: Chiou & Youngs 2014 NGA West-2 Model
B16: # of std. dev. | C16: 1 | E16: =IF(AND(SUM($C$14:$G$14)>0.99,SUM($C$14:$G$14)<1.01)," ","WARNING: Weights should sum up to 1") ->  | I16: I14 | J16: Idriss 2014 NGA West-2 Model
B17: Damping ratio (%) | C17: 5 | D17: ="Modification factors are calculated in Sheet DSF" -> Modification factors are calculated in Sheet DSF
K18: =IF($AB$52>0,"WARNING: You entered a value Out of Range of the GMPE","") -> 
D20: RotD50 Horizontal Component of PGA, PGV and IMs
B21: Input variables | C21: Errors and warnings | F21: Baseline: 5% Damping | J21: ="User defined: "&C17&"% Damping" -> User defined: 5% Damping
D22: GMP | E22: T (s) | F22: ="PSa Median for 5% damping" -> PSa Median for 5% damping | G22: ="PSa Median + " &$C$16 & ".σ for 5% damping" -> PSa Median + 1.σ for 5% damping | H22: ="PSa Median - " &$C$16 & ".σ for 5% damping" -> PSa Median - 1.σ for 5% damping | I22: Sd Median for 5% damping | J22: ="PSa Median for " & $C$17 & "% damping" -> PSa Median for 5% damping | K22: ="PSa Median + "&$C$16&".σ for "&$C$17 &" % damping" -> PSa Median + 1.σ for 5 % damping | L22: ="PSa Median - "&$C$16&".σ for "&$C$17 &" % damping" -> PSa Median - 1.σ for 5 % damping | M22: ="Sd Median for "&$C$17 &" % damping" -> Sd Median for 5 % damping | Y22: MODEL RANGEs | Z22: Parameter | AA22: Limits | AB22: 1/0 (0:Y, 1:N)
B23: Mw | D23: PSa (g), Sd (cm) | E23: 0.01 | F23: =IF($B$104=0,IF($AB$52=0,SUM($C$14/SUM($C$14:$G$14)*'ASK14'!$E6,$D$14/SUM($C$14:$G$14)*BSSA14!$S6,$E$14/SUM($C$14:$G$14)*'CB14'!$Y6,$F$14/SUM($C$14:$G$14)*'CY14'!$U6,$G$14/SUM($C$14:$G$14)*'I14'!$L6),SUM($C$14/SUM($C$14:$G$14)*'ASK14'!$E6,$D$14/SUM($C$14:$G$14)*BSSA14!$S6,$E$14/SUM($C$14:$G$14)*'CB14'!$Y6,$F$14/SUM($C$14:$G$14)*'CY14'!$U6,$G$14/SUM($C$14:$G$14)*'I14'!$L6)),IF($B$104=1,IF($AB$52=0,EXP(SUM($C$14/SUM($C$14:$G$14)*LN('ASK14'!$E6),$D$14/SUM($C$14:$G$14)*LN(BSSA14!$S6),$E$14/SUM($C$14:$G$14)*LN('CB14'!$Y6),$F$14/SUM($C$14:$G$14)*LN('CY14'!$U6),$G$14/SUM($C$14:$G$14)*LN('I14'!$L6))),EXP(SUM($C$14/SUM($C$14:$G$14)*LN('ASK14'!$E6),$D$14/SUM($C$14:$G$14)*LN(BSSA14!$S6),$E$14/SUM($C$14:$G$14)*LN('CB14'!$Y6),$F$14/SUM($C$14:$G$14)*LN('CY14'!$U6),$G$14/SUM($C$14:$G$14)*LN('I14'!$L6)))))) -> 0.4411598373 | G23: =IF($B$104=0,IF($AB$52=0,SUM($C$14/SUM($C$14:$G$14)*('ASK14'!$E6*EXP(Main!$C$16*'ASK14'!$F6)),$D$14/SUM($C$14:$G$14)*(BSSA14!$S6*EXP(Main!$C$16*BSSA14!$T6)),$E$14/SUM($C$14:$G$14)*('CB14'!$Y6*EXP(Main!$C$16*'CB14'!$Z6)),$F$14/SUM($C$14:$G$14)*('CY14'!$U6*EXP(Main!$C$16*'CY14'!$V6)),$G$14/SUM($C$14:$G$14)*('I14'!$L6*EXP(Main!$C$16*'I14'!$M6))),SUM($C$14/SUM($C$14:$G$14)*('ASK14'!$E6*EXP(Main!$C$16*'ASK14'!$F6)),$D$14/SUM($C$14:$G$14)*(BSSA14!$S6*EXP(Main!$C$16*BSSA14!$T6)),$E$14/SUM($C$14:$G$14)*('CB14'!$Y6*EXP(Main!$C$16*'CB14'!$Z6)),$F$14/SUM($C$14:$G$14)*('CY14'!$U6*EXP(Main!$C$16*'CY14'!$V6)),$G$14/SUM($C$14:$G$14)*('I14'!$L6*EXP(Main!$C$16*'I14'!$M6)))),IF($B$104=1,IF($AB$52=0,EXP(SUM($C$14/SUM($C$14:$G$14)*(LN('ASK14'!$E6)+($C$16*'ASK14'!$F6)),$D$14/SUM($C$14:$G$14)*(LN(BSSA14!$S6)+($C$16*BSSA14!$T6)),$E$14/SUM($C$14:$G$14)*(LN('CB14'!$Y6)+($C$16*'CB14'!$Z6)),$F$14/SUM($C$14:$G$14)*(LN('CY14'!$U6)+($C$16*'CY14'!$V6)),$G$14/SUM($C$14:$G$14)*(LN('I14'!$L6)+($C$16*'I14'!$M6)))),EXP(SUM($C$14/SUM($C$14:$G$14)*(LN('ASK14'!$E6)+($C$16*'ASK14'!$F6)),$D$14/SUM($C$14:$G$14)*(LN(BSSA14!$S6)+($C$16*BSSA14!$T6)),$E$14/SUM($C$14:$G$14)*(LN('CB14'!$Y6)+($C$16*'CB14'!$Z6)),$F$14/SUM($C$14:$G$14)*(LN('CY14'!$U6)+($C$16*'CY14'!$V6)),$G$14/SUM($C$14:$G$14)*(LN('I14'!$L6)+($C$16*'I14'!$M6))))))) -> 0.8014088896 | H23: =IF($B$104=0,IF($AB$52=0,SUM($C$14/SUM($C$14:$G$14)*('ASK14'!$E6*EXP(-Main!$C$16*'ASK14'!$F6)),$D$14/SUM($C$14:$G$14)*(BSSA14!$S6*EXP(-Main!$C$16*BSSA14!$T6)),$E$14/SUM($C$14:$G$14)*('CB14'!$Y6*EXP(-Main!$C$16*'CB14'!$Z6)),$F$14/SUM($C$14:$G$14)*('CY14'!$U6*EXP(-Main!$C$16*'CY14'!$V6)),$G$14/SUM($C$14:$G$14)*('I14'!$L6*EXP(-Main!$C$16*'I14'!$M6))),SUM($C$14/SUM($C$14:$G$14)*('ASK14'!$E6*EXP(-Main!$C$16*'ASK14'!$F6)),$D$14/SUM($C$14:$G$14)*(BSSA14!$S6*EXP(-Main!$C$16*BSSA14!$T6)),$E$14/SUM($C$14:$G$14)*('CB14'!$Y6*EXP(-Main!$C$16*'CB14'!$Z6)),$F$14/SUM($C$14:$G$14)*('CY14'!$U6*EXP(-Main!$C$16*'CY14'!$V6)),$G$14/SUM($C$14:$G$14)*('I14'!$L6*EXP(-Main!$C$16*'I14'!$M6)))),IF($B$104=1,IF($AB$52=0,EXP(SUM($C$14/SUM($C$14:$G$14)*(LN('ASK14'!$E6)-($C$16*'ASK14'!$F6)),$D$14/SUM($C$14:$G$14)*(LN(BSSA14!$S6)-($C$16*BSSA14!$T6)),$E$14/SUM($C$14:$G$14)*(LN('CB14'!$Y6)-($C$16*'CB14'!$Z6)),$F$14/SUM($C$14:$G$14)*(LN('CY14'!$U6)-($C$16*'CY14'!$V6)),$G$14/SUM($C$14:$G$14)*(LN('I14'!$L6)-($C$16*'I14'!$M6)))),EXP(SUM($C$14/SUM($C$14:$G$14)*(LN('ASK14'!$E6)-($C$16*'ASK14'!$F6)),$D$14/SUM($C$14:$G$14)*(LN(BSSA14!$S6)-($C$16*BSSA14!$T6)),$E$14/SUM($C$14:$G$14)*(LN('CB14'!$Y6)-($C$16*'CB14'!$Z6)),$F$14/SUM($C$14:$G$14)*(LN('CY14'!$U6)-($C$16*'CY14'!$V6)),$G$14/SUM($C$14:$G$14)*(LN('I14'!$L6)-($C$16*'I14'!$M6))))))) -> 0.2428498169 | I23: =($F23*980)/(2*PI()/$E23)^2 -> 0.001095121504 | J23: =DSF!$S22*Main!F23 -> 0.4411598373 | K23: =DSF!$S22*Main!G23 -> 0.8014088896 | L23: =DSF!$S22*Main!H23 -> 0.2428498169 | M23: =DSF!$S22*Main!I23 -> 0.001095121504 | Y23: ASK14 | Z23: M (all FM) | AA23: >= 3.0 - <=8.5 | AB23: =IF(AND($C$14<>0,$C$24="! Not Applicable !"),1,0) -> 0 | AC23: =SUM(AB23:AB25) -> 0
B24: 6.8 | C24: =IF($C$14<>0,'ASK14'!$B$6,IF($D$14<>0,BSSA14!$B$6,IF($E$14<>0,'CB14'!$B$6,IF($F$14<>0,'CY14'!$B$6,IF($G$14<>0,'I14'!$B$6,""))))) ->  | E24: 0.02 | F24: =IF($B$104=0,IF($AB$52=0,SUM($C$14/SUM($C$14:$G$14)*'ASK14'!$E7,$D$14/SUM($C$14:$G$14)*BSSA14!$S7,$E$14/SUM($C$14:$G$14)*'CB14'!$Y7,$F$14/SUM($C$14:$G$14)*'CY14'!$U7,$G$14/SUM($C$14:$G$14)*'I14'!$L7),SUM($C$14/SUM($C$14:$G$14)*'ASK14'!$E7,$D$14/SUM($C$14:$G$14)*BSSA14!$S7,$E$14/SUM($C$14:$G$14)*'CB14'!$Y7,$F$14/SUM($C$14:$G$14)*'CY14'!$U7,$G$14/SUM($C$14:$G$14)*'I14'!$L7)),IF($B$104=1,IF($AB$52=0,EXP(SUM($C$14/SUM($C$14:$G$14)*LN('ASK14'!$E7),$D$14/SUM($C$14:$G$14)*LN(BSSA14!$S7),$E$14/SUM($C$14:$G$14)*LN('CB14'!$Y7),$F$14/SUM($C$14:$G$14)*LN('CY14'!$U7),$G$14/SUM($C$14:$G$14)*LN('I14'!$L7))),EXP(SUM($C$14/SUM($C$14:$G$14)*LN('ASK14'!$E7),$D$14/SUM($C$14:$G$14)*LN(BSSA14!$S7),$E$14/SUM($C$14:$G$14)*LN('CB14'!$Y7),$F$14/SUM($C$14:$G$14)*LN('CY14'!$U7),$G$14/SUM($C$14:$G$14)*LN('I14'!$L7)))))) -> 0.4517148751 | G24: =IF($B$104=0,IF($AB$52=0,SUM($C$14/SUM($C$14:$G$14)*('ASK14'!$E7*EXP(Main!$C$16*'ASK14'!$F7)),$D$14/SUM($C$14:$G$14)*(BSSA14!$S7*EXP(Main!$C$16*BSSA14!$T7)),$E$14/SUM($C$14:$G$14)*('CB14'!$Y7*EXP(Main!$C$16*'CB14'!$Z7)),$F$14/SUM($C$14:$G$14)*('CY14'!$U7*EXP(Main!$C$16*'CY14'!$V7)),$G$14/SUM($C$14:$G$14)*('I14'!$L7*EXP(Main!$C$16*'I14'!$M7))),SUM($C$14/SUM($C$14:$G$14)*('ASK14'!$E7*EXP(Main!$C$16*'ASK14'!$F7)),$D$14/SUM($C$14:$G$14)*(BSSA14!$S7*EXP(Main!$C$16*BSSA14!$T7)),$E$14/SUM($C$14:$G$14)*('CB14'!$Y7*EXP(Main!$C$16*'CB14'!$Z7)),$F$14/SUM($C$14:$G$14)*('CY14'!$U7*EXP(Main!$C$16*'CY14'!$V7)),$G$14/SUM($C$14:$G$14)*('I14'!$L7*EXP(Main!$C$16*'I14'!$M7)))),IF($B$104=1,IF($AB$52=0,EXP(SUM($C$14/SUM($C$14:$G$14)*(LN('ASK14'!$E7)+($C$16*'ASK14'!$F7)),$D$14/SUM($C$14:$G$14)*(LN(BSSA14!$S7)+($C$16*BSSA14!$T7)),$E$14/SUM($C$14:$G$14)*(LN('CB14'!$Y7)+($C$16*'CB14'!$Z7)),$F$14/SUM($C$14:$G$14)*(LN('CY14'!$U7)+($C$16*'CY14'!$V7)),$G$14/SUM($C$14:$G$14)*(LN('I14'!$L7)+($C$16*'I14'!$M7)))),EXP(SUM($C$14/SUM($C$14:$G$14)*(LN('ASK14'!$E7)+($C$16*'ASK14'!$F7)),$D$14/SUM($C$14:$G$14)*(LN(BSSA14!$S7)+($C$16*BSSA14!$T7)),$E$14/SUM($C$14:$G$14)*(LN('CB14'!$Y7)+($C$16*'CB14'!$Z7)),$F$14/SUM($C$14:$G$14)*(LN('CY14'!$U7)+($C$16*'CY14'!$V7)),$G$14/SUM($C$14:$G$14)*(LN('I14'!$L7)+($C$16*'I14'!$M7))))))) -> 0.8223434363 | H24: =IF($B$104=0,IF($AB$52=0,SUM($C$14/SUM($C$14:$G$14)*('ASK14'!$E7*EXP(-Main!$C$16*'ASK14'!$F7)),$D$14/SUM($C$14:$G$14)*(BSSA14!$S7*EXP(-Main!$C$16*BSSA14!$T7)),$E$14/SUM($C$14:$G$14)*('CB14'!$Y7*EXP(-Main!$C$16*'CB14'!$Z7)),$F$14/SUM($C$14:$G$14)*('CY14'!$U7*EXP(-Main!$C$16*'CY14'!$V7)),$G$14/SUM($C$14:$G$14)*('I14'!$L7*EXP(-Main!$C$16*'I14'!$M7))),SUM($C$14/SUM($C$14:$G$14)*('ASK14'!$E7*EXP(-Main!$C$16*'ASK14'!$F7)),$D$14/SUM($C$14:$G$14)*(BSSA14!$S7*EXP(-Main!$C$16*BSSA14!$T7)),$E$14/SUM($C$14:$G$14)*('CB14'!$Y7*EXP(-Main!$C$16*'CB14'!$Z7)),$F$14/SUM($C$14:$G$14)*('CY14'!$U7*EXP(-Main!$C$16*'CY14'!$V7)),$G$14/SUM($C$14:$G$14)*('I14'!$L7*EXP(-Main!$C$16*'I14'!$M7)))),IF($B$104=1,IF($AB$52=0,EXP(SUM($C$14/SUM($C$14:$G$14)*(LN('ASK14'!$E7)-($C$16*'ASK14'!$F7)),$D$14/SUM($C$14:$G$14)*(LN(BSSA14!$S7)-($C$16*BSSA14!$T7)),$E$14/SUM($C$14:$G$14)*(LN('CB14'!$Y7)-($C$16*'CB14'!$Z7)),$F$14/SUM($C$14:$G$14)*(LN('CY14'!$U7)-($C$16*'CY14'!$V7)),$G$14/SUM($C$14:$G$14)*(LN('I14'!$L7)-($C$16*'I14'!$M7)))),EXP(SUM($C$14/SUM($C$14:$G$14)*(LN('ASK14'!$E7)-($C$16*'ASK14'!$F7)),$D$14/SUM($C$14:$G$14)*(LN(BSSA14!$S7)-($C$16*BSSA14!$T7)),$E$14/SUM($C$14:$G$14)*(LN('CB14'!$Y7)-($C$16*'CB14'!$Z7)),$F$14/SUM($C$14:$G$14)*(LN('CY14'!$U7)-($C$16*'CY14'!$V7)),$G$14/SUM($C$14:$G$14)*(LN('I14'!$L7)-($C$16*'I14'!$M7))))))) -> 0.2481278738 | I24: =($F24*980)/(2*PI()/$E24)^2 -> 0.00448529201 | J24: =DSF!$S23*Main!F24 -> 0.4517148751 | K24: =DSF!$S23*Main!G24 -> 0.8223434363 | L24: =DSF!$S23*Main!H24 -> 0.2481278738 | M24: =DSF!$S23*Main!I24 -> 0.00448529201 | R24: ="Pseudo Spectral Acceleration (" &$C$17 & "% damping) (g)" -> Pseudo Spectral Acceleration (5% damping) (g) | Z24: R | AA24: >= 0 - <= 300 | AB24: =IF(AND($C$14<>0,$C$27="! Not Applicable !"),1,0) -> 0
E25: 0.03 | F25: =IF($B$104=0,IF($AB$52=0,SUM($C$14/SUM($C$14:$G$14)*'ASK14'!$E8,$D$14/SUM($C$14:$G$14)*BSSA14!$S8,$E$14/SUM($C$14:$G$14)*'CB14'!$Y8,$F$14/SUM($C$14:$G$14)*'CY14'!$U8,$G$14/SUM($C$14:$G$14)*'I14'!$L8),SUM($C$14/SUM($C$14:$G$14)*'ASK14'!$E8,$D$14/SUM($C$14:$G$14)*BSSA14!$S8,$E$14/SUM($C$14:$G$14)*'CB14'!$Y8,$F$14/SUM($C$14:$G$14)*'CY14'!$U8,$G$14/SUM($C$14:$G$14)*'I14'!$L8)),IF($B$104=1,IF($AB$52=0,EXP(SUM($C$14/SUM($C$14:$G$14)*LN('ASK14'!$E8),$D$14/SUM($C$14:$G$14)*LN(BSSA14!$S8),$E$14/SUM($C$14:$G$14)*LN('CB14'!$Y8),$F$14/SUM($C$14:$G$14)*LN('CY14'!$U8),$G$14/SUM($C$14:$G$14)*LN('I14'!$L8))),EXP(SUM($C$14/SUM($C$14:$G$14)*LN('ASK14'!$E8),$D$14/SUM($C$14:$G$14)*LN(BSSA14!$S8),$E$14/SUM($C$14:$G$14)*LN('CB14'!$Y8),$F$14/SUM($C$14:$G$14)*LN('CY14'!$U8),$G$14/SUM($C$14:$G$14)*LN('I14'!$L8)))))) -> 0.5019397838 | G25: =IF($B$104=0,IF($AB$52=0,SUM($C$14/SUM($C$14:$G$14)*('ASK14'!$E8*EXP(Main!$C$16*'ASK14'!$F8)),$D$14/SUM($C$14:$G$14)*(BSSA14!$S8*EXP(Main!$C$16*BSSA14!$T8)),$E$14/SUM($C$14:$G$14)*('CB14'!$Y8*EXP(Main!$C$16*'CB14'!$Z8)),$F$14/SUM($C$14:$G$14)*('CY14'!$U8*EXP(Main!$C$16*'CY14'!$V8)),$G$14/SUM($C$14:$G$14)*('I14'!$L8*EXP(Main!$C$16*'I14'!$M8))),SUM($C$14/SUM($C$14:$G$14)*('ASK14'!$E8*EXP(Main!$C$16*'ASK14'!$F8)),$D$14/SUM($C$14:$G$14)*(BSSA14!$S8*EXP(Main!$C$16*BSSA14!$T8)),$E$14/SUM($C$14:$G$14)*('CB14'!$Y8*EXP(Main!$C$16*'CB14'!$Z8)),$F$14/SUM($C$14:$G$14)*('CY14'!$U8*EXP(Main!$C$16*'CY14'!$V8)),$G$14/SUM($C$14:$G$14)*('I14'!$L8*EXP(Main!$C$16*'I14'!$M8)))),IF($B$104=1,IF($AB$52=0,EXP(SUM($C$14/SUM($C$14:$G$14)*(LN('ASK14'!$E8)+($C$16*'ASK14'!$F8)),$D$14/SUM($C$14:$G$14)*(LN(BSSA14!$S8)+($C$16*BSSA14!$T8)),$E$14/SUM($C$14:$G$14)*(LN('CB14'!$Y8)+($C$16*'CB14'!$Z8)),$F$14/SUM($C$14:$G$14)*(LN('CY14'!$U8)+($C$16*'CY14'!$V8)),$G$14/SUM($C$14:$G$14)*(LN('I14'!$L8)+($C$16*'I14'!$M8)))),EXP(SUM($C$14/SUM($C$14:$G$14)*(LN('ASK14'!$E8)+($C$16*'ASK14'!$F8)),$D$14/SUM($C$14:$G$14)*(LN(BSSA14!$S8)+($C$16*BSSA14!$T8)),$E$14/SUM($C$14:$G$14)*(LN('CB14'!$Y8)+($C$16*'CB14'!$Z8)),$F$14/SUM($C$14:$G$14)*(LN('CY14'!$U8)+($C$16*'CY14'!$V8)),$G$14/SUM($C$14:$G$14)*(LN('I14'!$L8)+($C$16*'I14'!$M8))))))) -> 0.9233160829 | H25: =IF($B$104=0,IF($AB$52=0,SUM($C$14/SUM($C$14:$G$14)*('ASK14'!$E8*EXP(-Main!$C$16*'ASK14'!$F8)),$D$14/SUM($C$14:$G$14)*(BSSA14!$S8*EXP(-Main!$C$16*BSSA14!$T8)),$E$14/SUM($C$14:$G$14)*('CB14'!$Y8*EXP(-Main!$C$16*'CB14'!$Z8)),$F$14/SUM($C$14:$G$14)*('CY14'!$U8*EXP(-Main!$C$16*'CY14'!$V8)),$G$14/SUM($C$14:$G$14)*('I14'!$L8*EXP(-Main!$C$16*'I14'!$M8))),SUM($C$14/SUM($C$14:$G$14)*('ASK14'!$E8*EXP(-Main!$C$16*'ASK14'!$F8)),$D$14/SUM($C$14:$G$14)*(BSSA14!$S8*EXP(-Main!$C$16*BSSA14!$T8)),$E$14/SUM($C$14:$G$14)*('CB14'!$Y8*EXP(-Main!$C$16*'CB14'!$Z8)),$F$14/SUM($C$14:$G$14)*('CY14'!$U8*EXP(-Main!$C$16*'CY14'!$V8)),$G$14/SUM($C$14:$G$14)*('I14'!$L8*EXP(-Main!$C$16*'I14'!$M8)))),IF($B$104=1,IF($AB$52=0,EXP(SUM($C$14/SUM($C$14:$G$14)*(LN('ASK14'!$E8)-($C$16*'ASK14'!$F8)),$D$14/SUM($C$14:$G$14)*(LN(BSSA14!$S8)-($C$16*BSSA14!$T8)),$E$14/SUM($C$14:$G$14)*(LN('CB14'!$Y8)-($C$16*'CB14'!$Z8)),$F$14/SUM($C$14:$G$14)*(LN('CY14'!$U8)-($C$16*'CY14'!$V8)),$G$14/SUM($C$14:$G$14)*(LN('I14'!$L8)-($C$16*'I14'!$M8)))),EXP(SUM($C$14/SUM($C$14:$G$14)*(LN('ASK14'!$E8)-($C$16*'ASK14'!$F8)),$D$14/SUM($C$14:$G$14)*(LN(BSSA14!$S8)-($C$16*BSSA14!$T8)),$E$14/SUM($C$14:$G$14)*(LN('CB14'!$Y8)-($C$16*'CB14'!$Z8)),$F$14/SUM($C$14:$G$14)*(LN('CY14'!$U8)-($C$16*'CY14'!$V8)),$G$14/SUM($C$14:$G$14)*(LN('I14'!$L8)-($C$16*'I14'!$M8))))))) -> 0.2728681447 | I25: 0.01121399783 | J25: =DSF!$S24*Main!F25 -> 0.5019397838 | K25: =DSF!$S24*Main!G25 -> 0.9233160829 | L25: =DSF!$S24*Main!H25 -> 0.2728681447 | M25: =DSF!$S24*Main!I25 -> 0.01121399783 | Z25: Vs30 | AA25: >= 180, <= 1000 | AB25: =IF(AND($C$14<>0,$C$39="Out of Range! Use 760 m/s"),1,0) -> 0
B26: RRUP (km) | C26: =IF($B$27<$B$30,"Rrup<Rjb !!","") ->  | E26: 0.05 | F26: =IF($B$104=0,IF($AB$52=0,SUM($C$14/SUM($C$14:$G$14)*'ASK14'!$E9,$D$14/SUM($C$14:$G$14)*BSSA14!$S9,$E$14/SUM($C$14:$G$14)*'CB14'!$Y9,$F$14/SUM($C$14:$G$14)*'CY14'!$U9,$G$14/SUM($C$14:$G$14)*'I14'!$L9),SUM($C$14/SUM($C$14:$G$14)*'ASK14'!$E9,$D$14/SUM($C$14:$G$14)*BSSA14!$S9,$E$14/SUM($C$14:$G$14)*'CB14'!$Y9,$F$14/SUM($C$14:$G$14)*'CY14'!$U9,$G$14/SUM($C$14:$G$14)*'I14'!$L9)),IF($B$104=1,IF($AB$52=0,EXP(SUM($C$14/SUM($C$14:$G$14)*LN('ASK14'!$E9),$D$14/SUM($C$14:$G$14)*LN(BSSA14!$S9),$E$14/SUM($C$14:$G$14)*LN('CB14'!$Y9),$F$14/SUM($C$14:$G$14)*LN('CY14'!$U9),$G$14/SUM($C$14:$G$14)*LN('I14'!$L9))),EXP(SUM($C$14/SUM($C$14:$G$14)*LN('ASK14'!$E9),$D$14/SUM($C$14:$G$14)*LN(BSSA14!$S9),$E$14/SUM($C$14:$G$14)*LN('CB14'!$Y9),$F$14/SUM($C$14:$G$14)*LN('CY14'!$U9),$G$14/SUM($C$14:$G$14)*LN('I14'!$L9)))))) -> 0.6402509858 | G26: =IF($B$104=0,IF($AB$52=0,SUM($C$14/SUM($C$14:$G$14)*('ASK14'!$E9*EXP(Main!$C$16*'ASK14'!$F9)),$D$14/SUM($C$14:$G$14)*(BSSA14!$S9*EXP(Main!$C$16*BSSA14!$T9)),$E$14/SUM($C$14:$G$14)*('CB14'!$Y9*EXP(Main!$C$16*'CB14'!$Z9)),$F$14/SUM($C$14:$G$14)*('CY14'!$U9*EXP(Main!$C$16*'CY14'!$V9)),$G$14/SUM($C$14:$G$14)*('I14'!$L9*EXP(Main!$C$16*'I14'!$M9))),SUM($C$14/SUM($C$14:$G$14)*('ASK14'!$E9*EXP(Main!$C$16*'ASK14'!$F9)),$D$14/SUM($C$14:$G$14)*(BSSA14!$S9*EXP(Main!$C$16*BSSA14!$T9)),$E$14/SUM($C$14:$G$14)*('CB14'!$Y9*EXP(Main!$C$16*'CB14'!$Z9)),$F$14/SUM($C$14:$G$14)*('CY14'!$U9*EXP(Main!$C$16*'CY14'!$V9)),$G$14/SUM($C$14:$G$14)*('I14'!$L9*EXP(Main!$C$16*'I14'!$M9)))),IF($B$104=1,IF($AB$52=0,EXP(SUM($C$14/SUM($C$14:$G$14)*(LN('ASK14'!$E9)+($C$16*'ASK14'!$F9)),$D$14/SUM($C$14:$G$14)*(LN(BSSA14!$S9)+($C$16*BSSA14!$T9)),$E$14/SUM($C$14:$G$14)*(LN('CB14'!$Y9)+($C$16*'CB14'!$Z9)),$F$14/SUM($C$14:$G$14)*(LN('CY14'!$U9)+($C$16*'CY14'!$V9)),$G$14/SUM($C$14:$G$14)*(LN('I14'!$L9)+($C$16*'I14'!$M9)))),EXP(SUM($C$14/SUM($C$14:$G$14)*(LN('ASK14'!$E9)+($C$16*'ASK14'!$F9)),$D$14/SUM($C$14:$G$14)*(LN(BSSA14!$S9)+($C$16*BSSA14!$T9)),$E$14/SUM($C$14:$G$14)*(LN('CB14'!$Y9)+($C$16*'CB14'!$Z9)),$F$14/SUM($C$14:$G$14)*(LN('CY14'!$U9)+($C$16*'CY14'!$V9)),$G$14/SUM($C$14:$G$14)*(LN('I14'!$L9)+($C$16*'I14'!$M9))))))) -> 1.199000288 | H26: =IF($B$104=0,IF($AB$52=0,SUM($C$14/SUM($C$14:$G$14)*('ASK14'!$E9*EXP(-Main!$C$16*'ASK14'!$F9)),$D$14/SUM($C$14:$G$14)*(BSSA14!$S9*EXP(-Main!$C$16*BSSA14!$T9)),$E$14/SUM($C$14:$G$14)*('CB14'!$Y9*EXP(-Main!$C$16*'CB14'!$Z9)),$F$14/SUM($C$14:$G$14)*('CY14'!$U9*EXP(-Main!$C$16*'CY14'!$V9)),$G$14/SUM($C$14:$G$14)*('I14'!$L9*EXP(-Main!$C$16*'I14'!$M9))),SUM($C$14/SUM($C$14:$G$14)*('ASK14'!$E9*EXP(-Main!$C$16*'ASK14'!$F9)),$D$14/SUM($C$14:$G$14)*(BSSA14!$S9*EXP(-Main!$C$16*BSSA14!$T9)),$E$14/SUM($C$14:$G$14)*('CB14'!$Y9*EXP(-Main!$C$16*'CB14'!$Z9)),$F$14/SUM($C$14:$G$14)*('CY14'!$U9*EXP(-Main!$C$16*'CY14'!$V9)),$G$14/SUM($C$14:$G$14)*('I14'!$L9*EXP(-Main!$C$16*'I14'!$M9)))),IF($B$104=1,IF($AB$52=0,EXP(SUM($C$14/SUM($C$14:$G$14)*(LN('ASK14'!$E9)-($C$16*'ASK14'!$F9)),$D$14/SUM($C$14:$G$14)*(LN(BSSA14!$S9)-($C$16*BSSA14!$T9)),$E$14/SUM($C$14:$G$14)*(LN('CB14'!$Y9)-($C$16*'CB14'!$Z9)),$F$14/SUM($C$14:$G$14)*(LN('CY14'!$U9)-($C$16*'CY14'!$V9)),$G$14/SUM($C$14:$G$14)*(LN('I14'!$L9)-($C$16*'I14'!$M9)))),EXP(SUM($C$14/SUM($C$14:$G$14)*(LN('ASK14'!$E9)-($C$16*'ASK14'!$F9)),$D$14/SUM($C$14:$G$14)*(LN(BSSA14!$S9)-($C$16*BSSA14!$T9)),$E$14/SUM($C$14:$G$14)*(LN('CB14'!$Y9)-($C$16*'CB14'!$Z9)),$F$14/SUM($C$14:$G$14)*(LN('CY14'!$U9)-($C$16*'CY14'!$V9)),$G$14/SUM($C$14:$G$14)*(LN('I14'!$L9)-($C$16*'I14'!$M9))))))) -> 0.341885927 | I26: 0.03973347997 | J26: =DSF!$S25*Main!F26 -> 0.6402509858 | K26: =DSF!$S25*Main!G26 -> 1.199000288 | L26: =DSF!$S25*Main!H26 -> 0.341885927 | M26: =DSF!$S25*Main!I26 -> 0.03973347997 | Y26: BSSA14 | Z26: M, SS | AA26: >= 3.0 - <=8.5 | AB26: =IF(AND($D$14<>0,$C$24="! Not Applicable !"),1,0) -> 0 | AC26: =SUM(AB26:AB31) -> 0
B27: 3.16 | C27: =IF($C$14<>0,'ASK14'!$B$9,IF($E$14<>0,'CB14'!$B$9,IF($F$14<>0,'CY14'!$B$9,IF($G$14<>0,'I14'!$B$9,"")))) ->  | E27: 0.075 | F27: =IF($B$104=0,IF($AB$52=0,SUM($C$14/SUM($C$14:$G$14)*'ASK14'!$E10,$D$14/SUM($C$14:$G$14)*BSSA14!$S10,$E$14/SUM($C$14:$G$14)*'CB14'!$Y10,$F$14/SUM($C$14:$G$14)*'CY14'!$U10,$G$14/SUM($C$14:$G$14)*'I14'!$L10),SUM($C$14/SUM($C$14:$G$14)*'ASK14'!$E10,$D$14/SUM($C$14:$G$14)*BSSA14!$S10,$E$14/SUM($C$14:$G$14)*'CB14'!$Y10,$F$14/SUM($C$14:$G$14)*'CY14'!$U10,$G$14/SUM($C$14:$G$14)*'I14'!$L10)),IF($B$104=1,IF($AB$52=0,EXP(SUM($C$14/SUM($C$14:$G$14)*LN('ASK14'!$E10),$D$14/SUM($C$14:$G$14)*LN(BSSA14!$S10),$E$14/SUM($C$14:$G$14)*LN('CB14'!$Y10),$F$14/SUM($C$14:$G$14)*LN('CY14'!$U10),$G$14/SUM($C$14:$G$14)*LN('I14'!$L10))),EXP(SUM($C$14/SUM($C$14:$G$14)*LN('ASK14'!$E10),$D$14/SUM($C$14:$G$14)*LN(BSSA14!$S10),$E$14/SUM($C$14:$G$14)*LN('CB14'!$Y10),$F$14/SUM($C$14:$G$14)*LN('CY14'!$U10),$G$14/SUM($C$14:$G$14)*LN('I14'!$L10)))))) -> 0.8060235246 | G27: =IF($B$104=0,IF($AB$52=0,SUM($C$14/SUM($C$14:$G$14)*('ASK14'!$E10*EXP(Main!$C$16*'ASK14'!$F10)),$D$14/SUM($C$14:$G$14)*(BSSA14!$S10*EXP(Main!$C$16*BSSA14!$T10)),$E$14/SUM($C$14:$G$14)*('CB14'!$Y10*EXP(Main!$C$16*'CB14'!$Z10)),$F$14/SUM($C$14:$G$14)*('CY14'!$U10*EXP(Main!$C$16*'CY14'!$V10)),$G$14/SUM($C$14:$G$14)*('I14'!$L10*EXP(Main!$C$16*'I14'!$M10))),SUM($C$14/SUM($C$14:$G$14)*('ASK14'!$E10*EXP(Main!$C$16*'ASK14'!$F10)),$D$14/SUM($C$14:$G$14)*(BSSA14!$S10*EXP(Main!$C$16*BSSA14!$T10)),$E$14/SUM($C$14:$G$14)*('CB14'!$Y10*EXP(Main!$C$16*'CB14'!$Z10)),$F$14/SUM($C$14:$G$14)*('CY14'!$U10*EXP(Main!$C$16*'CY14'!$V10)),$G$14/SUM($C$14:$G$14)*('I14'!$L10*EXP(Main!$C$16*'I14'!$M10)))),IF($B$104=1,IF($AB$52=0,EXP(SUM($C$14/SUM($C$14:$G$14)*(LN('ASK14'!$E10)+($C$16*'ASK14'!$F10)),$D$14/SUM($C$14:$G$14)*(LN(BSSA14!$S10)+($C$16*BSSA14!$T10)),$E$14/SUM($C$14:$G$14)*(LN('CB14'!$Y10)+($C$16*'CB14'!$Z10)),$F$14/SUM($C$14:$G$14)*(LN('CY14'!$U10)+($C$16*'CY14'!$V10)),$G$14/SUM($C$14:$G$14)*(LN('I14'!$L10)+($C$16*'I14'!$M10)))),EXP(SUM($C$14/SUM($C$14:$G$14)*(LN('ASK14'!$E10)+($C$16*'ASK14'!$F10)),$D$14/SUM($C$14:$G$14)*(LN(BSSA14!$S10)+($C$16*BSSA14!$T10)),$E$14/SUM($C$14:$G$14)*(LN('CB14'!$Y10)+($C$16*'CB14'!$Z10)),$F$14/SUM($C$14:$G$14)*(LN('CY14'!$U10)+($C$16*'CY14'!$V10)),$G$14/SUM($C$14:$G$14)*(LN('I14'!$L10)+($C$16*'I14'!$M10))))))) -> 1.537650649 | H27: =IF($B$104=0,IF($AB$52=0,SUM($C$14/SUM($C$14:$G$14)*('ASK14'!$E10*EXP(-Main!$C$16*'ASK14'!$F10)),$D$14/SUM($C$14:$G$14)*(BSSA14!$S10*EXP(-Main!$C$16*BSSA14!$T10)),$E$14/SUM($C$14:$G$14)*('CB14'!$Y10*EXP(-Main!$C$16*'CB14'!$Z10)),$F$14/SUM($C$14:$G$14)*('CY14'!$U10*EXP(-Main!$C$16*'CY14'!$V10)),$G$14/SUM($C$14:$G$14)*('I14'!$L10*EXP(-Main!$C$16*'I14'!$M10))),SUM($C$14/SUM($C$14:$G$14)*('ASK14'!$E10*EXP(-Main!$C$16*'ASK14'!$F10)),$D$14/SUM($C$14:$G$14)*(BSSA14!$S10*EXP(-Main!$C$16*BSSA14!$T10)),$E$14/SUM($C$14:$G$14)*('CB14'!$Y10*EXP(-Main!$C$16*'CB14'!$Z10)),$F$14/SUM($C$14:$G$14)*('CY14'!$U10*EXP(-Main!$C$16*'CY14'!$V10)),$G$14/SUM($C$14:$G$14)*('I14'!$L10*EXP(-Main!$C$16*'I14'!$M10)))),IF($B$104=1,IF($AB$52=0,EXP(SUM($C$14/SUM($C$14:$G$14)*(LN('ASK14'!$E10)-($C$16*'ASK14'!$F10)),$D$14/SUM($C$14:$G$14)*(LN(BSSA14!$S10)-($C$16*BSSA14!$T10)),$E$14/SUM($C$14:$G$14)*(LN('CB14'!$Y10)-($C$16*'CB14'!$Z10)),$F$14/SUM($C$14:$G$14)*(LN('CY14'!$U10)-($C$16*'CY14'!$V10)),$G$14/SUM($C$14:$G$14)*(LN('I14'!$L10)-($C$16*'I14'!$M10)))),EXP(SUM($C$14/SUM($C$14:$G$14)*(LN('ASK14'!$E10)-($C$16*'ASK14'!$F10)),$D$14/SUM($C$14:$G$14)*(LN(BSSA14!$S10)-($C$16*BSSA14!$T10)),$E$14/SUM($C$14:$G$14)*(LN('CB14'!$Y10)-($C$16*'CB14'!$Z10)),$F$14/SUM($C$14:$G$14)*(LN('CY14'!$U10)-($C$16*'CY14'!$V10)),$G$14/SUM($C$14:$G$14)*(LN('I14'!$L10)-($C$16*'I14'!$M10))))))) -> 0.4225107455 | I27: 0.1125476893 | J27: =DSF!$S26*Main!F27 -> 0.8076355717 | K27: =DSF!$S26*Main!G27 -> 1.540725951 | L27: =DSF!$S26*Main!H27 -> 0.423355767 | M27: =DSF!$S26*Main!I27 -> 0.1127727847 | Z27: M, RS | AA27: >= 3.0 - <=8.5 | AB27: =IF(AND($D$14<>0,$C$24="! Not Applicable !"),1,0) -> 0
E28: 0.1 | F28: =IF($B$104=0,IF($AB$52=0,SUM($C$14/SUM($C$14:$G$14)*'ASK14'!$E11,$D$14/SUM($C$14:$G$14)*BSSA14!$S11,$E$14/SUM($C$14:$G$14)*'CB14'!$Y11,$F$14/SUM($C$14:$G$14)*'CY14'!$U11,$G$14/SUM($C$14:$G$14)*'I14'!$L11),SUM($C$14/SUM($C$14:$G$14)*'ASK14'!$E11,$D$14/SUM($C$14:$G$14)*BSSA14!$S11,$E$14/SUM($C$14:$G$14)*'CB14'!$Y11,$F$14/SUM($C$14:$G$14)*'CY14'!$U11,$G$14/SUM($C$14:$G$14)*'I14'!$L11)),IF($B$104=1,IF($AB$52=0,EXP(SUM($C$14/SUM($C$14:$G$14)*LN('ASK14'!$E11),$D$14/SUM($C$14:$G$14)*LN(BSSA14!$S11),$E$14/SUM($C$14:$G$14)*LN('CB14'!$Y11),$F$14/SUM($C$14:$G$14)*LN('CY14'!$U11),$G$14/SUM($C$14:$G$14)*LN('I14'!$L11))),EXP(SUM($C$14/SUM($C$14:$G$14)*LN('ASK14'!$E11),$D$14/SUM($C$14:$G$14)*LN(BSSA14!$S11),$E$14/SUM($C$14:$G$14)*LN('CB14'!$Y11),$F$14/SUM($C$14:$G$14)*LN('CY14'!$U11),$G$14/SUM($C$14:$G$14)*LN('I14'!$L11)))))) -> 0.9070297295 | G28: =IF($B$104=0,IF($AB$52=0,SUM($C$14/SUM($C$14:$G$14)*('ASK14'!$E11*EXP(Main!$C$16*'ASK14'!$F11)),$D$14/SUM($C$14:$G$14)*(BSSA14!$S11*EXP(Main!$C$16*BSSA14!$T11)),$E$14/SUM($C$14:$G$14)*('CB14'!$Y11*EXP(Main!$C$16*'CB14'!$Z11)),$F$14/SUM($C$14:$G$14)*('CY14'!$U11*EXP(Main!$C$16*'CY14'!$V11)),$G$14/SUM($C$14:$G$14)*('I14'!$L11*EXP(Main!$C$16*'I14'!$M11))),SUM($C$14/SUM($C$14:$G$14)*('ASK14'!$E11*EXP(Main!$C$16*'ASK14'!$F11)),$D$14/SUM($C$14:$G$14)*(BSSA14!$S11*EXP(Main!$C$16*BSSA14!$T11)),$E$14/SUM($C$14:$G$14)*('CB14'!$Y11*EXP(Main!$C$16*'CB14'!$Z11)),$F$14/SUM($C$14:$G$14)*('CY14'!$U11*EXP(Main!$C$16*'CY14'!$V11)),$G$14/SUM($C$14:$G$14)*('I14'!$L11*EXP(Main!$C$16*'I14'!$M11)))),IF($B$104=1,IF($AB$52=0,EXP(SUM($C$14/SUM($C$14:$G$14)*(LN('ASK14'!$E11)+($C$16*'ASK14'!$F11)),$D$14/SUM($C$14:$G$14)*(LN(BSSA14!$S11)+($C$16*BSSA14!$T11)),$E$14/SUM($C$14:$G$14)*(LN('CB14'!$Y11)+($C$16*'CB14'!$Z11)),$F$14/SUM($C$14:$G$14)*(LN('CY14'!$U11)+($C$16*'CY14'!$V11)),$G$14/SUM($C$14:$G$14)*(LN('I14'!$L11)+($C$16*'I14'!$M11)))),EXP(SUM($C$14/SUM($C$14:$G$14)*(LN('ASK14'!$E11)+($C$16*'ASK14'!$F11)),$D$14/SUM($C$14:$G$14)*(LN(BSSA14!$S11)+($C$16*BSSA14!$T11)),$E$14/SUM($C$14:$G$14)*(LN('CB14'!$Y11)+($C$16*'CB14'!$Z11)),$F$14/SUM($C$14:$G$14)*(LN('CY14'!$U11)+($C$16*'CY14'!$V11)),$G$14/SUM($C$14:$G$14)*(LN('I14'!$L11)+($C$16*'I14'!$M11))))))) -> 1.742659062 | H28: =IF($B$104=0,IF($AB$52=0,SUM($C$14/SUM($C$14:$G$14)*('ASK14'!$E11*EXP(-Main!$C$16*'ASK14'!$F11)),$D$14/SUM($C$14:$G$14)*(BSSA14!$S11*EXP(-Main!$C$16*BSSA14!$T11)),$E$14/SUM($C$14:$G$14)*('CB14'!$Y11*EXP(-Main!$C$16*'CB14'!$Z11)),$F$14/SUM($C$14:$G$14)*('CY14'!$U11*EXP(-Main!$C$16*'CY14'!$V11)),$G$14/SUM($C$14:$G$14)*('I14'!$L11*EXP(-Main!$C$16*'I14'!$M11))),SUM($C$14/SUM($C$14:$G$14)*('ASK14'!$E11*EXP(-Main!$C$16*'ASK14'!$F11)),$D$14/SUM($C$14:$G$14)*(BSSA14!$S11*EXP(-Main!$C$16*BSSA14!$T11)),$E$14/SUM($C$14:$G$14)*('CB14'!$Y11*EXP(-Main!$C$16*'CB14'!$Z11)),$F$14/SUM($C$14:$G$14)*('CY14'!$U11*EXP(-Main!$C$16*'CY14'!$V11)),$G$14/SUM($C$14:$G$14)*('I14'!$L11*EXP(-Main!$C$16*'I14'!$M11)))),IF($B$104=1,IF($AB$52=0,EXP(SUM($C$14/SUM($C$14:$G$14)*(LN('ASK14'!$E11)-($C$16*'ASK14'!$F11)),$D$14/SUM($C$14:$G$14)*(LN(BSSA14!$S11)-($C$16*BSSA14!$T11)),$E$14/SUM($C$14:$G$14)*(LN('CB14'!$Y11)-($C$16*'CB14'!$Z11)),$F$14/SUM($C$14:$G$14)*(LN('CY14'!$U11)-($C$16*'CY14'!$V11)),$G$14/SUM($C$14:$G$14)*(LN('I14'!$L11)-($C$16*'I14'!$M11)))),EXP(SUM($C$14/SUM($C$14:$G$14)*(LN('ASK14'!$E11)-($C$16*'ASK14'!$F11)),$D$14/SUM($C$14:$G$14)*(LN(BSSA14!$S11)-($C$16*BSSA14!$T11)),$E$14/SUM($C$14:$G$14)*(LN('CB14'!$Y11)-($C$16*'CB14'!$Z11)),$F$14/SUM($C$14:$G$14)*(LN('CY14'!$U11)-($C$16*'CY14'!$V11)),$G$14/SUM($C$14:$G$14)*(LN('I14'!$L11)-($C$16*'I14'!$M11))))))) -> 0.47209632 | I28: 0.2251582482 | J28: =DSF!$S27*Main!F28 -> 0.9088437889 | K28: =DSF!$S27*Main!G28 -> 1.74614438 | L28: =DSF!$S27*Main!H28 -> 0.4730405127 | M28: =DSF!$S27*Main!I28 -> 0.2256085647 | Z28: M, NS | AA28: >= 3.0 - <=7.0 | AB28: =IF(AND($D$14<>0,$C$24="! Not Applicable !"),1,0) -> 0
B29: RJB (km) | E29: 0.15 | F29: =IF($B$104=0,IF($AB$52=0,SUM($C$14/SUM($C$14:$G$14)*'ASK14'!$E12,$D$14/SUM($C$14:$G$14)*BSSA14!$S12,$E$14/SUM($C$14:$G$14)*'CB14'!$Y12,$F$14/SUM($C$14:$G$14)*'CY14'!$U12,$G$14/SUM($C$14:$G$14)*'I14'!$L12),SUM($C$14/SUM($C$14:$G$14)*'ASK14'!$E12,$D$14/SUM($C$14:$G$14)*BSSA14!$S12,$E$14/SUM($C$14:$G$14)*'CB14'!$Y12,$F$14/SUM($C$14:$G$14)*'CY14'!$U12,$G$14/SUM($C$14:$G$14)*'I14'!$L12)),IF($B$104=1,IF($AB$52=0,EXP(SUM($C$14/SUM($C$14:$G$14)*LN('ASK14'!$E12),$D$14/SUM($C$14:$G$14)*LN(BSSA14!$S12),$E$14/SUM($C$14:$G$14)*LN('CB14'!$Y12),$F$14/SUM($C$14:$G$14)*LN('CY14'!$U12),$G$14/SUM($C$14:$G$14)*LN('I14'!$L12))),EXP(SUM($C$14/SUM($C$14:$G$14)*LN('ASK14'!$E12),$D$14/SUM($C$14:$G$14)*LN(BSSA14!$S12),$E$14/SUM($C$14:$G$14)*LN('CB14'!$Y12),$F$14/SUM($C$14:$G$14)*LN('CY14'!$U12),$G$14/SUM($C$14:$G$14)*LN('I14'!$L12)))))) -> 1.018731036 | G29: =IF($B$104=0,IF($AB$52=0,SUM($C$14/SUM($C$14:$G$14)*('ASK14'!$E12*EXP(Main!$C$16*'ASK14'!$F12)),$D$14/SUM($C$14:$G$14)*(BSSA14!$S12*EXP(Main!$C$16*BSSA14!$T12)),$E$14/SUM($C$14:$G$14)*('CB14'!$Y12*EXP(Main!$C$16*'CB14'!$Z12)),$F$14/SUM($C$14:$G$14)*('CY14'!$U12*EXP(Main!$C$16*'CY14'!$V12)),$G$14/SUM($C$14:$G$14)*('I14'!$L12*EXP(Main!$C$16*'I14'!$M12))),SUM($C$14/SUM($C$14:$G$14)*('ASK14'!$E12*EXP(Main!$C$16*'ASK14'!$F12)),$D$14/SUM($C$14:$G$14)*(BSSA14!$S12*EXP(Main!$C$16*BSSA14!$T12)),$E$14/SUM($C$14:$G$14)*('CB14'!$Y12*EXP(Main!$C$16*'CB14'!$Z12)),$F$14/SUM($C$14:$G$14)*('CY14'!$U12*EXP(Main!$C$16*'CY14'!$V12)),$G$14/SUM($C$14:$G$14)*('I14'!$L12*EXP(Main!$C$16*'I14'!$M12)))),IF($B$104=1,IF($AB$52=0,EXP(SUM($C$14/SUM($C$14:$G$14)*(LN('ASK14'!$E12)+($C$16*'ASK14'!$F12)),$D$14/SUM($C$14:$G$14)*(LN(BSSA14!$S12)+($C$16*BSSA14!$T12)),$E$14/SUM($C$14:$G$14)*(LN('CB14'!$Y12)+($C$16*'CB14'!$Z12)),$F$14/SUM($C$14:$G$14)*(LN('CY14'!$U12)+($C$16*'CY14'!$V12)),$G$14/SUM($C$14:$G$14)*(LN('I14'!$L12)+($C$16*'I14'!$M12)))),EXP(SUM($C$14/SUM($C$14:$G$14)*(LN('ASK14'!$E12)+($C$16*'ASK14'!$F12)),$D$14/SUM($C$14:$G$14)*(LN(BSSA14!$S12)+($C$16*BSSA14!$T12)),$E$14/SUM($C$14:$G$14)*(LN('CB14'!$Y12)+($C$16*'CB14'!$Z12)),$F$14/SUM($C$14:$G$14)*(LN('CY14'!$U12)+($C$16*'CY14'!$V12)),$G$14/SUM($C$14:$G$14)*(LN('I14'!$L12)+($C$16*'I14'!$M12))))))) -> 1.955637508 | H29: =IF($B$104=0,IF($AB$52=0,SUM($C$14/SUM($C$14:$G$14)*('ASK14'!$E12*EXP(-Main!$C$16*'ASK14'!$F12)),$D$14/SUM($C$14:$G$14)*(BSSA14!$S12*EXP(-Main!$C$16*BSSA14!$T12)),$E$14/SUM($C$14:$G$14)*('CB14'!$Y12*EXP(-Main!$C$16*'CB14'!$Z12)),$F$14/SUM($C$14:$G$14)*('CY14'!$U12*EXP(-Main!$C$16*'CY14'!$V12)),$G$14/SUM($C$14:$G$14)*('I14'!$L12*EXP(-Main!$C$16*'I14'!$M12))),SUM($C$14/SUM($C$14:$G$14)*('ASK14'!$E12*EXP(-Main!$C$16*'ASK14'!$F12)),$D$14/SUM($C$14:$G$14)*(BSSA14!$S12*EXP(-Main!$C$16*BSSA14!$T12)),$E$14/SUM($C$14:$G$14)*('CB14'!$Y12*EXP(-Main!$C$16*'CB14'!$Z12)),$F$14/SUM($C$14:$G$14)*('CY14'!$U12*EXP(-Main!$C$16*'CY14'!$V12)),$G$14/SUM($C$14:$G$14)*('I14'!$L12*EXP(-Main!$C$16*'I14'!$M12)))),IF($B$104=1,IF($AB$52=0,EXP(SUM($C$14/SUM($C$14:$G$14)*(LN('ASK14'!$E12)-($C$16*'ASK14'!$F12)),$D$14/SUM($C$14:$G$14)*(LN(BSSA14!$S12)-($C$16*BSSA14!$T12)),$E$14/SUM($C$14:$G$14)*(LN('CB14'!$Y12)-($C$16*'CB14'!$Z12)),$F$14/SUM($C$14:$G$14)*(LN('CY14'!$U12)-($C$16*'CY14'!$V12)),$G$14/SUM($C$14:$G$14)*(LN('I14'!$L12)-($C$16*'I14'!$M12)))),EXP(SUM($C$14/SUM($C$14:$G$14)*(LN('ASK14'!$E12)-($C$16*'ASK14'!$F12)),$D$14/SUM($C$14:$G$14)*(LN(BSSA14!$S12)-($C$16*BSSA14!$T12)),$E$14/SUM($C$14:$G$14)*(LN('CB14'!$Y12)-($C$16*'CB14'!$Z12)),$F$14/SUM($C$14:$G$14)*(LN('CY14'!$U12)-($C$16*'CY14'!$V12)),$G$14/SUM($C$14:$G$14)*(LN('I14'!$L12)-($C$16*'I14'!$M12))))))) -> 0.5306775514 | I29: 0.5689949271 | J29: =DSF!$S28*Main!F29 -> 1.020768498 | K29: =DSF!$S28*Main!G29 -> 1.959548783 | L29: =DSF!$S28*Main!H29 -> 0.5317389065 | M29: =DSF!$S28*Main!I29 -> 0.570132917 | Z29: Rjb | AA29: >= 0 - <= 400 | AB29: =IF(AND($D$14<>0,$C$30="! Not Applicable !"),1,0) -> 0
B30: 1 | C30: =IF($D$14<>0,BSSA14!$B$12,"") ->  | E30: 0.2 | F30: =IF($B$104=0,IF($AB$52=0,SUM($C$14/SUM($C$14:$G$14)*'ASK14'!$E13,$D$14/SUM($C$14:$G$14)*BSSA14!$S13,$E$14/SUM($C$14:$G$14)*'CB14'!$Y13,$F$14/SUM($C$14:$G$14)*'CY14'!$U13,$G$14/SUM($C$14:$G$14)*'I14'!$L13),SUM($C$14/SUM($C$14:$G$14)*'ASK14'!$E13,$D$14/SUM($C$14:$G$14)*BSSA14!$S13,$E$14/SUM($C$14:$G$14)*'CB14'!$Y13,$F$14/SUM($C$14:$G$14)*'CY14'!$U13,$G$14/SUM($C$14:$G$14)*'I14'!$L13)),IF($B$104=1,IF($AB$52=0,EXP(SUM($C$14/SUM($C$14:$G$14)*LN('ASK14'!$E13),$D$14/SUM($C$14:$G$14)*LN(BSSA14!$S13),$E$14/SUM($C$14:$G$14)*LN('CB14'!$Y13),$F$14/SUM($C$14:$G$14)*LN('CY14'!$U13),$G$14/SUM($C$14:$G$14)*LN('I14'!$L13))),EXP(SUM($C$14/SUM($C$14:$G$14)*LN('ASK14'!$E13),$D$14/SUM($C$14:$G$14)*LN(BSSA14!$S13),$E$14/SUM($C$14:$G$14)*LN('CB14'!$Y13),$F$14/SUM($C$14:$G$14)*LN('CY14'!$U13),$G$14/SUM($C$14:$G$14)*LN('I14'!$L13)))))) -> 0.9849225936 | G30: =IF($B$104=0,IF($AB$52=0,SUM($C$14/SUM($C$14:$G$14)*('ASK14'!$E13*EXP(Main!$C$16*'ASK14'!$F13)),$D$14/SUM($C$14:$G$14)*(BSSA14!$S13*EXP(Main!$C$16*BSSA14!$T13)),$E$14/SUM($C$14:$G$14)*('CB14'!$Y13*EXP(Main!$C$16*'CB14'!$Z13)),$F$14/SUM($C$14:$G$14)*('CY14'!$U13*EXP(Main!$C$16*'CY14'!$V13)),$G$14/SUM($C$14:$G$14)*('I14'!$L13*EXP(Main!$C$16*'I14'!$M13))),SUM($C$14/SUM($C$14:$G$14)*('ASK14'!$E13*EXP(Main!$C$16*'ASK14'!$F13)),$D$14/SUM($C$14:$G$14)*(BSSA14!$S13*EXP(Main!$C$16*BSSA14!$T13)),$E$14/SUM($C$14:$G$14)*('CB14'!$Y13*EXP(Main!$C$16*'CB14'!$Z13)),$F$14/SUM($C$14:$G$14)*('CY14'!$U13*EXP(Main!$C$16*'CY14'!$V13)),$G$14/SUM($C$14:$G$14)*('I14'!$L13*EXP(Main!$C$16*'I14'!$M13)))),IF($B$104=1,IF($AB$52=0,EXP(SUM($C$14/SUM($C$14:$G$14)*(LN('ASK14'!$E13)+($C$16*'ASK14'!$F13)),$D$14/SUM($C$14:$G$14)*(LN(BSSA14!$S13)+($C$16*BSSA14!$T13)),$E$14/SUM($C$14:$G$14)*(LN('CB14'!$Y13)+($C$16*'CB14'!$Z13)),$F$14/SUM($C$14:$G$14)*(LN('CY14'!$U13)+($C$16*'CY14'!$V13)),$G$14/SUM($C$14:$G$14)*(LN('I14'!$L13)+($C$16*'I14'!$M13)))),EXP(SUM($C$14/SUM($C$14:$G$14)*(LN('ASK14'!$E13)+($C$16*'ASK14'!$F13)),$D$14/SUM($C$14:$G$14)*(LN(BSSA14!$S13)+($C$16*BSSA14!$T13)),$E$14/SUM($C$14:$G$14)*(LN('CB14'!$Y13)+($C$16*'CB14'!$Z13)),$F$14/SUM($C$14:$G$14)*(LN('CY14'!$U13)+($C$16*'CY14'!$V13)),$G$14/SUM($C$14:$G$14)*(LN('I14'!$L13)+($C$16*'I14'!$M13))))))) -> 1.879141529 | H30: =IF($B$104=0,IF($AB$52=0,SUM($C$14/SUM($C$14:$G$14)*('ASK14'!$E13*EXP(-Main!$C$16*'ASK14'!$F13)),$D$14/SUM($C$14:$G$14)*(BSSA14!$S13*EXP(-Main!$C$16*BSSA14!$T13)),$E$14/SUM($C$14:$G$14)*('CB14'!$Y13*EXP(-Main!$C$16*'CB14'!$Z13)),$F$14/SUM($C$14:$G$14)*('CY14'!$U13*EXP(-Main!$C$16*'CY14'!$V13)),$G$14/SUM($C$14:$G$14)*('I14'!$L13*EXP(-Main!$C$16*'I14'!$M13))),SUM($C$14/SUM($C$14:$G$14)*('ASK14'!$E13*EXP(-Main!$C$16*'ASK14'!$F13)),$D$14/SUM($C$14:$G$14)*(BSSA14!$S13*EXP(-Main!$C$16*BSSA14!$T13)),$E$14/SUM($C$14:$G$14)*('CB14'!$Y13*EXP(-Main!$C$16*'CB14'!$Z13)),$F$14/SUM($C$14:$G$14)*('CY14'!$U13*EXP(-Main!$C$16*'CY14'!$V13)),$G$14/SUM($C$14:$G$14)*('I14'!$L13*EXP(-Main!$C$16*'I14'!$M13)))),IF($B$104=1,IF($AB$52=0,EXP(SUM($C$14/SUM($C$14:$G$14)*(LN('ASK14'!$E13)-($C$16*'ASK14'!$F13)),$D$14/SUM($C$14:$G$14)*(LN(BSSA14!$S13)-($C$16*BSSA14!$T13)),$E$14/SUM($C$14:$G$14)*(LN('CB14'!$Y13)-($C$16*'CB14'!$Z13)),$F$14/SUM($C$14:$G$14)*(LN('CY14'!$U13)-($C$16*'CY14'!$V13)),$G$14/SUM($C$14:$G$14)*(LN('I14'!$L13)-($C$16*'I14'!$M13)))),EXP(SUM($C$14/SUM($C$14:$G$14)*(LN('ASK14'!$E13)-($C$16*'ASK14'!$F13)),$D$14/SUM($C$14:$G$14)*(LN(BSSA14!$S13)-($C$16*BSSA14!$T13)),$E$14/SUM($C$14:$G$14)*(LN('CB14'!$Y13)-($C$16*'CB14'!$Z13)),$F$14/SUM($C$14:$G$14)*(LN('CY14'!$U13)-($C$16*'CY14'!$V13)),$G$14/SUM($C$14:$G$14)*(LN('I14'!$L13)-($C$16*'I14'!$M13))))))) -> 0.5162317476 | I30: 0.9779765252 | J30: =DSF!$S29*Main!F30 -> 0.9859075162 | K30: =DSF!$S29*Main!G30 -> 1.88102067 | L30: =DSF!$S29*Main!H30 -> 0.5167479794 | M30: =DSF!$S29*Main!I30 -> 0.9789545017 | Z30: Vs30 | AA30: >= 150 - <= 1500 | AB30: =IF(AND($D$14<>0,$C$45="Out of Range! Use 760 m/s"),1,0) -> 0
E31: 0.25 | F31: =IF($B$104=0,IF($AB$52=0,SUM($C$14/SUM($C$14:$G$14)*'ASK14'!$E14,$D$14/SUM($C$14:$G$14)*BSSA14!$S14,$E$14/SUM($C$14:$G$14)*'CB14'!$Y14,$F$14/SUM($C$14:$G$14)*'CY14'!$U14,$G$14/SUM($C$14:$G$14)*'I14'!$L14),SUM($C$14/SUM($C$14:$G$14)*'ASK14'!$E14,$D$14/SUM($C$14:$G$14)*BSSA14!$S14,$E$14/SUM($C$14:$G$14)*'CB14'!$Y14,$F$14/SUM($C$14:$G$14)*'CY14'!$U14,$G$14/SUM($C$14:$G$14)*'I14'!$L14)),IF($B$104=1,IF($AB$52=0,EXP(SUM($C$14/SUM($C$14:$G$14)*LN('ASK14'!$E14),$D$14/SUM($C$14:$G$14)*LN(BSSA14!$S14),$E$14/SUM($C$14:$G$14)*LN('CB14'!$Y14),$F$14/SUM($C$14:$G$14)*LN('CY14'!$U14),$G$14/SUM($C$14:$G$14)*LN('I14'!$L14))),EXP(SUM($C$14/SUM($C$14:$G$14)*LN('ASK14'!$E14),$D$14/SUM($C$14:$G$14)*LN(BSSA14!$S14),$E$14/SUM($C$14:$G$14)*LN('CB14'!$Y14),$F$14/SUM($C$14:$G$14)*LN('CY14'!$U14),$G$14/SUM($C$14:$G$14)*LN('I14'!$L14)))))) -> 0.9008786375 | G31: =IF($B$104=0,IF($AB$52=0,SUM($C$14/SUM($C$14:$G$14)*('ASK14'!$E14*EXP(Main!$C$16*'ASK14'!$F14)),$D$14/SUM($C$14:$G$14)*(BSSA14!$S14*EXP(Main!$C$16*BSSA14!$T14)),$E$14/SUM($C$14:$G$14)*('CB14'!$Y14*EXP(Main!$C$16*'CB14'!$Z14)),$F$14/SUM($C$14:$G$14)*('CY14'!$U14*EXP(Main!$C$16*'CY14'!$V14)),$G$14/SUM($C$14:$G$14)*('I14'!$L14*EXP(Main!$C$16*'I14'!$M14))),SUM($C$14/SUM($C$14:$G$14)*('ASK14'!$E14*EXP(Main!$C$16*'ASK14'!$F14)),$D$14/SUM($C$14:$G$14)*(BSSA14!$S14*EXP(Main!$C$16*BSSA14!$T14)),$E$14/SUM($C$14:$G$14)*('CB14'!$Y14*EXP(Main!$C$16*'CB14'!$Z14)),$F$14/SUM($C$14:$G$14)*('CY14'!$U14*EXP(Main!$C$16*'CY14'!$V14)),$G$14/SUM($C$14:$G$14)*('I14'!$L14*EXP(Main!$C$16*'I14'!$M14)))),IF($B$104=1,IF($AB$52=0,EXP(SUM($C$14/SUM($C$14:$G$14)*(LN('ASK14'!$E14)+($C$16*'ASK14'!$F14)),$D$14/SUM($C$14:$G$14)*(LN(BSSA14!$S14)+($C$16*BSSA14!$T14)),$E$14/SUM($C$14:$G$14)*(LN('CB14'!$Y14)+($C$16*'CB14'!$Z14)),$F$14/SUM($C$14:$G$14)*(LN('CY14'!$U14)+($C$16*'CY14'!$V14)),$G$14/SUM($C$14:$G$14)*(LN('I14'!$L14)+($C$16*'I14'!$M14)))),EXP(SUM($C$14/SUM($C$14:$G$14)*(LN('ASK14'!$E14)+($C$16*'ASK14'!$F14)),$D$14/SUM($C$14:$G$14)*(LN(BSSA14!$S14)+($C$16*BSSA14!$T14)),$E$14/SUM($C$14:$G$14)*(LN('CB14'!$Y14)+($C$16*'CB14'!$Z14)),$F$14/SUM($C$14:$G$14)*(LN('CY14'!$U14)+($C$16*'CY14'!$V14)),$G$14/SUM($C$14:$G$14)*(LN('I14'!$L14)+($C$16*'I14'!$M14))))))) -> 1.711320469 | H31: =IF($B$104=0,IF($AB$52=0,SUM($C$14/SUM($C$14:$G$14)*('ASK14'!$E14*EXP(-Main!$C$16*'ASK14'!$F14)),$D$14/SUM($C$14:$G$14)*(BSSA14!$S14*EXP(-Main!$C$16*BSSA14!$T14)),$E$14/SUM($C$14:$G$14)*('CB14'!$Y14*EXP(-Main!$C$16*'CB14'!$Z14)),$F$14/SUM($C$14:$G$14)*('CY14'!$U14*EXP(-Main!$C$16*'CY14'!$V14)),$G$14/SUM($C$14:$G$14)*('I14'!$L14*EXP(-Main!$C$16*'I14'!$M14))),SUM($C$14/SUM($C$14:$G$14)*('ASK14'!$E14*EXP(-Main!$C$16*'ASK14'!$F14)),$D$14/SUM($C$14:$G$14)*(BSSA14!$S14*EXP(-Main!$C$16*BSSA14!$T14)),$E$14/SUM($C$14:$G$14)*('CB14'!$Y14*EXP(-Main!$C$16*'CB14'!$Z14)),$F$14/SUM($C$14:$G$14)*('CY14'!$U14*EXP(-Main!$C$16*'CY14'!$V14)),$G$14/SUM($C$14:$G$14)*('I14'!$L14*EXP(-Main!$C$16*'I14'!$M14)))),IF($B$104=1,IF($AB$52=0,EXP(SUM($C$14/SUM($C$14:$G$14)*(LN('ASK14'!$E14)-($C$16*'ASK14'!$F14)),$D$14/SUM($C$14:$G$14)*(LN(BSSA14!$S14)-($C$16*BSSA14!$T14)),$E$14/SUM($C$14:$G$14)*(LN('CB14'!$Y14)-($C$16*'CB14'!$Z14)),$F$14/SUM($C$14:$G$14)*(LN('CY14'!$U14)-($C$16*'CY14'!$V14)),$G$14/SUM($C$14:$G$14)*(LN('I14'!$L14)-($C$16*'I14'!$M14)))),EXP(SUM($C$14/SUM($C$14:$G$14)*(LN('ASK14'!$E14)-($C$16*'ASK14'!$F14)),$D$14/SUM($C$14:$G$14)*(LN(BSSA14!$S14)-($C$16*BSSA14!$T14)),$E$14/SUM($C$14:$G$14)*(LN('CB14'!$Y14)-($C$16*'CB14'!$Z14)),$F$14/SUM($C$14:$G$14)*(LN('CY14'!$U14)-($C$16*'CY14'!$V14)),$G$14/SUM($C$14:$G$14)*(LN('I14'!$L14)-($C$16*'I14'!$M14))))))) -> 0.4742433311 | I31: 1.397695751 | J31: =DSF!$S30*Main!F31 -> 0.9044821521 | K31: =DSF!$S30*Main!G31 -> 1.718165751 | L31: =DSF!$S30*Main!H31 -> 0.4761403044 | M31: =DSF!$S30*Main!I31 -> 1.403286534 | Z31: Z1.0 | AA31: >= 0 - <= 3 | AB31: =IF(AND($D$14<>0,$C$63="Out of Range! Use 760 m/s"),1,0) -> 0
B32: RX (km) | E32: 0.3 | F32: =IF($B$104=0,IF($AB$52=0,SUM($C$14/SUM($C$14:$G$14)*'ASK14'!$E15,$D$14/SUM($C$14:$G$14)*BSSA14!$S15,$E$14/SUM($C$14:$G$14)*'CB14'!$Y15,$F$14/SUM($C$14:$G$14)*'CY14'!$U15,$G$14/SUM($C$14:$G$14)*'I14'!$L15),SUM($C$14/SUM($C$14:$G$14)*'ASK14'!$E15,$D$14/SUM($C$14:$G$14)*BSSA14!$S15,$E$14/SUM($C$14:$G$14)*'CB14'!$Y15,$F$14/SUM($C$14:$G$14)*'CY14'!$U15,$G$14/SUM($C$14:$G$14)*'I14'!$L15)),IF($B$104=1,IF($AB$52=0,EXP(SUM($C$14/SUM($C$14:$G$14)*LN('ASK14'!$E15),$D$14/SUM($C$14:$G$14)*LN(BSSA14!$S15),$E$14/SUM($C$14:$G$14)*LN('CB14'!$Y15),$F$14/SUM($C$14:$G$14)*LN('CY14'!$U15),$G$14/SUM($C$14:$G$14)*LN('I14'!$L15))),EXP(SUM($C$14/SUM($C$14:$G$14)*LN('ASK14'!$E15),$D$14/SUM($C$14:$G$14)*LN(BSSA14!$S15),$E$14/SUM($C$14:$G$14)*LN('CB14'!$Y15),$F$14/SUM($C$14:$G$14)*LN('CY14'!$U15),$G$14/SUM($C$14:$G$14)*LN('I14'!$L15)))))) -> 0.8094969701 | G32: =IF($B$104=0,IF($AB$52=0,SUM($C$14/SUM($C$14:$G$14)*('ASK14'!$E15*EXP(Main!$C$16*'ASK14'!$F15)),$D$14/SUM($C$14:$G$14)*(BSSA14!$S15*EXP(Main!$C$16*BSSA14!$T15)),$E$14/SUM($C$14:$G$14)*('CB14'!$Y15*EXP(Main!$C$16*'CB14'!$Z15)),$F$14/SUM($C$14:$G$14)*('CY14'!$U15*EXP(Main!$C$16*'CY14'!$V15)),$G$14/SUM($C$14:$G$14)*('I14'!$L15*EXP(Main!$C$16*'I14'!$M15))),SUM($C$14/SUM($C$14:$G$14)*('ASK14'!$E15*EXP(Main!$C$16*'ASK14'!$F15)),$D$14/SUM($C$14:$G$14)*(BSSA14!$S15*EXP(Main!$C$16*BSSA14!$T15)),$E$14/SUM($C$14:$G$14)*('CB14'!$Y15*EXP(Main!$C$16*'CB14'!$Z15)),$F$14/SUM($C$14:$G$14)*('CY14'!$U15*EXP(Main!$C$16*'CY14'!$V15)),$G$14/SUM($C$14:$G$14)*('I14'!$L15*EXP(Main!$C$16*'I14'!$M15)))),IF($B$104=1,IF($AB$52=0,EXP(SUM($C$14/SUM($C$14:$G$14)*(LN('ASK14'!$E15)+($C$16*'ASK14'!$F15)),$D$14/SUM($C$14:$G$14)*(LN(BSSA14!$S15)+($C$16*BSSA14!$T15)),$E$14/SUM($C$14:$G$14)*(LN('CB14'!$Y15)+($C$16*'CB14'!$Z15)),$F$14/SUM($C$14:$G$14)*(LN('CY14'!$U15)+($C$16*'CY14'!$V15)),$G$14/SUM($C$14:$G$14)*(LN('I14'!$L15)+($C$16*'I14'!$M15)))),EXP(SUM($C$14/SUM($C$14:$G$14)*(LN('ASK14'!$E15)+($C$16*'ASK14'!$F15)),$D$14/SUM($C$14:$G$14)*(LN(BSSA14!$S15)+($C$16*BSSA14!$T15)),$E$14/SUM($C$14:$G$14)*(LN('CB14'!$Y15)+($C$16*'CB14'!$Z15)),$F$14/SUM($C$14:$G$14)*(LN('CY14'!$U15)+($C$16*'CY14'!$V15)),$G$14/SUM($C$14:$G$14)*(LN('I14'!$L15)+($C$16*'I14'!$M15))))))) -> 1.547598062 | H32: =IF($B$104=0,IF($AB$52=0,SUM($C$14/SUM($C$14:$G$14)*('ASK14'!$E15*EXP(-Main!$C$16*'ASK14'!$F15)),$D$14/SUM($C$14:$G$14)*(BSSA14!$S15*EXP(-Main!$C$16*BSSA14!$T15)),$E$14/SUM($C$14:$G$14)*('CB14'!$Y15*EXP(-Main!$C$16*'CB14'!$Z15)),$F$14/SUM($C$14:$G$14)*('CY14'!$U15*EXP(-Main!$C$16*'CY14'!$V15)),$G$14/SUM($C$14:$G$14)*('I14'!$L15*EXP(-Main!$C$16*'I14'!$M15))),SUM($C$14/SUM($C$14:$G$14)*('ASK14'!$E15*EXP(-Main!$C$16*'ASK14'!$F15)),$D$14/SUM($C$14:$G$14)*(BSSA14!$S15*EXP(-Main!$C$16*BSSA14!$T15)),$E$14/SUM($C$14:$G$14)*('CB14'!$Y15*EXP(-Main!$C$16*'CB14'!$Z15)),$F$14/SUM($C$14:$G$14)*('CY14'!$U15*EXP(-Main!$C$16*'CY14'!$V15)),$G$14/SUM($C$14:$G$14)*('I14'!$L15*EXP(-Main!$C$16*'I14'!$M15)))),IF($B$104=1,IF($AB$52=0,EXP(SUM($C$14/SUM($C$14:$G$14)*(LN('ASK14'!$E15)-($C$16*'ASK14'!$F15)),$D$14/SUM($C$14:$G$14)*(LN(BSSA14!$S15)-($C$16*BSSA14!$T15)),$E$14/SUM($C$14:$G$14)*(LN('CB14'!$Y15)-($C$16*'CB14'!$Z15)),$F$14/SUM($C$14:$G$14)*(LN('CY14'!$U15)-($C$16*'CY14'!$V15)),$G$14/SUM($C$14:$G$14)*(LN('I14'!$L15)-($C$16*'I14'!$M15)))),EXP(SUM($C$14/SUM($C$14:$G$14)*(LN('ASK14'!$E15)-($C$16*'ASK14'!$F15)),$D$14/SUM($C$14:$G$14)*(LN(BSSA14!$S15)-($C$16*BSSA14!$T15)),$E$14/SUM($C$14:$G$14)*(LN('CB14'!$Y15)-($C$16*'CB14'!$Z15)),$F$14/SUM($C$14:$G$14)*(LN('CY14'!$U15)-($C$16*'CY14'!$V15)),$G$14/SUM($C$14:$G$14)*(LN('I14'!$L15)-($C$16*'I14'!$M15))))))) -> 0.4234208874 | I32: 1.808523165 | J32: =DSF!$S31*Main!F32 -> 0.8103064671 | K32: =DSF!$S31*Main!G32 -> 1.54914566 | L32: =DSF!$S31*Main!H32 -> 0.4238443083 | M32: =DSF!$S31*Main!I32 -> 1.810331688 | Y32: CB14 | Z32: M, SS | AA32: >= 3.3 - <=8.5 | AB32: =IF(AND($E$14<>0,$C$24="! Not Applicable !"),1,0) -> 0 | AC32: =SUM(AB32:AB40) -> 0
B33: 1 | E33: 0.4 | F33: =IF($B$104=0,IF($AB$52=0,SUM($C$14/SUM($C$14:$G$14)*'ASK14'!$E16,$D$14/SUM($C$14:$G$14)*BSSA14!$S16,$E$14/SUM($C$14:$G$14)*'CB14'!$Y16,$F$14/SUM($C$14:$G$14)*'CY14'!$U16,$G$14/SUM($C$14:$G$14)*'I14'!$L16),SUM($C$14/SUM($C$14:$G$14)*'ASK14'!$E16,$D$14/SUM($C$14:$G$14)*BSSA14!$S16,$E$14/SUM($C$14:$G$14)*'CB14'!$Y16,$F$14/SUM($C$14:$G$14)*'CY14'!$U16,$G$14/SUM($C$14:$G$14)*'I14'!$L16)),IF($B$104=1,IF($AB$52=0,EXP(SUM($C$14/SUM($C$14:$G$14)*LN('ASK14'!$E16),$D$14/SUM($C$14:$G$14)*LN(BSSA14!$S16),$E$14/SUM($C$14:$G$14)*LN('CB14'!$Y16),$F$14/SUM($C$14:$G$14)*LN('CY14'!$U16),$G$14/SUM($C$14:$G$14)*LN('I14'!$L16))),EXP(SUM($C$14/SUM($C$14:$G$14)*LN('ASK14'!$E16),$D$14/SUM($C$14:$G$14)*LN(BSSA14!$S16),$E$14/SUM($C$14:$G$14)*LN('CB14'!$Y16),$F$14/SUM($C$14:$G$14)*LN('CY14'!$U16),$G$14/SUM($C$14:$G$14)*LN('I14'!$L16)))))) -> 0.6693441884 | G33: =IF($B$104=0,IF($AB$52=0,SUM($C$14/SUM($C$14:$G$14)*('ASK14'!$E16*EXP(Main!$C$16*'ASK14'!$F16)),$D$14/SUM($C$14:$G$14)*(BSSA14!$S16*EXP(Main!$C$16*BSSA14!$T16)),$E$14/SUM($C$14:$G$14)*('CB14'!$Y16*EXP(Main!$C$16*'CB14'!$Z16)),$F$14/SUM($C$14:$G$14)*('CY14'!$U16*EXP(Main!$C$16*'CY14'!$V16)),$G$14/SUM($C$14:$G$14)*('I14'!$L16*EXP(Main!$C$16*'I14'!$M16))),SUM($C$14/SUM($C$14:$G$14)*('ASK14'!$E16*EXP(Main!$C$16*'ASK14'!$F16)),$D$14/SUM($C$14:$G$14)*(BSSA14!$S16*EXP(Main!$C$16*BSSA14!$T16)),$E$14/SUM($C$14:$G$14)*('CB14'!$Y16*EXP(Main!$C$16*'CB14'!$Z16)),$F$14/SUM($C$14:$G$14)*('CY14'!$U16*EXP(Main!$C$16*'CY14'!$V16)),$G$14/SUM($C$14:$G$14)*('I14'!$L16*EXP(Main!$C$16*'I14'!$M16)))),IF($B$104=1,IF($AB$52=0,EXP(SUM($C$14/SUM($C$14:$G$14)*(LN('ASK14'!$E16)+($C$16*'ASK14'!$F16)),$D$14/SUM($C$14:$G$14)*(LN(BSSA14!$S16)+($C$16*BSSA14!$T16)),$E$14/SUM($C$14:$G$14)*(LN('CB14'!$Y16)+($C$16*'CB14'!$Z16)),$F$14/SUM($C$14:$G$14)*(LN('CY14'!$U16)+($C$16*'CY14'!$V16)),$G$14/SUM($C$14:$G$14)*(LN('I14'!$L16)+($C$16*'I14'!$M16)))),EXP(SUM($C$14/SUM($C$14:$G$14)*(LN('ASK14'!$E16)+($C$16*'ASK14'!$F16)),$D$14/SUM($C$14:$G$14)*(LN(BSSA14!$S16)+($C$16*BSSA14!$T16)),$E$14/SUM($C$14:$G$14)*(LN('CB14'!$Y16)+($C$16*'CB14'!$Z16)),$F$14/SUM($C$14:$G$14)*(LN('CY14'!$U16)+($C$16*'CY14'!$V16)),$G$14/SUM($C$14:$G$14)*(LN('I14'!$L16)+($C$16*'I14'!$M16))))))) -> 1.291464497 | H33: =IF($B$104=0,IF($AB$52=0,SUM($C$14/SUM($C$14:$G$14)*('ASK14'!$E16*EXP(-Main!$C$16*'ASK14'!$F16)),$D$14/SUM($C$14:$G$14)*(BSSA14!$S16*EXP(-Main!$C$16*BSSA14!$T16)),$E$14/SUM($C$14:$G$14)*('CB14'!$Y16*EXP(-Main!$C$16*'CB14'!$Z16)),$F$14/SUM($C$14:$G$14)*('CY14'!$U16*EXP(-Main!$C$16*'CY14'!$V16)),$G$14/SUM($C$14:$G$14)*('I14'!$L16*EXP(-Main!$C$16*'I14'!$M16))),SUM($C$14/SUM($C$14:$G$14)*('ASK14'!$E16*EXP(-Main!$C$16*'ASK14'!$F16)),$D$14/SUM($C$14:$G$14)*(BSSA14!$S16*EXP(-Main!$C$16*BSSA14!$T16)),$E$14/SUM($C$14:$G$14)*('CB14'!$Y16*EXP(-Main!$C$16*'CB14'!$Z16)),$F$14/SUM($C$14:$G$14)*('CY14'!$U16*EXP(-Main!$C$16*'CY14'!$V16)),$G$14/SUM($C$14:$G$14)*('I14'!$L16*EXP(-Main!$C$16*'I14'!$M16)))),IF($B$104=1,IF($AB$52=0,EXP(SUM($C$14/SUM($C$14:$G$14)*(LN('ASK14'!$E16)-($C$16*'ASK14'!$F16)),$D$14/SUM($C$14:$G$14)*(LN(BSSA14!$S16)-($C$16*BSSA14!$T16)),$E$14/SUM($C$14:$G$14)*(LN('CB14'!$Y16)-($C$16*'CB14'!$Z16)),$F$14/SUM($C$14:$G$14)*(LN('CY14'!$U16)-($C$16*'CY14'!$V16)),$G$14/SUM($C$14:$G$14)*(LN('I14'!$L16)-($C$16*'I14'!$M16)))),EXP(SUM($C$14/SUM($C$14:$G$14)*(LN('ASK14'!$E16)-($C$16*'ASK14'!$F16)),$D$14/SUM($C$14:$G$14)*(LN(BSSA14!$S16)-($C$16*BSSA14!$T16)),$E$14/SUM($C$14:$G$14)*(LN('CB14'!$Y16)-($C$16*'CB14'!$Z16)),$F$14/SUM($C$14:$G$14)*(LN('CY14'!$U16)-($C$16*'CY14'!$V16)),$G$14/SUM($C$14:$G$14)*(LN('I14'!$L16)-($C$16*'I14'!$M16))))))) -> 0.3469097628 | I33: 2.658494821 | J33: =DSF!$S32*Main!F33 -> 0.6700135325 | K33: =DSF!$S32*Main!G33 -> 1.292755962 | L33: =DSF!$S32*Main!H33 -> 0.3472566726 | M33: =DSF!$S32*Main!I33 -> 2.661153316 | Z33: M, RS | AA33: >= 3.3 - <=8.0 | AB33: =IF(AND($E$14<>0,$C$24="! Not Applicable !"),1,0) -> 0
E34: 0.5 | F34: =IF($B$104=0,IF($AB$52=0,SUM($C$14/SUM($C$14:$G$14)*'ASK14'!$E17,$D$14/SUM($C$14:$G$14)*BSSA14!$S17,$E$14/SUM($C$14:$G$14)*'CB14'!$Y17,$F$14/SUM($C$14:$G$14)*'CY14'!$U17,$G$14/SUM($C$14:$G$14)*'I14'!$L17),SUM($C$14/SUM($C$14:$G$14)*'ASK14'!$E17,$D$14/SUM($C$14:$G$14)*BSSA14!$S17,$E$14/SUM($C$14:$G$14)*'CB14'!$Y17,$F$14/SUM($C$14:$G$14)*'CY14'!$U17,$G$14/SUM($C$14:$G$14)*'I14'!$L17)),IF($B$104=1,IF($AB$52=0,EXP(SUM($C$14/SUM($C$14:$G$14)*LN('ASK14'!$E17),$D$14/SUM($C$14:$G$14)*LN(BSSA14!$S17),$E$14/SUM($C$14:$G$14)*LN('CB14'!$Y17),$F$14/SUM($C$14:$G$14)*LN('CY14'!$U17),$G$14/SUM($C$14:$G$14)*LN('I14'!$L17))),EXP(SUM($C$14/SUM($C$14:$G$14)*LN('ASK14'!$E17),$D$14/SUM($C$14:$G$14)*LN(BSSA14!$S17),$E$14/SUM($C$14:$G$14)*LN('CB14'!$Y17),$F$14/SUM($C$14:$G$14)*LN('CY14'!$U17),$G$14/SUM($C$14:$G$14)*LN('I14'!$L17)))))) -> 0.5604699302 | G34: =IF($B$104=0,IF($AB$52=0,SUM($C$14/SUM($C$14:$G$14)*('ASK14'!$E17*EXP(Main!$C$16*'ASK14'!$F17)),$D$14/SUM($C$14:$G$14)*(BSSA14!$S17*EXP(Main!$C$16*BSSA14!$T17)),$E$14/SUM($C$14:$G$14)*('CB14'!$Y17*EXP(Main!$C$16*'CB14'!$Z17)),$F$14/SUM($C$14:$G$14)*('CY14'!$U17*EXP(Main!$C$16*'CY14'!$V17)),$G$14/SUM($C$14:$G$14)*('I14'!$L17*EXP(Main!$C$16*'I14'!$M17))),SUM($C$14/SUM($C$14:$G$14)*('ASK14'!$E17*EXP(Main!$C$16*'ASK14'!$F17)),$D$14/SUM($C$14:$G$14)*(BSSA14!$S17*EXP(Main!$C$16*BSSA14!$T17)),$E$14/SUM($C$14:$G$14)*('CB14'!$Y17*EXP(Main!$C$16*'CB14'!$Z17)),$F$14/SUM($C$14:$G$14)*('CY14'!$U17*EXP(Main!$C$16*'CY14'!$V17)),$G$14/SUM($C$14:$G$14)*('I14'!$L17*EXP(Main!$C$16*'I14'!$M17)))),IF($B$104=1,IF($AB$52=0,EXP(SUM($C$14/SUM($C$14:$G$14)*(LN('ASK14'!$E17)+($C$16*'ASK14'!$F17)),$D$14/SUM($C$14:$G$14)*(LN(BSSA14!$S17)+($C$16*BSSA14!$T17)),$E$14/SUM($C$14:$G$14)*(LN('CB14'!$Y17)+($C$16*'CB14'!$Z17)),$F$14/SUM($C$14:$G$14)*(LN('CY14'!$U17)+($C$16*'CY14'!$V17)),$G$14/SUM($C$14:$G$14)*(LN('I14'!$L17)+($C$16*'I14'!$M17)))),EXP(SUM($C$14/SUM($C$14:$G$14)*(LN('ASK14'!$E17)+($C$16*'ASK14'!$F17)),$D$14/SUM($C$14:$G$14)*(LN(BSSA14!$S17)+($C$16*BSSA14!$T17)),$E$14/SUM($C$14:$G$14)*(LN('CB14'!$Y17)+($C$16*'CB14'!$Z17)),$F$14/SUM($C$14:$G$14)*(LN('CY14'!$U17)+($C$16*'CY14'!$V17)),$G$14/SUM($C$14:$G$14)*(LN('I14'!$L17)+($C$16*'I14'!$M17))))))) -> 1.096357051 | H34: =IF($B$104=0,IF($AB$52=0,SUM($C$14/SUM($C$14:$G$14)*('ASK14'!$E17*EXP(-Main!$C$16*'ASK14'!$F17)),$D$14/SUM($C$14:$G$14)*(BSSA14!$S17*EXP(-Main!$C$16*BSSA14!$T17)),$E$14/SUM($C$14:$G$14)*('CB14'!$Y17*EXP(-Main!$C$16*'CB14'!$Z17)),$F$14/SUM($C$14:$G$14)*('CY14'!$U17*EXP(-Main!$C$16*'CY14'!$V17)),$G$14/SUM($C$14:$G$14)*('I14'!$L17*EXP(-Main!$C$16*'I14'!$M17))),SUM($C$14/SUM($C$14:$G$14)*('ASK14'!$E17*EXP(-Main!$C$16*'ASK14'!$F17)),$D$14/SUM($C$14:$G$14)*(BSSA14!$S17*EXP(-Main!$C$16*BSSA14!$T17)),$E$14/SUM($C$14:$G$14)*('CB14'!$Y17*EXP(-Main!$C$16*'CB14'!$Z17)),$F$14/SUM($C$14:$G$14)*('CY14'!$U17*EXP(-Main!$C$16*'CY14'!$V17)),$G$14/SUM($C$14:$G$14)*('I14'!$L17*EXP(-Main!$C$16*'I14'!$M17)))),IF($B$104=1,IF($AB$52=0,EXP(SUM($C$14/SUM($C$14:$G$14)*(LN('ASK14'!$E17)-($C$16*'ASK14'!$F17)),$D$14/SUM($C$14:$G$14)*(LN(BSSA14!$S17)-($C$16*BSSA14!$T17)),$E$14/SUM($C$14:$G$14)*(LN('CB14'!$Y17)-($C$16*'CB14'!$Z17)),$F$14/SUM($C$14:$G$14)*(LN('CY14'!$U17)-($C$16*'CY14'!$V17)),$G$14/SUM($C$14:$G$14)*(LN('I14'!$L17)-($C$16*'I14'!$M17)))),EXP(SUM($C$14/SUM($C$14:$G$14)*(LN('ASK14'!$E17)-($C$16*'ASK14'!$F17)),$D$14/SUM($C$14:$G$14)*(LN(BSSA14!$S17)-($C$16*BSSA14!$T17)),$E$14/SUM($C$14:$G$14)*(LN('CB14'!$Y17)-($C$16*'CB14'!$Z17)),$F$14/SUM($C$14:$G$14)*(LN('CY14'!$U17)-($C$16*'CY14'!$V17)),$G$14/SUM($C$14:$G$14)*(LN('I14'!$L17)-($C$16*'I14'!$M17))))))) -> 0.2865184679 | I34: 3.478232949 | J34: =DSF!$S33*Main!F34 -> 0.5610304001 | K34: =DSF!$S33*Main!G34 -> 1.097453408 | L34: =DSF!$S33*Main!H34 -> 0.2868049864 | M34: =DSF!$S33*Main!I34 -> 3.481711182 | Z34: M, NS | AA34: >= 3.3 - <= 7.5 | AB34: =IF(AND($E$14<>0,$C$24="! Not Applicable !"),1,0) -> 0
B35: Ry0 (km) | C35: If unknown use 999 | E35: 0.75 | F35: =IF($B$104=0,IF($AB$52=0,SUM($C$14/SUM($C$14:$G$14)*'ASK14'!$E18,$D$14/SUM($C$14:$G$14)*BSSA14!$S18,$E$14/SUM($C$14:$G$14)*'CB14'!$Y18,$F$14/SUM($C$14:$G$14)*'CY14'!$U18,$G$14/SUM($C$14:$G$14)*'I14'!$L18),SUM($C$14/SUM($C$14:$G$14)*'ASK14'!$E18,$D$14/SUM($C$14:$G$14)*BSSA14!$S18,$E$14/SUM($C$14:$G$14)*'CB14'!$Y18,$F$14/SUM($C$14:$G$14)*'CY14'!$U18,$G$14/SUM($C$14:$G$14)*'I14'!$L18)),IF($B$104=1,IF($AB$52=0,EXP(SUM($C$14/SUM($C$14:$G$14)*LN('ASK14'!$E18),$D$14/SUM($C$14:$G$14)*LN(BSSA14!$S18),$E$14/SUM($C$14:$G$14)*LN('CB14'!$Y18),$F$14/SUM($C$14:$G$14)*LN('CY14'!$U18),$G$14/SUM($C$14:$G$14)*LN('I14'!$L18))),EXP(SUM($C$14/SUM($C$14:$G$14)*LN('ASK14'!$E18),$D$14/SUM($C$14:$G$14)*LN(BSSA14!$S18),$E$14/SUM($C$14:$G$14)*LN('CB14'!$Y18),$F$14/SUM($C$14:$G$14)*LN('CY14'!$U18),$G$14/SUM($C$14:$G$14)*LN('I14'!$L18)))))) -> 0.3897240751 | G35: =IF($B$104=0,IF($AB$52=0,SUM($C$14/SUM($C$14:$G$14)*('ASK14'!$E18*EXP(Main!$C$16*'ASK14'!$F18)),$D$14/SUM($C$14:$G$14)*(BSSA14!$S18*EXP(Main!$C$16*BSSA14!$T18)),$E$14/SUM($C$14:$G$14)*('CB14'!$Y18*EXP(Main!$C$16*'CB14'!$Z18)),$F$14/SUM($C$14:$G$14)*('CY14'!$U18*EXP(Main!$C$16*'CY14'!$V18)),$G$14/SUM($C$14:$G$14)*('I14'!$L18*EXP(Main!$C$16*'I14'!$M18))),SUM($C$14/SUM($C$14:$G$14)*('ASK14'!$E18*EXP(Main!$C$16*'ASK14'!$F18)),$D$14/SUM($C$14:$G$14)*(BSSA14!$S18*EXP(Main!$C$16*BSSA14!$T18)),$E$14/SUM($C$14:$G$14)*('CB14'!$Y18*EXP(Main!$C$16*'CB14'!$Z18)),$F$14/SUM($C$14:$G$14)*('CY14'!$U18*EXP(Main!$C$16*'CY14'!$V18)),$G$14/SUM($C$14:$G$14)*('I14'!$L18*EXP(Main!$C$16*'I14'!$M18)))),IF($B$104=1,IF($AB$52=0,EXP(SUM($C$14/SUM($C$14:$G$14)*(LN('ASK14'!$E18)+($C$16*'ASK14'!$F18)),$D$14/SUM($C$14:$G$14)*(LN(BSSA14!$S18)+($C$16*BSSA14!$T18)),$E$14/SUM($C$14:$G$14)*(LN('CB14'!$Y18)+($C$16*'CB14'!$Z18)),$F$14/SUM($C$14:$G$14)*(LN('CY14'!$U18)+($C$16*'CY14'!$V18)),$G$14/SUM($C$14:$G$14)*(LN('I14'!$L18)+($C$16*'I14'!$M18)))),EXP(SUM($C$14/SUM($C$14:$G$14)*(LN('ASK14'!$E18)+($C$16*'ASK14'!$F18)),$D$14/SUM($C$14:$G$14)*(LN(BSSA14!$S18)+($C$16*BSSA14!$T18)),$E$14/SUM($C$14:$G$14)*(LN('CB14'!$Y18)+($C$16*'CB14'!$Z18)),$F$14/SUM($C$14:$G$14)*(LN('CY14'!$U18)+($C$16*'CY14'!$V18)),$G$14/SUM($C$14:$G$14)*(LN('I14'!$L18)+($C$16*'I14'!$M18))))))) -> 0.7832617444 | H35: =IF($B$104=0,IF($AB$52=0,SUM($C$14/SUM($C$14:$G$14)*('ASK14'!$E18*EXP(-Main!$C$16*'ASK14'!$F18)),$D$14/SUM($C$14:$G$14)*(BSSA14!$S18*EXP(-Main!$C$16*BSSA14!$T18)),$E$14/SUM($C$14:$G$14)*('CB14'!$Y18*EXP(-Main!$C$16*'CB14'!$Z18)),$F$14/SUM($C$14:$G$14)*('CY14'!$U18*EXP(-Main!$C$16*'CY14'!$V18)),$G$14/SUM($C$14:$G$14)*('I14'!$L18*EXP(-Main!$C$16*'I14'!$M18))),SUM($C$14/SUM($C$14:$G$14)*('ASK14'!$E18*EXP(-Main!$C$16*'ASK14'!$F18)),$D$14/SUM($C$14:$G$14)*(BSSA14!$S18*EXP(-Main!$C$16*BSSA14!$T18)),$E$14/SUM($C$14:$G$14)*('CB14'!$Y18*EXP(-Main!$C$16*'CB14'!$Z18)),$F$14/SUM($C$14:$G$14)*('CY14'!$U18*EXP(-Main!$C$16*'CY14'!$V18)),$G$14/SUM($C$14:$G$14)*('I14'!$L18*EXP(-Main!$C$16*'I14'!$M18)))),IF($B$104=1,IF($AB$52=0,EXP(SUM($C$14/SUM($C$14:$G$14)*(LN('ASK14'!$E18)-($C$16*'ASK14'!$F18)),$D$14/SUM($C$14:$G$14)*(LN(BSSA14!$S18)-($C$16*BSSA14!$T18)),$E$14/SUM($C$14:$G$14)*(LN('CB14'!$Y18)-($C$16*'CB14'!$Z18)),$F$14/SUM($C$14:$G$14)*(LN('CY14'!$U18)-($C$16*'CY14'!$V18)),$G$14/SUM($C$14:$G$14)*(LN('I14'!$L18)-($C$16*'I14'!$M18)))),EXP(SUM($C$14/SUM($C$14:$G$14)*(LN('ASK14'!$E18)-($C$16*'ASK14'!$F18)),$D$14/SUM($C$14:$G$14)*(LN(BSSA14!$S18)-($C$16*BSSA14!$T18)),$E$14/SUM($C$14:$G$14)*(LN('CB14'!$Y18)-($C$16*'CB14'!$Z18)),$F$14/SUM($C$14:$G$14)*(LN('CY14'!$U18)-($C$16*'CY14'!$V18)),$G$14/SUM($C$14:$G$14)*(LN('I14'!$L18)-($C$16*'I14'!$M18))))))) -> 0.193913281 | I35: 5.441844163 | J35: =DSF!$S34*Main!F35 -> 0.3897240751 | K35: =DSF!$S34*Main!G35 -> 0.7832617444 | L35: =DSF!$S34*Main!H35 -> 0.193913281 | M35: =DSF!$S34*Main!I35 -> 5.441844163 | Z35: Rrup | AA35: >= 0 - <= 300 | AB35: =IF(AND($E$14<>0,$C$27="! Not Applicable !"),1,0) -> 0
B36: 0 | C36: =IF(B36<0,"Ry0 can only be zero or positive","") ->  | E36: 1 | F36: =IF($B$104=0,IF($AB$52=0,SUM($C$14/SUM($C$14:$G$14)*'ASK14'!$E19,$D$14/SUM($C$14:$G$14)*BSSA14!$S19,$E$14/SUM($C$14:$G$14)*'CB14'!$Y19,$F$14/SUM($C$14:$G$14)*'CY14'!$U19,$G$14/SUM($C$14:$G$14)*'I14'!$L19),SUM($C$14/SUM($C$14:$G$14)*'ASK14'!$E19,$D$14/SUM($C$14:$G$14)*BSSA14!$S19,$E$14/SUM($C$14:$G$14)*'CB14'!$Y19,$F$14/SUM($C$14:$G$14)*'CY14'!$U19,$G$14/SUM($C$14:$G$14)*'I14'!$L19)),IF($B$104=1,IF($AB$52=0,EXP(SUM($C$14/SUM($C$14:$G$14)*LN('ASK14'!$E19),$D$14/SUM($C$14:$G$14)*LN(BSSA14!$S19),$E$14/SUM($C$14:$G$14)*LN('CB14'!$Y19),$F$14/SUM($C$14:$G$14)*LN('CY14'!$U19),$G$14/SUM($C$14:$G$14)*LN('I14'!$L19))),EXP(SUM($C$14/SUM($C$14:$G$14)*LN('ASK14'!$E19),$D$14/SUM($C$14:$G$14)*LN(BSSA14!$S19),$E$14/SUM($C$14:$G$14)*LN('CB14'!$Y19),$F$14/SUM($C$14:$G$14)*LN('CY14'!$U19),$G$14/SUM($C$14:$G$14)*LN('I14'!$L19)))))) -> 0.2876896169 | G36: =IF($B$104=0,IF($AB$52=0,SUM($C$14/SUM($C$14:$G$14)*('ASK14'!$E19*EXP(Main!$C$16*'ASK14'!$F19)),$D$14/SUM($C$14:$G$14)*(BSSA14!$S19*EXP(Main!$C$16*BSSA14!$T19)),$E$14/SUM($C$14:$G$14)*('CB14'!$Y19*EXP(Main!$C$16*'CB14'!$Z19)),$F$14/SUM($C$14:$G$14)*('CY14'!$U19*EXP(Main!$C$16*'CY14'!$V19)),$G$14/SUM($C$14:$G$14)*('I14'!$L19*EXP(Main!$C$16*'I14'!$M19))),SUM($C$14/SUM($C$14:$G$14)*('ASK14'!$E19*EXP(Main!$C$16*'ASK14'!$F19)),$D$14/SUM($C$14:$G$14)*(BSSA14!$S19*EXP(Main!$C$16*BSSA14!$T19)),$E$14/SUM($C$14:$G$14)*('CB14'!$Y19*EXP(Main!$C$16*'CB14'!$Z19)),$F$14/SUM($C$14:$G$14)*('CY14'!$U19*EXP(Main!$C$16*'CY14'!$V19)),$G$14/SUM($C$14:$G$14)*('I14'!$L19*EXP(Main!$C$16*'I14'!$M19)))),IF($B$104=1,IF($AB$52=0,EXP(SUM($C$14/SUM($C$14:$G$14)*(LN('ASK14'!$E19)+($C$16*'ASK14'!$F19)),$D$14/SUM($C$14:$G$14)*(LN(BSSA14!$S19)+($C$16*BSSA14!$T19)),$E$14/SUM($C$14:$G$14)*(LN('CB14'!$Y19)+($C$16*'CB14'!$Z19)),$F$14/SUM($C$14:$G$14)*(LN('CY14'!$U19)+($C$16*'CY14'!$V19)),$G$14/SUM($C$14:$G$14)*(LN('I14'!$L19)+($C$16*'I14'!$M19)))),EXP(SUM($C$14/SUM($C$14:$G$14)*(LN('ASK14'!$E19)+($C$16*'ASK14'!$F19)),$D$14/SUM($C$14:$G$14)*(LN(BSSA14!$S19)+($C$16*BSSA14!$T19)),$E$14/SUM($C$14:$G$14)*(LN('CB14'!$Y19)+($C$16*'CB14'!$Z19)),$F$14/SUM($C$14:$G$14)*(LN('CY14'!$U19)+($C$16*'CY14'!$V19)),$G$14/SUM($C$14:$G$14)*(LN('I14'!$L19)+($C$16*'I14'!$M19))))))) -> 0.5843258763 | H36: =IF($B$104=0,IF($AB$52=0,SUM($C$14/SUM($C$14:$G$14)*('ASK14'!$E19*EXP(-Main!$C$16*'ASK14'!$F19)),$D$14/SUM($C$14:$G$14)*(BSSA14!$S19*EXP(-Main!$C$16*BSSA14!$T19)),$E$14/SUM($C$14:$G$14)*('CB14'!$Y19*EXP(-Main!$C$16*'CB14'!$Z19)),$F$14/SUM($C$14:$G$14)*('CY14'!$U19*EXP(-Main!$C$16*'CY14'!$V19)),$G$14/SUM($C$14:$G$14)*('I14'!$L19*EXP(-Main!$C$16*'I14'!$M19))),SUM($C$14/SUM($C$14:$G$14)*('ASK14'!$E19*EXP(-Main!$C$16*'ASK14'!$F19)),$D$14/SUM($C$14:$G$14)*(BSSA14!$S19*EXP(-Main!$C$16*BSSA14!$T19)),$E$14/SUM($C$14:$G$14)*('CB14'!$Y19*EXP(-Main!$C$16*'CB14'!$Z19)),$F$14/SUM($C$14:$G$14)*('CY14'!$U19*EXP(-Main!$C$16*'CY14'!$V19)),$G$14/SUM($C$14:$G$14)*('I14'!$L19*EXP(-Main!$C$16*'I14'!$M19)))),IF($B$104=1,IF($AB$52=0,EXP(SUM($C$14/SUM($C$14:$G$14)*(LN('ASK14'!$E19)-($C$16*'ASK14'!$F19)),$D$14/SUM($C$14:$G$14)*(LN(BSSA14!$S19)-($C$16*BSSA14!$T19)),$E$14/SUM($C$14:$G$14)*(LN('CB14'!$Y19)-($C$16*'CB14'!$Z19)),$F$14/SUM($C$14:$G$14)*(LN('CY14'!$U19)-($C$16*'CY14'!$V19)),$G$14/SUM($C$14:$G$14)*(LN('I14'!$L19)-($C$16*'I14'!$M19)))),EXP(SUM($C$14/SUM($C$14:$G$14)*(LN('ASK14'!$E19)-($C$16*'ASK14'!$F19)),$D$14/SUM($C$14:$G$14)*(LN(BSSA14!$S19)-($C$16*BSSA14!$T19)),$E$14/SUM($C$14:$G$14)*(LN('CB14'!$Y19)-($C$16*'CB14'!$Z19)),$F$14/SUM($C$14:$G$14)*(LN('CY14'!$U19)-($C$16*'CY14'!$V19)),$G$14/SUM($C$14:$G$14)*(LN('I14'!$L19)-($C$16*'I14'!$M19))))))) -> 0.1416423935 | I36: 7.141517865 | J36: =DSF!$S35*Main!F36 -> 0.2874019273 | K36: =DSF!$S35*Main!G36 -> 0.5837415504 | L36: =DSF!$S35*Main!H36 -> 0.1415007511 | M36: =DSF!$S35*Main!I36 -> 7.134376347 | Z36: Vs30 | AA36: >= 150 - <= 1500 | AB36: =IF(AND($E$14<>0,$C$39="Out of Range! Use 760 m/s"),1,0) -> 0
E37: 1.5 | F37: =IF($B$104=0,IF($AB$52=0,SUM($C$14/SUM($C$14:$G$14)*'ASK14'!$E20,$D$14/SUM($C$14:$G$14)*BSSA14!$S20,$E$14/SUM($C$14:$G$14)*'CB14'!$Y20,$F$14/SUM($C$14:$G$14)*'CY14'!$U20,$G$14/SUM($C$14:$G$14)*'I14'!$L20),SUM($C$14/SUM($C$14:$G$14)*'ASK14'!$E20,$D$14/SUM($C$14:$G$14)*BSSA14!$S20,$E$14/SUM($C$14:$G$14)*'CB14'!$Y20,$F$14/SUM($C$14:$G$14)*'CY14'!$U20,$G$14/SUM($C$14:$G$14)*'I14'!$L20)),IF($B$104=1,IF($AB$52=0,EXP(SUM($C$14/SUM($C$14:$G$14)*LN('ASK14'!$E20),$D$14/SUM($C$14:$G$14)*LN(BSSA14!$S20),$E$14/SUM($C$14:$G$14)*LN('CB14'!$Y20),$F$14/SUM($C$14:$G$14)*LN('CY14'!$U20),$G$14/SUM($C$14:$G$14)*LN('I14'!$L20))),EXP(SUM($C$14/SUM($C$14:$G$14)*LN('ASK14'!$E20),$D$14/SUM($C$14:$G$14)*LN(BSSA14!$S20),$E$14/SUM($C$14:$G$14)*LN('CB14'!$Y20),$F$14/SUM($C$14:$G$14)*LN('CY14'!$U20),$G$14/SUM($C$14:$G$14)*LN('I14'!$L20)))))) -> 0.1727286972 | G37: =IF($B$104=0,IF($AB$52=0,SUM($C$14/SUM($C$14:$G$14)*('ASK14'!$E20*EXP(Main!$C$16*'ASK14'!$F20)),$D$14/SUM($C$14:$G$14)*(BSSA14!$S20*EXP(Main!$C$16*BSSA14!$T20)),$E$14/SUM($C$14:$G$14)*('CB14'!$Y20*EXP(Main!$C$16*'CB14'!$Z20)),$F$14/SUM($C$14:$G$14)*('CY14'!$U20*EXP(Main!$C$16*'CY14'!$V20)),$G$14/SUM($C$14:$G$14)*('I14'!$L20*EXP(Main!$C$16*'I14'!$M20))),SUM($C$14/SUM($C$14:$G$14)*('ASK14'!$E20*EXP(Main!$C$16*'ASK14'!$F20)),$D$14/SUM($C$14:$G$14)*(BSSA14!$S20*EXP(Main!$C$16*BSSA14!$T20)),$E$14/SUM($C$14:$G$14)*('CB14'!$Y20*EXP(Main!$C$16*'CB14'!$Z20)),$F$14/SUM($C$14:$G$14)*('CY14'!$U20*EXP(Main!$C$16*'CY14'!$V20)),$G$14/SUM($C$14:$G$14)*('I14'!$L20*EXP(Main!$C$16*'I14'!$M20)))),IF($B$104=1,IF($AB$52=0,EXP(SUM($C$14/SUM($C$14:$G$14)*(LN('ASK14'!$E20)+($C$16*'ASK14'!$F20)),$D$14/SUM($C$14:$G$14)*(LN(BSSA14!$S20)+($C$16*BSSA14!$T20)),$E$14/SUM($C$14:$G$14)*(LN('CB14'!$Y20)+($C$16*'CB14'!$Z20)),$F$14/SUM($C$14:$G$14)*(LN('CY14'!$U20)+($C$16*'CY14'!$V20)),$G$14/SUM($C$14:$G$14)*(LN('I14'!$L20)+($C$16*'I14'!$M20)))),EXP(SUM($C$14/SUM($C$14:$G$14)*(LN('ASK14'!$E20)+($C$16*'ASK14'!$F20)),$D$14/SUM($C$14:$G$14)*(LN(BSSA14!$S20)+($C$16*BSSA14!$T20)),$E$14/SUM($C$14:$G$14)*(LN('CB14'!$Y20)+($C$16*'CB14'!$Z20)),$F$14/SUM($C$14:$G$14)*(LN('CY14'!$U20)+($C$16*'CY14'!$V20)),$G$14/SUM($C$14:$G$14)*(LN('I14'!$L20)+($C$16*'I14'!$M20))))))) -> 0.3525776915 | H37: =IF($B$104=0,IF($AB$52=0,SUM($C$14/SUM($C$14:$G$14)*('ASK14'!$E20*EXP(-Main!$C$16*'ASK14'!$F20)),$D$14/SUM($C$14:$G$14)*(BSSA14!$S20*EXP(-Main!$C$16*BSSA14!$T20)),$E$14/SUM($C$14:$G$14)*('CB14'!$Y20*EXP(-Main!$C$16*'CB14'!$Z20)),$F$14/SUM($C$14:$G$14)*('CY14'!$U20*EXP(-Main!$C$16*'CY14'!$V20)),$G$14/SUM($C$14:$G$14)*('I14'!$L20*EXP(-Main!$C$16*'I14'!$M20))),SUM($C$14/SUM($C$14:$G$14)*('ASK14'!$E20*EXP(-Main!$C$16*'ASK14'!$F20)),$D$14/SUM($C$14:$G$14)*(BSSA14!$S20*EXP(-Main!$C$16*BSSA14!$T20)),$E$14/SUM($C$14:$G$14)*('CB14'!$Y20*EXP(-Main!$C$16*'CB14'!$Z20)),$F$14/SUM($C$14:$G$14)*('CY14'!$U20*EXP(-Main!$C$16*'CY14'!$V20)),$G$14/SUM($C$14:$G$14)*('I14'!$L20*EXP(-Main!$C$16*'I14'!$M20)))),IF($B$104=1,IF($AB$52=0,EXP(SUM($C$14/SUM($C$14:$G$14)*(LN('ASK14'!$E20)-($C$16*'ASK14'!$F20)),$D$14/SUM($C$14:$G$14)*(LN(BSSA14!$S20)-($C$16*BSSA14!$T20)),$E$14/SUM($C$14:$G$14)*(LN('CB14'!$Y20)-($C$16*'CB14'!$Z20)),$F$14/SUM($C$14:$G$14)*(LN('CY14'!$U20)-($C$16*'CY14'!$V20)),$G$14/SUM($C$14:$G$14)*(LN('I14'!$L20)-($C$16*'I14'!$M20)))),EXP(SUM($C$14/SUM($C$14:$G$14)*(LN('ASK14'!$E20)-($C$16*'ASK14'!$F20)),$D$14/SUM($C$14:$G$14)*(LN(BSSA14!$S20)-($C$16*BSSA14!$T20)),$E$14/SUM($C$14:$G$14)*(LN('CB14'!$Y20)-($C$16*'CB14'!$Z20)),$F$14/SUM($C$14:$G$14)*(LN('CY14'!$U20)-($C$16*'CY14'!$V20)),$G$14/SUM($C$14:$G$14)*(LN('I14'!$L20)-($C$16*'I14'!$M20))))))) -> 0.08462022286 | I37: 9.647468171 | J37: =DSF!$S36*Main!F37 -> 0.1729014259 | K37: =DSF!$S36*Main!G37 -> 0.3529302692 | L37: =DSF!$S36*Main!H37 -> 0.08470484308 | M37: =DSF!$S36*Main!I37 -> 9.657115639 | Z37: Z2.5 | AA37: >= 0 - <= 10 | AB37: =IF(AND($E$14<>0,$C$66="Out of Range! Use 760 m/s"),1,0) -> 0
B38: VS30 (m/sec) | E38: 2 | F38: =IF($B$104=0,IF($AB$52=0,SUM($C$14/SUM($C$14:$G$14)*'ASK14'!$E21,$D$14/SUM($C$14:$G$14)*BSSA14!$S21,$E$14/SUM($C$14:$G$14)*'CB14'!$Y21,$F$14/SUM($C$14:$G$14)*'CY14'!$U21,$G$14/SUM($C$14:$G$14)*'I14'!$L21),SUM($C$14/SUM($C$14:$G$14)*'ASK14'!$E21,$D$14/SUM($C$14:$G$14)*BSSA14!$S21,$E$14/SUM($C$14:$G$14)*'CB14'!$Y21,$F$14/SUM($C$14:$G$14)*'CY14'!$U21,$G$14/SUM($C$14:$G$14)*'I14'!$L21)),IF($B$104=1,IF($AB$52=0,EXP(SUM($C$14/SUM($C$14:$G$14)*LN('ASK14'!$E21),$D$14/SUM($C$14:$G$14)*LN(BSSA14!$S21),$E$14/SUM($C$14:$G$14)*LN('CB14'!$Y21),$F$14/SUM($C$14:$G$14)*LN('CY14'!$U21),$G$14/SUM($C$14:$G$14)*LN('I14'!$L21))),EXP(SUM($C$14/SUM($C$14:$G$14)*LN('ASK14'!$E21),$D$14/SUM($C$14:$G$14)*LN(BSSA14!$S21),$E$14/SUM($C$14:$G$14)*LN('CB14'!$Y21),$F$14/SUM($C$14:$G$14)*LN('CY14'!$U21),$G$14/SUM($C$14:$G$14)*LN('I14'!$L21)))))) -> 0.1187174726 | G38: =IF($B$104=0,IF($AB$52=0,SUM($C$14/SUM($C$14:$G$14)*('ASK14'!$E21*EXP(Main!$C$16*'ASK14'!$F21)),$D$14/SUM($C$14:$G$14)*(BSSA14!$S21*EXP(Main!$C$16*BSSA14!$T21)),$E$14/SUM($C$14:$G$14)*('CB14'!$Y21*EXP(Main!$C$16*'CB14'!$Z21)),$F$14/SUM($C$14:$G$14)*('CY14'!$U21*EXP(Main!$C$16*'CY14'!$V21)),$G$14/SUM($C$14:$G$14)*('I14'!$L21*EXP(Main!$C$16*'I14'!$M21))),SUM($C$14/SUM($C$14:$G$14)*('ASK14'!$E21*EXP(Main!$C$16*'ASK14'!$F21)),$D$14/SUM($C$14:$G$14)*(BSSA14!$S21*EXP(Main!$C$16*BSSA14!$T21)),$E$14/SUM($C$14:$G$14)*('CB14'!$Y21*EXP(Main!$C$16*'CB14'!$Z21)),$F$14/SUM($C$14:$G$14)*('CY14'!$U21*EXP(Main!$C$16*'CY14'!$V21)),$G$14/SUM($C$14:$G$14)*('I14'!$L21*EXP(Main!$C$16*'I14'!$M21)))),IF($B$104=1,IF($AB$52=0,EXP(SUM($C$14/SUM($C$14:$G$14)*(LN('ASK14'!$E21)+($C$16*'ASK14'!$F21)),$D$14/SUM($C$14:$G$14)*(LN(BSSA14!$S21)+($C$16*BSSA14!$T21)),$E$14/SUM($C$14:$G$14)*(LN('CB14'!$Y21)+($C$16*'CB14'!$Z21)),$F$14/SUM($C$14:$G$14)*(LN('CY14'!$U21)+($C$16*'CY14'!$V21)),$G$14/SUM($C$14:$G$14)*(LN('I14'!$L21)+($C$16*'I14'!$M21)))),EXP(SUM($C$14/SUM($C$14:$G$14)*(LN('ASK14'!$E21)+($C$16*'ASK14'!$F21)),$D$14/SUM($C$14:$G$14)*(LN(BSSA14!$S21)+($C$16*BSSA14!$T21)),$E$14/SUM($C$14:$G$14)*(LN('CB14'!$Y21)+($C$16*'CB14'!$Z21)),$F$14/SUM($C$14:$G$14)*(LN('CY14'!$U21)+($C$16*'CY14'!$V21)),$G$14/SUM($C$14:$G$14)*(LN('I14'!$L21)+($C$16*'I14'!$M21))))))) -> 0.2424191116 | H38: =IF($B$104=0,IF($AB$52=0,SUM($C$14/SUM($C$14:$G$14)*('ASK14'!$E21*EXP(-Main!$C$16*'ASK14'!$F21)),$D$14/SUM($C$14:$G$14)*(BSSA14!$S21*EXP(-Main!$C$16*BSSA14!$T21)),$E$14/SUM($C$14:$G$14)*('CB14'!$Y21*EXP(-Main!$C$16*'CB14'!$Z21)),$F$14/SUM($C$14:$G$14)*('CY14'!$U21*EXP(-Main!$C$16*'CY14'!$V21)),$G$14/SUM($C$14:$G$14)*('I14'!$L21*EXP(-Main!$C$16*'I14'!$M21))),SUM($C$14/SUM($C$14:$G$14)*('ASK14'!$E21*EXP(-Main!$C$16*'ASK14'!$F21)),$D$14/SUM($C$14:$G$14)*(BSSA14!$S21*EXP(-Main!$C$16*BSSA14!$T21)),$E$14/SUM($C$14:$G$14)*('CB14'!$Y21*EXP(-Main!$C$16*'CB14'!$Z21)),$F$14/SUM($C$14:$G$14)*('CY14'!$U21*EXP(-Main!$C$16*'CY14'!$V21)),$G$14/SUM($C$14:$G$14)*('I14'!$L21*EXP(-Main!$C$16*'I14'!$M21)))),IF($B$104=1,IF($AB$52=0,EXP(SUM($C$14/SUM($C$14:$G$14)*(LN('ASK14'!$E21)-($C$16*'ASK14'!$F21)),$D$14/SUM($C$14:$G$14)*(LN(BSSA14!$S21)-($C$16*BSSA14!$T21)),$E$14/SUM($C$14:$G$14)*(LN('CB14'!$Y21)-($C$16*'CB14'!$Z21)),$F$14/SUM($C$14:$G$14)*(LN('CY14'!$U21)-($C$16*'CY14'!$V21)),$G$14/SUM($C$14:$G$14)*(LN('I14'!$L21)-($C$16*'I14'!$M21)))),EXP(SUM($C$14/SUM($C$14:$G$14)*(LN('ASK14'!$E21)-($C$16*'ASK14'!$F21)),$D$14/SUM($C$14:$G$14)*(LN(BSSA14!$S21)-($C$16*BSSA14!$T21)),$E$14/SUM($C$14:$G$14)*(LN('CB14'!$Y21)-($C$16*'CB14'!$Z21)),$F$14/SUM($C$14:$G$14)*(LN('CY14'!$U21)-($C$16*'CY14'!$V21)),$G$14/SUM($C$14:$G$14)*(LN('I14'!$L21)-($C$16*'I14'!$M21))))))) -> 0.05813831351 | I38: 11.78802295 | J38: =DSF!$S37*Main!F38 -> 0.1184800377 | K38: =DSF!$S37*Main!G38 -> 0.2419342733 | L38: =DSF!$S37*Main!H38 -> 0.05802203689 | M38: =DSF!$S37*Main!I38 -> 11.7644469 | Z38: Zhyp | AA38: <= 0 - <= 20 | AB38: =IF(AND($E$14<>0,$C$60="Out of Range! Use 760 m/s"),1,0) -> 0
B39: 760 | E39: 3 | F39: =IF($B$104=0,IF($AB$52=0,SUM($C$14/SUM($C$14:$G$14)*'ASK14'!$E22,$D$14/SUM($C$14:$G$14)*BSSA14!$S22,$E$14/SUM($C$14:$G$14)*'CB14'!$Y22,$F$14/SUM($C$14:$G$14)*'CY14'!$U22,$G$14/SUM($C$14:$G$14)*'I14'!$L22),SUM($C$14/SUM($C$14:$G$14)*'ASK14'!$E22,$D$14/SUM($C$14:$G$14)*BSSA14!$S22,$E$14/SUM($C$14:$G$14)*'CB14'!$Y22,$F$14/SUM($C$14:$G$14)*'CY14'!$U22,$G$14/SUM($C$14:$G$14)*'I14'!$L22)),IF($B$104=1,IF($AB$52=0,EXP(SUM($C$14/SUM($C$14:$G$14)*LN('ASK14'!$E22),$D$14/SUM($C$14:$G$14)*LN(BSSA14!$S22),$E$14/SUM($C$14:$G$14)*LN('CB14'!$Y22),$F$14/SUM($C$14:$G$14)*LN('CY14'!$U22),$G$14/SUM($C$14:$G$14)*LN('I14'!$L22))),EXP(SUM($C$14/SUM($C$14:$G$14)*LN('ASK14'!$E22),$D$14/SUM($C$14:$G$14)*LN(BSSA14!$S22),$E$14/SUM($C$14:$G$14)*LN('CB14'!$Y22),$F$14/SUM($C$14:$G$14)*LN('CY14'!$U22),$G$14/SUM($C$14:$G$14)*LN('I14'!$L22)))))) -> 0.07053930534 | G39: =IF($B$104=0,IF($AB$52=0,SUM($C$14/SUM($C$14:$G$14)*('ASK14'!$E22*EXP(Main!$C$16*'ASK14'!$F22)),$D$14/SUM($C$14:$G$14)*(BSSA14!$S22*EXP(Main!$C$16*BSSA14!$T22)),$E$14/SUM($C$14:$G$14)*('CB14'!$Y22*EXP(Main!$C$16*'CB14'!$Z22)),$F$14/SUM($C$14:$G$14)*('CY14'!$U22*EXP(Main!$C$16*'CY14'!$V22)),$G$14/SUM($C$14:$G$14)*('I14'!$L22*EXP(Main!$C$16*'I14'!$M22))),SUM($C$14/SUM($C$14:$G$14)*('ASK14'!$E22*EXP(Main!$C$16*'ASK14'!$F22)),$D$14/SUM($C$14:$G$14)*(BSSA14!$S22*EXP(Main!$C$16*BSSA14!$T22)),$E$14/SUM($C$14:$G$14)*('CB14'!$Y22*EXP(Main!$C$16*'CB14'!$Z22)),$F$14/SUM($C$14:$G$14)*('CY14'!$U22*EXP(Main!$C$16*'CY14'!$V22)),$G$14/SUM($C$14:$G$14)*('I14'!$L22*EXP(Main!$C$16*'I14'!$M22)))),IF($B$104=1,IF($AB$52=0,EXP(SUM($C$14/SUM($C$14:$G$14)*(LN('ASK14'!$E22)+($C$16*'ASK14'!$F22)),$D$14/SUM($C$14:$G$14)*(LN(BSSA14!$S22)+($C$16*BSSA14!$T22)),$E$14/SUM($C$14:$G$14)*(LN('CB14'!$Y22)+($C$16*'CB14'!$Z22)),$F$14/SUM($C$14:$G$14)*(LN('CY14'!$U22)+($C$16*'CY14'!$V22)),$G$14/SUM($C$14:$G$14)*(LN('I14'!$L22)+($C$16*'I14'!$M22)))),EXP(SUM($C$14/SUM($C$14:$G$14)*(LN('ASK14'!$E22)+($C$16*'ASK14'!$F22)),$D$14/SUM($C$14:$G$14)*(LN(BSSA14!$S22)+($C$16*BSSA14!$T22)),$E$14/SUM($C$14:$G$14)*(LN('CB14'!$Y22)+($C$16*'CB14'!$Z22)),$F$14/SUM($C$14:$G$14)*(LN('CY14'!$U22)+($C$16*'CY14'!$V22)),$G$14/SUM($C$14:$G$14)*(LN('I14'!$L22)+($C$16*'I14'!$M22))))))) -> 0.1438643128 | H39: =IF($B$104=0,IF($AB$52=0,SUM($C$14/SUM($C$14:$G$14)*('ASK14'!$E22*EXP(-Main!$C$16*'ASK14'!$F22)),$D$14/SUM($C$14:$G$14)*(BSSA14!$S22*EXP(-Main!$C$16*BSSA14!$T22)),$E$14/SUM($C$14:$G$14)*('CB14'!$Y22*EXP(-Main!$C$16*'CB14'!$Z22)),$F$14/SUM($C$14:$G$14)*('CY14'!$U22*EXP(-Main!$C$16*'CY14'!$V22)),$G$14/SUM($C$14:$G$14)*('I14'!$L22*EXP(-Main!$C$16*'I14'!$M22))),SUM($C$14/SUM($C$14:$G$14)*('ASK14'!$E22*EXP(-Main!$C$16*'ASK14'!$F22)),$D$14/SUM($C$14:$G$14)*(BSSA14!$S22*EXP(-Main!$C$16*BSSA14!$T22)),$E$14/SUM($C$14:$G$14)*('CB14'!$Y22*EXP(-Main!$C$16*'CB14'!$Z22)),$F$14/SUM($C$14:$G$14)*('CY14'!$U22*EXP(-Main!$C$16*'CY14'!$V22)),$G$14/SUM($C$14:$G$14)*('I14'!$L22*EXP(-Main!$C$16*'I14'!$M22)))),IF($B$104=1,IF($AB$52=0,EXP(SUM($C$14/SUM($C$14:$G$14)*(LN('ASK14'!$E22)-($C$16*'ASK14'!$F22)),$D$14/SUM($C$14:$G$14)*(LN(BSSA14!$S22)-($C$16*BSSA14!$T22)),$E$14/SUM($C$14:$G$14)*(LN('CB14'!$Y22)-($C$16*'CB14'!$Z22)),$F$14/SUM($C$14:$G$14)*(LN('CY14'!$U22)-($C$16*'CY14'!$V22)),$G$14/SUM($C$14:$G$14)*(LN('I14'!$L22)-($C$16*'I14'!$M22)))),EXP(SUM($C$14/SUM($C$14:$G$14)*(LN('ASK14'!$E22)-($C$16*'ASK14'!$F22)),$D$14/SUM($C$14:$G$14)*(LN(BSSA14!$S22)-($C$16*BSSA14!$T22)),$E$14/SUM($C$14:$G$14)*(LN('CB14'!$Y22)-($C$16*'CB14'!$Z22)),$F$14/SUM($C$14:$G$14)*(LN('CY14'!$U22)-($C$16*'CY14'!$V22)),$G$14/SUM($C$14:$G$14)*(LN('I14'!$L22)-($C$16*'I14'!$M22))))))) -> 0.0345867123 | I39: 15.75941263 | J39: =DSF!$S38*Main!F39 -> 0.07039822673 | K39: =DSF!$S38*Main!G39 -> 0.1435765842 | L39: =DSF!$S38*Main!H39 -> 0.03451753888 | M39: =DSF!$S38*Main!I39 -> 15.72789381 | Z39: Ztor | AA39: <= 0 - <= 20 | AB39: =IF(AND($E$14<>0,$C$57="Out of Range! Use 760 m/s"),1,0) -> 0
E40: 4 | F40: =IF($B$104=0,IF($AB$52=0,SUM($C$14/SUM($C$14:$G$14)*'ASK14'!$E23,$D$14/SUM($C$14:$G$14)*BSSA14!$S23,$E$14/SUM($C$14:$G$14)*'CB14'!$Y23,$F$14/SUM($C$14:$G$14)*'CY14'!$U23,$G$14/SUM($C$14:$G$14)*'I14'!$L23),SUM($C$14/SUM($C$14:$G$14)*'ASK14'!$E23,$D$14/SUM($C$14:$G$14)*BSSA14!$S23,$E$14/SUM($C$14:$G$14)*'CB14'!$Y23,$F$14/SUM($C$14:$G$14)*'CY14'!$U23,$G$14/SUM($C$14:$G$14)*'I14'!$L23)),IF($B$104=1,IF($AB$52=0,EXP(SUM($C$14/SUM($C$14:$G$14)*LN('ASK14'!$E23),$D$14/SUM($C$14:$G$14)*LN(BSSA14!$S23),$E$14/SUM($C$14:$G$14)*LN('CB14'!$Y23),$F$14/SUM($C$14:$G$14)*LN('CY14'!$U23),$G$14/SUM($C$14:$G$14)*LN('I14'!$L23))),EXP(SUM($C$14/SUM($C$14:$G$14)*LN('ASK14'!$E23),$D$14/SUM($C$14:$G$14)*LN(BSSA14!$S23),$E$14/SUM($C$14:$G$14)*LN('CB14'!$Y23),$F$14/SUM($C$14:$G$14)*LN('CY14'!$U23),$G$14/SUM($C$14:$G$14)*LN('I14'!$L23)))))) -> 0.04685184193 | G40: =IF($B$104=0,IF($AB$52=0,SUM($C$14/SUM($C$14:$G$14)*('ASK14'!$E23*EXP(Main!$C$16*'ASK14'!$F23)),$D$14/SUM($C$14:$G$14)*(BSSA14!$S23*EXP(Main!$C$16*BSSA14!$T23)),$E$14/SUM($C$14:$G$14)*('CB14'!$Y23*EXP(Main!$C$16*'CB14'!$Z23)),$F$14/SUM($C$14:$G$14)*('CY14'!$U23*EXP(Main!$C$16*'CY14'!$V23)),$G$14/SUM($C$14:$G$14)*('I14'!$L23*EXP(Main!$C$16*'I14'!$M23))),SUM($C$14/SUM($C$14:$G$14)*('ASK14'!$E23*EXP(Main!$C$16*'ASK14'!$F23)),$D$14/SUM($C$14:$G$14)*(BSSA14!$S23*EXP(Main!$C$16*BSSA14!$T23)),$E$14/SUM($C$14:$G$14)*('CB14'!$Y23*EXP(Main!$C$16*'CB14'!$Z23)),$F$14/SUM($C$14:$G$14)*('CY14'!$U23*EXP(Main!$C$16*'CY14'!$V23)),$G$14/SUM($C$14:$G$14)*('I14'!$L23*EXP(Main!$C$16*'I14'!$M23)))),IF($B$104=1,IF($AB$52=0,EXP(SUM($C$14/SUM($C$14:$G$14)*(LN('ASK14'!$E23)+($C$16*'ASK14'!$F23)),$D$14/SUM($C$14:$G$14)*(LN(BSSA14!$S23)+($C$16*BSSA14!$T23)),$E$14/SUM($C$14:$G$14)*(LN('CB14'!$Y23)+($C$16*'CB14'!$Z23)),$F$14/SUM($C$14:$G$14)*(LN('CY14'!$U23)+($C$16*'CY14'!$V23)),$G$14/SUM($C$14:$G$14)*(LN('I14'!$L23)+($C$16*'I14'!$M23)))),EXP(SUM($C$14/SUM($C$14:$G$14)*(LN('ASK14'!$E23)+($C$16*'ASK14'!$F23)),$D$14/SUM($C$14:$G$14)*(LN(BSSA14!$S23)+($C$16*BSSA14!$T23)),$E$14/SUM($C$14:$G$14)*(LN('CB14'!$Y23)+($C$16*'CB14'!$Z23)),$F$14/SUM($C$14:$G$14)*(LN('CY14'!$U23)+($C$16*'CY14'!$V23)),$G$14/SUM($C$14:$G$14)*(LN('I14'!$L23)+($C$16*'I14'!$M23))))))) -> 0.09456993265 | H40: =IF($B$104=0,IF($AB$52=0,SUM($C$14/SUM($C$14:$G$14)*('ASK14'!$E23*EXP(-Main!$C$16*'ASK14'!$F23)),$D$14/SUM($C$14:$G$14)*(BSSA14!$S23*EXP(-Main!$C$16*BSSA14!$T23)),$E$14/SUM($C$14:$G$14)*('CB14'!$Y23*EXP(-Main!$C$16*'CB14'!$Z23)),$F$14/SUM($C$14:$G$14)*('CY14'!$U23*EXP(-Main!$C$16*'CY14'!$V23)),$G$14/SUM($C$14:$G$14)*('I14'!$L23*EXP(-Main!$C$16*'I14'!$M23))),SUM($C$14/SUM($C$14:$G$14)*('ASK14'!$E23*EXP(-Main!$C$16*'ASK14'!$F23)),$D$14/SUM($C$14:$G$14)*(BSSA14!$S23*EXP(-Main!$C$16*BSSA14!$T23)),$E$14/SUM($C$14:$G$14)*('CB14'!$Y23*EXP(-Main!$C$16*'CB14'!$Z23)),$F$14/SUM($C$14:$G$14)*('CY14'!$U23*EXP(-Main!$C$16*'CY14'!$V23)),$G$14/SUM($C$14:$G$14)*('I14'!$L23*EXP(-Main!$C$16*'I14'!$M23)))),IF($B$104=1,IF($AB$52=0,EXP(SUM($C$14/SUM($C$14:$G$14)*(LN('ASK14'!$E23)-($C$16*'ASK14'!$F23)),$D$14/SUM($C$14:$G$14)*(LN(BSSA14!$S23)-($C$16*BSSA14!$T23)),$E$14/SUM($C$14:$G$14)*(LN('CB14'!$Y23)-($C$16*'CB14'!$Z23)),$F$14/SUM($C$14:$G$14)*(LN('CY14'!$U23)-($C$16*'CY14'!$V23)),$G$14/SUM($C$14:$G$14)*(LN('I14'!$L23)-($C$16*'I14'!$M23)))),EXP(SUM($C$14/SUM($C$14:$G$14)*(LN('ASK14'!$E23)-($C$16*'ASK14'!$F23)),$D$14/SUM($C$14:$G$14)*(LN(BSSA14!$S23)-($C$16*BSSA14!$T23)),$E$14/SUM($C$14:$G$14)*(LN('CB14'!$Y23)-($C$16*'CB14'!$Z23)),$F$14/SUM($C$14:$G$14)*(LN('CY14'!$U23)-($C$16*'CY14'!$V23)),$G$14/SUM($C$14:$G$14)*(LN('I14'!$L23)-($C$16*'I14'!$M23))))))) -> 0.02321134245 | I40: 18.6085696 | J40: =DSF!$S39*Main!F40 -> 0.04680499009 | K40: =DSF!$S39*Main!G40 -> 0.09447536272 | L40: =DSF!$S39*Main!H40 -> 0.02318813111 | M40: =DSF!$S39*Main!I40 -> 18.58996103 | Z40: dip | AA40: >= 15 - <= 90 | AB40: =IF(AND($E$14<>0,$C$54="Out of Range! Use 760 m/s"),1,0) -> 0
B41: U (BSSA13) | C41: 1: Unspecified fault mech. | E41: 5 | F41: =IF($B$104=0,IF($AB$52=0,SUM($C$14/SUM($C$14:$G$14)*'ASK14'!$E24,$D$14/SUM($C$14:$G$14)*BSSA14!$S24,$E$14/SUM($C$14:$G$14)*'CB14'!$Y24,$F$14/SUM($C$14:$G$14)*'CY14'!$U24,$G$14/SUM($C$14:$G$14)*'I14'!$L24),SUM($C$14/SUM($C$14:$G$14)*'ASK14'!$E24,$D$14/SUM($C$14:$G$14)*BSSA14!$S24,$E$14/SUM($C$14:$G$14)*'CB14'!$Y24,$F$14/SUM($C$14:$G$14)*'CY14'!$U24,$G$14/SUM($C$14:$G$14)*'I14'!$L24)),IF($B$104=1,IF($AB$52=0,EXP(SUM($C$14/SUM($C$14:$G$14)*LN('ASK14'!$E24),$D$14/SUM($C$14:$G$14)*LN(BSSA14!$S24),$E$14/SUM($C$14:$G$14)*LN('CB14'!$Y24),$F$14/SUM($C$14:$G$14)*LN('CY14'!$U24),$G$14/SUM($C$14:$G$14)*LN('I14'!$L24))),EXP(SUM($C$14/SUM($C$14:$G$14)*LN('ASK14'!$E24),$D$14/SUM($C$14:$G$14)*LN(BSSA14!$S24),$E$14/SUM($C$14:$G$14)*LN('CB14'!$Y24),$F$14/SUM($C$14:$G$14)*LN('CY14'!$U24),$G$14/SUM($C$14:$G$14)*LN('I14'!$L24)))))) -> 0.03344039102 | G41: =IF($B$104=0,IF($AB$52=0,SUM($C$14/SUM($C$14:$G$14)*('ASK14'!$E24*EXP(Main!$C$16*'ASK14'!$F24)),$D$14/SUM($C$14:$G$14)*(BSSA14!$S24*EXP(Main!$C$16*BSSA14!$T24)),$E$14/SUM($C$14:$G$14)*('CB14'!$Y24*EXP(Main!$C$16*'CB14'!$Z24)),$F$14/SUM($C$14:$G$14)*('CY14'!$U24*EXP(Main!$C$16*'CY14'!$V24)),$G$14/SUM($C$14:$G$14)*('I14'!$L24*EXP(Main!$C$16*'I14'!$M24))),SUM($C$14/SUM($C$14:$G$14)*('ASK14'!$E24*EXP(Main!$C$16*'ASK14'!$F24)),$D$14/SUM($C$14:$G$14)*(BSSA14!$S24*EXP(Main!$C$16*BSSA14!$T24)),$E$14/SUM($C$14:$G$14)*('CB14'!$Y24*EXP(Main!$C$16*'CB14'!$Z24)),$F$14/SUM($C$14:$G$14)*('CY14'!$U24*EXP(Main!$C$16*'CY14'!$V24)),$G$14/SUM($C$14:$G$14)*('I14'!$L24*EXP(Main!$C$16*'I14'!$M24)))),IF($B$104=1,IF($AB$52=0,EXP(SUM($C$14/SUM($C$14:$G$14)*(LN('ASK14'!$E24)+($C$16*'ASK14'!$F24)),$D$14/SUM($C$14:$G$14)*(LN(BSSA14!$S24)+($C$16*BSSA14!$T24)),$E$14/SUM($C$14:$G$14)*(LN('CB14'!$Y24)+($C$16*'CB14'!$Z24)),$F$14/SUM($C$14:$G$14)*(LN('CY14'!$U24)+($C$16*'CY14'!$V24)),$G$14/SUM($C$14:$G$14)*(LN('I14'!$L24)+($C$16*'I14'!$M24)))),EXP(SUM($C$14/SUM($C$14:$G$14)*(LN('ASK14'!$E24)+($C$16*'ASK14'!$F24)),$D$14/SUM($C$14:$G$14)*(LN(BSSA14!$S24)+($C$16*BSSA14!$T24)),$E$14/SUM($C$14:$G$14)*(LN('CB14'!$Y24)+($C$16*'CB14'!$Z24)),$F$14/SUM($C$14:$G$14)*(LN('CY14'!$U24)+($C$16*'CY14'!$V24)),$G$14/SUM($C$14:$G$14)*(LN('I14'!$L24)+($C$16*'I14'!$M24))))))) -> 0.06759120149 | H41: =IF($B$104=0,IF($AB$52=0,SUM($C$14/SUM($C$14:$G$14)*('ASK14'!$E24*EXP(-Main!$C$16*'ASK14'!$F24)),$D$14/SUM($C$14:$G$14)*(BSSA14!$S24*EXP(-Main!$C$16*BSSA14!$T24)),$E$14/SUM($C$14:$G$14)*('CB14'!$Y24*EXP(-Main!$C$16*'CB14'!$Z24)),$F$14/SUM($C$14:$G$14)*('CY14'!$U24*EXP(-Main!$C$16*'CY14'!$V24)),$G$14/SUM($C$14:$G$14)*('I14'!$L24*EXP(-Main!$C$16*'I14'!$M24))),SUM($C$14/SUM($C$14:$G$14)*('ASK14'!$E24*EXP(-Main!$C$16*'ASK14'!$F24)),$D$14/SUM($C$14:$G$14)*(BSSA14!$S24*EXP(-Main!$C$16*BSSA14!$T24)),$E$14/SUM($C$14:$G$14)*('CB14'!$Y24*EXP(-Main!$C$16*'CB14'!$Z24)),$F$14/SUM($C$14:$G$14)*('CY14'!$U24*EXP(-Main!$C$16*'CY14'!$V24)),$G$14/SUM($C$14:$G$14)*('I14'!$L24*EXP(-Main!$C$16*'I14'!$M24)))),IF($B$104=1,IF($AB$52=0,EXP(SUM($C$14/SUM($C$14:$G$14)*(LN('ASK14'!$E24)-($C$16*'ASK14'!$F24)),$D$14/SUM($C$14:$G$14)*(LN(BSSA14!$S24)-($C$16*BSSA14!$T24)),$E$14/SUM($C$14:$G$14)*(LN('CB14'!$Y24)-($C$16*'CB14'!$Z24)),$F$14/SUM($C$14:$G$14)*(LN('CY14'!$U24)-($C$16*'CY14'!$V24)),$G$14/SUM($C$14:$G$14)*(LN('I14'!$L24)-($C$16*'I14'!$M24)))),EXP(SUM($C$14/SUM($C$14:$G$14)*(LN('ASK14'!$E24)-($C$16*'ASK14'!$F24)),$D$14/SUM($C$14:$G$14)*(LN(BSSA14!$S24)-($C$16*BSSA14!$T24)),$E$14/SUM($C$14:$G$14)*(LN('CB14'!$Y24)-($C$16*'CB14'!$Z24)),$F$14/SUM($C$14:$G$14)*(LN('CY14'!$U24)-($C$16*'CY14'!$V24)),$G$14/SUM($C$14:$G$14)*(LN('I14'!$L24)-($C$16*'I14'!$M24))))))) -> 0.01654445737 | I41: 20.7528475 | J41: =DSF!$S40*Main!F41 -> 0.03330662946 | K41: =DSF!$S40*Main!G41 -> 0.06732083669 | L41: =DSF!$S40*Main!H41 -> 0.01647827954 | M41: =DSF!$S40*Main!I41 -> 20.66983611 | Y41: CY14 | Z41: M, SS | AA41: >= 3.5 - <=8.5 | AB41: =IF(AND($F$14<>0,$C$24="! Not Applicable !"),1,0) -> 0 | AC41: =SUM(AB41:AB47) -> 0
B42: 0 | E42: 7.5 | F42: =IF($B$104=0,IF($AB$52=0,SUM($C$14/SUM($C$14:$G$14)*'ASK14'!$E25,$D$14/SUM($C$14:$G$14)*BSSA14!$S25,$E$14/SUM($C$14:$G$14)*'CB14'!$Y25,$F$14/SUM($C$14:$G$14)*'CY14'!$U25,$G$14/SUM($C$14:$G$14)*'I14'!$L25),SUM($C$14/SUM($C$14:$G$14)*'ASK14'!$E25,$D$14/SUM($C$14:$G$14)*BSSA14!$S25,$E$14/SUM($C$14:$G$14)*'CB14'!$Y25,$F$14/SUM($C$14:$G$14)*'CY14'!$U25,$G$14/SUM($C$14:$G$14)*'I14'!$L25)),IF($B$104=1,IF($AB$52=0,EXP(SUM($C$14/SUM($C$14:$G$14)*LN('ASK14'!$E25),$D$14/SUM($C$14:$G$14)*LN(BSSA14!$S25),$E$14/SUM($C$14:$G$14)*LN('CB14'!$Y25),$F$14/SUM($C$14:$G$14)*LN('CY14'!$U25),$G$14/SUM($C$14:$G$14)*LN('I14'!$L25))),EXP(SUM($C$14/SUM($C$14:$G$14)*LN('ASK14'!$E25),$D$14/SUM($C$14:$G$14)*LN(BSSA14!$S25),$E$14/SUM($C$14:$G$14)*LN('CB14'!$Y25),$F$14/SUM($C$14:$G$14)*LN('CY14'!$U25),$G$14/SUM($C$14:$G$14)*LN('I14'!$L25)))))) -> 0.01603652112 | G42: =IF($B$104=0,IF($AB$52=0,SUM($C$14/SUM($C$14:$G$14)*('ASK14'!$E25*EXP(Main!$C$16*'ASK14'!$F25)),$D$14/SUM($C$14:$G$14)*(BSSA14!$S25*EXP(Main!$C$16*BSSA14!$T25)),$E$14/SUM($C$14:$G$14)*('CB14'!$Y25*EXP(Main!$C$16*'CB14'!$Z25)),$F$14/SUM($C$14:$G$14)*('CY14'!$U25*EXP(Main!$C$16*'CY14'!$V25)),$G$14/SUM($C$14:$G$14)*('I14'!$L25*EXP(Main!$C$16*'I14'!$M25))),SUM($C$14/SUM($C$14:$G$14)*('ASK14'!$E25*EXP(Main!$C$16*'ASK14'!$F25)),$D$14/SUM($C$14:$G$14)*(BSSA14!$S25*EXP(Main!$C$16*BSSA14!$T25)),$E$14/SUM($C$14:$G$14)*('CB14'!$Y25*EXP(Main!$C$16*'CB14'!$Z25)),$F$14/SUM($C$14:$G$14)*('CY14'!$U25*EXP(Main!$C$16*'CY14'!$V25)),$G$14/SUM($C$14:$G$14)*('I14'!$L25*EXP(Main!$C$16*'I14'!$M25)))),IF($B$104=1,IF($AB$52=0,EXP(SUM($C$14/SUM($C$14:$G$14)*(LN('ASK14'!$E25)+($C$16*'ASK14'!$F25)),$D$14/SUM($C$14:$G$14)*(LN(BSSA14!$S25)+($C$16*BSSA14!$T25)),$E$14/SUM($C$14:$G$14)*(LN('CB14'!$Y25)+($C$16*'CB14'!$Z25)),$F$14/SUM($C$14:$G$14)*(LN('CY14'!$U25)+($C$16*'CY14'!$V25)),$G$14/SUM($C$14:$G$14)*(LN('I14'!$L25)+($C$16*'I14'!$M25)))),EXP(SUM($C$14/SUM($C$14:$G$14)*(LN('ASK14'!$E25)+($C$16*'ASK14'!$F25)),$D$14/SUM($C$14:$G$14)*(LN(BSSA14!$S25)+($C$16*BSSA14!$T25)),$E$14/SUM($C$14:$G$14)*(LN('CB14'!$Y25)+($C$16*'CB14'!$Z25)),$F$14/SUM($C$14:$G$14)*(LN('CY14'!$U25)+($C$16*'CY14'!$V25)),$G$14/SUM($C$14:$G$14)*(LN('I14'!$L25)+($C$16*'I14'!$M25))))))) -> 0.03227774922 | H42: =IF($B$104=0,IF($AB$52=0,SUM($C$14/SUM($C$14:$G$14)*('ASK14'!$E25*EXP(-Main!$C$16*'ASK14'!$F25)),$D$14/SUM($C$14:$G$14)*(BSSA14!$S25*EXP(-Main!$C$16*BSSA14!$T25)),$E$14/SUM($C$14:$G$14)*('CB14'!$Y25*EXP(-Main!$C$16*'CB14'!$Z25)),$F$14/SUM($C$14:$G$14)*('CY14'!$U25*EXP(-Main!$C$16*'CY14'!$V25)),$G$14/SUM($C$14:$G$14)*('I14'!$L25*EXP(-Main!$C$16*'I14'!$M25))),SUM($C$14/SUM($C$14:$G$14)*('ASK14'!$E25*EXP(-Main!$C$16*'ASK14'!$F25)),$D$14/SUM($C$14:$G$14)*(BSSA14!$S25*EXP(-Main!$C$16*BSSA14!$T25)),$E$14/SUM($C$14:$G$14)*('CB14'!$Y25*EXP(-Main!$C$16*'CB14'!$Z25)),$F$14/SUM($C$14:$G$14)*('CY14'!$U25*EXP(-Main!$C$16*'CY14'!$V25)),$G$14/SUM($C$14:$G$14)*('I14'!$L25*EXP(-Main!$C$16*'I14'!$M25)))),IF($B$104=1,IF($AB$52=0,EXP(SUM($C$14/SUM($C$14:$G$14)*(LN('ASK14'!$E25)-($C$16*'ASK14'!$F25)),$D$14/SUM($C$14:$G$14)*(LN(BSSA14!$S25)-($C$16*BSSA14!$T25)),$E$14/SUM($C$14:$G$14)*(LN('CB14'!$Y25)-($C$16*'CB14'!$Z25)),$F$14/SUM($C$14:$G$14)*(LN('CY14'!$U25)-($C$16*'CY14'!$V25)),$G$14/SUM($C$14:$G$14)*(LN('I14'!$L25)-($C$16*'I14'!$M25)))),EXP(SUM($C$14/SUM($C$14:$G$14)*(LN('ASK14'!$E25)-($C$16*'ASK14'!$F25)),$D$14/SUM($C$14:$G$14)*(LN(BSSA14!$S25)-($C$16*BSSA14!$T25)),$E$14/SUM($C$14:$G$14)*(LN('CB14'!$Y25)-($C$16*'CB14'!$Z25)),$F$14/SUM($C$14:$G$14)*(LN('CY14'!$U25)-($C$16*'CY14'!$V25)),$G$14/SUM($C$14:$G$14)*(LN('I14'!$L25)-($C$16*'I14'!$M25))))))) -> 0.007967408381 | I42: 22.39231662 | J42: =DSF!$S41*Main!F42 -> 0.01603652112 | K42: =DSF!$S41*Main!G42 -> 0.03227774922 | L42: =DSF!$S41*Main!H42 -> 0.007967408381 | M42: =DSF!$S41*Main!I42 -> 22.39231662 | Z42: M, RS | AA42: >= 3.5 - <=8.0 | AB42: =IF(AND($F$14<>0,$C$24="! Not Applicable !"),1,0) -> 0
E43: 10 | F43: =IF($B$104=0,IF($AB$52=0,SUM($C$14/SUM($C$14:$G$14)*'ASK14'!$E26,$D$14/SUM($C$14:$G$14)*BSSA14!$S26,$E$14/SUM($C$14:$G$14)*'CB14'!$Y26,$F$14/SUM($C$14:$G$14)*'CY14'!$U26,$G$14/SUM($C$14:$G$14)*'I14'!$L26),SUM($C$14/SUM($C$14:$G$14)*'ASK14'!$E26,$D$14/SUM($C$14:$G$14)*BSSA14!$S26,$E$14/SUM($C$14:$G$14)*'CB14'!$Y26,$F$14/SUM($C$14:$G$14)*'CY14'!$U26,$G$14/SUM($C$14:$G$14)*'I14'!$L26)),IF($B$104=1,IF($AB$52=0,EXP(SUM($C$14/SUM($C$14:$G$14)*LN('ASK14'!$E26),$D$14/SUM($C$14:$G$14)*LN(BSSA14!$S26),$E$14/SUM($C$14:$G$14)*LN('CB14'!$Y26),$F$14/SUM($C$14:$G$14)*LN('CY14'!$U26),$G$14/SUM($C$14:$G$14)*LN('I14'!$L26))),EXP(SUM($C$14/SUM($C$14:$G$14)*LN('ASK14'!$E26),$D$14/SUM($C$14:$G$14)*LN(BSSA14!$S26),$E$14/SUM($C$14:$G$14)*LN('CB14'!$Y26),$F$14/SUM($C$14:$G$14)*LN('CY14'!$U26),$G$14/SUM($C$14:$G$14)*LN('I14'!$L26)))))) -> 0.009852158828 | G43: =IF($B$104=0,IF($AB$52=0,SUM($C$14/SUM($C$14:$G$14)*('ASK14'!$E26*EXP(Main!$C$16*'ASK14'!$F26)),$D$14/SUM($C$14:$G$14)*(BSSA14!$S26*EXP(Main!$C$16*BSSA14!$T26)),$E$14/SUM($C$14:$G$14)*('CB14'!$Y26*EXP(Main!$C$16*'CB14'!$Z26)),$F$14/SUM($C$14:$G$14)*('CY14'!$U26*EXP(Main!$C$16*'CY14'!$V26)),$G$14/SUM($C$14:$G$14)*('I14'!$L26*EXP(Main!$C$16*'I14'!$M26))),SUM($C$14/SUM($C$14:$G$14)*('ASK14'!$E26*EXP(Main!$C$16*'ASK14'!$F26)),$D$14/SUM($C$14:$G$14)*(BSSA14!$S26*EXP(Main!$C$16*BSSA14!$T26)),$E$14/SUM($C$14:$G$14)*('CB14'!$Y26*EXP(Main!$C$16*'CB14'!$Z26)),$F$14/SUM($C$14:$G$14)*('CY14'!$U26*EXP(Main!$C$16*'CY14'!$V26)),$G$14/SUM($C$14:$G$14)*('I14'!$L26*EXP(Main!$C$16*'I14'!$M26)))),IF($B$104=1,IF($AB$52=0,EXP(SUM($C$14/SUM($C$14:$G$14)*(LN('ASK14'!$E26)+($C$16*'ASK14'!$F26)),$D$14/SUM($C$14:$G$14)*(LN(BSSA14!$S26)+($C$16*BSSA14!$T26)),$E$14/SUM($C$14:$G$14)*(LN('CB14'!$Y26)+($C$16*'CB14'!$Z26)),$F$14/SUM($C$14:$G$14)*(LN('CY14'!$U26)+($C$16*'CY14'!$V26)),$G$14/SUM($C$14:$G$14)*(LN('I14'!$L26)+($C$16*'I14'!$M26)))),EXP(SUM($C$14/SUM($C$14:$G$14)*(LN('ASK14'!$E26)+($C$16*'ASK14'!$F26)),$D$14/SUM($C$14:$G$14)*(LN(BSSA14!$S26)+($C$16*BSSA14!$T26)),$E$14/SUM($C$14:$G$14)*(LN('CB14'!$Y26)+($C$16*'CB14'!$Z26)),$F$14/SUM($C$14:$G$14)*(LN('CY14'!$U26)+($C$16*'CY14'!$V26)),$G$14/SUM($C$14:$G$14)*(LN('I14'!$L26)+($C$16*'I14'!$M26))))))) -> 0.01960267695 | H43: =IF($B$104=0,IF($AB$52=0,SUM($C$14/SUM($C$14:$G$14)*('ASK14'!$E26*EXP(-Main!$C$16*'ASK14'!$F26)),$D$14/SUM($C$14:$G$14)*(BSSA14!$S26*EXP(-Main!$C$16*BSSA14!$T26)),$E$14/SUM($C$14:$G$14)*('CB14'!$Y26*EXP(-Main!$C$16*'CB14'!$Z26)),$F$14/SUM($C$14:$G$14)*('CY14'!$U26*EXP(-Main!$C$16*'CY14'!$V26)),$G$14/SUM($C$14:$G$14)*('I14'!$L26*EXP(-Main!$C$16*'I14'!$M26))),SUM($C$14/SUM($C$14:$G$14)*('ASK14'!$E26*EXP(-Main!$C$16*'ASK14'!$F26)),$D$14/SUM($C$14:$G$14)*(BSSA14!$S26*EXP(-Main!$C$16*BSSA14!$T26)),$E$14/SUM($C$14:$G$14)*('CB14'!$Y26*EXP(-Main!$C$16*'CB14'!$Z26)),$F$14/SUM($C$14:$G$14)*('CY14'!$U26*EXP(-Main!$C$16*'CY14'!$V26)),$G$14/SUM($C$14:$G$14)*('I14'!$L26*EXP(-Main!$C$16*'I14'!$M26)))),IF($B$104=1,IF($AB$52=0,EXP(SUM($C$14/SUM($C$14:$G$14)*(LN('ASK14'!$E26)-($C$16*'ASK14'!$F26)),$D$14/SUM($C$14:$G$14)*(LN(BSSA14!$S26)-($C$16*BSSA14!$T26)),$E$14/SUM($C$14:$G$14)*(LN('CB14'!$Y26)-($C$16*'CB14'!$Z26)),$F$14/SUM($C$14:$G$14)*(LN('CY14'!$U26)-($C$16*'CY14'!$V26)),$G$14/SUM($C$14:$G$14)*(LN('I14'!$L26)-($C$16*'I14'!$M26)))),EXP(SUM($C$14/SUM($C$14:$G$14)*(LN('ASK14'!$E26)-($C$16*'ASK14'!$F26)),$D$14/SUM($C$14:$G$14)*(LN(BSSA14!$S26)-($C$16*BSSA14!$T26)),$E$14/SUM($C$14:$G$14)*(LN('CB14'!$Y26)-($C$16*'CB14'!$Z26)),$F$14/SUM($C$14:$G$14)*(LN('CY14'!$U26)-($C$16*'CY14'!$V26)),$G$14/SUM($C$14:$G$14)*(LN('I14'!$L26)-($C$16*'I14'!$M26))))))) -> 0.004951621342 | I43: 24.45669365 | J43: =DSF!$S42*Main!F43 -> 0.009822602351 | K43: =DSF!$S42*Main!G43 -> 0.01954386892 | L43: =DSF!$S42*Main!H43 -> 0.004936766478 | M43: =DSF!$S42*Main!I43 -> 24.38332357 | Z43: M, NS | AA43: >= 3.5 - <= 8.0 | AB43: =IF(AND($F$14<>0,$C$24="! Not Applicable !"),1,0) -> 0
B44: FRV | C44: 1: reverse fault | Z44: Rrup | AA44: >= 0 - <= 300 | AB44: =IF(AND($F$14<>0,$C$27="! Not Applicable !"),1,0) -> 0
B45: 0 | C45: =IF(AND($B$45=1,$B$48=1),"Choose 1 for either of Frv or Fnm","") ->  | D45: PGA (g) | E45: 0 | F45: =IF($B$104=0,IF($AB$52=0,SUM($C$14/SUM($C$14:$G$14)*'ASK14'!$E28,$D$14/SUM($C$14:$G$14)*BSSA14!$S28,$E$14/SUM($C$14:$G$14)*'CB14'!$Y28,$F$14/SUM($C$14:$G$14)*'CY14'!$U28,$G$14/SUM($C$14:$G$14)*'I14'!$L28),SUM($C$14/SUM($C$14:$G$14)*'ASK14'!$E28,$D$14/SUM($C$14:$G$14)*BSSA14!$S28,$E$14/SUM($C$14:$G$14)*'CB14'!$Y28,$F$14/SUM($C$14:$G$14)*'CY14'!$U28,$G$14/SUM($C$14:$G$14)*'I14'!$L28)),IF($B$104=1,IF($AB$52=0,EXP(SUM($C$14/SUM($C$14:$G$14)*LN('ASK14'!$E28),$D$14/SUM($C$14:$G$14)*LN(BSSA14!$S28),$E$14/SUM($C$14:$G$14)*LN('CB14'!$Y28),$F$14/SUM($C$14:$G$14)*LN('CY14'!$U28),$G$14/SUM($C$14:$G$14)*LN('I14'!$L28))),EXP(SUM($C$14/SUM($C$14:$G$14)*LN('ASK14'!$E28),$D$14/SUM($C$14:$G$14)*LN(BSSA14!$S28),$E$14/SUM($C$14:$G$14)*LN('CB14'!$Y28),$F$14/SUM($C$14:$G$14)*LN('CY14'!$U28),$G$14/SUM($C$14:$G$14)*LN('I14'!$L28)))))) -> 0.4364516129 | G45: =IF($B$104=0,IF($AB$52=0,SUM($C$14/SUM($C$14:$G$14)*('ASK14'!$E28*EXP(Main!$C$16*'ASK14'!$F28)),$D$14/SUM($C$14:$G$14)*(BSSA14!$S28*EXP(Main!$C$16*BSSA14!$T28)),$E$14/SUM($C$14:$G$14)*('CB14'!$Y28*EXP(Main!$C$16*'CB14'!$Z28)),$F$14/SUM($C$14:$G$14)*('CY14'!$U28*EXP(Main!$C$16*'CY14'!$V28)),$G$14/SUM($C$14:$G$14)*('I14'!$L28*EXP(Main!$C$16*'I14'!$M28))),SUM($C$14/SUM($C$14:$G$14)*('ASK14'!$E28*EXP(Main!$C$16*'ASK14'!$F28)),$D$14/SUM($C$14:$G$14)*(BSSA14!$S28*EXP(Main!$C$16*BSSA14!$T28)),$E$14/SUM($C$14:$G$14)*('CB14'!$Y28*EXP(Main!$C$16*'CB14'!$Z28)),$F$14/SUM($C$14:$G$14)*('CY14'!$U28*EXP(Main!$C$16*'CY14'!$V28)),$G$14/SUM($C$14:$G$14)*('I14'!$L28*EXP(Main!$C$16*'I14'!$M28)))),IF($B$104=1,IF($AB$52=0,EXP(SUM($C$14/SUM($C$14:$G$14)*(LN('ASK14'!$E28)+($C$16*'ASK14'!$F28)),$D$14/SUM($C$14:$G$14)*(LN(BSSA14!$S28)+($C$16*BSSA14!$T28)),$E$14/SUM($C$14:$G$14)*(LN('CB14'!$Y28)+($C$16*'CB14'!$Z28)),$F$14/SUM($C$14:$G$14)*(LN('CY14'!$U28)+($C$16*'CY14'!$V28)),$G$14/SUM($C$14:$G$14)*(LN('I14'!$L28)+($C$16*'I14'!$M28)))),EXP(SUM($C$14/SUM($C$14:$G$14)*(LN('ASK14'!$E28)+($C$16*'ASK14'!$F28)),$D$14/SUM($C$14:$G$14)*(LN(BSSA14!$S28)+($C$16*BSSA14!$T28)),$E$14/SUM($C$14:$G$14)*(LN('CB14'!$Y28)+($C$16*'CB14'!$Z28)),$F$14/SUM($C$14:$G$14)*(LN('CY14'!$U28)+($C$16*'CY14'!$V28)),$G$14/SUM($C$14:$G$14)*(LN('I14'!$L28)+($C$16*'I14'!$M28))))))) -> 0.7922217438 | H45: =IF($B$104=0,IF($AB$52=0,SUM($C$14/SUM($C$14:$G$14)*('ASK14'!$E28*EXP(-Main!$C$16*'ASK14'!$F28)),$D$14/SUM($C$14:$G$14)*(BSSA14!$S28*EXP(-Main!$C$16*BSSA14!$T28)),$E$14/SUM($C$14:$G$14)*('CB14'!$Y28*EXP(-Main!$C$16*'CB14'!$Z28)),$F$14/SUM($C$14:$G$14)*('CY14'!$U28*EXP(-Main!$C$16*'CY14'!$V28)),$G$14/SUM($C$14:$G$14)*('I14'!$L28*EXP(-Main!$C$16*'I14'!$M28))),SUM($C$14/SUM($C$14:$G$14)*('ASK14'!$E28*EXP(-Main!$C$16*'ASK14'!$F28)),$D$14/SUM($C$14:$G$14)*(BSSA14!$S28*EXP(-Main!$C$16*BSSA14!$T28)),$E$14/SUM($C$14:$G$14)*('CB14'!$Y28*EXP(-Main!$C$16*'CB14'!$Z28)),$F$14/SUM($C$14:$G$14)*('CY14'!$U28*EXP(-Main!$C$16*'CY14'!$V28)),$G$14/SUM($C$14:$G$14)*('I14'!$L28*EXP(-Main!$C$16*'I14'!$M28)))),IF($B$104=1,IF($AB$52=0,EXP(SUM($C$14/SUM($C$14:$G$14)*(LN('ASK14'!$E28)-($C$16*'ASK14'!$F28)),$D$14/SUM($C$14:$G$14)*(LN(BSSA14!$S28)-($C$16*BSSA14!$T28)),$E$14/SUM($C$14:$G$14)*(LN('CB14'!$Y28)-($C$16*'CB14'!$Z28)),$F$14/SUM($C$14:$G$14)*(LN('CY14'!$U28)-($C$16*'CY14'!$V28)),$G$14/SUM($C$14:$G$14)*(LN('I14'!$L28)-($C$16*'I14'!$M28)))),EXP(SUM($C$14/SUM($C$14:$G$14)*(LN('ASK14'!$E28)-($C$16*'ASK14'!$F28)),$D$14/SUM($C$14:$G$14)*(LN(BSSA14!$S28)-($C$16*BSSA14!$T28)),$E$14/SUM($C$14:$G$14)*(LN('CB14'!$Y28)-($C$16*'CB14'!$Z28)),$F$14/SUM($C$14:$G$14)*(LN('CY14'!$U28)-($C$16*'CY14'!$V28)),$G$14/SUM($C$14:$G$14)*(LN('I14'!$L28)-($C$16*'I14'!$M28))))))) -> 0.2404503687 | I45: =($F45*980)/(2*PI()/$E$23)^2 -> 0.001083433954 | J45: =J23 -> 0.4411598373 | K45: =K23 -> 0.8014088896 | L45: =L23 -> 0.2428498169 | M45: 0.001095121504 | Z45: Vs30 | AA45: >= 180 - <= 1500 | AB45: =IF(AND($F$14<>0,$C$39="Out of Range! Use 760 m/s"),1,0) -> 0
D46: PGV (cm/s) | E46: -1 | F46: =IF($B$104=0,IF($AB$52=0,SUM($C$14/SUM($C$14:$G$14)*'ASK14'!$E29,$D$14/SUM($C$14:$G$14)*BSSA14!$S29,$E$14/SUM($C$14:$G$14)*'CB14'!$Y29,$F$14/SUM($C$14:$G$14)*'CY14'!$U29),SUM($C$14/SUM($C$14:$G$14)*'ASK14'!$E29,$D$14/SUM($C$14:$G$14)*BSSA14!$S29,$E$14/SUM($C$14:$G$14)*'CB14'!$Y29,$F$14/SUM($C$14:$G$14)*'CY14'!$U29)),IF($B$104=1,IF($AB$52=0,EXP(SUM($C$14/SUM($C$14:$G$14)*LN('ASK14'!$E29),$D$14/SUM($C$14:$G$14)*LN(BSSA14!$S29),$E$14/SUM($C$14:$G$14)*LN('CB14'!$Y29),$F$14/SUM($C$14:$G$14)*LN('CY14'!$U29))),EXP(SUM($C$14/SUM($C$14:$G$14)*LN('ASK14'!$E29),$D$14/SUM($C$14:$G$14)*LN(BSSA14!$S29),$E$14/SUM($C$14:$G$14)*LN('CB14'!$Y29),$F$14/SUM($C$14:$G$14)*LN('CY14'!$U29)))))) -> 38.27298101 | G46: =IF($B$104=0,IF($AB$52=0,SUM($C$14/SUM($C$14:$G$14)*('ASK14'!$E29*EXP(Main!$C$16*'ASK14'!$F29)),$D$14/SUM($C$14:$G$14)*(BSSA14!$S29*EXP(Main!$C$16*BSSA14!$T29)),$E$14/SUM($C$14:$G$14)*('CB14'!$Y29*EXP(Main!$C$16*'CB14'!$Z29)),$F$14/SUM($C$14:$G$14)*('CY14'!$U29*EXP(Main!$C$16*'CY14'!$V29))),SUM($C$14/SUM($C$14:$G$14)*('ASK14'!$E29*EXP(Main!$C$16*'ASK14'!$F29)),$D$14/SUM($C$14:$G$14)*(BSSA14!$S29*EXP(Main!$C$16*BSSA14!$T29)),$E$14/SUM($C$14:$G$14)*('CB14'!$Y29*EXP(Main!$C$16*'CB14'!$Z29)),$F$14/SUM($C$14:$G$14)*('CY14'!$U29*EXP(Main!$C$16*'CY14'!$V29)))),IF($B$104=1,IF($AB$52=0,EXP(SUM($C$14/SUM($C$14:$G$14)*(LN('ASK14'!$E29)+($C$16*'ASK14'!$F29)),$D$14/SUM($C$14:$G$14)*(LN(BSSA14!$S29)+($C$16*BSSA14!$T29)),$E$14/SUM($C$14:$G$14)*(LN('CB14'!$Y29)+($C$16*'CB14'!$Z29)),$F$14/SUM($C$14:$G$14)*(LN('CY14'!$U29)+($C$16*'CY14'!$V29)))),EXP(SUM($C$14/SUM($C$14:$G$14)*(LN('ASK14'!$E29)+($C$16*'ASK14'!$F29)),$D$14/SUM($C$14:$G$14)*(LN(BSSA14!$S29)+($C$16*BSSA14!$T29)),$E$14/SUM($C$14:$G$14)*(LN('CB14'!$Y29)+($C$16*'CB14'!$Z29)),$F$14/SUM($C$14:$G$14)*(LN('CY14'!$U29)+($C$16*'CY14'!$V29))))))) -> 69.88070735 | H46: =IF($B$104=0,IF($AB$52=0,SUM($C$14/SUM($C$14:$G$14)*('ASK14'!$E29*EXP(-Main!$C$16*'ASK14'!$F29)),$D$14/SUM($C$14:$G$14)*(BSSA14!$S29*EXP(-Main!$C$16*BSSA14!$T29)),$E$14/SUM($C$14:$G$14)*('CB14'!$Y29*EXP(-Main!$C$16*'CB14'!$Z29)),$F$14/SUM($C$14:$G$14)*('CY14'!$U29*EXP(-Main!$C$16*'CY14'!$V29))),SUM($C$14/SUM($C$14:$G$14)*('ASK14'!$E29*EXP(-Main!$C$16*'ASK14'!$F29)),$D$14/SUM($C$14:$G$14)*(BSSA14!$S29*EXP(-Main!$C$16*BSSA14!$T29)),$E$14/SUM($C$14:$G$14)*('CB14'!$Y29*EXP(-Main!$C$16*'CB14'!$Z29)),$F$14/SUM($C$14:$G$14)*('CY14'!$U29*EXP(-Main!$C$16*'CY14'!$V29)))),IF($B$104=1,IF($AB$52=0,EXP(SUM($C$14/SUM($C$14:$G$14)*(LN('ASK14'!$E29)-($C$16*'ASK14'!$F29)),$D$14/SUM($C$14:$G$14)*(LN(BSSA14!$S29)-($C$16*BSSA14!$T29)),$E$14/SUM($C$14:$G$14)*(LN('CB14'!$Y29)-($C$16*'CB14'!$Z29)),$F$14/SUM($C$14:$G$14)*(LN('CY14'!$U29)-($C$16*'CY14'!$V29)))),EXP(SUM($C$14/SUM($C$14:$G$14)*(LN('ASK14'!$E29)-($C$16*'ASK14'!$F29)),$D$14/SUM($C$14:$G$14)*(LN(BSSA14!$S29)-($C$16*BSSA14!$T29)),$E$14/SUM($C$14:$G$14)*(LN('CB14'!$Y29)-($C$16*'CB14'!$Z29)),$F$14/SUM($C$14:$G$14)*(LN('CY14'!$U29)-($C$16*'CY14'!$V29))))))) -> 20.96173796 | I46: =($F46*980)/(2*PI()/$E$23)^2 -> 0.09500766158 | J46: NA | K46: NA | L46: NA | M46: NA | Z46: Z1.0 | AA46: <= 20 | AB46: =IF(AND($F$14<>0,$C$63="Out of Range! Use 760 m/s"),1,0) -> 0
B47: FNM | C47: 1: normal fault | Z47: Ztor | AA47: >= 0 - <= 10 | AB47: =IF(AND($F$14<>0,$C$57="Out of Range! Use 760 m/s"),1,0) -> 0
B48: 0 | Y48: I14 | Z48: M (all FM) | AA48: >= 5 | AB48: =IF(AND($G$14<>0,$C$24="! Not Applicable !"),1,0) -> 0 | AC48: =SUM(AB48:AB50) -> 0
Z49: R | AA49: <= 150 | AB49: =IF(AND($G$14<>0,$C$27="! Not Applicable !"),1,0) -> 0
B50: FHW | C50: 1: hanging wall side | Z50: Vs30 | AA50: >= 450 | AB50: =IF(AND($G$14<>0,$C$39="Out of Range! Use 760 m/s"),1,0) -> 0
B51: 0 | AA51: >= 1200 -> 1200
AA52: SUM | AB52: =SUM(AB23:AB50) -> 0
B53: Dip (deg)
B54: 90
B56: ZTOR (km) | C56: If unknown use 999
B57: 0 | Y57: inferred | Z57: 0
Y58: measured | Z58: 1
B59: ZHYP (km) | C59: If unknown use 999
B60: 8 | C60: =IF($C$14<>0,'ASK14'!$B$21,IF($D$14<>0,BSSA14!$B$15,IF($E$14<>0,'CB14'!$B$18,IF($F$14<>0,'CY14'!$B$18,IF($G$14<>0,'I14'!$B$12,""))))) ->  | Y60: Vs30flag
Y61: =VLOOKUP(B72,Y57:Z58,2) -> 0 | Z61: =B72 -> inferred
B62: Z1.0 (km) | C62: If unknown use 999
B63: 0.048 | C63: =IF($C$14<>0,'ASK14'!$B$6,IF($D$14<>0,BSSA14!$B$6,IF($E$14<>0,'CB14'!$B$6,IF($F$14<>0,'CY14'!$B$6,IF($G$14<>0,'I14'!$B$6,""))))) ->  | Y63: no | Z63: 0
B65: Z2.5 (km) | C65: If unknown use 999
B66: 0.607 | C66: =IF($C$14<>0,'ASK14'!$B$6,IF($D$14<>0,BSSA14!$B$6,IF($E$14<>0,'CB14'!$B$6,IF($F$14<>0,'CY14'!$B$6,IF($G$14<>0,'I14'!$B$6,""))))) ->  | Y66: FAS
Y67: =VLOOKUP(B75,Y63:Z64,2) -> 0 | Z67: =B75 -> no
B68: W (km) | C68: If unknown use 999
B69: 10 | Y69: Global | Z69: 0
Y70: California | Z70: 0
B71: Vs30Flag | Y71: China | Z71: 3
B72: inferred | C72: Choose options for Vs30 from the list | Y72: Japan | Z72: 1
Y73: Italy | Z73: 4
B74: FAS | G74: Definition of Parameters | Y74: New Zealand | Z74: 0
B75: no | C75: Aftershock effect is not applicable. | G75: Damping ratio | H75: = Viscous damping ratio (%) See Sanaz et al. (2012) PEER Report | Y75: Turkey | Z75: 5
G76: PSA | H76: = Pseudo-absolute acceleration response spectrum (g) | Y76: Taiwan | Z76: 0
B77: Region | G77: PGA | H77: = Peak ground acceleration (g) | Y77: TWA | Z77: 2
B78: California | C78: =IF(B78="TWA","Taiwan specific for ASK14","Choose region from the list") -> Choose region from the list | G78: PGV | H78: = Peak ground velocity (cm/s)
G79: Sd | H79: = Relative displacement response spectrum (cm) | Y79: Region
B80: Calculated Variables/Flags | G80: Mw | H80: = Moment magnitude | Y80: =VLOOKUP($B$78,$Y$69:$Z$77,2) -> 0 | Z80: =$B$78 -> California
G81: RRUP | H81: = Closest distance to coseismic rupture (km), used in ASK13, CB13 and CY13. See Figures a, b and c for illustation
B82: DDPP | C82: Always 0 for median calcs. | G82: RJB | H82: = Closest distance to surface projection of coseismic rupture (km). See Figures a, b and c for illustation | Y82: Arithmetic | Z82: 0
B83: 0 | G83: RX | H83: = Horizontal distance from top of rupture measured perpendicular to fault strike (km). See Figures a, b and c for illustation | Y83: Geometric | Z83: 1
G84: Ry0 | H84: = The horizontal distance off the end of the rupture measured parallel to strike (km)
B85: PGAr (g) | G85: VS30 | H85: = The average shear-wave velocity (m/s) over a subsurface depth of 30 m | Y85: Sa value
B86: =IF(D$14<>0,BSSA14!$A$38,IF($E$14<>0,'CB14'!$A$56,"See Comment ->")) -> 0.4409512129 | C86: =IF(B86="See Comment ->","Applied in the macro","") ->  | G86: U | H86: = Unspecified-mechanism factor: 1 for unspecified; 0 otherwise | Y86: =$C$11 -> Geometric | Z86: =VLOOKUP($C$11,Y82:Z83,2) -> 1
G87: FRV | H87: = Reverse-faulting factor: 0 for strike slip, normal, normal-oblique; 1 for reverse, reverse-oblique and thrust
B88: ZBOT (km) (CB14) | C88: Enter for default W calcs | G88: FNM | H88: = Normal-faulting factor: 0 for strike slip, reverse, reverse-oblique, thrust and normal-oblique; 1 for normal | Y88: DSF
B89: 15 | G89: FHW | H89: = Hanging-wall factor: 1 for site on down-dip side of top of rupture; 0 otherwise | Y89: 0.5 | Z89: 0.5%
G90: Dip | H90: = Average dip of rupture plane (degrees) | Y90: 1 | Z90: 1%
B91: SS | G91: ZTOR | H91: = Depth to top of coseismic rupture (km) | Y91: 2 | Z91: 2%
B92: =IF(AND($B$42=0,$B$45=0,$B$48=0),1,0) -> 1 | C92: auto calculated | G92: ZHYP | H92: = Hypocentral depth from the earthquake | Y92: 3 | Z92: 3%
G93: Z1.0 | H93: = Depth to Vs=1 km/sec | Y93: 5 | Z93: 5%
B94: Vs30Flag | G94: Z2.5 | H94: = Depth to Vs=2.5 km/sec | Y94: 7 | Z94: 7%
B95: =IF($B$72="inferred",0,1) -> 0 | C95: =$B$72 -> inferred | G95: W | H95: = Fault rupture width (km) | Y95: 10 | Z95: 10%
G96: Vs30flag | H96: = 1 for measured, 0 for inferred Vs30 | Y96: 15 | Z96: 15%
B97: FAS | G97: FAS | H97: = 0 for mainshock; 1 for aftershock | Y97: 20 | Z97: 20%
B98: =IF($B$75="yes",1,0) -> 0 | C98: Aftershock effect is not applicable. | G98: Region | H98: = Specific regions considered in the models, Click on Region to see codes | Y98: 25 | Z98: 25%
G99: DDPP | H99: = Directivity term, direct point parameter; uses 0 for median predictions | Y99: 30 | Z99: 30%
B100: Region | G100: PGAr (g) | H100: = Peak ground acceleration on rock (g), this specific cell is updated in the cell for BSSA14 and CB14, for others it is taken account for in the macros
B101: =IF(OR($B$78="California",$B$78="Global",$B$78="New Zealand",$B$78="Taiwan"),0,IF($B$78="Japan",1,IF($B$78="China",3,IF($B$78="TWA",2,IF($B$78="Italy",4,IF($B$78="Turkey",5,NA)))))) -> 0 | C101: =$B$78 -> California | G101: ZBOT (km) | H101: = The depth to the bottom of the seismogenic crust | Y101: DSF
G102: ZBOR(km) | H102: = The depth to the bottom of the rupture plane | Y102: =VLOOKUP($C$17,Y89:Z99,2) -> 5% | Z102: =$C$17 -> 5
B103: Option for Sa value | G103: SS | H103: = 1 for strike slip, automatically updated in the cell
B104: =IF($C$11=$Y$86,$Z$86,2) -> 1 | C104: =$D$11 -> Weighted average of the natural logarithm of the spectral values
B106: Input variables with defaults (If entered 999 as input):
D107: Red colored value: The value is used in the code when input is unknown
B108: DEFAULTs | C108: USER defined | D108: ASK14 | E108: BSSA14 | F108: CB14 | G108: CY14 | H108: I14
B109: W (km) | C109: =$B$69 -> 10 | F109: =MIN(SQRT(10^(($B$24-4.07)/0.98)), ($B$89-$F$115)/SIN($B$54*PI()/180)) -> 14.64702143
B110: Z1.0 (km) | C110: =$B$63 -> 0.048 | D110: =ASK14_Z1($B$39,$B$101,$B$63) -> 0.048 | G110: =IF($B$101=1,EXP((-5.23/2)*LN(($B$39^2+412^2)/(1360^2+412^2)))/1000,EXP((-7.15/4)*LN(($B$39^4+571^4)/(1360^4+571^4)))/1000) -> 0.04130664243
B111: dZ1.0 (km) | C111: =BSSA14!$A$41 -> 0.006686793915 | E111: =IF($C$111=0,0,$C$111) -> 0.006686793915
B112: Z2.5 (VS30=1100)(km) | C112: =$B$66 -> 0.607 | F112: =IF($B$101=1,EXP(5.359-1.102*LN(1100)),EXP(7.089-1.144*LN(1100))) -> 0.3975212509
B113: Z2.5 (VS30)(km) | C113: =$B$66 -> 0.607 | F113: =IF($B$101=1,EXP(5.359-1.102*LN($B$39)),EXP(7.089-1.144*LN($B$39))) -> 0.606824117
B114: Zhyp (km) | C114: =$B$60 -> 8 | F114: =IF($F$115 + EXP(MIN(IF($B$24<6.75,-4.317+0.984*$B$24,2.325)+IF($B$54<40,0.0445*($B$54-40),0),LN(0.9*('CB14'!$A$74-$F$115))))>20,"NA",MAX($F$115 + EXP(MIN(IF($B$24<6.75,-4.317+0.984*$B$24,2.325)+IF($B$54<40,0.0445*($B$54-40),0),LN(0.9*('CB14'!$A$74-$F$115)))),5)) -> 10.57965866
B115: Ztor (km) | C115: =$B$57 -> 0 | F115: =IF($B$45*MAX(2.704-1.226*MAX($B$24-5.849,0),0)^2 + (1-$B$45)*MAX(2.673-1.136*MAX($B$24-4.97,0),0)^2>20,"NA",$B$45*MAX(2.704-1.226*MAX($B$24-5.849,0),0)^2 + (1-$B$45)*MAX(2.673-1.136*MAX($B$24-4.97,0),0)^2) -> 0.3529785744 | G115: =IF($B$45=1,MAX(2.704-1.226*MAX($B$24-5.849,0),0)^2,MAX(2.673-1.136*MAX($B$24-4.97,0),0)^2) -> 0.3529785744
B116: ZBOR (km) | C116: - | F116: =$F$115+$F$109*SIN($B$54*PI()/180) -> 15
B118: ACKNOWLEDGEMENTS

Sheet Instructions
A1: Region codes | B1: ASK14 | C1: BSSA14 | D1: CB14 | E1: CY14 | F1: I14
A2: Global
A3: California | B3: Base | C3: Base | D3: Base | E3: Base
A4: China | B4: Linear R term, no Vs30 scaling | C4: Anelastic Attenuation | D4: Anelastic Attenuation | E4: Anelastic Attenuation
A5: Italy | C5: Anelastic Attenuation | D5: Anelastic Attenuation | E5: Sigma
A6: Japan | B6: Linear R term, Vs30 scaling | C6: Anelas. attenuation, basin depth | D6: Anelas. Attenuation, shallow site effects, and basin effects | E6: Basin depth, sigma
A7: New Zealand
A8: Turkey | C8: Anelastic Attenuation
A9: Taiwan | B9: -
A10: TWA (Taiwan) Only applies to ASK14 for coding purposes | B10: Linear R term, Vs30 scaling | C10: - | D10: - | E10: - | F10: -
B12: Horizontal GMPEs Parameters
B13: Parameter | C13: ASK14 | D13: BSSA14 | E13: CB14 | F13: CY14 | G13: I14 | H13: Info
B14: Magnitude | C14: Mw | D14: Mw | E14: Mw | F14: Mw | G14: Mw
B15: Top of Rupture (km) | C15: Ztor | D15: - | E15: Ztor | F15: Ztor | G15: - | H15: See table of default in Main Sheet
B16: Style of faulting | C16: FRV,FNM,SS | D16: U, FRV,FNM,SS | E16: FRV,FNM,SS | F16: FRV,FNM,SS | G16: FRV,FNM,SS | H16: U = 1 if fault is unspecified
B17: Dip (deg) | C17: Dip | D17: - | E17: Dip | F17: Dip | G17: -
B18: Down-dip rupture width (km) | C18: W | D18: - | E18: W | F18: - | G18: -
B19: Closest distance to rupture(km) | C19: Rrup | D19: - | E19: Rrup | F19: Rrup | G19: Rrup
B20: Hor. dist. to surface proj. (km) | C20: RJB | D20: RJB | E20: RJB | F20: RJB | G20: -
B21: Hor. dist. from edge of rupture (km) | C21: Rx | D21: - | E21: Rx | F21: Rx | G21: - | H21: If entered Rx < 0, FHW is 0
B22: Hor. dist. off end of rupture (km) | C22: Ry0 | D22: - | E22: - | F22: - | G22: -
B23: Hanging wall model | C23: FHW | D23: (RJB) | E23: FHW | F23: FHW | G23: -
B24: VS30 (m/s) | C24: VS30 | D24: VS30 | E24: VS30 | F24: VS30 | G24: VS30
B25: VS30 for reference rock (m/s) | C25: 1100 | D25: 760 | E25: 1100 | F25: 1130 | G25: -
B26: Depth to Vs (km) | C26: Z1.0 | D26: Z1.0 (dz1.0) | E26: Z2.5 | F26: Z1.0 | G26: - | H26: See table of default in Main Sheet
B27: Hypocentral depth (km) | C27: - | D27: - | E27: Zhyp | F27: - | G27: - | H27: See table of default in Main Sheet
B28: Directivity term | C28: - | D28: - | E28: (Zhyp) | F28: DDPP | G28: -
B29: Regional variations | C29: Region | D29: Region | E29: Region | F29: Region | G29: - | H29: See the table above
B30: Aftershock factor | C30: FAS | D30: - | E30: - | F30: - | G30: -
A32: Weights: It is standard practice to normalize the weights for the GMPEs to add up to 1, however the program automatically normalizes them internally.
A34: Damping: Different damping values are referenced in the Sheet "DSF".

Sheet Model Applicability
B1: Model Limits for Horizontal GMPEs
B2: GMPE | C2: Parameter | D2: MODEL RANGEs
B3: ASK14 | C3: Mw (All FM) | D3: >= 3.0 - <=8.5
C4: R | D4: >= 0 - <= 300
C5: VS30 | D5: >= 180, <= 1000
B6: BSSA14 | C6: Mw (SS) | D6: >= 3.0 - <=8.5
C7: Mw (RS) | D7: >= 3.0 - <=8.5
C8: Mw (NM) | D8: >= 3.0 - <=7.0
C9: Rjb | D9: >= 0 - <= 400
C10: VS30 | D10: >= 150 - <= 1500
C11: Z1.0 | D11: >= 0 - <= 3
B12: CB14 | C12: Mw (SS) | D12: >= 3.3 - <=8.5
C13: Mw (RS) | D13: >= 3.3 - <=8.0
C14: Mw (NM) | D14: >= 3.3 - <= 7.5
C15: Rrup | D15: >= 0 - <= 300
C16: VS30 | D16: >= 150 - <= 1500
C17: Z2.5 | D17: >= 0 - <= 10
C18: Zhyp | D18: <= 0 - <= 20
C19: Ztor | D19: <= 0 - <= 20
C20: dip | D20: >= 15 - <= 90
B21: CY14 | C21: Mw (SS) | D21: >= 3.5 - <=8.5
C22: Mw (RS) | D22: >= 3.5 - <=8.0
C23: Mw (NM) | D23: >= 3.5 - <= 8.0
C24: Rrup | D24: >= 0 - <= 300
C25: VS30 | D25: >= 180 - <= 1500
C26: Z1.0 | D26: <= 20
C27: Ztor | D27: >= 0 - <= 10
B28: I14 | C28: Mw (All FM) | D28: >= 5
C29: R | D29: <= 150
C30: VS30 | D30: >= 450

Sheet ASK14
A1: ABRAHAMSON - SILVA - KAMAI NGA-WEST2 MODEL COEFFICIENTS [ASK14] (EQS 2014) & Dec13 Revisions (Kamai, pers. comm.):
A3: Input variables | B3: Errors and warnings | E3: ASK_14 (M, Rrup, Rjb, Rx, Frv, Fnm, Fhw, FAS, Ztor, W, dip, Vs30, Z1, Ry0, Region, T)
E4: Visual Basic Calculations
A5: M | C5: GMP | D5: T (s) | E5: Median | F5: s
A6: =Main!$B$24 -> 6.8 | B6: =IF(OR($A$6<3,$A$6>8.5),"! Not Applicable !","") ->  | C6: PSa (g) | D6: 0.01 | E6: =ASK_14($A$6,$A$9,$A$12,$A$15,$A$24,$A$27,$A$30,$A$51,$A$36,$A$45,$A$33,$A$21,$A$48, $A$42,$A$18,$A$54,$D6) -> 0.4110960477 | F6: =ASK14_stdev($A$6,$A$9,$A$12,$A$15,$A$24,$A$27,$A$30,$A$51,$A$36,$A$45,$A$33,$A$21,$A$48,$A$42,$A$18,$A$54,D6) -> 0.6387808701
D7: 0.02 | E7: =ASK_14($A$6,$A$9,$A$12,$A$15,$A$24,$A$27,$A$30,$A$51,$A$36,$A$45,$A$33,$A$21,$A$48, $A$42,$A$18,$A$54,$D7) -> 0.4213594036 | F7: =ASK14_stdev($A$6,$A$9,$A$12,$A$15,$A$24,$A$27,$A$30,$A$51,$A$36,$A$45,$A$33,$A$21,$A$48,$A$42,$A$18,$A$54,D7) -> 0.6387808701
A8: RRUP | D8: 0.03 | E8: 0.4466188746 | F8: 0.637561497
A9: =Main!$B$27 -> 3.16 | B9: =IF(AND($A$9>=0, $A$9<=300),"","! Not Applicable !") ->  | D9: 0.05 | E9: 0.5082413643 | F9: 0.6276788511
D10: 0.075 | E10: 0.6550519452 | F10: 0.6266801058
A11: RJB | D11: 0.1 | E11: 0.7922161527 | F11: 0.6378084488
A12: =Main!$B$30 -> 1 | D12: 0.15 | E12: 0.9857683119 | F12: 0.6717447432
D13: 0.2 | E13: 0.9777626174 | F13: 0.6759186342
A14: RX | D14: 0.25 | E14: 0.8704231467 | F14: 0.6801036686
A15: =Main!$B$33 -> 1 | D15: 0.3 | E15: 0.7510482066 | F15: 0.6885063544
D16: 0.4 | E16: 0.5787067617 | F16: 0.6969512178
A17: Ry0 | D17: 0.5 | E17: 0.4801162015 | F17: 0.7054367442
A18: =Main!$B$36 -> 0 | D18: 0.75 | E18: 0.3263231445 | F18: 0.7182381221
D19: 1 | E19: 0.2418981675 | F19: 0.7311231086
A20: VS30 | D20: 1.5 | E20: 0.152818505 | F20: 0.7397573927
A21: =Main!$B$39 -> 760 | B21: =IF($A$21<180,"! Not Applicable !",IF($A$21>1000,"Out of Range! Use 760 m/s","")) ->  | D21: 2 | E21: 0.1094480781 | F21: 0.748425681
D22: 3 | E22: 0.06662916847 | F22: 0.7397573927
A23: FRV | D23: 4 | E23: 0.04711733589 | F23: 0.7311231086
A24: =Main!$B$45 -> 0 | D24: 5 | E24: 0.03511998471 | F24: 0.7311231086
D25: 7.5 | E25: 0.01874266566 | F25: 0.7311231086
A26: FNM | D26: 10 | E26: 0.01122086992 | F26: 0.7311231086
A27: =Main!$B$48 -> 0
C28: PGA (g) | D28: 0 | E28: =ASK_14($A$6,$A$9,$A$12,$A$15,$A$24,$A$27,$A$30,$A$51,$A$36,$A$45,$A$33,$A$21,$A$48,$A$42,$A$18,$A$54,D28) -> 0.4110960477 | F28: =ASK14_stdev($A$6,$A$9,$A$12,$A$15,$A$24,$A$27,$A$30,$A$51,$A$36,$A$45,$A$33,$A$21,$A$48,$A$42,$A$18,$A$54,D28) -> 0.6387808701
A29: FHW | C29: PGV (cm/s) | D29: -1 | E29: =ASK_14($A$6,$A$9,$A$12,$A$15,$A$24,$A$27,$A$30,$A$51,$A$36,$A$45,$A$33,$A$21,$A$48,$A$42,$A$18,$A$54,D29) -> 35.84385025 | F29: =ASK14_stdev($A$6,$A$9,$A$12,$A$15,$A$24,$A$27,$A$30,$A$51,$A$36,$A$45,$A$33,$A$21,$A$48,$A$42,$A$18,$A$54,D29) -> 0.6360031446
A30: =Main!$B$51 -> 0
A32: d
A33: =Main!$B$54 -> 90 | B33: =IF($A$21<180,"! Not Applicable !", IF(AND($A$21>=180, $A$21<=1000),"","! Not Applicable !")) -> 
A35: ZTOR
A36: =Main!$B$57 -> 0
A38: Z1.0
A39: =Main!$B$63 -> 0.048
A41: Z1.0 (AS calc)
A42: =ASK14_Z1($A$21,$A$54,$A$39) -> 0.048 | B42: <- DEFAULT
A44: W
A45: =Main!$B$69 -> 10
A47: Vs30flag | B47: 1 if measured
A48: =Main!$B$95 -> 0
A50: FAS
A51: =Main!$B$98 -> 0 | B51: Aftershock effect is turned off.
A53: Region
A54: =Main!$B$101 -> 0
A56: Input variables with defaults (If entered 999 as input):
A58: Z1.0 (ASK calc)
A59: =ASK14_Z1($A$21,$A$54,$A$39) -> 0.048

Sheet ASK14_Coeffs
A1: ABRAHAMSON - SILVA - KAMAI NGA-WEST2 MODEL COEFFICIENTS [ASK14] (EQS 2014) & Dec13 Revisions (Kamai, pers. comm.):
A3: Period | B3: VLIN | C3: b | D3: n | E3: M1 | F3: c | G3: c4 | H3: a1 | I3: a2 | J3: a3 | K3: a4 | L3: a5 | M3: a6 | N3: a7 | O3: a8 | P3: a10 | Q3: a11 | R3: a12 | S3: a13 | T3: a14 | U3: a15 | V3: a16 | W3: a17 | X3: a43 | Y3: a44 | Z3: a45 | AA3: a46 | AB3: a25 | AC3: a28 | AD3: a29 | AE3: a31 | AF3: a36 | AG3: a37 | AH3: a38 | AI3: a39 | AJ3: a40 | AK3: a41 | AL3: a42 | AM3: s1 | AN3: s2 | AO3: s3 | AP3: s4 | AQ3: s1 (known vs) | AR3: s2 (known vs) | AS3: s5 (Japan Phi) | AT3: s6 (Japan Phi)
A5: 0.01 | B5: 660 | C5: -1.47 | D5: 1.5 | E5: 6.75 | F5: 2.4 | G5: 4.5 | H5: 0.587 | I5: -0.79 | J5: 0.275 | K5: -0.1 | L5: -0.41 | M5: 2.1541 | N5: 0 | O5: -0.015 | P5: 1.735 | Q5: 0 | R5: -0.1 | S5: 0.6 | T5: -0.3 | U5: 1.1 | V5: 0 | W5: -0.0072 | X5: 0.1 | Y5: 0.05 | Z5: 0 | AA5: -0.05 | AB5: -0.0015 | AC5: 0.0025 | AD5: -0.0034 | AE5: -0.1503 | AF5: 0.265 | AG5: 0.337 | AH5: 0.188 | AI5: 0 | AJ5: 0.088 | AK5: -0.196 | AL5: 0.044 | AM5: 0.754 | AN5: 0.52 | AO5: 0.47 | AP5: 0.36 | AQ5: 0.741 | AR5: 0.501 | AS5: 0.54 | AT5: 0.63
A6: 0.02 | B6: 680 | C6: -1.459 | D6: 1.5 | E6: 6.75 | F6: 2.4 | G6: 4.5 | H6: 0.598 | I6: -0.79 | J6: 0.275 | K6: -0.1 | L6: -0.41 | M6: 2.1461 | N6: 0 | O6: -0.015 | P6: 1.718 | Q6: 0 | R6: -0.1 | S6: 0.6 | T6: -0.3 | U6: 1.1 | V6: 0 | W6: -0.0073 | X6: 0.1 | Y6: 0.05 | Z6: 0 | AA6: -0.05 | AB6: -0.0015 | AC6: 0.0024 | AD6: -0.0033 | AE6: -0.1479 | AF6: 0.255 | AG6: 0.328 | AH6: 0.184 | AI6: 0 | AJ6: 0.088 | AK6: -0.194 | AL6: 0.061 | AM6: 0.76 | AN6: 0.52 | AO6: 0.47 | AP6: 0.36 | AQ6: 0.747 | AR6: 0.501 | AS6: 0.54 | AT6: 0.63
A7: 0.03 | B7: 770 | C7: -1.39 | D7: 1.5 | E7: 6.75 | F7: 2.4 | G7: 4.5 | H7: 0.602 | I7: -0.79 | J7: 0.275 | K7: -0.1 | L7: -0.41 | M7: 2.1566 | N7: 0 | O7: -0.015 | P7: 1.615 | Q7: 0 | R7: -0.1 | S7: 0.6 | T7: -0.3 | U7: 1.1 | V7: 0 | W7: -0.0075 | X7: 0.1 | Y7: 0.05 | Z7: 0 | AA7: -0.05 | AB7: -0.0016 | AC7: 0.0023 | AD7: -0.0034 | AE7: -0.1447 | AF7: 0.249 | AG7: 0.32 | AH7: 0.18 | AI7: 0 | AJ7: 0.093 | AK7: -0.175 | AL7: 0.162 | AM7: 0.781 | AN7: 0.52 | AO7: 0.47 | AP7: 0.36 | AQ7: 0.769 | AR7: 0.501 | AS7: 0.55 | AT7: 0.63
A8: 0.05 | B8: 915 | C8: -1.219 | D8: 1.5 | E8: 6.75 | F8: 2.4 | G8: 4.5 | H8: 0.707 | I8: -0.79 | J8: 0.275 | K8: -0.1 | L8: -0.41 | M8: 2.0845 | N8: 0 | O8: -0.015 | P8: 1.358 | Q8: 0 | R8: -0.1 | S8: 0.6 | T8: -0.3 | U8: 1.1 | V8: 0 | W8: -0.008 | X8: 0.1 | Y8: 0.05 | Z8: 0 | AA8: -0.05 | AB8: -0.002 | AC8: 0.0027 | AD8: -0.0033 | AE8: -0.1326 | AF8: 0.202 | AG8: 0.289 | AH8: 0.167 | AI8: 0 | AJ8: 0.133 | AK8: -0.09 | AL8: 0.451 | AM8: 0.81 | AN8: 0.53 | AO8: 0.47 | AP8: 0.36 | AQ8: 0.798 | AR8: 0.512 | AS8: 0.56 | AT8: 0.65
A9: 0.075 | B9: 960 | C9: -1.152 | D9: 1.5 | E9: 6.75 | F9: 2.4 | G9: 4.5 | H9: 0.973 | I9: -0.79 | J9: 0.275 | K9: -0.1 | L9: -0.41 | M9: 2.0285 | N9: 0 | O9: -0.015 | P9: 1.258 | Q9: 0 | R9: -0.1 | S9: 0.6 | T9: -0.3 | U9: 1.1 | V9: 0 | W9: -0.0089 | X9: 0.1 | Y9: 0.05 | Z9: 0 | AA9: -0.05 | AB9: -0.0027 | AC9: 0.0032 | AD9: -0.0029 | AE9: -0.1353 | AF9: 0.126 | AG9: 0.275 | AH9: 0.173 | AI9: 0 | AJ9: 0.186 | AK9: 0.09 | AL9: 0.506 | AM9: 0.81 | AN9: 0.54 | AO9: 0.47 | AP9: 0.36 | AQ9: 0.798 | AR9: 0.522 | AS9: 0.57 | AT9: 0.69
A10: 0.1 | B10: 910 | C10: -1.23 | D10: 1.5 | E10: 6.75 | F10: 2.4 | G10: 4.5 | H10: 1.169 | I10: -0.79 | J10: 0.275 | K10: -0.1 | L10: -0.41 | M10: 2.0408 | N10: 0 | O10: -0.015 | P10: 1.31 | Q10: 0 | R10: -0.1 | S10: 0.6 | T10: -0.3 | U10: 1.1 | V10: 0 | W10: -0.0095 | X10: 0.1 | Y10: 0.05 | Z10: 0 | AA10: -0.05 | AB10: -0.0033 | AC10: 0.0036 | AD10: -0.0025 | AE10: -0.1128 | AF10: 0.022 | AG10: 0.256 | AH10: 0.189 | AI10: 0 | AJ10: 0.16 | AK10: 0.006 | AL10: 0.335 | AM10: 0.81 | AN10: 0.55 | AO10: 0.47 | AP10: 0.36 | AQ10: 0.795 | AR10: 0.527 | AS10: 0.57 | AT10: 0.7
A11: 0.15 | B11: 740 | C11: -1.587 | D11: 1.5 | E11: 6.75 | F11: 2.4 | G11: 4.5 | H11: 1.442 | I11: -0.79 | J11: 0.275 | K11: -0.1 | L11: -0.41 | M11: 2.1208 | N11: 0 | O11: -0.022 | P11: 1.66 | Q11: 0 | R11: -0.1 | S11: 0.6 | T11: -0.3 | U11: 1.1 | V11: 0 | W11: -0.0095 | X11: 0.1 | Y11: 0.05 | Z11: 0 | AA11: -0.05 | AB11: -0.0035 | AC11: 0.0033 | AD11: -0.0025 | AE11: 0.0383 | AF11: -0.136 | AG11: 0.162 | AH11: 0.108 | AI11: 0 | AJ11: 0.068 | AK11: -0.156 | AL11: -0.084 | AM11: 0.801 | AN11: 0.56 | AO11: 0.47 | AP11: 0.36 | AQ11: 0.773 | AR11: 0.519 | AS11: 0.58 | AT11: 0.7
A12: 0.2 | B12: 590 | C12: -2.012 | D12: 1.5 | E12: 6.75 | F12: 2.4 | G12: 4.5 | H12: 1.637 | I12: -0.79 | J12: 0.275 | K12: -0.1 | L12: -0.41 | M12: 2.2241 | N12: 0 | O12: -0.03 | P12: 2.22 | Q12: 0 | R12: -0.1 | S12: 0.6 | T12: -0.3 | U12: 1.1 | V12: 0 | W12: -0.0086 | X12: 0.1 | Y12: 0.05 | Z12: 0 | AA12: -0.03 | AB12: -0.0033 | AC12: 0.0027 | AD12: -0.0031 | AE12: 0.0775 | AF12: -0.078 | AG12: 0.224 | AH12: 0.115 | AI12: 0 | AJ12: 0.048 | AK12: -0.274 | AL12: -0.178 | AM12: 0.789 | AN12: 0.565 | AO12: 0.47 | AP12: 0.36 | AQ12: 0.753 | AR12: 0.514 | AS12: 0.59 | AT12: 0.7
A13: 0.25 | B13: 495 | C13: -2.411 | D13: 1.5 | E13: 6.75 | F13: 2.4 | G13: 4.5 | H13: 1.701 | I13: -0.79 | J13: 0.275 | K13: -0.1 | L13: -0.41 | M13: 2.3124 | N13: 0 | O13: -0.038 | P13: 2.77 | Q13: 0 | R13: -0.1 | S13: 0.6 | T13: -0.24 | U13: 1.1 | V13: 0 | W13: -0.0074 | X13: 0.1 | Y13: 0.05 | Z13: 0 | AA13: 0 | AB13: -0.0029 | AC13: 0.0024 | AD13: -0.0036 | AE13: 0.0741 | AF13: 0.037 | AG13: 0.248 | AH13: 0.122 | AI13: 0 | AJ13: 0.055 | AK13: -0.248 | AL13: -0.187 | AM13: 0.77 | AN13: 0.57 | AO13: 0.47 | AP13: 0.36 | AQ13: 0.729 | AR13: 0.513 | AS13: 0.61 | AT13: 0.7
A14: 0.3 | B14: 430 | C14: -2.757 | D14: 1.5 | E14: 6.75 | F14: 2.4 | G14: 4.5 | H14: 1.712 | I14: -0.79 | J14: 0.275 | K14: -0.1 | L14: -0.41 | M14: 2.3383 | N14: 0 | O14: -0.045 | P14: 3.25 | Q14: 0 | R14: -0.1 | S14: 0.6 | T14: -0.19 | U14: 1.03 | V14: 0 | W14: -0.0064 | X14: 0.1 | Y14: 0.05 | Z14: 0.03 | AA14: 0.03 | AB14: -0.0027 | AC14: 0.002 | AD14: -0.0039 | AE14: 0.2548 | AF14: -0.091 | AG14: 0.203 | AH14: 0.096 | AI14: 0 | AJ14: 0.073 | AK14: -0.203 | AL14: -0.159 | AM14: 0.74 | AN14: 0.58 | AO14: 0.47 | AP14: 0.36 | AQ14: 0.693 | AR14: 0.519 | AS14: 0.63 | AT14: 0.7
A15: 0.4 | B15: 360 | C15: -3.278 | D15: 1.5 | E15: 6.75 | F15: 2.4 | G15: 4.5 | H15: 1.662 | I15: -0.79 | J15: 0.275 | K15: -0.1 | L15: -0.41 | M15: 2.4688 | N15: 0 | O15: -0.055 | P15: 3.99 | Q15: 0 | R15: -0.1 | S15: 0.58 | T15: -0.11 | U15: 0.92 | V15: 0 | W15: -0.0043 | X15: 0.1 | Y15: 0.07 | Z15: 0.06 | AA15: 0.06 | AB15: -0.0023 | AC15: 0.001 | AD15: -0.0048 | AE15: 0.2136 | AF15: 0.129 | AG15: 0.232 | AH15: 0.123 | AI15: 0 | AJ15: 0.143 | AK15: -0.154 | AL15: -0.023 | AM15: 0.699 | AN15: 0.59 | AO15: 0.47 | AP15: 0.36 | AQ15: 0.644 | AR15: 0.524 | AS15: 0.66 | AT15: 0.7
A16: 0.5 | B16: 340 | C16: -3.599 | D16: 1.5 | E16: 6.75 | F16: 2.4 | G16: 4.5 | H16: 1.571 | I16: -0.79 | J16: 0.275 | K16: -0.1 | L16: -0.41 | M16: 2.5586 | N16: 0 | O16: -0.065 | P16: 4.45 | Q16: 0 | R16: -0.1 | S16: 0.56 | T16: -0.04 | U16: 0.84 | V16: 0 | W16: -0.0032 | X16: 0.1 | Y16: 0.1 | Z16: 0.1 | AA16: 0.09 | AB16: -0.002 | AC16: 0.0008 | AD16: -0.005 | AE16: 0.1542 | AF16: 0.31 | AG16: 0.252 | AH16: 0.134 | AI16: 0 | AJ16: 0.16 | AK16: -0.159 | AL16: -0.029 | AM16: 0.676 | AN16: 0.6 | AO16: 0.47 | AP16: 0.36 | AQ16: 0.616 | AR16: 0.532 | AS16: 0.69 | AT16: 0.7
A17: 0.75 | B17: 330 | C17: -3.8 | D17: 1.5 | E17: 6.75 | F17: 2.4 | G17: 4.5 | H17: 1.299 | I17: -0.79 | J17: 0.275 | K17: -0.1 | L17: -0.41 | M17: 2.6821 | N17: 0 | O17: -0.095 | P17: 4.75 | Q17: 0 | R17: -0.1 | S17: 0.53 | T17: 0.07 | U17: 0.68 | V17: 0 | W17: -0.0025 | X17: 0.14 | Y17: 0.14 | Z17: 0.14 | AA17: 0.13 | AB17: -0.001 | AC17: 0.0007 | AD17: -0.0041 | AE17: 0.0787 | AF17: 0.505 | AG17: 0.208 | AH17: 0.129 | AI17: 0 | AJ17: 0.158 | AK17: -0.141 | AL17: 0.061 | AM17: 0.631 | AN17: 0.615 | AO17: 0.47 | AP17: 0.36 | AQ17: 0.566 | AR17: 0.548 | AS17: 0.73 | AT17: 0.69
A18: 1 | B18: 330 | C18: -3.5 | D18: 1.5 | E18: 6.75 | F18: 2.4 | G18: 4.5 | H18: 1.043 | I18: -0.79 | J18: 0.275 | K18: -0.1 | L18: -0.41 | M18: 2.763 | N18: 0 | O18: -0.11 | P18: 4.3 | Q18: 0 | R18: -0.1 | S18: 0.5 | T18: 0.15 | U18: 0.57 | V18: 0 | W18: -0.0025 | X18: 0.17 | Y18: 0.17 | Z18: 0.17 | AA18: 0.14 | AB18: -0.0005 | AC18: 0.0007 | AD18: -0.0032 | AE18: 0.0476 | AF18: 0.358 | AG18: 0.208 | AH18: 0.152 | AI18: 0 | AJ18: 0.145 | AK18: -0.144 | AL18: 0.062 | AM18: 0.609 | AN18: 0.63 | AO18: 0.47 | AP18: 0.36 | AQ18: 0.541 | AR18: 0.565 | AS18: 0.77 | AT18: 0.68
A19: 1.5 | B19: 330 | C19: -2.4 | D19: 1.5 | E19: 6.75 | F19: 2.4 | G19: 4.5 | H19: 0.665 | I19: -0.79 | J19: 0.275 | K19: -0.1 | L19: -0.41 | M19: 2.8355 | N19: 0 | O19: -0.124 | P19: 2.6 | Q19: 0 | R19: -0.1 | S19: 0.42 | T19: 0.27 | U19: 0.42 | V19: 0 | W19: -0.0022 | X19: 0.22 | Y19: 0.21 | Z19: 0.2 | AA19: 0.16 | AB19: -0.0004 | AC19: 0.0006 | AD19: -0.002 | AE19: -0.0163 | AF19: 0.131 | AG19: 0.108 | AH19: 0.118 | AI19: 0 | AJ19: 0.131 | AK19: -0.126 | AL19: 0.037 | AM19: 0.578 | AN19: 0.64 | AO19: 0.47 | AP19: 0.36 | AQ19: 0.506 | AR19: 0.576 | AS19: 0.8 | AT19: 0.66
A20: 2 | B20: 330 | C20: -1 | D20: 1.5 | E20: 6.75 | F20: 2.4 | G20: 4.5 | H20: 0.329 | I20: -0.79 | J20: 0.275 | K20: -0.1 | L20: -0.41 | M20: 2.8973 | N20: 0 | O20: -0.138 | P20: 0.55 | Q20: 0 | R20: -0.1 | S20: 0.35 | T20: 0.35 | U20: 0.31 | V20: 0 | W20: -0.0019 | X20: 0.26 | Y20: 0.25 | Z20: 0.22 | AA20: 0.16 | AB20: -0.0002 | AC20: 0.0003 | AD20: -0.0017 | AE20: -0.1203 | AF20: 0.123 | AG20: 0.068 | AH20: 0.119 | AI20: 0 | AJ20: 0.083 | AK20: -0.075 | AL20: -0.143 | AM20: 0.555 | AN20: 0.65 | AO20: 0.47 | AP20: 0.36 | AQ20: 0.48 | AR20: 0.587 | AS20: 0.8 | AT20: 0.62
A21: 3 | B21: 330 | C21: 0 | D21: 1.5 | E21: 6.82 | F21: 2.4 | G21: 4.5 | H21: -0.06 | I21: -0.79 | J21: 0.275 | K21: -0.1 | L21: -0.41 | M21: 2.9061 | N21: 0 | O21: -0.172 | P21: -0.95 | Q21: 0 | R21: -0.1 | S21: 0.2 | T21: 0.46 | U21: 0.16 | V21: 0 | W21: -0.0015 | X21: 0.34 | Y21: 0.3 | Z21: 0.23 | AA21: 0.16 | AB21: 0 | AC21: 0 | AD21: -0.002 | AE21: -0.2719 | AF21: 0.109 | AG21: -0.023 | AH21: 0.093 | AI21: 0 | AJ21: 0.07 | AK21: -0.021 | AL21: -0.028 | AM21: 0.548 | AN21: 0.64 | AO21: 0.47 | AP21: 0.36 | AQ21: 0.472 | AR21: 0.576 | AS21: 0.8 | AT21: 0.55
A22: 4 | B22: 330 | C22: 0 | D22: 1.5 | E22: 6.92 | F22: 2.4 | G22: 4.5 | H22: -0.299 | I22: -0.79 | J22: 0.275 | K22: -0.1 | L22: -0.41 | M22: 2.8888 | N22: 0 | O22: -0.197 | P22: -0.95 | Q22: 0 | R22: -0.1 | S22: 0 | T22: 0.54 | U22: 0.05 | V22: 0 | W22: -0.001 | X22: 0.41 | Y22: 0.32 | Z22: 0.23 | AA22: 0.14 | AB22: 0 | AC22: 0 | AD22: -0.002 | AE22: -0.2958 | AF22: 0.135 | AG22: 0.028 | AH22: 0.084 | AI22: 0 | AJ22: 0.101 | AK22: 0.072 | AL22: -0.097 | AM22: 0.527 | AN22: 0.63 | AO22: 0.47 | AP22: 0.36 | AQ22: 0.447 | AR22: 0.565 | AS22: 0.76 | AT22: 0.52
A23: 5 | B23: 330 | C23: 0 | D23: 1.5 | E23: 7 | F23: 2.4 | G23: 4.5 | H23: -0.562 | I23: -0.765 | J23: 0.275 | K23: -0.1 | L23: -0.41 | M23: 2.8984 | N23: 0 | O23: -0.218 | P23: -0.93 | Q23: 0 | R23: -0.1 | S23: 0 | T23: 0.61 | U23: -0.04 | V23: 0 | W23: -0.001 | X23: 0.51 | Y23: 0.32 | Z23: 0.22 | AA23: 0.13 | AB23: 0 | AC23: 0 | AD23: -0.002 | AE23: -0.2718 | AF23: 0.189 | AG23: 0.031 | AH23: 0.058 | AI23: 0 | AJ23: 0.095 | AK23: 0.205 | AL23: 0.015 | AM23: 0.505 | AN23: 0.63 | AO23: 0.47 | AP23: 0.36 | AQ23: 0.425 | AR23: 0.568 | AS23: 0.72 | AT23: 0.5
A24: 6 | B24: 330 | C24: 0 | D24: 1.5 | E24: 7.06 | F24: 2.4 | G24: 4.5 | H24: -0.875 | I24: -0.711 | J24: 0.275 | K24: -0.1 | L24: -0.41 | M24: 2.8955 | N24: 0 | O24: -0.235 | P24: -0.91 | Q24: 0 | R24: -0.2 | S24: 0 | T24: 0.65 | U24: -0.11 | V24: 0 | W24: -0.001 | X24: 0.55 | Y24: 0.32 | Z24: 0.2 | AA24: 0.1 | AB24: 0 | AC24: 0 | AD24: -0.002 | AE24: -0.2517 | AF24: 0.215 | AG24: 0.024 | AH24: 0.065 | AI24: 0 | AJ24: 0.133 | AK24: 0.285 | AL24: 0.104 | AM24: 0.477 | AN24: 0.63 | AO24: 0.47 | AP24: 0.36 | AQ24: 0.395 | AR24: 0.571 | AS24: 0.7 | AT24: 0.5
A25: 7.5 | B25: 330 | C25: 0 | D25: 1.5 | E25: 7.145 | F25: 2.4 | G25: 4.5 | H25: -1.303 | I25: -0.634 | J25: 0.275 | K25: -0.1 | L25: -0.41 | M25: 2.87 | N25: 0 | O25: -0.255 | P25: -0.87 | Q25: 0 | R25: -0.2 | S25: 0 | T25: 0.72 | U25: -0.19 | V25: 0 | W25: -0.001 | X25: 0.49 | Y25: 0.275 | Z25: 0.17 | AA25: 0.09 | AB25: 0 | AC25: 0 | AD25: -0.002 | AE25: -0.14 | AF25: 0.15 | AG25: -0.07 | AH25: 0 | AI25: 0 | AJ25: 0.151 | AK25: 0.329 | AL25: 0.299 | AM25: 0.457 | AN25: 0.63 | AO25: 0.47 | AP25: 0.36 | AQ25: 0.378 | AR25: 0.575 | AS25: 0.67 | AT25: 0.5
A26: 10 | B26: 330 | C26: 0 | D26: 1.5 | E26: 7.25 | F26: 2.4 | G26: 4.5 | H26: -1.928 | I26: -0.529 | J26: 0.275 | K26: -0.1 | L26: -0.41 | M26: 2.8431 | N26: 0 | O26: -0.285 | P26: -0.8 | Q26: 0 | R26: -0.2 | S26: 0 | T26: 0.8 | U26: -0.3 | V26: 0 | W26: -0.001 | X26: 0.42 | Y26: 0.22 | Z26: 0.14 | AA26: 0.08 | AB26: 0 | AC26: 0 | AD26: -0.002 | AE26: -0.0216 | AF26: 0.092 | AG26: -0.159 | AH26: -0.05 | AI26: 0 | AJ26: 0.124 | AK26: 0.301 | AL26: 0.243 | AM26: 0.429 | AN26: 0.63 | AO26: 0.47 | AP26: 0.36 | AQ26: 0.359 | AR26: 0.585 | AS26: 0.64 | AT26: 0.5
A27: 0 | B27: 660 | C27: -1.47 | D27: 1.5 | E27: 6.75 | F27: 2.4 | G27: 4.5 | H27: 0.587 | I27: -0.79 | J27: 0.275 | K27: -0.1 | L27: -0.41 | M27: 2.1541 | N27: 0 | O27: -0.015 | P27: 1.735 | Q27: 0 | R27: -0.1 | S27: 0.6 | T27: -0.3 | U27: 1.1 | V27: 0 | W27: -0.0072 | X27: 0.1 | Y27: 0.05 | Z27: 0 | AA27: -0.05 | AB27: -0.0015 | AC27: 0.0025 | AD27: -0.0034 | AE27: -0.1503 | AF27: 0.265 | AG27: 0.337 | AH27: 0.188 | AI27: 0 | AJ27: 0.088 | AK27: -0.196 | AL27: 0.044 | AM27: 0.754 | AN27: 0.52 | AO27: 0.47 | AP27: 0.36 | AQ27: 0.741 | AR27: 0.501 | AS27: 0.54 | AT27: 0.63
A28: -1 | B28: 330 | C28: -2.02 | D28: 1.5 | E28: 6.75 | F28: 2400 | G28: 4.5 | H28: 5.975 | I28: -0.919 | J28: 0.275 | K28: -0.1 | L28: -0.41 | M28: 2.3657 | N28: 0 | O28: -0.094 | P28: 2.36 | Q28: 0 | R28: -0.1 | S28: 0.25 | T28: 0.22 | U28: 0.3 | V28: 0 | W28: -0.0005 | X28: 0.28 | Y28: 0.15 | Z28: 0.09 | AA28: 0.07 | AB28: -0.0001 | AC28: 0.0005 | AD28: -0.0037 | AE28: -0.1462 | AF28: 0.377 | AG28: 0.212 | AH28: 0.157 | AI28: 0 | AJ28: 0.095 | AK28: -0.038 | AL28: 0.065 | AM28: 0.662 | AN28: 0.51 | AO28: 0.38 | AP28: 0.38 | AQ28: 0.66 | AR28: 0.51 | AS28: 0.58 | AT28: 0.53

Sheet BSSA14
A1: BOORE - STEWART - SEYHAN - ATKINSON - NGA-WEST2 MODEL COEFFICIENTS [BSSA14] (EQS 2013) & sigma updates:
A3: Input variables | B3: Errors and warnings | S3: BSSA_14 (M, Rjb, U, RS, NS, Vs30, Region, Z1, PGAr, T)
S4: Visual Basic Calculations
A5: M | C5: GMP | D5: T (s) | E5: fmag | F5: fdis | G5: flin | H5: fnl | I5: dz1 | J5: fz1 | K5: fsite | L5: Median | M5: t(M) | N5: f(M) | O5: f(M,R) | P5: f(M,RJB,VS30) | Q5: s (M) | R5: s | S5: Median | T5: s
A6: =Main!$B$24 -> 6.8 | B6: =IF(AND($A$21=1,$A$6<3),"! Not Applicable !",IF(AND($A$21=1,$A$6>8.5),"! Not Applicable !",IF(AND($A$33=1,$A$6<3),"! Not Applicable !",IF(AND($A$33=1,$A$6>8.5),"! Not Applicable !",IF(AND($A$24=1,$A$6<3),"! Not Applicable !",IF(AND($A$24=1,$A$6>7),"! Not Applicable !","")))))) ->  | C6: PSa (g) | D6: 0.01 | E6: =IF($A$6<=BSSA14_Coeffs!$I5,(BSSA14_Coeffs!$B5*$A$18+BSSA14_Coeffs!$C5*$A$33+BSSA14_Coeffs!$D5*$A$24+BSSA14_Coeffs!$E5*$A$21+BSSA14_Coeffs!$F5*($A$6-BSSA14_Coeffs!$I5)+BSSA14_Coeffs!$G5*($A$6-BSSA14_Coeffs!I5)^2),(BSSA14_Coeffs!$B5*$A$18+BSSA14_Coeffs!$C5*$A$33+BSSA14_Coeffs!$D5*$A$24+BSSA14_Coeffs!$E5*$A$21+BSSA14_Coeffs!$H5*($A$6-BSSA14_Coeffs!$I5))) -> 2.4222508 | F6: =IF($A$30=0,((BSSA14_Coeffs!$J5+BSSA14_Coeffs!$K5*($A$6-BSSA14_Coeffs!$M5))*LN(SQRT(BSSA14!$A$12^2+(BSSA14_Coeffs!$O5^2))/BSSA14_Coeffs!$N5)+(BSSA14_Coeffs!$L5+BSSA14_Coeffs!$P5)*(SQRT(BSSA14!$A$12^2+(BSSA14_Coeffs!$O5^2))-BSSA14_Coeffs!$N5)),IF($A$30=1,((BSSA14_Coeffs!$J5+BSSA14_Coeffs!$K5*($A$6-BSSA14_Coeffs!$M5))*LN(SQRT(BSSA14!$A$12^2+(BSSA14_Coeffs!$O5^2))/BSSA14_Coeffs!$N5)+(BSSA14_Coeffs!$L5+BSSA14_Coeffs!$Q5)*(SQRT(BSSA14!$A$12^2+(BSSA14_Coeffs!$O5^2))-BSSA14_Coeffs!$N5)),IF($A$30=3,((BSSA14_Coeffs!$J5+BSSA14_Coeffs!$K5*($A$6-BSSA14_Coeffs!$M5))*LN(SQRT(BSSA14!$A$12^2+(BSSA14_Coeffs!$O5^2))/BSSA14_Coeffs!$N5)+(BSSA14_Coeffs!$L5+BSSA14_Coeffs!$R5)*(SQRT(BSSA14!$A$12^2+(BSSA14_Coeffs!$O5^2))-BSSA14_Coeffs!$N5)), ((BSSA14_Coeffs!$J5+BSSA14_Coeffs!$K5*($A$6-BSSA14_Coeffs!$M5))*LN(SQRT(BSSA14!$A$12^2+(BSSA14_Coeffs!$O5^2))/BSSA14_Coeffs!$N5)+(BSSA14_Coeffs!$L5+BSSA14_Coeffs!$P5)*(SQRT(BSSA14!$A$12^2+(BSSA14_Coeffs!$O5^2))-BSSA14_Coeffs!$N5))))) -> -1.088712519 | G6: =IF($A$15<= BSSA14_Coeffs!$T5, BSSA14_Coeffs!$S5 * LN(BSSA14!$A$15/ 760), BSSA14_Coeffs!$S5* LN(BSSA14_Coeffs!$T5/ 760)) -> 0 | H6: =BSSA14_Coeffs!$V5 + (BSSA14_Coeffs!$X5 * ((EXP(BSSA14_Coeffs!$Y5* (MIN($A$15,760) - 360))) - EXP(BSSA14_Coeffs!$Y5* (760 - 360)))) * LN((BSSA14!$A$38 + BSSA14_Coeffs!$W5) / BSSA14_Coeffs!$W5) -> 0 | I6: =IF($A$27=999,0,$A$27-(IF($A$30 = 0, (EXP(-7.15 / 4 * LN(($A$15 ^ 4 + 570.94 ^ 4) / (1360 ^ 4 + 570.94 ^ 4))) / 1000), IF($A$30 = 2, (EXP(-5.23 / 2 * LN(($A$15 ^ 2 + 412.39 ^ 2) / (1360 ^ 2 + 412.39 ^ 2))) / 1000), (EXP(-7.15 / 4 * LN(($A$15 ^ 4 + 570.94 ^ 4) / (1360 ^ 4 + 570.94 ^ 4))) / 1000))))) -> 0.006686793915 | J6: =IF($D6 < 0.65, 0, IF(AND($D6 >= 0.65,$I6 <= (BSSA14_Coeffs!$AA5/ BSSA14_Coeffs!$Z5)), BSSA14_Coeffs!$Z5* BSSA14!$I6, IF(AND($D6>= 0.65,$I6 > (BSSA14_Coeffs!$AA5 /BSSA14_Coeffs!$Z5)), BSSA14_Coeffs!$AA5))) -> 0 | K6: =SUM(G6:H6,J6) -> 0 | L6: =EXP(SUM($E6,$F6,$K6,I6)) -> 3.819903172 | M6: =IF($A$6<=4.5,BSSA14_Coeffs!$AJ5,IF(AND($A$6>4.5,$A$6<5.5),BSSA14_Coeffs!$AJ5+(BSSA14_Coeffs!$AK5-BSSA14_Coeffs!$AJ5)*(BSSA14!$A$6-4.5),BSSA14_Coeffs!$AK5)) -> 0.345 | N6: =IF($A$6<=4.5,BSSA14_Coeffs!$AH5,IF(AND($A$6>4.5,$A$6<5.5),BSSA14_Coeffs!$AH5+(BSSA14_Coeffs!$AI5-BSSA14_Coeffs!$AH5)*(BSSA14!$A$6-4.5),BSSA14_Coeffs!$AI5)) -> 0.499 | O6: =IF($A$12<=BSSA14_Coeffs!$AB5,BSSA14!$N6,IF(AND($A$12>BSSA14_Coeffs!$AB5,$A$12<=BSSA14_Coeffs!$AC5),$N6+BSSA14_Coeffs!$AD5*(LN($A$12/BSSA14_Coeffs!$AB5)/(LN(BSSA14_Coeffs!$AC5/BSSA14_Coeffs!$AB5))),$N6+BSSA14_Coeffs!$AD5)) -> 0.499 | P6: =IF($A$15>=BSSA14_Coeffs!$AG5,$O6,IF(AND($A$15>=BSSA14_Coeffs!$AF5,$A$15<=BSSA14_Coeffs!$AG5),$O6-BSSA14_Coeffs!$AE5*(LN(BSSA14_Coeffs!$AG5/$A$15)/LN(BSSA14_Coeffs!$AG5/BSSA14_Coeffs!$AF5)),$O6-BSSA14_Coeffs!$AE5)) -> 0.499 | Q6: =SQRT($M6^2+$N6^2) -> 0.606651465 | R6: =SQRT($M6^2+$P6^2) -> 0.606651465 | S6: =BSSA_14($A$6,$A$12,$A$18,$A$21,$A$24,$A$15,$A$30,$A$27,$A$38,$D6) -> 0.4436219607 | T6: =BSSA14_stdev($A$6,$A$12,$A$15,D6) -> 0.606651465
D7: 0.02 | E7: =IF($A$6<=BSSA14_Coeffs!$I6,(BSSA14_Coeffs!$B6*$A$18+BSSA14_Coeffs!$C6*$A$33+BSSA14_Coeffs!$D6*$A$24+BSSA14_Coeffs!$E6*$A$21+BSSA14_Coeffs!$F6*($A$6-BSSA14_Coeffs!$I6)+BSSA14_Coeffs!$G6*($A$6-BSSA14_Coeffs!I6)^2),(BSSA14_Coeffs!$B6*$A$18+BSSA14_Coeffs!$C6*$A$33+BSSA14_Coeffs!$D6*$A$24+BSSA14_Coeffs!$E6*$A$21+BSSA14_Coeffs!$H6*($A$6-BSSA14_Coeffs!$I6))) -> 2.47684572 | F7: =IF($A$30=0,((BSSA14_Coeffs!$J6+BSSA14_Coeffs!$K6*($A$6-BSSA14_Coeffs!$M6))*LN(SQRT(BSSA14!$A$12^2+(BSSA14_Coeffs!$O6^2))/BSSA14_Coeffs!$N6)+(BSSA14_Coeffs!$L6+BSSA14_Coeffs!$P6)*(SQRT(BSSA14!$A$12^2+(BSSA14_Coeffs!$O6^2))-BSSA14_Coeffs!$N6)),IF($A$30=1,((BSSA14_Coeffs!$J6+BSSA14_Coeffs!$K6*($A$6-BSSA14_Coeffs!$M6))*LN(SQRT(BSSA14!$A$12^2+(BSSA14_Coeffs!$O6^2))/BSSA14_Coeffs!$N6)+(BSSA14_Coeffs!$L6+BSSA14_Coeffs!$Q6)*(SQRT(BSSA14!$A$12^2+(BSSA14_Coeffs!$O6^2))-BSSA14_Coeffs!$N6)),IF($A$30=3,((BSSA14_Coeffs!$J6+BSSA14_Coeffs!$K6*($A$6-BSSA14_Coeffs!$M6))*LN(SQRT(BSSA14!$A$12^2+(BSSA14_Coeffs!$O6^2))/BSSA14_Coeffs!$N6)+(BSSA14_Coeffs!$L6+BSSA14_Coeffs!$R6)*(SQRT(BSSA14!$A$12^2+(BSSA14_Coeffs!$O6^2))-BSSA14_Coeffs!$N6)), ((BSSA14_Coeffs!$J6+BSSA14_Coeffs!$K6*($A$6-BSSA14_Coeffs!$M6))*LN(SQRT(BSSA14!$A$12^2+(BSSA14_Coeffs!$O6^2))/BSSA14_Coeffs!$N6)+(BSSA14_Coeffs!$L6+BSSA14_Coeffs!$P6)*(SQRT(BSSA14!$A$12^2+(BSSA14_Coeffs!$O6^2))-BSSA14_Coeffs!$N6))))) -> -1.103873471 | G7: =IF($A$15<= BSSA14_Coeffs!$T6, BSSA14_Coeffs!$S6 * LN(BSSA14!$A$15/ 760), BSSA14_Coeffs!$S6* LN(BSSA14_Coeffs!$T6/ 760)) -> 0 | H7: =BSSA14_Coeffs!$V6 + (BSSA14_Coeffs!$X6 * ((EXP(BSSA14_Coeffs!$Y6* (MIN($A$15,760) - 360))) - EXP(BSSA14_Coeffs!$Y6* (760 - 360)))) * LN((BSSA14!$A$38 + BSSA14_Coeffs!$W6) / BSSA14_Coeffs!$W6) -> 0 | I7: 0.006686793915 | J7: =IF($D7 < 0.65, 0, IF(AND($D7 >= 0.65,$I7 <= (BSSA14_Coeffs!$AA6/ BSSA14_Coeffs!$Z6)), BSSA14_Coeffs!$Z6* BSSA14!$I7, IF(AND($D7>= 0.65,$I7 > (BSSA14_Coeffs!$AA6 /BSSA14_Coeffs!$Z6)), BSSA14_Coeffs!$AA6))) -> 0 | K7: =SUM(G7:H7,J7) -> 0 | L7: =EXP(SUM($E7,$F7,$K7,I7)) -> 3.973546589 | M7: =IF($A$6<=4.5,BSSA14_Coeffs!$AJ6,IF(AND($A$6>4.5,$A$6<5.5),BSSA14_Coeffs!$AJ6+(BSSA14_Coeffs!$AK6-BSSA14_Coeffs!$AJ6)*(BSSA14!$A$6-4.5),BSSA14_Coeffs!$AK6)) -> 0.346 | N7: =IF($A$6<=4.5,BSSA14_Coeffs!$AH6,IF(AND($A$6>4.5,$A$6<5.5),BSSA14_Coeffs!$AH6+(BSSA14_Coeffs!$AI6-BSSA14_Coeffs!$AH6)*(BSSA14!$A$6-4.5),BSSA14_Coeffs!$AI6)) -> 0.502 | O7: =IF($A$12<=BSSA14_Coeffs!$AB6,BSSA14!$N7,IF(AND($A$12>BSSA14_Coeffs!$AB6,$A$12<=BSSA14_Coeffs!$AC6),$N7+BSSA14_Coeffs!$AD6*(LN($A$12/BSSA14_Coeffs!$AB6)/(LN(BSSA14_Coeffs!$AC6/BSSA14_Coeffs!$AB6))),$N7+BSSA14_Coeffs!$AD6)) -> 0.502 | P7: =IF($A$15>=BSSA14_Coeffs!$AG6,$O7,IF(AND($A$15>=BSSA14_Coeffs!$AF6,$A$15<=BSSA14_Coeffs!$AG6),$O7-BSSA14_Coeffs!$AE6*(LN(BSSA14_Coeffs!$AG6/$A$15)/LN(BSSA14_Coeffs!$AG6/BSSA14_Coeffs!$AF6)),$O7-BSSA14_Coeffs!$AE6)) -> 0.502 | Q7: =SQRT($M7^2+$N7^2) -> 0.609688445 | R7: =SQRT($M7^2+$P7^2) -> 0.609688445 | S7: =BSSA_14($A$6,$A$12,$A$18,$A$21,$A$24,$A$15,$A$30,$A$27,$A$38,$D7) -> 0.4513209866 | T7: =BSSA14_stdev($A$6,$A$12,$A$15,D7) -> 0.609688445
A8: RRUP (km) | D8: 0.03 | E8: =IF($A$6<=BSSA14_Coeffs!$I7,(BSSA14_Coeffs!$B7*$A$18+BSSA14_Coeffs!$C7*$A$33+BSSA14_Coeffs!$D7*$A$24+BSSA14_Coeffs!$E7*$A$21+BSSA14_Coeffs!$F7*($A$6-BSSA14_Coeffs!$I7)+BSSA14_Coeffs!$G7*($A$6-BSSA14_Coeffs!I7)^2),(BSSA14_Coeffs!$B7*$A$18+BSSA14_Coeffs!$C7*$A$33+BSSA14_Coeffs!$D7*$A$24+BSSA14_Coeffs!$E7*$A$21+BSSA14_Coeffs!$H7*($A$6-BSSA14_Coeffs!$I7))) -> 2.56697036 | F8: =IF($A$30=0,((BSSA14_Coeffs!$J7+BSSA14_Coeffs!$K7*($A$6-BSSA14_Coeffs!$M7))*LN(SQRT(BSSA14!$A$12^2+(BSSA14_Coeffs!$O7^2))/BSSA14_Coeffs!$N7)+(BSSA14_Coeffs!$L7+BSSA14_Coeffs!$P7)*(SQRT(BSSA14!$A$12^2+(BSSA14_Coeffs!$O7^2))-BSSA14_Coeffs!$N7)),IF($A$30=1,((BSSA14_Coeffs!$J7+BSSA14_Coeffs!$K7*($A$6-BSSA14_Coeffs!$M7))*LN(SQRT(BSSA14!$A$12^2+(BSSA14_Coeffs!$O7^2))/BSSA14_Coeffs!$N7)+(BSSA14_Coeffs!$L7+BSSA14_Coeffs!$Q7)*(SQRT(BSSA14!$A$12^2+(BSSA14_Coeffs!$O7^2))-BSSA14_Coeffs!$N7)),IF($A$30=3,((BSSA14_Coeffs!$J7+BSSA14_Coeffs!$K7*($A$6-BSSA14_Coeffs!$M7))*LN(SQRT(BSSA14!$A$12^2+(BSSA14_Coeffs!$O7^2))/BSSA14_Coeffs!$N7)+(BSSA14_Coeffs!$L7+BSSA14_Coeffs!$R7)*(SQRT(BSSA14!$A$12^2+(BSSA14_Coeffs!$O7^2))-BSSA14_Coeffs!$N7)), ((BSSA14_Coeffs!$J7+BSSA14_Coeffs!$K7*($A$6-BSSA14_Coeffs!$M7))*LN(SQRT(BSSA14!$A$12^2+(BSSA14_Coeffs!$O7^2))/BSSA14_Coeffs!$N7)+(BSSA14_Coeffs!$L7+BSSA14_Coeffs!$P7)*(SQRT(BSSA14!$A$12^2+(BSSA14_Coeffs!$O7^2))-BSSA14_Coeffs!$N7))))) -> -1.111579354 | G8: =IF($A$15<= BSSA14_Coeffs!$T7, BSSA14_Coeffs!$S7 * LN(BSSA14!$A$15/ 760), BSSA14_Coeffs!$S7* LN(BSSA14_Coeffs!$T7/ 760)) -> 0 | H8: =BSSA14_Coeffs!$V7 + (BSSA14_Coeffs!$X7 * ((EXP(BSSA14_Coeffs!$Y7* (MIN($A$15,760) - 360))) - EXP(BSSA14_Coeffs!$Y7* (760 - 360)))) * LN((BSSA14!$A$38 + BSSA14_Coeffs!$W7) / BSSA14_Coeffs!$W7) -> 0 | I8: 0.006686793915 | J8: =IF($D8 < 0.65, 0, IF(AND($D8 >= 0.65,$I8 <= (BSSA14_Coeffs!$AA7/ BSSA14_Coeffs!$Z7)), BSSA14_Coeffs!$Z7* BSSA14!$I8, IF(AND($D8>= 0.65,$I8 > (BSSA14_Coeffs!$AA7 /BSSA14_Coeffs!$Z7)), BSSA14_Coeffs!$AA7))) -> 0 | K8: 0 | L8: 4.314915754 | M8: =IF($A$6<=4.5,BSSA14_Coeffs!$AJ7,IF(AND($A$6>4.5,$A$6<5.5),BSSA14_Coeffs!$AJ7+(BSSA14_Coeffs!$AK7-BSSA14_Coeffs!$AJ7)*(BSSA14!$A$6-4.5),BSSA14_Coeffs!$AK7)) -> 0.364 | N8: =IF($A$6<=4.5,BSSA14_Coeffs!$AH7,IF(AND($A$6>4.5,$A$6<5.5),BSSA14_Coeffs!$AH7+(BSSA14_Coeffs!$AI7-BSSA14_Coeffs!$AH7)*(BSSA14!$A$6-4.5),BSSA14_Coeffs!$AI7)) -> 0.514 | O8: =IF($A$12<=BSSA14_Coeffs!$AB7,BSSA14!$N8,IF(AND($A$12>BSSA14_Coeffs!$AB7,$A$12<=BSSA14_Coeffs!$AC7),$N8+BSSA14_Coeffs!$AD7*(LN($A$12/BSSA14_Coeffs!$AB7)/(LN(BSSA14_Coeffs!$AC7/BSSA14_Coeffs!$AB7))),$N8+BSSA14_Coeffs!$AD7)) -> 0.514 | P8: =IF($A$15>=BSSA14_Coeffs!$AG7,$O8,IF(AND($A$15>=BSSA14_Coeffs!$AF7,$A$15<=BSSA14_Coeffs!$AG7),$O8-BSSA14_Coeffs!$AE7*(LN(BSSA14_Coeffs!$AG7/$A$15)/LN(BSSA14_Coeffs!$AG7/BSSA14_Coeffs!$AF7)),$O8-BSSA14_Coeffs!$AE7)) -> 0.514 | Q8: 0.629834899 | R8: 0.629834899 | S8: 0.4870690627 | T8: 0.629834899
A9: =Main!$B$27 -> 3.16 | D9: 0.05 | E9: =IF($A$6<=BSSA14_Coeffs!$I8,(BSSA14_Coeffs!$B8*$A$18+BSSA14_Coeffs!$C8*$A$33+BSSA14_Coeffs!$D8*$A$24+BSSA14_Coeffs!$E8*$A$21+BSSA14_Coeffs!$F8*($A$6-BSSA14_Coeffs!$I8)+BSSA14_Coeffs!$G8*($A$6-BSSA14_Coeffs!I8)^2),(BSSA14_Coeffs!$B8*$A$18+BSSA14_Coeffs!$C8*$A$33+BSSA14_Coeffs!$D8*$A$24+BSSA14_Coeffs!$E8*$A$21+BSSA14_Coeffs!$H8*($A$6-BSSA14_Coeffs!$I8))) -> 2.72950333 | F9: =IF($A$30=0,((BSSA14_Coeffs!$J8+BSSA14_Coeffs!$K8*($A$6-BSSA14_Coeffs!$M8))*LN(SQRT(BSSA14!$A$12^2+(BSSA14_Coeffs!$O8^2))/BSSA14_Coeffs!$N8)+(BSSA14_Coeffs!$L8+BSSA14_Coeffs!$P8)*(SQRT(BSSA14!$A$12^2+(BSSA14_Coeffs!$O8^2))-BSSA14_Coeffs!$N8)),IF($A$30=1,((BSSA14_Coeffs!$J8+BSSA14_Coeffs!$K8*($A$6-BSSA14_Coeffs!$M8))*LN(SQRT(BSSA14!$A$12^2+(BSSA14_Coeffs!$O8^2))/BSSA14_Coeffs!$N8)+(BSSA14_Coeffs!$L8+BSSA14_Coeffs!$Q8)*(SQRT(BSSA14!$A$12^2+(BSSA14_Coeffs!$O8^2))-BSSA14_Coeffs!$N8)),IF($A$30=3,((BSSA14_Coeffs!$J8+BSSA14_Coeffs!$K8*($A$6-BSSA14_Coeffs!$M8))*LN(SQRT(BSSA14!$A$12^2+(BSSA14_Coeffs!$O8^2))/BSSA14_Coeffs!$N8)+(BSSA14_Coeffs!$L8+BSSA14_Coeffs!$R8)*(SQRT(BSSA14!$A$12^2+(BSSA14_Coeffs!$O8^2))-BSSA14_Coeffs!$N8)), ((BSSA14_Coeffs!$J8+BSSA14_Coeffs!$K8*($A$6-BSSA14_Coeffs!$M8))*LN(SQRT(BSSA14!$A$12^2+(BSSA14_Coeffs!$O8^2))/BSSA14_Coeffs!$N8)+(BSSA14_Coeffs!$L8+BSSA14_Coeffs!$P8)*(SQRT(BSSA14!$A$12^2+(BSSA14_Coeffs!$O8^2))-BSSA14_Coeffs!$N8))))) -> -1.03535958 | G9: =IF($A$15<= BSSA14_Coeffs!$T8, BSSA14_Coeffs!$S8 * LN(BSSA14!$A$15/ 760), BSSA14_Coeffs!$S8* LN(BSSA14_Coeffs!$T8/ 760)) -> 0 | H9: =BSSA14_Coeffs!$V8 + (BSSA14_Coeffs!$X8 * ((EXP(BSSA14_Coeffs!$Y8* (MIN($A$15,760) - 360))) - EXP(BSSA14_Coeffs!$Y8* (760 - 360)))) * LN((BSSA14!$A$38 + BSSA14_Coeffs!$W8) / BSSA14_Coeffs!$W8) -> 0 | I9: 0.006686793915 | J9: =IF($D9 < 0.65, 0, IF(AND($D9 >= 0.65,$I9 <= (BSSA14_Coeffs!$AA8/ BSSA14_Coeffs!$Z8)), BSSA14_Coeffs!$Z8* BSSA14!$I9, IF(AND($D9>= 0.65,$I9 > (BSSA14_Coeffs!$AA8 /BSSA14_Coeffs!$Z8)), BSSA14_Coeffs!$AA8))) -> 0 | K9: 0 | L9: 5.478495635 | M9: =IF($A$6<=4.5,BSSA14_Coeffs!$AJ8,IF(AND($A$6>4.5,$A$6<5.5),BSSA14_Coeffs!$AJ8+(BSSA14_Coeffs!$AK8-BSSA14_Coeffs!$AJ8)*(BSSA14!$A$6-4.5),BSSA14_Coeffs!$AK8)) -> 0.426 | N9: =IF($A$6<=4.5,BSSA14_Coeffs!$AH8,IF(AND($A$6>4.5,$A$6<5.5),BSSA14_Coeffs!$AH8+(BSSA14_Coeffs!$AI8-BSSA14_Coeffs!$AH8)*(BSSA14!$A$6-4.5),BSSA14_Coeffs!$AI8)) -> 0.532 | O9: =IF($A$12<=BSSA14_Coeffs!$AB8,BSSA14!$N9,IF(AND($A$12>BSSA14_Coeffs!$AB8,$A$12<=BSSA14_Coeffs!$AC8),$N9+BSSA14_Coeffs!$AD8*(LN($A$12/BSSA14_Coeffs!$AB8)/(LN(BSSA14_Coeffs!$AC8/BSSA14_Coeffs!$AB8))),$N9+BSSA14_Coeffs!$AD8)) -> 0.532 | P9: =IF($A$15>=BSSA14_Coeffs!$AG8,$O9,IF(AND($A$15>=BSSA14_Coeffs!$AF8,$A$15<=BSSA14_Coeffs!$AG8),$O9-BSSA14_Coeffs!$AE8*(LN(BSSA14_Coeffs!$AG8/$A$15)/LN(BSSA14_Coeffs!$AG8/BSSA14_Coeffs!$AF8)),$O9-BSSA14_Coeffs!$AE8)) -> 0.532 | Q9: 0.6815423685 | R9: 0.6815423685 | S9: 0.6241431189 | T9: 0.6815423685
D10: 0.075 | E10: =IF($A$6<=BSSA14_Coeffs!$I9,(BSSA14_Coeffs!$B9*$A$18+BSSA14_Coeffs!$C9*$A$33+BSSA14_Coeffs!$D9*$A$24+BSSA14_Coeffs!$E9*$A$21+BSSA14_Coeffs!$F9*($A$6-BSSA14_Coeffs!$I9)+BSSA14_Coeffs!$G9*($A$6-BSSA14_Coeffs!I9)^2),(BSSA14_Coeffs!$B9*$A$18+BSSA14_Coeffs!$C9*$A$33+BSSA14_Coeffs!$D9*$A$24+BSSA14_Coeffs!$E9*$A$21+BSSA14_Coeffs!$H9*($A$6-BSSA14_Coeffs!$I9))) -> 2.97461781 | F10: =IF($A$30=0,((BSSA14_Coeffs!$J9+BSSA14_Coeffs!$K9*($A$6-BSSA14_Coeffs!$M9))*LN(SQRT(BSSA14!$A$12^2+(BSSA14_Coeffs!$O9^2))/BSSA14_Coeffs!$N9)+(BSSA14_Coeffs!$L9+BSSA14_Coeffs!$P9)*(SQRT(BSSA14!$A$12^2+(BSSA14_Coeffs!$O9^2))-BSSA14_Coeffs!$N9)),IF($A$30=1,((BSSA14_Coeffs!$J9+BSSA14_Coeffs!$K9*($A$6-BSSA14_Coeffs!$M9))*LN(SQRT(BSSA14!$A$12^2+(BSSA14_Coeffs!$O9^2))/BSSA14_Coeffs!$N9)+(BSSA14_Coeffs!$L9+BSSA14_Coeffs!$Q9)*(SQRT(BSSA14!$A$12^2+(BSSA14_Coeffs!$O9^2))-BSSA14_Coeffs!$N9)),IF($A$30=3,((BSSA14_Coeffs!$J9+BSSA14_Coeffs!$K9*($A$6-BSSA14_Coeffs!$M9))*LN(SQRT(BSSA14!$A$12^2+(BSSA14_Coeffs!$O9^2))/BSSA14_Coeffs!$N9)+(BSSA14_Coeffs!$L9+BSSA14_Coeffs!$R9)*(SQRT(BSSA14!$A$12^2+(BSSA14_Coeffs!$O9^2))-BSSA14_Coeffs!$N9)), ((BSSA14_Coeffs!$J9+BSSA14_Coeffs!$K9*($A$6-BSSA14_Coeffs!$M9))*LN(SQRT(BSSA14!$A$12^2+(BSSA14_Coeffs!$O9^2))/BSSA14_Coeffs!$N9)+(BSSA14_Coeffs!$L9+BSSA14_Coeffs!$P9)*(SQRT(BSSA14!$A$12^2+(BSSA14_Coeffs!$O9^2))-BSSA14_Coeffs!$N9))))) -> -0.9801950133 | G10: =IF($A$15<= BSSA14_Coeffs!$T9, BSSA14_Coeffs!$S9 * LN(BSSA14!$A$15/ 760), BSSA14_Coeffs!$S9* LN(BSSA14_Coeffs!$T9/ 760)) -> 0 | H10: =BSSA14_Coeffs!$V9 + (BSSA14_Coeffs!$X9 * ((EXP(BSSA14_Coeffs!$Y9* (MIN($A$15,760) - 360))) - EXP(BSSA14_Coeffs!$Y9* (760 - 360)))) * LN((BSSA14!$A$38 + BSSA14_Coeffs!$W9) / BSSA14_Coeffs!$W9) -> 0 | I10: 0.006686793915 | J10: =IF($D10 < 0.65, 0, IF(AND($D10 >= 0.65,$I10 <= (BSSA14_Coeffs!$AA9/ BSSA14_Coeffs!$Z9)), BSSA14_Coeffs!$Z9* BSSA14!$I10, IF(AND($D10>= 0.65,$I10 > (BSSA14_Coeffs!$AA9 /BSSA14_Coeffs!$Z9)), BSSA14_Coeffs!$AA9))) -> 0 | K10: 0 | L10: 7.397259476 | M10: =IF($A$6<=4.5,BSSA14_Coeffs!$AJ9,IF(AND($A$6>4.5,$A$6<5.5),BSSA14_Coeffs!$AJ9+(BSSA14_Coeffs!$AK9-BSSA14_Coeffs!$AJ9)*(BSSA14!$A$6-4.5),BSSA14_Coeffs!$AK9)) -> 0.466 | N10: =IF($A$6<=4.5,BSSA14_Coeffs!$AH9,IF(AND($A$6>4.5,$A$6<5.5),BSSA14_Coeffs!$AH9+(BSSA14_Coeffs!$AI9-BSSA14_Coeffs!$AH9)*(BSSA14!$A$6-4.5),BSSA14_Coeffs!$AI9)) -> 0.542 | O10: =IF($A$12<=BSSA14_Coeffs!$AB9,BSSA14!$N10,IF(AND($A$12>BSSA14_Coeffs!$AB9,$A$12<=BSSA14_Coeffs!$AC9),$N10+BSSA14_Coeffs!$AD9*(LN($A$12/BSSA14_Coeffs!$AB9)/(LN(BSSA14_Coeffs!$AC9/BSSA14_Coeffs!$AB9))),$N10+BSSA14_Coeffs!$AD9)) -> 0.542 | P10: =IF($A$15>=BSSA14_Coeffs!$AG9,$O10,IF(AND($A$15>=BSSA14_Coeffs!$AF9,$A$15<=BSSA14_Coeffs!$AG9),$O10-BSSA14_Coeffs!$AE9*(LN(BSSA14_Coeffs!$AG9/$A$15)/LN(BSSA14_Coeffs!$AG9/BSSA14_Coeffs!$AF9)),$O10-BSSA14_Coeffs!$AE9)) -> 0.542 | Q10: 0.7147866815 | R10: 0.7147866815 | S10: 0.7960127996 | T10: 0.7147866815
A11: RJB (km) | D11: 0.1 | E11: =IF($A$6<=BSSA14_Coeffs!$I10,(BSSA14_Coeffs!$B10*$A$18+BSSA14_Coeffs!$C10*$A$33+BSSA14_Coeffs!$D10*$A$24+BSSA14_Coeffs!$E10*$A$21+BSSA14_Coeffs!$F10*($A$6-BSSA14_Coeffs!$I10)+BSSA14_Coeffs!$G10*($A$6-BSSA14_Coeffs!I10)^2),(BSSA14_Coeffs!$B10*$A$18+BSSA14_Coeffs!$C10*$A$33+BSSA14_Coeffs!$D10*$A$24+BSSA14_Coeffs!$E10*$A$21+BSSA14_Coeffs!$H10*($A$6-BSSA14_Coeffs!$I10))) -> 3.055502736 | F11: =IF($A$30=0,((BSSA14_Coeffs!$J10+BSSA14_Coeffs!$K10*($A$6-BSSA14_Coeffs!$M10))*LN(SQRT(BSSA14!$A$12^2+(BSSA14_Coeffs!$O10^2))/BSSA14_Coeffs!$N10)+(BSSA14_Coeffs!$L10+BSSA14_Coeffs!$P10)*(SQRT(BSSA14!$A$12^2+(BSSA14_Coeffs!$O10^2))-BSSA14_Coeffs!$N10)),IF($A$30=1,((BSSA14_Coeffs!$J10+BSSA14_Coeffs!$K10*($A$6-BSSA14_Coeffs!$M10))*LN(SQRT(BSSA14!$A$12^2+(BSSA14_Coeffs!$O10^2))/BSSA14_Coeffs!$N10)+(BSSA14_Coeffs!$L10+BSSA14_Coeffs!$Q10)*(SQRT(BSSA14!$A$12^2+(BSSA14_Coeffs!$O10^2))-BSSA14_Coeffs!$N10)),IF($A$30=3,((BSSA14_Coeffs!$J10+BSSA14_Coeffs!$K10*($A$6-BSSA14_Coeffs!$M10))*LN(SQRT(BSSA14!$A$12^2+(BSSA14_Coeffs!$O10^2))/BSSA14_Coeffs!$N10)+(BSSA14_Coeffs!$L10+BSSA14_Coeffs!$R10)*(SQRT(BSSA14!$A$12^2+(BSSA14_Coeffs!$O10^2))-BSSA14_Coeffs!$N10)), ((BSSA14_Coeffs!$J10+BSSA14_Coeffs!$K10*($A$6-BSSA14_Coeffs!$M10))*LN(SQRT(BSSA14!$A$12^2+(BSSA14_Coeffs!$O10^2))/BSSA14_Coeffs!$N10)+(BSSA14_Coeffs!$L10+BSSA14_Coeffs!$P10)*(SQRT(BSSA14!$A$12^2+(BSSA14_Coeffs!$O10^2))-BSSA14_Coeffs!$N10))))) -> -1.001796588 | G11: =IF($A$15<= BSSA14_Coeffs!$T10, BSSA14_Coeffs!$S10 * LN(BSSA14!$A$15/ 760), BSSA14_Coeffs!$S10* LN(BSSA14_Coeffs!$T10/ 760)) -> 0 | H11: =BSSA14_Coeffs!$V10 + (BSSA14_Coeffs!$X10 * ((EXP(BSSA14_Coeffs!$Y10* (MIN($A$15,760) - 360))) - EXP(BSSA14_Coeffs!$Y10* (760 - 360)))) * LN((BSSA14!$A$38 + BSSA14_Coeffs!$W10) / BSSA14_Coeffs!$W10) -> 0 | I11: 0.006686793915 | J11: =IF($D11 < 0.65, 0, IF(AND($D11 >= 0.65,$I11 <= (BSSA14_Coeffs!$AA10/ BSSA14_Coeffs!$Z10)), BSSA14_Coeffs!$Z10* BSSA14!$I11, IF(AND($D11>= 0.65,$I11 > (BSSA14_Coeffs!$AA10 /BSSA14_Coeffs!$Z10)), BSSA14_Coeffs!$AA10))) -> 0 | K11: 0 | L11: 7.849053423 | M11: =IF($A$6<=4.5,BSSA14_Coeffs!$AJ10,IF(AND($A$6>4.5,$A$6<5.5),BSSA14_Coeffs!$AJ10+(BSSA14_Coeffs!$AK10-BSSA14_Coeffs!$AJ10)*(BSSA14!$A$6-4.5),BSSA14_Coeffs!$AK10)) -> 0.458 | N11: =IF($A$6<=4.5,BSSA14_Coeffs!$AH10,IF(AND($A$6>4.5,$A$6<5.5),BSSA14_Coeffs!$AH10+(BSSA14_Coeffs!$AI10-BSSA14_Coeffs!$AH10)*(BSSA14!$A$6-4.5),BSSA14_Coeffs!$AI10)) -> 0.541 | O11: =IF($A$12<=BSSA14_Coeffs!$AB10,BSSA14!$N11,IF(AND($A$12>BSSA14_Coeffs!$AB10,$A$12<=BSSA14_Coeffs!$AC10),$N11+BSSA14_Coeffs!$AD10*(LN($A$12/BSSA14_Coeffs!$AB10)/(LN(BSSA14_Coeffs!$AC10/BSSA14_Coeffs!$AB10))),$N11+BSSA14_Coeffs!$AD10)) -> 0.541 | P11: =IF($A$15>=BSSA14_Coeffs!$AG10,$O11,IF(AND($A$15>=BSSA14_Coeffs!$AF10,$A$15<=BSSA14_Coeffs!$AG10),$O11-BSSA14_Coeffs!$AE10*(LN(BSSA14_Coeffs!$AG10/$A$15)/LN(BSSA14_Coeffs!$AG10/BSSA14_Coeffs!$AF10)),$O11-BSSA14_Coeffs!$AE10)) -> 0.541 | Q11: 0.7088335489 | R11: 0.7088335489 | S11: 0.9186451218 | T11: 0.7088335489
A12: =Main!$B$30 -> 1 | B12: =IF(AND($A$12>=0, $A$12<=400),"","! Not Applicable !") ->  | D12: 0.15 | E12: =IF($A$6<=BSSA14_Coeffs!$I11,(BSSA14_Coeffs!$B11*$A$18+BSSA14_Coeffs!$C11*$A$33+BSSA14_Coeffs!$D11*$A$24+BSSA14_Coeffs!$E11*$A$21+BSSA14_Coeffs!$F11*($A$6-BSSA14_Coeffs!$I11)+BSSA14_Coeffs!$G11*($A$6-BSSA14_Coeffs!I11)^2),(BSSA14_Coeffs!$B11*$A$18+BSSA14_Coeffs!$C11*$A$33+BSSA14_Coeffs!$D11*$A$24+BSSA14_Coeffs!$E11*$A$21+BSSA14_Coeffs!$H11*($A$6-BSSA14_Coeffs!$I11))) -> 2.662299766 | F12: =IF($A$30=0,((BSSA14_Coeffs!$J11+BSSA14_Coeffs!$K11*($A$6-BSSA14_Coeffs!$M11))*LN(SQRT(BSSA14!$A$12^2+(BSSA14_Coeffs!$O11^2))/BSSA14_Coeffs!$N11)+(BSSA14_Coeffs!$L11+BSSA14_Coeffs!$P11)*(SQRT(BSSA14!$A$12^2+(BSSA14_Coeffs!$O11^2))-BSSA14_Coeffs!$N11)),IF($A$30=1,((BSSA14_Coeffs!$J11+BSSA14_Coeffs!$K11*($A$6-BSSA14_Coeffs!$M11))*LN(SQRT(BSSA14!$A$12^2+(BSSA14_Coeffs!$O11^2))/BSSA14_Coeffs!$N11)+(BSSA14_Coeffs!$L11+BSSA14_Coeffs!$Q11)*(SQRT(BSSA14!$A$12^2+(BSSA14_Coeffs!$O11^2))-BSSA14_Coeffs!$N11)),IF($A$30=3,((BSSA14_Coeffs!$J11+BSSA14_Coeffs!$K11*($A$6-BSSA14_Coeffs!$M11))*LN(SQRT(BSSA14!$A$12^2+(BSSA14_Coeffs!$O11^2))/BSSA14_Coeffs!$N11)+(BSSA14_Coeffs!$L11+BSSA14_Coeffs!$R11)*(SQRT(BSSA14!$A$12^2+(BSSA14_Coeffs!$O11^2))-BSSA14_Coeffs!$N11)), ((BSSA14_Coeffs!$J11+BSSA14_Coeffs!$K11*($A$6-BSSA14_Coeffs!$M11))*LN(SQRT(BSSA14!$A$12^2+(BSSA14_Coeffs!$O11^2))/BSSA14_Coeffs!$N11)+(BSSA14_Coeffs!$L11+BSSA14_Coeffs!$P11)*(SQRT(BSSA14!$A$12^2+(BSSA14_Coeffs!$O11^2))-BSSA14_Coeffs!$N11))))) -> -1.083138253 | G12: =IF($A$15<= BSSA14_Coeffs!$T11, BSSA14_Coeffs!$S11 * LN(BSSA14!$A$15/ 760), BSSA14_Coeffs!$S11* LN(BSSA14_Coeffs!$T11/ 760)) -> 0 | H12: =BSSA14_Coeffs!$V11 + (BSSA14_Coeffs!$X11 * ((EXP(BSSA14_Coeffs!$Y11* (MIN($A$15,760) - 360))) - EXP(BSSA14_Coeffs!$Y11* (760 - 360)))) * LN((BSSA14!$A$38 + BSSA14_Coeffs!$W11) / BSSA14_Coeffs!$W11) -> 0 | I12: 0.006686793915 | J12: =IF($D12 < 0.65, 0, IF(AND($D12 >= 0.65,$I12 <= (BSSA14_Coeffs!$AA11/ BSSA14_Coeffs!$Z11)), BSSA14_Coeffs!$Z11* BSSA14!$I12, IF(AND($D12>= 0.65,$I12 > (BSSA14_Coeffs!$AA11 /BSSA14_Coeffs!$Z11)), BSSA14_Coeffs!$AA11))) -> 0 | K12: 0 | L12: 4.88343227 | M12: =IF($A$6<=4.5,BSSA14_Coeffs!$AJ11,IF(AND($A$6>4.5,$A$6<5.5),BSSA14_Coeffs!$AJ11+(BSSA14_Coeffs!$AK11-BSSA14_Coeffs!$AJ11)*(BSSA14!$A$6-4.5),BSSA14_Coeffs!$AK11)) -> 0.388 | N12: =IF($A$6<=4.5,BSSA14_Coeffs!$AH11,IF(AND($A$6>4.5,$A$6<5.5),BSSA14_Coeffs!$AH11+(BSSA14_Coeffs!$AI11-BSSA14_Coeffs!$AH11)*(BSSA14!$A$6-4.5),BSSA14_Coeffs!$AI11)) -> 0.537 | O12: =IF($A$12<=BSSA14_Coeffs!$AB11,BSSA14!$N12,IF(AND($A$12>BSSA14_Coeffs!$AB11,$A$12<=BSSA14_Coeffs!$AC11),$N12+BSSA14_Coeffs!$AD11*(LN($A$12/BSSA14_Coeffs!$AB11)/(LN(BSSA14_Coeffs!$AC11/BSSA14_Coeffs!$AB11))),$N12+BSSA14_Coeffs!$AD11)) -> 0.537 | P12: =IF($A$15>=BSSA14_Coeffs!$AG11,$O12,IF(AND($A$15>=BSSA14_Coeffs!$AF11,$A$15<=BSSA14_Coeffs!$AG11),$O12-BSSA14_Coeffs!$AE11*(LN(BSSA14_Coeffs!$AG11/$A$15)/LN(BSSA14_Coeffs!$AG11/BSSA14_Coeffs!$AF11)),$O12-BSSA14_Coeffs!$AE11)) -> 0.537 | Q12: 0.6625050943 | R12: 0.6625050943 | S12: 1.074312956 | T12: 0.6625050943
D13: 0.2 | E13: =IF($A$6<=BSSA14_Coeffs!$I12,(BSSA14_Coeffs!$B12*$A$18+BSSA14_Coeffs!$C12*$A$33+BSSA14_Coeffs!$D12*$A$24+BSSA14_Coeffs!$E12*$A$21+BSSA14_Coeffs!$F12*($A$6-BSSA14_Coeffs!$I12)+BSSA14_Coeffs!$G12*($A$6-BSSA14_Coeffs!I12)^2),(BSSA14_Coeffs!$B12*$A$18+BSSA14_Coeffs!$C12*$A$33+BSSA14_Coeffs!$D12*$A$24+BSSA14_Coeffs!$E12*$A$21+BSSA14_Coeffs!$H12*($A$6-BSSA14_Coeffs!$I12))) -> 2.271784576 | F13: =IF($A$30=0,((BSSA14_Coeffs!$J12+BSSA14_Coeffs!$K12*($A$6-BSSA14_Coeffs!$M12))*LN(SQRT(BSSA14!$A$12^2+(BSSA14_Coeffs!$O12^2))/BSSA14_Coeffs!$N12)+(BSSA14_Coeffs!$L12+BSSA14_Coeffs!$P12)*(SQRT(BSSA14!$A$12^2+(BSSA14_Coeffs!$O12^2))-BSSA14_Coeffs!$N12)),IF($A$30=1,((BSSA14_Coeffs!$J12+BSSA14_Coeffs!$K12*($A$6-BSSA14_Coeffs!$M12))*LN(SQRT(BSSA14!$A$12^2+(BSSA14_Coeffs!$O12^2))/BSSA14_Coeffs!$N12)+(BSSA14_Coeffs!$L12+BSSA14_Coeffs!$Q12)*(SQRT(BSSA14!$A$12^2+(BSSA14_Coeffs!$O12^2))-BSSA14_Coeffs!$N12)),IF($A$30=3,((BSSA14_Coeffs!$J12+BSSA14_Coeffs!$K12*($A$6-BSSA14_Coeffs!$M12))*LN(SQRT(BSSA14!$A$12^2+(BSSA14_Coeffs!$O12^2))/BSSA14_Coeffs!$N12)+(BSSA14_Coeffs!$L12+BSSA14_Coeffs!$R12)*(SQRT(BSSA14!$A$12^2+(BSSA14_Coeffs!$O12^2))-BSSA14_Coeffs!$N12)), ((BSSA14_Coeffs!$J12+BSSA14_Coeffs!$K12*($A$6-BSSA14_Coeffs!$M12))*LN(SQRT(BSSA14!$A$12^2+(BSSA14_Coeffs!$O12^2))/BSSA14_Coeffs!$N12)+(BSSA14_Coeffs!$L12+BSSA14_Coeffs!$P12)*(SQRT(BSSA14!$A$12^2+(BSSA14_Coeffs!$O12^2))-BSSA14_Coeffs!$N12))))) -> -1.157124062 | G13: =IF($A$15<= BSSA14_Coeffs!$T12, BSSA14_Coeffs!$S12 * LN(BSSA14!$A$15/ 760), BSSA14_Coeffs!$S12* LN(BSSA14_Coeffs!$T12/ 760)) -> 0 | H13: =BSSA14_Coeffs!$V12 + (BSSA14_Coeffs!$X12 * ((EXP(BSSA14_Coeffs!$Y12* (MIN($A$15,760) - 360))) - EXP(BSSA14_Coeffs!$Y12* (760 - 360)))) * LN((BSSA14!$A$38 + BSSA14_Coeffs!$W12) / BSSA14_Coeffs!$W12) -> 0 | I13: 0.006686793915 | J13: =IF($D13 < 0.65, 0, IF(AND($D13 >= 0.65,$I13 <= (BSSA14_Coeffs!$AA12/ BSSA14_Coeffs!$Z12)), BSSA14_Coeffs!$Z12* BSSA14!$I13, IF(AND($D13>= 0.65,$I13 > (BSSA14_Coeffs!$AA12 /BSSA14_Coeffs!$Z12)), BSSA14_Coeffs!$AA12))) -> 0 | K13: 0 | L13: 3.068986288 | M13: =IF($A$6<=4.5,BSSA14_Coeffs!$AJ12,IF(AND($A$6>4.5,$A$6<5.5),BSSA14_Coeffs!$AJ12+(BSSA14_Coeffs!$AK12-BSSA14_Coeffs!$AJ12)*(BSSA14!$A$6-4.5),BSSA14_Coeffs!$AK12)) -> 0.309 | N13: =IF($A$6<=4.5,BSSA14_Coeffs!$AH12,IF(AND($A$6>4.5,$A$6<5.5),BSSA14_Coeffs!$AH12+(BSSA14_Coeffs!$AI12-BSSA14_Coeffs!$AH12)*(BSSA14!$A$6-4.5),BSSA14_Coeffs!$AI12)) -> 0.539 | O13: =IF($A$12<=BSSA14_Coeffs!$AB12,BSSA14!$N13,IF(AND($A$12>BSSA14_Coeffs!$AB12,$A$12<=BSSA14_Coeffs!$AC12),$N13+BSSA14_Coeffs!$AD12*(LN($A$12/BSSA14_Coeffs!$AB12)/(LN(BSSA14_Coeffs!$AC12/BSSA14_Coeffs!$AB12))),$N13+BSSA14_Coeffs!$AD12)) -> 0.539 | P13: =IF($A$15>=BSSA14_Coeffs!$AG12,$O13,IF(AND($A$15>=BSSA14_Coeffs!$AF12,$A$15<=BSSA14_Coeffs!$AG12),$O13-BSSA14_Coeffs!$AE12*(LN(BSSA14_Coeffs!$AG12/$A$15)/LN(BSSA14_Coeffs!$AG12/BSSA14_Coeffs!$AF12)),$O13-BSSA14_Coeffs!$AE12)) -> 0.539 | Q13: 0.6212905922 | R13: 0.6212905922 | S13: 1.064364958 | T13: 0.6212905922
A14: VS30 (m/s) | D14: 0.25 | E14: =IF($A$6<=BSSA14_Coeffs!$I13,(BSSA14_Coeffs!$B13*$A$18+BSSA14_Coeffs!$C13*$A$33+BSSA14_Coeffs!$D13*$A$24+BSSA14_Coeffs!$E13*$A$21+BSSA14_Coeffs!$F13*($A$6-BSSA14_Coeffs!$I13)+BSSA14_Coeffs!$G13*($A$6-BSSA14_Coeffs!I13)^2),(BSSA14_Coeffs!$B13*$A$18+BSSA14_Coeffs!$C13*$A$33+BSSA14_Coeffs!$D13*$A$24+BSSA14_Coeffs!$E13*$A$21+BSSA14_Coeffs!$H13*($A$6-BSSA14_Coeffs!$I13))) -> 1.972951875 | F14: =IF($A$30=0,((BSSA14_Coeffs!$J13+BSSA14_Coeffs!$K13*($A$6-BSSA14_Coeffs!$M13))*LN(SQRT(BSSA14!$A$12^2+(BSSA14_Coeffs!$O13^2))/BSSA14_Coeffs!$N13)+(BSSA14_Coeffs!$L13+BSSA14_Coeffs!$P13)*(SQRT(BSSA14!$A$12^2+(BSSA14_Coeffs!$O13^2))-BSSA14_Coeffs!$N13)),IF($A$30=1,((BSSA14_Coeffs!$J13+BSSA14_Coeffs!$K13*($A$6-BSSA14_Coeffs!$M13))*LN(SQRT(BSSA14!$A$12^2+(BSSA14_Coeffs!$O13^2))/BSSA14_Coeffs!$N13)+(BSSA14_Coeffs!$L13+BSSA14_Coeffs!$Q13)*(SQRT(BSSA14!$A$12^2+(BSSA14_Coeffs!$O13^2))-BSSA14_Coeffs!$N13)),IF($A$30=3,((BSSA14_Coeffs!$J13+BSSA14_Coeffs!$K13*($A$6-BSSA14_Coeffs!$M13))*LN(SQRT(BSSA14!$A$12^2+(BSSA14_Coeffs!$O13^2))/BSSA14_Coeffs!$N13)+(BSSA14_Coeffs!$L13+BSSA14_Coeffs!$R13)*(SQRT(BSSA14!$A$12^2+(BSSA14_Coeffs!$O13^2))-BSSA14_Coeffs!$N13)), ((BSSA14_Coeffs!$J13+BSSA14_Coeffs!$K13*($A$6-BSSA14_Coeffs!$M13))*LN(SQRT(BSSA14!$A$12^2+(BSSA14_Coeffs!$O13^2))/BSSA14_Coeffs!$N13)+(BSSA14_Coeffs!$L13+BSSA14_Coeffs!$P13)*(SQRT(BSSA14!$A$12^2+(BSSA14_Coeffs!$O13^2))-BSSA14_Coeffs!$N13))))) -> -1.225843234 | G14: =IF($A$15<= BSSA14_Coeffs!$T13, BSSA14_Coeffs!$S13 * LN(BSSA14!$A$15/ 760), BSSA14_Coeffs!$S13* LN(BSSA14_Coeffs!$T13/ 760)) -> 0 | H14: =BSSA14_Coeffs!$V13 + (BSSA14_Coeffs!$X13 * ((EXP(BSSA14_Coeffs!$Y13* (MIN($A$15,760) - 360))) - EXP(BSSA14_Coeffs!$Y13* (760 - 360)))) * LN((BSSA14!$A$38 + BSSA14_Coeffs!$W13) / BSSA14_Coeffs!$W13) -> 0 | I14: 0.006686793915 | J14: =IF($D14 < 0.65, 0, IF(AND($D14 >= 0.65,$I14 <= (BSSA14_Coeffs!$AA13/ BSSA14_Coeffs!$Z13)), BSSA14_Coeffs!$Z13* BSSA14!$I14, IF(AND($D14>= 0.65,$I14 > (BSSA14_Coeffs!$AA13 /BSSA14_Coeffs!$Z13)), BSSA14_Coeffs!$AA13))) -> 0 | K14: 0 | L14: 2.125050219 | M14: =IF($A$6<=4.5,BSSA14_Coeffs!$AJ13,IF(AND($A$6>4.5,$A$6<5.5),BSSA14_Coeffs!$AJ13+(BSSA14_Coeffs!$AK13-BSSA14_Coeffs!$AJ13)*(BSSA14!$A$6-4.5),BSSA14_Coeffs!$AK13)) -> 0.266 | N14: =IF($A$6<=4.5,BSSA14_Coeffs!$AH13,IF(AND($A$6>4.5,$A$6<5.5),BSSA14_Coeffs!$AH13+(BSSA14_Coeffs!$AI13-BSSA14_Coeffs!$AH13)*(BSSA14!$A$6-4.5),BSSA14_Coeffs!$AI13)) -> 0.547 | O14: =IF($A$12<=BSSA14_Coeffs!$AB13,BSSA14!$N14,IF(AND($A$12>BSSA14_Coeffs!$AB13,$A$12<=BSSA14_Coeffs!$AC13),$N14+BSSA14_Coeffs!$AD13*(LN($A$12/BSSA14_Coeffs!$AB13)/(LN(BSSA14_Coeffs!$AC13/BSSA14_Coeffs!$AB13))),$N14+BSSA14_Coeffs!$AD13)) -> 0.547 | P14: =IF($A$15>=BSSA14_Coeffs!$AG13,$O14,IF(AND($A$15>=BSSA14_Coeffs!$AF13,$A$15<=BSSA14_Coeffs!$AG13),$O14-BSSA14_Coeffs!$AE13*(LN(BSSA14_Coeffs!$AG13/$A$15)/LN(BSSA14_Coeffs!$AG13/BSSA14_Coeffs!$AF13)),$O14-BSSA14_Coeffs!$AE13)) -> 0.547 | Q14: 0.6082474825 | R14: 0.6082474825 | S14: 0.9801758992 | T14: 0.6082474825
A15: =Main!$B$39 -> 760 | B15: =IF($A$15<150,"! Not Applicable !", IF(AND(A15>=150, A15<=1500),"","! Not Applicable !")) ->  | D15: 0.3 | E15: =IF($A$6<=BSSA14_Coeffs!$I14,(BSSA14_Coeffs!$B14*$A$18+BSSA14_Coeffs!$C14*$A$33+BSSA14_Coeffs!$D14*$A$24+BSSA14_Coeffs!$E14*$A$21+BSSA14_Coeffs!$F14*($A$6-BSSA14_Coeffs!$I14)+BSSA14_Coeffs!$G14*($A$6-BSSA14_Coeffs!I14)^2),(BSSA14_Coeffs!$B14*$A$18+BSSA14_Coeffs!$C14*$A$33+BSSA14_Coeffs!$D14*$A$24+BSSA14_Coeffs!$E14*$A$21+BSSA14_Coeffs!$H14*($A$6-BSSA14_Coeffs!$I14))) -> 1.78622756 | F15: =IF($A$30=0,((BSSA14_Coeffs!$J14+BSSA14_Coeffs!$K14*($A$6-BSSA14_Coeffs!$M14))*LN(SQRT(BSSA14!$A$12^2+(BSSA14_Coeffs!$O14^2))/BSSA14_Coeffs!$N14)+(BSSA14_Coeffs!$L14+BSSA14_Coeffs!$P14)*(SQRT(BSSA14!$A$12^2+(BSSA14_Coeffs!$O14^2))-BSSA14_Coeffs!$N14)),IF($A$30=1,((BSSA14_Coeffs!$J14+BSSA14_Coeffs!$K14*($A$6-BSSA14_Coeffs!$M14))*LN(SQRT(BSSA14!$A$12^2+(BSSA14_Coeffs!$O14^2))/BSSA14_Coeffs!$N14)+(BSSA14_Coeffs!$L14+BSSA14_Coeffs!$Q14)*(SQRT(BSSA14!$A$12^2+(BSSA14_Coeffs!$O14^2))-BSSA14_Coeffs!$N14)),IF($A$30=3,((BSSA14_Coeffs!$J14+BSSA14_Coeffs!$K14*($A$6-BSSA14_Coeffs!$M14))*LN(SQRT(BSSA14!$A$12^2+(BSSA14_Coeffs!$O14^2))/BSSA14_Coeffs!$N14)+(BSSA14_Coeffs!$L14+BSSA14_Coeffs!$R14)*(SQRT(BSSA14!$A$12^2+(BSSA14_Coeffs!$O14^2))-BSSA14_Coeffs!$N14)), ((BSSA14_Coeffs!$J14+BSSA14_Coeffs!$K14*($A$6-BSSA14_Coeffs!$M14))*LN(SQRT(BSSA14!$A$12^2+(BSSA14_Coeffs!$O14^2))/BSSA14_Coeffs!$N14)+(BSSA14_Coeffs!$L14+BSSA14_Coeffs!$P14)*(SQRT(BSSA14!$A$12^2+(BSSA14_Coeffs!$O14^2))-BSSA14_Coeffs!$N14))))) -> -1.293263839 | G15: =IF($A$15<= BSSA14_Coeffs!$T14, BSSA14_Coeffs!$S14 * LN(BSSA14!$A$15/ 760), BSSA14_Coeffs!$S14* LN(BSSA14_Coeffs!$T14/ 760)) -> 0 | H15: =BSSA14_Coeffs!$V14 + (BSSA14_Coeffs!$X14 * ((EXP(BSSA14_Coeffs!$Y14* (MIN($A$15,760) - 360))) - EXP(BSSA14_Coeffs!$Y14* (760 - 360)))) * LN((BSSA14!$A$38 + BSSA14_Coeffs!$W14) / BSSA14_Coeffs!$W14) -> 0 | I15: 0.006686793915 | J15: =IF($D15 < 0.65, 0, IF(AND($D15 >= 0.65,$I15 <= (BSSA14_Coeffs!$AA14/ BSSA14_Coeffs!$Z14)), BSSA14_Coeffs!$Z14* BSSA14!$I15, IF(AND($D15>= 0.65,$I15 > (BSSA14_Coeffs!$AA14 /BSSA14_Coeffs!$Z14)), BSSA14_Coeffs!$AA14))) -> 0 | K15: 0 | L15: 1.648145168 | M15: =IF($A$6<=4.5,BSSA14_Coeffs!$AJ14,IF(AND($A$6>4.5,$A$6<5.5),BSSA14_Coeffs!$AJ14+(BSSA14_Coeffs!$AK14-BSSA14_Coeffs!$AJ14)*(BSSA14!$A$6-4.5),BSSA14_Coeffs!$AK14)) -> 0.229 | N15: =IF($A$6<=4.5,BSSA14_Coeffs!$AH14,IF(AND($A$6>4.5,$A$6<5.5),BSSA14_Coeffs!$AH14+(BSSA14_Coeffs!$AI14-BSSA14_Coeffs!$AH14)*(BSSA14!$A$6-4.5),BSSA14_Coeffs!$AI14)) -> 0.561 | O15: =IF($A$12<=BSSA14_Coeffs!$AB14,BSSA14!$N15,IF(AND($A$12>BSSA14_Coeffs!$AB14,$A$12<=BSSA14_Coeffs!$AC14),$N15+BSSA14_Coeffs!$AD14*(LN($A$12/BSSA14_Coeffs!$AB14)/(LN(BSSA14_Coeffs!$AC14/BSSA14_Coeffs!$AB14))),$N15+BSSA14_Coeffs!$AD14)) -> 0.561 | P15: =IF($A$15>=BSSA14_Coeffs!$AG14,$O15,IF(AND($A$15>=BSSA14_Coeffs!$AF14,$A$15<=BSSA14_Coeffs!$AG14),$O15-BSSA14_Coeffs!$AE14*(LN(BSSA14_Coeffs!$AG14/$A$15)/LN(BSSA14_Coeffs!$AG14/BSSA14_Coeffs!$AF14)),$O15-BSSA14_Coeffs!$AE14)) -> 0.561 | Q15: 0.6059389408 | R15: 0.6059389408 | S15: 0.8918581901 | T15: 0.6059389408
D16: 0.4 | E16: =IF($A$6<=BSSA14_Coeffs!$I15,(BSSA14_Coeffs!$B15*$A$18+BSSA14_Coeffs!$C15*$A$33+BSSA14_Coeffs!$D15*$A$24+BSSA14_Coeffs!$E15*$A$21+BSSA14_Coeffs!$F15*($A$6-BSSA14_Coeffs!$I15)+BSSA14_Coeffs!$G15*($A$6-BSSA14_Coeffs!I15)^2),(BSSA14_Coeffs!$B15*$A$18+BSSA14_Coeffs!$C15*$A$33+BSSA14_Coeffs!$D15*$A$24+BSSA14_Coeffs!$E15*$A$21+BSSA14_Coeffs!$H15*($A$6-BSSA14_Coeffs!$I15))) -> 1.6206072 | F16: =IF($A$30=0,((BSSA14_Coeffs!$J15+BSSA14_Coeffs!$K15*($A$6-BSSA14_Coeffs!$M15))*LN(SQRT(BSSA14!$A$12^2+(BSSA14_Coeffs!$O15^2))/BSSA14_Coeffs!$N15)+(BSSA14_Coeffs!$L15+BSSA14_Coeffs!$P15)*(SQRT(BSSA14!$A$12^2+(BSSA14_Coeffs!$O15^2))-BSSA14_Coeffs!$N15)),IF($A$30=1,((BSSA14_Coeffs!$J15+BSSA14_Coeffs!$K15*($A$6-BSSA14_Coeffs!$M15))*LN(SQRT(BSSA14!$A$12^2+(BSSA14_Coeffs!$O15^2))/BSSA14_Coeffs!$N15)+(BSSA14_Coeffs!$L15+BSSA14_Coeffs!$Q15)*(SQRT(BSSA14!$A$12^2+(BSSA14_Coeffs!$O15^2))-BSSA14_Coeffs!$N15)),IF($A$30=3,((BSSA14_Coeffs!$J15+BSSA14_Coeffs!$K15*($A$6-BSSA14_Coeffs!$M15))*LN(SQRT(BSSA14!$A$12^2+(BSSA14_Coeffs!$O15^2))/BSSA14_Coeffs!$N15)+(BSSA14_Coeffs!$L15+BSSA14_Coeffs!$R15)*(SQRT(BSSA14!$A$12^2+(BSSA14_Coeffs!$O15^2))-BSSA14_Coeffs!$N15)), ((BSSA14_Coeffs!$J15+BSSA14_Coeffs!$K15*($A$6-BSSA14_Coeffs!$M15))*LN(SQRT(BSSA14!$A$12^2+(BSSA14_Coeffs!$O15^2))/BSSA14_Coeffs!$N15)+(BSSA14_Coeffs!$L15+BSSA14_Coeffs!$P15)*(SQRT(BSSA14!$A$12^2+(BSSA14_Coeffs!$O15^2))-BSSA14_Coeffs!$N15))))) -> -1.405353627 | G16: =IF($A$15<= BSSA14_Coeffs!$T15, BSSA14_Coeffs!$S15 * LN(BSSA14!$A$15/ 760), BSSA14_Coeffs!$S15* LN(BSSA14_Coeffs!$T15/ 760)) -> 0 | H16: =BSSA14_Coeffs!$V15 + (BSSA14_Coeffs!$X15 * ((EXP(BSSA14_Coeffs!$Y15* (MIN($A$15,760) - 360))) - EXP(BSSA14_Coeffs!$Y15* (760 - 360)))) * LN((BSSA14!$A$38 + BSSA14_Coeffs!$W15) / BSSA14_Coeffs!$W15) -> 0 | I16: 0.006686793915 | J16: =IF($D16 < 0.65, 0, IF(AND($D16 >= 0.65,$I16 <= (BSSA14_Coeffs!$AA15/ BSSA14_Coeffs!$Z15)), BSSA14_Coeffs!$Z15* BSSA14!$I16, IF(AND($D16>= 0.65,$I16 > (BSSA14_Coeffs!$AA15 /BSSA14_Coeffs!$Z15)), BSSA14_Coeffs!$AA15))) -> 0 | K16: 0 | L16: 1.248496924 | M16: =IF($A$6<=4.5,BSSA14_Coeffs!$AJ15,IF(AND($A$6>4.5,$A$6<5.5),BSSA14_Coeffs!$AJ15+(BSSA14_Coeffs!$AK15-BSSA14_Coeffs!$AJ15)*(BSSA14!$A$6-4.5),BSSA14_Coeffs!$AK15)) -> 0.21 | N16: =IF($A$6<=4.5,BSSA14_Coeffs!$AH15,IF(AND($A$6>4.5,$A$6<5.5),BSSA14_Coeffs!$AH15+(BSSA14_Coeffs!$AI15-BSSA14_Coeffs!$AH15)*(BSSA14!$A$6-4.5),BSSA14_Coeffs!$AI15)) -> 0.58 | O16: =IF($A$12<=BSSA14_Coeffs!$AB15,BSSA14!$N16,IF(AND($A$12>BSSA14_Coeffs!$AB15,$A$12<=BSSA14_Coeffs!$AC15),$N16+BSSA14_Coeffs!$AD15*(LN($A$12/BSSA14_Coeffs!$AB15)/(LN(BSSA14_Coeffs!$AC15/BSSA14_Coeffs!$AB15))),$N16+BSSA14_Coeffs!$AD15)) -> 0.58 | P16: =IF($A$15>=BSSA14_Coeffs!$AG15,$O16,IF(AND($A$15>=BSSA14_Coeffs!$AF15,$A$15<=BSSA14_Coeffs!$AG15),$O16-BSSA14_Coeffs!$AE15*(LN(BSSA14_Coeffs!$AG15/$A$15)/LN(BSSA14_Coeffs!$AG15/BSSA14_Coeffs!$AF15)),$O16-BSSA14_Coeffs!$AE15)) -> 0.58 | Q16: 0.6168468205 | R16: 0.6168468205 | S16: 0.7424000525 | T16: 0.6168468205
A17: U | B17: 0: Specified fault mech. | D17: 0.5 | E17: =IF($A$6<=BSSA14_Coeffs!$I16,(BSSA14_Coeffs!$B16*$A$18+BSSA14_Coeffs!$C16*$A$33+BSSA14_Coeffs!$D16*$A$24+BSSA14_Coeffs!$E16*$A$21+BSSA14_Coeffs!$F16*($A$6-BSSA14_Coeffs!$I16)+BSSA14_Coeffs!$G16*($A$6-BSSA14_Coeffs!I16)^2),(BSSA14_Coeffs!$B16*$A$18+BSSA14_Coeffs!$C16*$A$33+BSSA14_Coeffs!$D16*$A$24+BSSA14_Coeffs!$E16*$A$21+BSSA14_Coeffs!$H16*($A$6-BSSA14_Coeffs!$I16))) -> 1.5294208 | F17: =IF($A$30=0,((BSSA14_Coeffs!$J16+BSSA14_Coeffs!$K16*($A$6-BSSA14_Coeffs!$M16))*LN(SQRT(BSSA14!$A$12^2+(BSSA14_Coeffs!$O16^2))/BSSA14_Coeffs!$N16)+(BSSA14_Coeffs!$L16+BSSA14_Coeffs!$P16)*(SQRT(BSSA14!$A$12^2+(BSSA14_Coeffs!$O16^2))-BSSA14_Coeffs!$N16)),IF($A$30=1,((BSSA14_Coeffs!$J16+BSSA14_Coeffs!$K16*($A$6-BSSA14_Coeffs!$M16))*LN(SQRT(BSSA14!$A$12^2+(BSSA14_Coeffs!$O16^2))/BSSA14_Coeffs!$N16)+(BSSA14_Coeffs!$L16+BSSA14_Coeffs!$Q16)*(SQRT(BSSA14!$A$12^2+(BSSA14_Coeffs!$O16^2))-BSSA14_Coeffs!$N16)),IF($A$30=3,((BSSA14_Coeffs!$J16+BSSA14_Coeffs!$K16*($A$6-BSSA14_Coeffs!$M16))*LN(SQRT(BSSA14!$A$12^2+(BSSA14_Coeffs!$O16^2))/BSSA14_Coeffs!$N16)+(BSSA14_Coeffs!$L16+BSSA14_Coeffs!$R16)*(SQRT(BSSA14!$A$12^2+(BSSA14_Coeffs!$O16^2))-BSSA14_Coeffs!$N16)), ((BSSA14_Coeffs!$J16+BSSA14_Coeffs!$K16*($A$6-BSSA14_Coeffs!$M16))*LN(SQRT(BSSA14!$A$12^2+(BSSA14_Coeffs!$O16^2))/BSSA14_Coeffs!$N16)+(BSSA14_Coeffs!$L16+BSSA14_Coeffs!$P16)*(SQRT(BSSA14!$A$12^2+(BSSA14_Coeffs!$O16^2))-BSSA14_Coeffs!$N16))))) -> -1.485960293 | G17: =IF($A$15<= BSSA14_Coeffs!$T16, BSSA14_Coeffs!$S16 * LN(BSSA14!$A$15/ 760), BSSA14_Coeffs!$S16* LN(BSSA14_Coeffs!$T16/ 760)) -> 0 | H17: =BSSA14_Coeffs!$V16 + (BSSA14_Coeffs!$X16 * ((EXP(BSSA14_Coeffs!$Y16* (MIN($A$15,760) - 360))) - EXP(BSSA14_Coeffs!$Y16* (760 - 360)))) * LN((BSSA14!$A$38 + BSSA14_Coeffs!$W16) / BSSA14_Coeffs!$W16) -> 0 | I17: 0.006686793915 | J17: =IF($D17 < 0.65, 0, IF(AND($D17 >= 0.65,$I17 <= (BSSA14_Coeffs!$AA16/ BSSA14_Coeffs!$Z16)), BSSA14_Coeffs!$Z16* BSSA14!$I17, IF(AND($D17>= 0.65,$I17 > (BSSA14_Coeffs!$AA16 /BSSA14_Coeffs!$Z16)), BSSA14_Coeffs!$AA16))) -> 0 | K17: 0 | L17: 1.051425961 | M17: =IF($A$6<=4.5,BSSA14_Coeffs!$AJ16,IF(AND($A$6>4.5,$A$6<5.5),BSSA14_Coeffs!$AJ16+(BSSA14_Coeffs!$AK16-BSSA14_Coeffs!$AJ16)*(BSSA14!$A$6-4.5),BSSA14_Coeffs!$AK16)) -> 0.224 | N17: =IF($A$6<=4.5,BSSA14_Coeffs!$AH16,IF(AND($A$6>4.5,$A$6<5.5),BSSA14_Coeffs!$AH16+(BSSA14_Coeffs!$AI16-BSSA14_Coeffs!$AH16)*(BSSA14!$A$6-4.5),BSSA14_Coeffs!$AI16)) -> 0.599 | O17: =IF($A$12<=BSSA14_Coeffs!$AB16,BSSA14!$N17,IF(AND($A$12>BSSA14_Coeffs!$AB16,$A$12<=BSSA14_Coeffs!$AC16),$N17+BSSA14_Coeffs!$AD16*(LN($A$12/BSSA14_Coeffs!$AB16)/(LN(BSSA14_Coeffs!$AC16/BSSA14_Coeffs!$AB16))),$N17+BSSA14_Coeffs!$AD16)) -> 0.599 | P17: =IF($A$15>=BSSA14_Coeffs!$AG16,$O17,IF(AND($A$15>=BSSA14_Coeffs!$AF16,$A$15<=BSSA14_Coeffs!$AG16),$O17-BSSA14_Coeffs!$AE16*(LN(BSSA14_Coeffs!$AG16/$A$15)/LN(BSSA14_Coeffs!$AG16/BSSA14_Coeffs!$AF16)),$O17-BSSA14_Coeffs!$AE16)) -> 0.599 | Q17: 0.639513096 | R17: 0.639513096 | S17: 0.6203763969 | T17: 0.639513096
A18: =Main!$B$42 -> 0 | D18: 0.75 | E18: =IF($A$6<=BSSA14_Coeffs!$I17,(BSSA14_Coeffs!$B17*$A$18+BSSA14_Coeffs!$C17*$A$33+BSSA14_Coeffs!$D17*$A$24+BSSA14_Coeffs!$E17*$A$21+BSSA14_Coeffs!$F17*($A$6-BSSA14_Coeffs!$I17)+BSSA14_Coeffs!$G17*($A$6-BSSA14_Coeffs!I17)^2),(BSSA14_Coeffs!$B17*$A$18+BSSA14_Coeffs!$C17*$A$33+BSSA14_Coeffs!$D17*$A$24+BSSA14_Coeffs!$E17*$A$21+BSSA14_Coeffs!$H17*($A$6-BSSA14_Coeffs!$I17))) -> 1.3919024 | F18: =IF($A$30=0,((BSSA14_Coeffs!$J17+BSSA14_Coeffs!$K17*($A$6-BSSA14_Coeffs!$M17))*LN(SQRT(BSSA14!$A$12^2+(BSSA14_Coeffs!$O17^2))/BSSA14_Coeffs!$N17)+(BSSA14_Coeffs!$L17+BSSA14_Coeffs!$P17)*(SQRT(BSSA14!$A$12^2+(BSSA14_Coeffs!$O17^2))-BSSA14_Coeffs!$N17)),IF($A$30=1,((BSSA14_Coeffs!$J17+BSSA14_Coeffs!$K17*($A$6-BSSA14_Coeffs!$M17))*LN(SQRT(BSSA14!$A$12^2+(BSSA14_Coeffs!$O17^2))/BSSA14_Coeffs!$N17)+(BSSA14_Coeffs!$L17+BSSA14_Coeffs!$Q17)*(SQRT(BSSA14!$A$12^2+(BSSA14_Coeffs!$O17^2))-BSSA14_Coeffs!$N17)),IF($A$30=3,((BSSA14_Coeffs!$J17+BSSA14_Coeffs!$K17*($A$6-BSSA14_Coeffs!$M17))*LN(SQRT(BSSA14!$A$12^2+(BSSA14_Coeffs!$O17^2))/BSSA14_Coeffs!$N17)+(BSSA14_Coeffs!$L17+BSSA14_Coeffs!$R17)*(SQRT(BSSA14!$A$12^2+(BSSA14_Coeffs!$O17^2))-BSSA14_Coeffs!$N17)), ((BSSA14_Coeffs!$J17+BSSA14_Coeffs!$K17*($A$6-BSSA14_Coeffs!$M17))*LN(SQRT(BSSA14!$A$12^2+(BSSA14_Coeffs!$O17^2))/BSSA14_Coeffs!$N17)+(BSSA14_Coeffs!$L17+BSSA14_Coeffs!$P17)*(SQRT(BSSA14!$A$12^2+(BSSA14_Coeffs!$O17^2))-BSSA14_Coeffs!$N17))))) -> -1.61444988 | G18: =IF($A$15<= BSSA14_Coeffs!$T17, BSSA14_Coeffs!$S17 * LN(BSSA14!$A$15/ 760), BSSA14_Coeffs!$S17* LN(BSSA14_Coeffs!$T17/ 760)) -> 0 | H18: =BSSA14_Coeffs!$V17 + (BSSA14_Coeffs!$X17 * ((EXP(BSSA14_Coeffs!$Y17* (MIN($A$15,760) - 360))) - EXP(BSSA14_Coeffs!$Y17* (760 - 360)))) * LN((BSSA14!$A$38 + BSSA14_Coeffs!$W17) / BSSA14_Coeffs!$W17) -> 0 | I18: 0.006686793915 | J18: =IF($D18 < 0.65, 0, IF(AND($D18 >= 0.65,$I18 <= (BSSA14_Coeffs!$AA17/ BSSA14_Coeffs!$Z17)), BSSA14_Coeffs!$Z17* BSSA14!$I18, IF(AND($D18>= 0.65,$I18 > (BSSA14_Coeffs!$AA17 /BSSA14_Coeffs!$Z17)), BSSA14_Coeffs!$AA17))) -> 0.0006151850402 | K18: 0.0006151850402 | L18: 0.8063434576 | M18: =IF($A$6<=4.5,BSSA14_Coeffs!$AJ17,IF(AND($A$6>4.5,$A$6<5.5),BSSA14_Coeffs!$AJ17+(BSSA14_Coeffs!$AK17-BSSA14_Coeffs!$AJ17)*(BSSA14!$A$6-4.5),BSSA14_Coeffs!$AK17)) -> 0.266 | N18: =IF($A$6<=4.5,BSSA14_Coeffs!$AH17,IF(AND($A$6>4.5,$A$6<5.5),BSSA14_Coeffs!$AH17+(BSSA14_Coeffs!$AI17-BSSA14_Coeffs!$AH17)*(BSSA14!$A$6-4.5),BSSA14_Coeffs!$AI17)) -> 0.622 | O18: =IF($A$12<=BSSA14_Coeffs!$AB17,BSSA14!$N18,IF(AND($A$12>BSSA14_Coeffs!$AB17,$A$12<=BSSA14_Coeffs!$AC17),$N18+BSSA14_Coeffs!$AD17*(LN($A$12/BSSA14_Coeffs!$AB17)/(LN(BSSA14_Coeffs!$AC17/BSSA14_Coeffs!$AB17))),$N18+BSSA14_Coeffs!$AD17)) -> 0.622 | P18: =IF($A$15>=BSSA14_Coeffs!$AG17,$O18,IF(AND($A$15>=BSSA14_Coeffs!$AF17,$A$15<=BSSA14_Coeffs!$AG17),$O18-BSSA14_Coeffs!$AE17*(LN(BSSA14_Coeffs!$AG17/$A$15)/LN(BSSA14_Coeffs!$AG17/BSSA14_Coeffs!$AF17)),$O18-BSSA14_Coeffs!$AE17)) -> 0.622 | Q18: 0.676490946 | R18: 0.676490946 | S18: 0.4267782612 | T18: 0.676490946
D19: 1 | E19: =IF($A$6<=BSSA14_Coeffs!$I18,(BSSA14_Coeffs!$B18*$A$18+BSSA14_Coeffs!$C18*$A$33+BSSA14_Coeffs!$D18*$A$24+BSSA14_Coeffs!$E18*$A$21+BSSA14_Coeffs!$F18*($A$6-BSSA14_Coeffs!$I18)+BSSA14_Coeffs!$G18*($A$6-BSSA14_Coeffs!I18)^2),(BSSA14_Coeffs!$B18*$A$18+BSSA14_Coeffs!$C18*$A$33+BSSA14_Coeffs!$D18*$A$24+BSSA14_Coeffs!$E18*$A$21+BSSA14_Coeffs!$H18*($A$6-BSSA14_Coeffs!$I18))) -> 1.2537012 | F19: =IF($A$30=0,((BSSA14_Coeffs!$J18+BSSA14_Coeffs!$K18*($A$6-BSSA14_Coeffs!$M18))*LN(SQRT(BSSA14!$A$12^2+(BSSA14_Coeffs!$O18^2))/BSSA14_Coeffs!$N18)+(BSSA14_Coeffs!$L18+BSSA14_Coeffs!$P18)*(SQRT(BSSA14!$A$12^2+(BSSA14_Coeffs!$O18^2))-BSSA14_Coeffs!$N18)),IF($A$30=1,((BSSA14_Coeffs!$J18+BSSA14_Coeffs!$K18*($A$6-BSSA14_Coeffs!$M18))*LN(SQRT(BSSA14!$A$12^2+(BSSA14_Coeffs!$O18^2))/BSSA14_Coeffs!$N18)+(BSSA14_Coeffs!$L18+BSSA14_Coeffs!$Q18)*(SQRT(BSSA14!$A$12^2+(BSSA14_Coeffs!$O18^2))-BSSA14_Coeffs!$N18)),IF($A$30=3,((BSSA14_Coeffs!$J18+BSSA14_Coeffs!$K18*($A$6-BSSA14_Coeffs!$M18))*LN(SQRT(BSSA14!$A$12^2+(BSSA14_Coeffs!$O18^2))/BSSA14_Coeffs!$N18)+(BSSA14_Coeffs!$L18+BSSA14_Coeffs!$R18)*(SQRT(BSSA14!$A$12^2+(BSSA14_Coeffs!$O18^2))-BSSA14_Coeffs!$N18)), ((BSSA14_Coeffs!$J18+BSSA14_Coeffs!$K18*($A$6-BSSA14_Coeffs!$M18))*LN(SQRT(BSSA14!$A$12^2+(BSSA14_Coeffs!$O18^2))/BSSA14_Coeffs!$N18)+(BSSA14_Coeffs!$L18+BSSA14_Coeffs!$P18)*(SQRT(BSSA14!$A$12^2+(BSSA14_Coeffs!$O18^2))-BSSA14_Coeffs!$N18))))) -> -1.692987175 | G19: =IF($A$15<= BSSA14_Coeffs!$T18, BSSA14_Coeffs!$S18 * LN(BSSA14!$A$15/ 760), BSSA14_Coeffs!$S18* LN(BSSA14_Coeffs!$T18/ 760)) -> 0 | H19: =BSSA14_Coeffs!$V18 + (BSSA14_Coeffs!$X18 * ((EXP(BSSA14_Coeffs!$Y18* (MIN($A$15,760) - 360))) - EXP(BSSA14_Coeffs!$Y18* (760 - 360)))) * LN((BSSA14!$A$38 + BSSA14_Coeffs!$W18) / BSSA14_Coeffs!$W18) -> 0 | I19: 0.006686793915 | J19: =IF($D19 < 0.65, 0, IF(AND($D19 >= 0.65,$I19 <= (BSSA14_Coeffs!$AA18/ BSSA14_Coeffs!$Z18)), BSSA14_Coeffs!$Z18* BSSA14!$I19, IF(AND($D19>= 0.65,$I19 > (BSSA14_Coeffs!$AA18 /BSSA14_Coeffs!$Z18)), BSSA14_Coeffs!$AA18))) -> 0.002454053367 | K19: 0.002454053367 | L19: 0.6504146946 | M19: =IF($A$6<=4.5,BSSA14_Coeffs!$AJ18,IF(AND($A$6>4.5,$A$6<5.5),BSSA14_Coeffs!$AJ18+(BSSA14_Coeffs!$AK18-BSSA14_Coeffs!$AJ18)*(BSSA14!$A$6-4.5),BSSA14_Coeffs!$AK18)) -> 0.298 | N19: =IF($A$6<=4.5,BSSA14_Coeffs!$AH18,IF(AND($A$6>4.5,$A$6<5.5),BSSA14_Coeffs!$AH18+(BSSA14_Coeffs!$AI18-BSSA14_Coeffs!$AH18)*(BSSA14!$A$6-4.5),BSSA14_Coeffs!$AI18)) -> 0.625 | O19: =IF($A$12<=BSSA14_Coeffs!$AB18,BSSA14!$N19,IF(AND($A$12>BSSA14_Coeffs!$AB18,$A$12<=BSSA14_Coeffs!$AC18),$N19+BSSA14_Coeffs!$AD18*(LN($A$12/BSSA14_Coeffs!$AB18)/(LN(BSSA14_Coeffs!$AC18/BSSA14_Coeffs!$AB18))),$N19+BSSA14_Coeffs!$AD18)) -> 0.625 | P19: =IF($A$15>=BSSA14_Coeffs!$AG18,$O19,IF(AND($A$15>=BSSA14_Coeffs!$AF18,$A$15<=BSSA14_Coeffs!$AG18),$O19-BSSA14_Coeffs!$AE18*(LN(BSSA14_Coeffs!$AG18/$A$15)/LN(BSSA14_Coeffs!$AG18/BSSA14_Coeffs!$AF18)),$O19-BSSA14_Coeffs!$AE18)) -> 0.625 | Q19: 0.6924081166 | R19: 0.6924081166 | S19: 0.3130591521 | T19: 0.6924081166
A20: FRV | D20: 1.5 | E20: =IF($A$6<=BSSA14_Coeffs!$I19,(BSSA14_Coeffs!$B19*$A$18+BSSA14_Coeffs!$C19*$A$33+BSSA14_Coeffs!$D19*$A$24+BSSA14_Coeffs!$E19*$A$21+BSSA14_Coeffs!$F19*($A$6-BSSA14_Coeffs!$I19)+BSSA14_Coeffs!$G19*($A$6-BSSA14_Coeffs!I19)^2),(BSSA14_Coeffs!$B19*$A$18+BSSA14_Coeffs!$C19*$A$33+BSSA14_Coeffs!$D19*$A$24+BSSA14_Coeffs!$E19*$A$21+BSSA14_Coeffs!$H19*($A$6-BSSA14_Coeffs!$I19))) -> 0.885848 | F20: =IF($A$30=0,((BSSA14_Coeffs!$J19+BSSA14_Coeffs!$K19*($A$6-BSSA14_Coeffs!$M19))*LN(SQRT(BSSA14!$A$12^2+(BSSA14_Coeffs!$O19^2))/BSSA14_Coeffs!$N19)+(BSSA14_Coeffs!$L19+BSSA14_Coeffs!$P19)*(SQRT(BSSA14!$A$12^2+(BSSA14_Coeffs!$O19^2))-BSSA14_Coeffs!$N19)),IF($A$30=1,((BSSA14_Coeffs!$J19+BSSA14_Coeffs!$K19*($A$6-BSSA14_Coeffs!$M19))*LN(SQRT(BSSA14!$A$12^2+(BSSA14_Coeffs!$O19^2))/BSSA14_Coeffs!$N19)+(BSSA14_Coeffs!$L19+BSSA14_Coeffs!$Q19)*(SQRT(BSSA14!$A$12^2+(BSSA14_Coeffs!$O19^2))-BSSA14_Coeffs!$N19)),IF($A$30=3,((BSSA14_Coeffs!$J19+BSSA14_Coeffs!$K19*($A$6-BSSA14_Coeffs!$M19))*LN(SQRT(BSSA14!$A$12^2+(BSSA14_Coeffs!$O19^2))/BSSA14_Coeffs!$N19)+(BSSA14_Coeffs!$L19+BSSA14_Coeffs!$R19)*(SQRT(BSSA14!$A$12^2+(BSSA14_Coeffs!$O19^2))-BSSA14_Coeffs!$N19)), ((BSSA14_Coeffs!$J19+BSSA14_Coeffs!$K19*($A$6-BSSA14_Coeffs!$M19))*LN(SQRT(BSSA14!$A$12^2+(BSSA14_Coeffs!$O19^2))/BSSA14_Coeffs!$N19)+(BSSA14_Coeffs!$L19+BSSA14_Coeffs!$P19)*(SQRT(BSSA14!$A$12^2+(BSSA14_Coeffs!$O19^2))-BSSA14_Coeffs!$N19))))) -> -1.807666525 | G20: =IF($A$15<= BSSA14_Coeffs!$T19, BSSA14_Coeffs!$S19 * LN(BSSA14!$A$15/ 760), BSSA14_Coeffs!$S19* LN(BSSA14_Coeffs!$T19/ 760)) -> 0 | H20: =BSSA14_Coeffs!$V19 + (BSSA14_Coeffs!$X19 * ((EXP(BSSA14_Coeffs!$Y19* (MIN($A$15,760) - 360))) - EXP(BSSA14_Coeffs!$Y19* (760 - 360)))) * LN((BSSA14!$A$38 + BSSA14_Coeffs!$W19) / BSSA14_Coeffs!$W19) -> 0 | I20: 0.006686793915 | J20: =IF($D20 < 0.65, 0, IF(AND($D20 >= 0.65,$I20 <= (BSSA14_Coeffs!$AA19/ BSSA14_Coeffs!$Z19)), BSSA14_Coeffs!$Z19* BSSA14!$I20, IF(AND($D20>= 0.65,$I20 > (BSSA14_Coeffs!$AA19 /BSSA14_Coeffs!$Z19)), BSSA14_Coeffs!$AA19))) -> 0.004266174518 | K20: 0.004266174518 | L20: 0.4021759674 | M20: =IF($A$6<=4.5,BSSA14_Coeffs!$AJ19,IF(AND($A$6>4.5,$A$6<5.5),BSSA14_Coeffs!$AJ19+(BSSA14_Coeffs!$AK19-BSSA14_Coeffs!$AJ19)*(BSSA14!$A$6-4.5),BSSA14_Coeffs!$AK19)) -> 0.315 | N20: =IF($A$6<=4.5,BSSA14_Coeffs!$AH19,IF(AND($A$6>4.5,$A$6<5.5),BSSA14_Coeffs!$AH19+(BSSA14_Coeffs!$AI19-BSSA14_Coeffs!$AH19)*(BSSA14!$A$6-4.5),BSSA14_Coeffs!$AI19)) -> 0.619 | O20: =IF($A$12<=BSSA14_Coeffs!$AB19,BSSA14!$N20,IF(AND($A$12>BSSA14_Coeffs!$AB19,$A$12<=BSSA14_Coeffs!$AC19),$N20+BSSA14_Coeffs!$AD19*(LN($A$12/BSSA14_Coeffs!$AB19)/(LN(BSSA14_Coeffs!$AC19/BSSA14_Coeffs!$AB19))),$N20+BSSA14_Coeffs!$AD19)) -> 0.619 | P20: =IF($A$15>=BSSA14_Coeffs!$AG19,$O20,IF(AND($A$15>=BSSA14_Coeffs!$AF19,$A$15<=BSSA14_Coeffs!$AG19),$O20-BSSA14_Coeffs!$AE19*(LN(BSSA14_Coeffs!$AG19/$A$15)/LN(BSSA14_Coeffs!$AG19/BSSA14_Coeffs!$AF19)),$O20-BSSA14_Coeffs!$AE19)) -> 0.619 | Q20: 0.6945401356 | R20: 0.6945401356 | S20: 0.1793018913 | T20: 0.6945401356
A21: =Main!$B$45 -> 0 | D21: 2 | E21: =IF($A$6<=BSSA14_Coeffs!$I20,(BSSA14_Coeffs!$B20*$A$18+BSSA14_Coeffs!$C20*$A$33+BSSA14_Coeffs!$D20*$A$24+BSSA14_Coeffs!$E20*$A$21+BSSA14_Coeffs!$F20*($A$6-BSSA14_Coeffs!$I20)+BSSA14_Coeffs!$G20*($A$6-BSSA14_Coeffs!I20)^2),(BSSA14_Coeffs!$B20*$A$18+BSSA14_Coeffs!$C20*$A$33+BSSA14_Coeffs!$D20*$A$24+BSSA14_Coeffs!$E20*$A$21+BSSA14_Coeffs!$H20*($A$6-BSSA14_Coeffs!$I20))) -> 0.5586368 | F21: =IF($A$30=0,((BSSA14_Coeffs!$J20+BSSA14_Coeffs!$K20*($A$6-BSSA14_Coeffs!$M20))*LN(SQRT(BSSA14!$A$12^2+(BSSA14_Coeffs!$O20^2))/BSSA14_Coeffs!$N20)+(BSSA14_Coeffs!$L20+BSSA14_Coeffs!$P20)*(SQRT(BSSA14!$A$12^2+(BSSA14_Coeffs!$O20^2))-BSSA14_Coeffs!$N20)),IF($A$30=1,((BSSA14_Coeffs!$J20+BSSA14_Coeffs!$K20*($A$6-BSSA14_Coeffs!$M20))*LN(SQRT(BSSA14!$A$12^2+(BSSA14_Coeffs!$O20^2))/BSSA14_Coeffs!$N20)+(BSSA14_Coeffs!$L20+BSSA14_Coeffs!$Q20)*(SQRT(BSSA14!$A$12^2+(BSSA14_Coeffs!$O20^2))-BSSA14_Coeffs!$N20)),IF($A$30=3,((BSSA14_Coeffs!$J20+BSSA14_Coeffs!$K20*($A$6-BSSA14_Coeffs!$M20))*LN(SQRT(BSSA14!$A$12^2+(BSSA14_Coeffs!$O20^2))/BSSA14_Coeffs!$N20)+(BSSA14_Coeffs!$L20+BSSA14_Coeffs!$R20)*(SQRT(BSSA14!$A$12^2+(BSSA14_Coeffs!$O20^2))-BSSA14_Coeffs!$N20)), ((BSSA14_Coeffs!$J20+BSSA14_Coeffs!$K20*($A$6-BSSA14_Coeffs!$M20))*LN(SQRT(BSSA14!$A$12^2+(BSSA14_Coeffs!$O20^2))/BSSA14_Coeffs!$N20)+(BSSA14_Coeffs!$L20+BSSA14_Coeffs!$P20)*(SQRT(BSSA14!$A$12^2+(BSSA14_Coeffs!$O20^2))-BSSA14_Coeffs!$N20))))) -> -1.878669589 | G21: =IF($A$15<= BSSA14_Coeffs!$T20, BSSA14_Coeffs!$S20 * LN(BSSA14!$A$15/ 760), BSSA14_Coeffs!$S20* LN(BSSA14_Coeffs!$T20/ 760)) -> 0 | H21: =BSSA14_Coeffs!$V20 + (BSSA14_Coeffs!$X20 * ((EXP(BSSA14_Coeffs!$Y20* (MIN($A$15,760) - 360))) - EXP(BSSA14_Coeffs!$Y20* (760 - 360)))) * LN((BSSA14!$A$38 + BSSA14_Coeffs!$W20) / BSSA14_Coeffs!$W20) -> 0 | I21: 0.006686793915 | J21: =IF($D21 < 0.65, 0, IF(AND($D21 >= 0.65,$I21 <= (BSSA14_Coeffs!$AA20/ BSSA14_Coeffs!$Z20)), BSSA14_Coeffs!$Z20* BSSA14!$I21, IF(AND($D21>= 0.65,$I21 > (BSSA14_Coeffs!$AA20 /BSSA14_Coeffs!$Z20)), BSSA14_Coeffs!$AA20))) -> 0.0058241975 | K21: 0.0058241975 | L21: 0.2704895543 | M21: =IF($A$6<=4.5,BSSA14_Coeffs!$AJ20,IF(AND($A$6>4.5,$A$6<5.5),BSSA14_Coeffs!$AJ20+(BSSA14_Coeffs!$AK20-BSSA14_Coeffs!$AJ20)*(BSSA14!$A$6-4.5),BSSA14_Coeffs!$AK20)) -> 0.329 | N21: =IF($A$6<=4.5,BSSA14_Coeffs!$AH20,IF(AND($A$6>4.5,$A$6<5.5),BSSA14_Coeffs!$AH20+(BSSA14_Coeffs!$AI20-BSSA14_Coeffs!$AH20)*(BSSA14!$A$6-4.5),BSSA14_Coeffs!$AI20)) -> 0.618 | O21: =IF($A$12<=BSSA14_Coeffs!$AB20,BSSA14!$N21,IF(AND($A$12>BSSA14_Coeffs!$AB20,$A$12<=BSSA14_Coeffs!$AC20),$N21+BSSA14_Coeffs!$AD20*(LN($A$12/BSSA14_Coeffs!$AB20)/(LN(BSSA14_Coeffs!$AC20/BSSA14_Coeffs!$AB20))),$N21+BSSA14_Coeffs!$AD20)) -> 0.618 | P21: =IF($A$15>=BSSA14_Coeffs!$AG20,$O21,IF(AND($A$15>=BSSA14_Coeffs!$AF20,$A$15<=BSSA14_Coeffs!$AG20),$O21-BSSA14_Coeffs!$AE20*(LN(BSSA14_Coeffs!$AG20/$A$15)/LN(BSSA14_Coeffs!$AG20/BSSA14_Coeffs!$AF20)),$O21-BSSA14_Coeffs!$AE20)) -> 0.618 | Q21: 0.7001178472 | R21: 0.7001178472 | S21: 0.1160020528 | T21: 0.7001178472
D22: 3 | E22: =IF($A$6<=BSSA14_Coeffs!$I21,(BSSA14_Coeffs!$B21*$A$18+BSSA14_Coeffs!$C21*$A$33+BSSA14_Coeffs!$D21*$A$24+BSSA14_Coeffs!$E21*$A$21+BSSA14_Coeffs!$F21*($A$6-BSSA14_Coeffs!$I21)+BSSA14_Coeffs!$G21*($A$6-BSSA14_Coeffs!I21)^2),(BSSA14_Coeffs!$B21*$A$18+BSSA14_Coeffs!$C21*$A$33+BSSA14_Coeffs!$D21*$A$24+BSSA14_Coeffs!$E21*$A$21+BSSA14_Coeffs!$H21*($A$6-BSSA14_Coeffs!$I21))) -> 0.1217848 | F22: =IF($A$30=0,((BSSA14_Coeffs!$J21+BSSA14_Coeffs!$K21*($A$6-BSSA14_Coeffs!$M21))*LN(SQRT(BSSA14!$A$12^2+(BSSA14_Coeffs!$O21^2))/BSSA14_Coeffs!$N21)+(BSSA14_Coeffs!$L21+BSSA14_Coeffs!$P21)*(SQRT(BSSA14!$A$12^2+(BSSA14_Coeffs!$O21^2))-BSSA14_Coeffs!$N21)),IF($A$30=1,((BSSA14_Coeffs!$J21+BSSA14_Coeffs!$K21*($A$6-BSSA14_Coeffs!$M21))*LN(SQRT(BSSA14!$A$12^2+(BSSA14_Coeffs!$O21^2))/BSSA14_Coeffs!$N21)+(BSSA14_Coeffs!$L21+BSSA14_Coeffs!$Q21)*(SQRT(BSSA14!$A$12^2+(BSSA14_Coeffs!$O21^2))-BSSA14_Coeffs!$N21)),IF($A$30=3,((BSSA14_Coeffs!$J21+BSSA14_Coeffs!$K21*($A$6-BSSA14_Coeffs!$M21))*LN(SQRT(BSSA14!$A$12^2+(BSSA14_Coeffs!$O21^2))/BSSA14_Coeffs!$N21)+(BSSA14_Coeffs!$L21+BSSA14_Coeffs!$R21)*(SQRT(BSSA14!$A$12^2+(BSSA14_Coeffs!$O21^2))-BSSA14_Coeffs!$N21)), ((BSSA14_Coeffs!$J21+BSSA14_Coeffs!$K21*($A$6-BSSA14_Coeffs!$M21))*LN(SQRT(BSSA14!$A$12^2+(BSSA14_Coeffs!$O21^2))/BSSA14_Coeffs!$N21)+(BSSA14_Coeffs!$L21+BSSA14_Coeffs!$P21)*(SQRT(BSSA14!$A$12^2+(BSSA14_Coeffs!$O21^2))-BSSA14_Coeffs!$N21))))) -> -1.933179359 | G22: =IF($A$15<= BSSA14_Coeffs!$T21, BSSA14_Coeffs!$S21 * LN(BSSA14!$A$15/ 760), BSSA14_Coeffs!$S21* LN(BSSA14_Coeffs!$T21/ 760)) -> 0 | H22: =BSSA14_Coeffs!$V21 + (BSSA14_Coeffs!$X21 * ((EXP(BSSA14_Coeffs!$Y21* (MIN($A$15,760) - 360))) - EXP(BSSA14_Coeffs!$Y21* (760 - 360)))) * LN((BSSA14!$A$38 + BSSA14_Coeffs!$W21) / BSSA14_Coeffs!$W21) -> 0 | I22: 0.006686793915 | J22: =IF($D22 < 0.65, 0, IF(AND($D22 >= 0.65,$I22 <= (BSSA14_Coeffs!$AA21/ BSSA14_Coeffs!$Z21)), BSSA14_Coeffs!$Z21* BSSA14!$I22, IF(AND($D22>= 0.65,$I22 > (BSSA14_Coeffs!$AA21 /BSSA14_Coeffs!$Z21)), BSSA14_Coeffs!$AA21))) -> 0.007589511094 | K22: 0.007589511094 | L22: 0.1657759247 | M22: =IF($A$6<=4.5,BSSA14_Coeffs!$AJ21,IF(AND($A$6>4.5,$A$6<5.5),BSSA14_Coeffs!$AJ21+(BSSA14_Coeffs!$AK21-BSSA14_Coeffs!$AJ21)*(BSSA14!$A$6-4.5),BSSA14_Coeffs!$AK21)) -> 0.344 | N22: =IF($A$6<=4.5,BSSA14_Coeffs!$AH21,IF(AND($A$6>4.5,$A$6<5.5),BSSA14_Coeffs!$AH21+(BSSA14_Coeffs!$AI21-BSSA14_Coeffs!$AH21)*(BSSA14!$A$6-4.5),BSSA14_Coeffs!$AI21)) -> 0.619 | O22: =IF($A$12<=BSSA14_Coeffs!$AB21,BSSA14!$N22,IF(AND($A$12>BSSA14_Coeffs!$AB21,$A$12<=BSSA14_Coeffs!$AC21),$N22+BSSA14_Coeffs!$AD21*(LN($A$12/BSSA14_Coeffs!$AB21)/(LN(BSSA14_Coeffs!$AC21/BSSA14_Coeffs!$AB21))),$N22+BSSA14_Coeffs!$AD21)) -> 0.619 | P22: =IF($A$15>=BSSA14_Coeffs!$AG21,$O22,IF(AND($A$15>=BSSA14_Coeffs!$AF21,$A$15<=BSSA14_Coeffs!$AG21),$O22-BSSA14_Coeffs!$AE21*(LN(BSSA14_Coeffs!$AG21/$A$15)/LN(BSSA14_Coeffs!$AG21/BSSA14_Coeffs!$AF21)),$O22-BSSA14_Coeffs!$AE21)) -> 0.619 | Q22: 0.7081645289 | R22: 0.7081645289 | S22: 0.06778422046 | T22: 0.7081645289
A23: FNM | D23: 4 | E23: =IF($A$6<=BSSA14_Coeffs!$I22,(BSSA14_Coeffs!$B22*$A$18+BSSA14_Coeffs!$C22*$A$33+BSSA14_Coeffs!$D22*$A$24+BSSA14_Coeffs!$E22*$A$21+BSSA14_Coeffs!$F22*($A$6-BSSA14_Coeffs!$I22)+BSSA14_Coeffs!$G22*($A$6-BSSA14_Coeffs!I22)^2),(BSSA14_Coeffs!$B22*$A$18+BSSA14_Coeffs!$C22*$A$33+BSSA14_Coeffs!$D22*$A$24+BSSA14_Coeffs!$E22*$A$21+BSSA14_Coeffs!$H22*($A$6-BSSA14_Coeffs!$I22))) -> -0.25767112 | F23: =IF($A$30=0,((BSSA14_Coeffs!$J22+BSSA14_Coeffs!$K22*($A$6-BSSA14_Coeffs!$M22))*LN(SQRT(BSSA14!$A$12^2+(BSSA14_Coeffs!$O22^2))/BSSA14_Coeffs!$N22)+(BSSA14_Coeffs!$L22+BSSA14_Coeffs!$P22)*(SQRT(BSSA14!$A$12^2+(BSSA14_Coeffs!$O22^2))-BSSA14_Coeffs!$N22)),IF($A$30=1,((BSSA14_Coeffs!$J22+BSSA14_Coeffs!$K22*($A$6-BSSA14_Coeffs!$M22))*LN(SQRT(BSSA14!$A$12^2+(BSSA14_Coeffs!$O22^2))/BSSA14_Coeffs!$N22)+(BSSA14_Coeffs!$L22+BSSA14_Coeffs!$Q22)*(SQRT(BSSA14!$A$12^2+(BSSA14_Coeffs!$O22^2))-BSSA14_Coeffs!$N22)),IF($A$30=3,((BSSA14_Coeffs!$J22+BSSA14_Coeffs!$K22*($A$6-BSSA14_Coeffs!$M22))*LN(SQRT(BSSA14!$A$12^2+(BSSA14_Coeffs!$O22^2))/BSSA14_Coeffs!$N22)+(BSSA14_Coeffs!$L22+BSSA14_Coeffs!$R22)*(SQRT(BSSA14!$A$12^2+(BSSA14_Coeffs!$O22^2))-BSSA14_Coeffs!$N22)), ((BSSA14_Coeffs!$J22+BSSA14_Coeffs!$K22*($A$6-BSSA14_Coeffs!$M22))*LN(SQRT(BSSA14!$A$12^2+(BSSA14_Coeffs!$O22^2))/BSSA14_Coeffs!$N22)+(BSSA14_Coeffs!$L22+BSSA14_Coeffs!$P22)*(SQRT(BSSA14!$A$12^2+(BSSA14_Coeffs!$O22^2))-BSSA14_Coeffs!$N22))))) -> -1.962562633 | G23: =IF($A$15<= BSSA14_Coeffs!$T22, BSSA14_Coeffs!$S22 * LN(BSSA14!$A$15/ 760), BSSA14_Coeffs!$S22* LN(BSSA14_Coeffs!$T22/ 760)) -> 0 | H23: =BSSA14_Coeffs!$V22 + (BSSA14_Coeffs!$X22 * ((EXP(BSSA14_Coeffs!$Y22* (MIN($A$15,760) - 360))) - EXP(BSSA14_Coeffs!$Y22* (760 - 360)))) * LN((BSSA14!$A$38 + BSSA14_Coeffs!$W22) / BSSA14_Coeffs!$W22) -> 0 | I23: 0.006686793915 | J23: =IF($D23 < 0.65, 0, IF(AND($D23 >= 0.65,$I23 <= (BSSA14_Coeffs!$AA22/ BSSA14_Coeffs!$Z22)), BSSA14_Coeffs!$Z22* BSSA14!$I23, IF(AND($D23>= 0.65,$I23 > (BSSA14_Coeffs!$AA22 /BSSA14_Coeffs!$Z22)), BSSA14_Coeffs!$AA22))) -> 0.008498915066 | K23: 0.008498915066 | L23: 0.1102452286 | M23: =IF($A$6<=4.5,BSSA14_Coeffs!$AJ22,IF(AND($A$6>4.5,$A$6<5.5),BSSA14_Coeffs!$AJ22+(BSSA14_Coeffs!$AK22-BSSA14_Coeffs!$AJ22)*(BSSA14!$A$6-4.5),BSSA14_Coeffs!$AK22)) -> 0.349 | N23: =IF($A$6<=4.5,BSSA14_Coeffs!$AH22,IF(AND($A$6>4.5,$A$6<5.5),BSSA14_Coeffs!$AH22+(BSSA14_Coeffs!$AI22-BSSA14_Coeffs!$AH22)*(BSSA14!$A$6-4.5),BSSA14_Coeffs!$AI22)) -> 0.616 | O23: =IF($A$12<=BSSA14_Coeffs!$AB22,BSSA14!$N23,IF(AND($A$12>BSSA14_Coeffs!$AB22,$A$12<=BSSA14_Coeffs!$AC22),$N23+BSSA14_Coeffs!$AD22*(LN($A$12/BSSA14_Coeffs!$AB22)/(LN(BSSA14_Coeffs!$AC22/BSSA14_Coeffs!$AB22))),$N23+BSSA14_Coeffs!$AD22)) -> 0.616 | P23: =IF($A$15>=BSSA14_Coeffs!$AG22,$O23,IF(AND($A$15>=BSSA14_Coeffs!$AF22,$A$15<=BSSA14_Coeffs!$AG22),$O23-BSSA14_Coeffs!$AE22*(LN(BSSA14_Coeffs!$AG22/$A$15)/LN(BSSA14_Coeffs!$AG22/BSSA14_Coeffs!$AF22)),$O23-BSSA14_Coeffs!$AE22)) -> 0.616 | Q23: 0.7079950565 | R23: 0.7079950565 | S23: 0.04637263681 | T23: 0.7079950565
A24: =Main!$B$48 -> 0 | D24: 5 | E24: =IF($A$6<=BSSA14_Coeffs!$I23,(BSSA14_Coeffs!$B23*$A$18+BSSA14_Coeffs!$C23*$A$33+BSSA14_Coeffs!$D23*$A$24+BSSA14_Coeffs!$E23*$A$21+BSSA14_Coeffs!$F23*($A$6-BSSA14_Coeffs!$I23)+BSSA14_Coeffs!$G23*($A$6-BSSA14_Coeffs!I23)^2),(BSSA14_Coeffs!$B23*$A$18+BSSA14_Coeffs!$C23*$A$33+BSSA14_Coeffs!$D23*$A$24+BSSA14_Coeffs!$E23*$A$21+BSSA14_Coeffs!$H23*($A$6-BSSA14_Coeffs!$I23))) -> -0.5556078 | F24: =IF($A$30=0,((BSSA14_Coeffs!$J23+BSSA14_Coeffs!$K23*($A$6-BSSA14_Coeffs!$M23))*LN(SQRT(BSSA14!$A$12^2+(BSSA14_Coeffs!$O23^2))/BSSA14_Coeffs!$N23)+(BSSA14_Coeffs!$L23+BSSA14_Coeffs!$P23)*(SQRT(BSSA14!$A$12^2+(BSSA14_Coeffs!$O23^2))-BSSA14_Coeffs!$N23)),IF($A$30=1,((BSSA14_Coeffs!$J23+BSSA14_Coeffs!$K23*($A$6-BSSA14_Coeffs!$M23))*LN(SQRT(BSSA14!$A$12^2+(BSSA14_Coeffs!$O23^2))/BSSA14_Coeffs!$N23)+(BSSA14_Coeffs!$L23+BSSA14_Coeffs!$Q23)*(SQRT(BSSA14!$A$12^2+(BSSA14_Coeffs!$O23^2))-BSSA14_Coeffs!$N23)),IF($A$30=3,((BSSA14_Coeffs!$J23+BSSA14_Coeffs!$K23*($A$6-BSSA14_Coeffs!$M23))*LN(SQRT(BSSA14!$A$12^2+(BSSA14_Coeffs!$O23^2))/BSSA14_Coeffs!$N23)+(BSSA14_Coeffs!$L23+BSSA14_Coeffs!$R23)*(SQRT(BSSA14!$A$12^2+(BSSA14_Coeffs!$O23^2))-BSSA14_Coeffs!$N23)), ((BSSA14_Coeffs!$J23+BSSA14_Coeffs!$K23*($A$6-BSSA14_Coeffs!$M23))*LN(SQRT(BSSA14!$A$12^2+(BSSA14_Coeffs!$O23^2))/BSSA14_Coeffs!$N23)+(BSSA14_Coeffs!$L23+BSSA14_Coeffs!$P23)*(SQRT(BSSA14!$A$12^2+(BSSA14_Coeffs!$O23^2))-BSSA14_Coeffs!$N23))))) -> -2.020163104 | G24: =IF($A$15<= BSSA14_Coeffs!$T23, BSSA14_Coeffs!$S23 * LN(BSSA14!$A$15/ 760), BSSA14_Coeffs!$S23* LN(BSSA14_Coeffs!$T23/ 760)) -> 0 | H24: =BSSA14_Coeffs!$V23 + (BSSA14_Coeffs!$X23 * ((EXP(BSSA14_Coeffs!$Y23* (MIN($A$15,760) - 360))) - EXP(BSSA14_Coeffs!$Y23* (760 - 360)))) * LN((BSSA14!$A$38 + BSSA14_Coeffs!$W23) / BSSA14_Coeffs!$W23) -> 0 | I24: 0.006686793915 | J24: =IF($D24 < 0.65, 0, IF(AND($D24 >= 0.65,$I24 <= (BSSA14_Coeffs!$AA23/ BSSA14_Coeffs!$Z23)), BSSA14_Coeffs!$Z23* BSSA14!$I24, IF(AND($D24>= 0.65,$I24 > (BSSA14_Coeffs!$AA23 /BSSA14_Coeffs!$Z23)), BSSA14_Coeffs!$AA23))) -> 0.008886749113 | K24: 0.008886749113 | L24: 0.077289485 | M24: =IF($A$6<=4.5,BSSA14_Coeffs!$AJ23,IF(AND($A$6>4.5,$A$6<5.5),BSSA14_Coeffs!$AJ23+(BSSA14_Coeffs!$AK23-BSSA14_Coeffs!$AJ23)*(BSSA14!$A$6-4.5),BSSA14_Coeffs!$AK23)) -> 0.335 | N24: =IF($A$6<=4.5,BSSA14_Coeffs!$AH23,IF(AND($A$6>4.5,$A$6<5.5),BSSA14_Coeffs!$AH23+(BSSA14_Coeffs!$AI23-BSSA14_Coeffs!$AH23)*(BSSA14!$A$6-4.5),BSSA14_Coeffs!$AI23)) -> 0.622 | O24: =IF($A$12<=BSSA14_Coeffs!$AB23,BSSA14!$N24,IF(AND($A$12>BSSA14_Coeffs!$AB23,$A$12<=BSSA14_Coeffs!$AC23),$N24+BSSA14_Coeffs!$AD23*(LN($A$12/BSSA14_Coeffs!$AB23)/(LN(BSSA14_Coeffs!$AC23/BSSA14_Coeffs!$AB23))),$N24+BSSA14_Coeffs!$AD23)) -> 0.622 | P24: =IF($A$15>=BSSA14_Coeffs!$AG23,$O24,IF(AND($A$15>=BSSA14_Coeffs!$AF23,$A$15<=BSSA14_Coeffs!$AG23),$O24-BSSA14_Coeffs!$AE23*(LN(BSSA14_Coeffs!$AG23/$A$15)/LN(BSSA14_Coeffs!$AG23/BSSA14_Coeffs!$AF23)),$O24-BSSA14_Coeffs!$AE23)) -> 0.622 | Q24: 0.7064764681 | R24: 0.7064764681 | S24: 0.03419785504 | T24: 0.7064764681
D25: 7.5 | E25: =IF($A$6<=BSSA14_Coeffs!$I24,(BSSA14_Coeffs!$B24*$A$18+BSSA14_Coeffs!$C24*$A$33+BSSA14_Coeffs!$D24*$A$24+BSSA14_Coeffs!$E24*$A$21+BSSA14_Coeffs!$F24*($A$6-BSSA14_Coeffs!$I24)+BSSA14_Coeffs!$G24*($A$6-BSSA14_Coeffs!I24)^2),(BSSA14_Coeffs!$B24*$A$18+BSSA14_Coeffs!$C24*$A$33+BSSA14_Coeffs!$D24*$A$24+BSSA14_Coeffs!$E24*$A$21+BSSA14_Coeffs!$H24*($A$6-BSSA14_Coeffs!$I24))) -> -1.24555816 | F25: =IF($A$30=0,((BSSA14_Coeffs!$J24+BSSA14_Coeffs!$K24*($A$6-BSSA14_Coeffs!$M24))*LN(SQRT(BSSA14!$A$12^2+(BSSA14_Coeffs!$O24^2))/BSSA14_Coeffs!$N24)+(BSSA14_Coeffs!$L24+BSSA14_Coeffs!$P24)*(SQRT(BSSA14!$A$12^2+(BSSA14_Coeffs!$O24^2))-BSSA14_Coeffs!$N24)),IF($A$30=1,((BSSA14_Coeffs!$J24+BSSA14_Coeffs!$K24*($A$6-BSSA14_Coeffs!$M24))*LN(SQRT(BSSA14!$A$12^2+(BSSA14_Coeffs!$O24^2))/BSSA14_Coeffs!$N24)+(BSSA14_Coeffs!$L24+BSSA14_Coeffs!$Q24)*(SQRT(BSSA14!$A$12^2+(BSSA14_Coeffs!$O24^2))-BSSA14_Coeffs!$N24)),IF($A$30=3,((BSSA14_Coeffs!$J24+BSSA14_Coeffs!$K24*($A$6-BSSA14_Coeffs!$M24))*LN(SQRT(BSSA14!$A$12^2+(BSSA14_Coeffs!$O24^2))/BSSA14_Coeffs!$N24)+(BSSA14_Coeffs!$L24+BSSA14_Coeffs!$R24)*(SQRT(BSSA14!$A$12^2+(BSSA14_Coeffs!$O24^2))-BSSA14_Coeffs!$N24)), ((BSSA14_Coeffs!$J24+BSSA14_Coeffs!$K24*($A$6-BSSA14_Coeffs!$M24))*LN(SQRT(BSSA14!$A$12^2+(BSSA14_Coeffs!$O24^2))/BSSA14_Coeffs!$N24)+(BSSA14_Coeffs!$L24+BSSA14_Coeffs!$P24)*(SQRT(BSSA14!$A$12^2+(BSSA14_Coeffs!$O24^2))-BSSA14_Coeffs!$N24))))) -> -2.179497539 | G25: =IF($A$15<= BSSA14_Coeffs!$T24, BSSA14_Coeffs!$S24 * LN(BSSA14!$A$15/ 760), BSSA14_Coeffs!$S24* LN(BSSA14_Coeffs!$T24/ 760)) -> 0 | H25: =BSSA14_Coeffs!$V24 + (BSSA14_Coeffs!$X24 * ((EXP(BSSA14_Coeffs!$Y24* (MIN($A$15,760) - 360))) - EXP(BSSA14_Coeffs!$Y24* (760 - 360)))) * LN((BSSA14!$A$38 + BSSA14_Coeffs!$W24) / BSSA14_Coeffs!$W24) -> 0 | I25: 0.006686793915 | J25: =IF($D25 < 0.65, 0, IF(AND($D25 >= 0.65,$I25 <= (BSSA14_Coeffs!$AA24/ BSSA14_Coeffs!$Z24)), BSSA14_Coeffs!$Z24* BSSA14!$I25, IF(AND($D25>= 0.65,$I25 > (BSSA14_Coeffs!$AA24 /BSSA14_Coeffs!$Z24)), BSSA14_Coeffs!$AA24))) -> 0.008886749113 | K25: 0.008886749113 | L25: 0.03305831501 | M25: =IF($A$6<=4.5,BSSA14_Coeffs!$AJ24,IF(AND($A$6>4.5,$A$6<5.5),BSSA14_Coeffs!$AJ24+(BSSA14_Coeffs!$AK24-BSSA14_Coeffs!$AJ24)*(BSSA14!$A$6-4.5),BSSA14_Coeffs!$AK24)) -> 0.27 | N25: =IF($A$6<=4.5,BSSA14_Coeffs!$AH24,IF(AND($A$6>4.5,$A$6<5.5),BSSA14_Coeffs!$AH24+(BSSA14_Coeffs!$AI24-BSSA14_Coeffs!$AH24)*(BSSA14!$A$6-4.5),BSSA14_Coeffs!$AI24)) -> 0.634 | O25: =IF($A$12<=BSSA14_Coeffs!$AB24,BSSA14!$N25,IF(AND($A$12>BSSA14_Coeffs!$AB24,$A$12<=BSSA14_Coeffs!$AC24),$N25+BSSA14_Coeffs!$AD24*(LN($A$12/BSSA14_Coeffs!$AB24)/(LN(BSSA14_Coeffs!$AC24/BSSA14_Coeffs!$AB24))),$N25+BSSA14_Coeffs!$AD24)) -> 0.634 | P25: =IF($A$15>=BSSA14_Coeffs!$AG24,$O25,IF(AND($A$15>=BSSA14_Coeffs!$AF24,$A$15<=BSSA14_Coeffs!$AG24),$O25-BSSA14_Coeffs!$AE24*(LN(BSSA14_Coeffs!$AG24/$A$15)/LN(BSSA14_Coeffs!$AG24/BSSA14_Coeffs!$AF24)),$O25-BSSA14_Coeffs!$AE24)) -> 0.634 | Q25: 0.6890979611 | R25: 0.6890979611 | S25: 0.01740929901 | T25: 0.6890979611
A26: Z1 (km) | B26: If unknown use 999 | D26: 10 | E26: =IF($A$6<=BSSA14_Coeffs!$I25,(BSSA14_Coeffs!$B25*$A$18+BSSA14_Coeffs!$C25*$A$33+BSSA14_Coeffs!$D25*$A$24+BSSA14_Coeffs!$E25*$A$21+BSSA14_Coeffs!$F25*($A$6-BSSA14_Coeffs!$I25)+BSSA14_Coeffs!$G25*($A$6-BSSA14_Coeffs!I25)^2),(BSSA14_Coeffs!$B25*$A$18+BSSA14_Coeffs!$C25*$A$33+BSSA14_Coeffs!$D25*$A$24+BSSA14_Coeffs!$E25*$A$21+BSSA14_Coeffs!$H25*($A$6-BSSA14_Coeffs!$I25))) -> -1.8778256 | F26: =IF($A$30=0,((BSSA14_Coeffs!$J25+BSSA14_Coeffs!$K25*($A$6-BSSA14_Coeffs!$M25))*LN(SQRT(BSSA14!$A$12^2+(BSSA14_Coeffs!$O25^2))/BSSA14_Coeffs!$N25)+(BSSA14_Coeffs!$L25+BSSA14_Coeffs!$P25)*(SQRT(BSSA14!$A$12^2+(BSSA14_Coeffs!$O25^2))-BSSA14_Coeffs!$N25)),IF($A$30=1,((BSSA14_Coeffs!$J25+BSSA14_Coeffs!$K25*($A$6-BSSA14_Coeffs!$M25))*LN(SQRT(BSSA14!$A$12^2+(BSSA14_Coeffs!$O25^2))/BSSA14_Coeffs!$N25)+(BSSA14_Coeffs!$L25+BSSA14_Coeffs!$Q25)*(SQRT(BSSA14!$A$12^2+(BSSA14_Coeffs!$O25^2))-BSSA14_Coeffs!$N25)),IF($A$30=3,((BSSA14_Coeffs!$J25+BSSA14_Coeffs!$K25*($A$6-BSSA14_Coeffs!$M25))*LN(SQRT(BSSA14!$A$12^2+(BSSA14_Coeffs!$O25^2))/BSSA14_Coeffs!$N25)+(BSSA14_Coeffs!$L25+BSSA14_Coeffs!$R25)*(SQRT(BSSA14!$A$12^2+(BSSA14_Coeffs!$O25^2))-BSSA14_Coeffs!$N25)), ((BSSA14_Coeffs!$J25+BSSA14_Coeffs!$K25*($A$6-BSSA14_Coeffs!$M25))*LN(SQRT(BSSA14!$A$12^2+(BSSA14_Coeffs!$O25^2))/BSSA14_Coeffs!$N25)+(BSSA14_Coeffs!$L25+BSSA14_Coeffs!$P25)*(SQRT(BSSA14!$A$12^2+(BSSA14_Coeffs!$O25^2))-BSSA14_Coeffs!$N25))))) -> -2.218970416 | G26: =IF($A$15<= BSSA14_Coeffs!$T25, BSSA14_Coeffs!$S25 * LN(BSSA14!$A$15/ 760), BSSA14_Coeffs!$S25* LN(BSSA14_Coeffs!$T25/ 760)) -> 0 | H26: =BSSA14_Coeffs!$V25 + (BSSA14_Coeffs!$X25 * ((EXP(BSSA14_Coeffs!$Y25* (MIN($A$15,760) - 360))) - EXP(BSSA14_Coeffs!$Y25* (760 - 360)))) * LN((BSSA14!$A$38 + BSSA14_Coeffs!$W25) / BSSA14_Coeffs!$W25) -> 0 | I26: 0.006686793915 | J26: =IF($D26 < 0.65, 0, IF(AND($D26 >= 0.65,$I26 <= (BSSA14_Coeffs!$AA25/ BSSA14_Coeffs!$Z25)), BSSA14_Coeffs!$Z25* BSSA14!$I26, IF(AND($D26>= 0.65,$I26 > (BSSA14_Coeffs!$AA25 /BSSA14_Coeffs!$Z25)), BSSA14_Coeffs!$AA25))) -> 0.007910477202 | K26: 0.007910477202 | L26: 0.01687033129 | M26: =IF($A$6<=4.5,BSSA14_Coeffs!$AJ25,IF(AND($A$6>4.5,$A$6<5.5),BSSA14_Coeffs!$AJ25+(BSSA14_Coeffs!$AK25-BSSA14_Coeffs!$AJ25)*(BSSA14!$A$6-4.5),BSSA14_Coeffs!$AK25)) -> 0.239 | N26: =IF($A$6<=4.5,BSSA14_Coeffs!$AH25,IF(AND($A$6>4.5,$A$6<5.5),BSSA14_Coeffs!$AH25+(BSSA14_Coeffs!$AI25-BSSA14_Coeffs!$AH25)*(BSSA14!$A$6-4.5),BSSA14_Coeffs!$AI25)) -> 0.604 | O26: =IF($A$12<=BSSA14_Coeffs!$AB25,BSSA14!$N26,IF(AND($A$12>BSSA14_Coeffs!$AB25,$A$12<=BSSA14_Coeffs!$AC25),$N26+BSSA14_Coeffs!$AD25*(LN($A$12/BSSA14_Coeffs!$AB25)/(LN(BSSA14_Coeffs!$AC25/BSSA14_Coeffs!$AB25))),$N26+BSSA14_Coeffs!$AD25)) -> 0.604 | P26: =IF($A$15>=BSSA14_Coeffs!$AG25,$O26,IF(AND($A$15>=BSSA14_Coeffs!$AF25,$A$15<=BSSA14_Coeffs!$AG25),$O26-BSSA14_Coeffs!$AE25*(LN(BSSA14_Coeffs!$AG25/$A$15)/LN(BSSA14_Coeffs!$AG25/BSSA14_Coeffs!$AF25)),$O26-BSSA14_Coeffs!$AE25)) -> 0.604 | Q26: 0.6495667787 | R26: 0.6495667787 | S26: 0.01082713345 | T26: 0.6495667787
A27: =Main!$B$63 -> 0.048 | B27: =IF(AND($A$27>=0, $A$27<=3),"",IF(A27=999,"","! Not Applicable !")) -> 
C28: PGA (g) | D28: 0 | E28: =IF($A$6<=BSSA14_Coeffs!$I26,(BSSA14_Coeffs!$B26*$A$18+BSSA14_Coeffs!$C26*$A$33+BSSA14_Coeffs!$D26*$A$24+BSSA14_Coeffs!$E26*$A$21+BSSA14_Coeffs!$F26*($A$6-BSSA14_Coeffs!$I26)+BSSA14_Coeffs!$G26*($A$6-BSSA14_Coeffs!I26)^2),(BSSA14_Coeffs!$B26*$A$18+BSSA14_Coeffs!$C26*$A$33+BSSA14_Coeffs!$D26*$A$24+BSSA14_Coeffs!$E26*$A$21+BSSA14_Coeffs!$H26*($A$6-BSSA14_Coeffs!$I26))) -> 2.4312957 | F28: =IF($A$30=0,((BSSA14_Coeffs!$J26+BSSA14_Coeffs!$K26*($A$6-BSSA14_Coeffs!$M26))*LN(SQRT(BSSA14!$A$12^2+(BSSA14_Coeffs!$O26^2))/BSSA14_Coeffs!$N26)+(BSSA14_Coeffs!$L26+BSSA14_Coeffs!$P26)*(SQRT(BSSA14!$A$12^2+(BSSA14_Coeffs!$O26^2))-BSSA14_Coeffs!$N26)),IF($A$30=1,((BSSA14_Coeffs!$J26+BSSA14_Coeffs!$K26*($A$6-BSSA14_Coeffs!$M26))*LN(SQRT(BSSA14!$A$12^2+(BSSA14_Coeffs!$O26^2))/BSSA14_Coeffs!$N26)+(BSSA14_Coeffs!$L26+BSSA14_Coeffs!$Q26)*(SQRT(BSSA14!$A$12^2+(BSSA14_Coeffs!$O26^2))-BSSA14_Coeffs!$N26)),IF($A$30=3,((BSSA14_Coeffs!$J26+BSSA14_Coeffs!$K26*($A$6-BSSA14_Coeffs!$M26))*LN(SQRT(BSSA14!$A$12^2+(BSSA14_Coeffs!$O26^2))/BSSA14_Coeffs!$N26)+(BSSA14_Coeffs!$L26+BSSA14_Coeffs!$R26)*(SQRT(BSSA14!$A$12^2+(BSSA14_Coeffs!$O26^2))-BSSA14_Coeffs!$N26)), ((BSSA14_Coeffs!$J26+BSSA14_Coeffs!$K26*($A$6-BSSA14_Coeffs!$M26))*LN(SQRT(BSSA14!$A$12^2+(BSSA14_Coeffs!$O26^2))/BSSA14_Coeffs!$N26)+(BSSA14_Coeffs!$L26+BSSA14_Coeffs!$P26)*(SQRT(BSSA14!$A$12^2+(BSSA14_Coeffs!$O26^2))-BSSA14_Coeffs!$N26))))) -> -1.088361038 | G28: =IF($A$15<= BSSA14_Coeffs!$T26, BSSA14_Coeffs!$S26 * LN(BSSA14!$A$15/ 760), BSSA14_Coeffs!$S26* LN(BSSA14_Coeffs!$T26/ 760)) -> 0 | H28: =BSSA14_Coeffs!$V26 + (BSSA14_Coeffs!$X26 * ((EXP(BSSA14_Coeffs!$Y26* (MIN($A$15,760) - 360))) - EXP(BSSA14_Coeffs!$Y26* (760 - 360)))) * LN((BSSA14!$A$38 + BSSA14_Coeffs!$W26) / BSSA14_Coeffs!$W26) -> 0 | I28: =IF($A$27=999,0,$A$27-(IF($A$30 = 0, (EXP(-7.15 / 4 * LN(($A$15 ^ 4 + 570.94 ^ 4) / (1360 ^ 4 + 570.94 ^ 4))) / 1000), IF($A$30 = 2, (EXP(-5.23 / 2 * LN(($A$15 ^ 2 + 412.39 ^ 2) / (1360 ^ 2 + 412.39 ^ 2))) / 1000), (EXP(-7.15 / 4 * LN(($A$15 ^ 4 + 570.94 ^ 4) / (1360 ^ 4 + 570.94 ^ 4))) / 1000))))) -> 0.006686793915 | J28: =IF($D28 < 0.65, 0, IF(AND($D28 >= 0.65,$I28 <= (BSSA14_Coeffs!$AA26/ BSSA14_Coeffs!$Z26)), BSSA14_Coeffs!$Z26* BSSA14!$I28, IF(AND($D28>= 0.65,$I28 > (BSSA14_Coeffs!$AA26 /BSSA14_Coeffs!$Z26)), BSSA14_Coeffs!$AA26))) -> 0 | K28: =SUM(G28:H28,J28) -> 0 | L28: =EXP(SUM($E28,$F28,$K28,I28)) -> 3.855965601 | M28: =IF($A$6<=4.5,BSSA14_Coeffs!$AJ26,IF(AND($A$6>4.5,$A$6<5.5),BSSA14_Coeffs!$AJ26+(BSSA14_Coeffs!$AK26-BSSA14_Coeffs!$AJ26)*(BSSA14!$A$6-4.5),BSSA14_Coeffs!$AK26)) -> 0.348 | N28: =IF($A$6<=4.5,BSSA14_Coeffs!$AH26,IF(AND($A$6>4.5,$A$6<5.5),BSSA14_Coeffs!$AH26+(BSSA14_Coeffs!$AI26-BSSA14_Coeffs!$AH26)*(BSSA14!$A$6-4.5),BSSA14_Coeffs!$AI26)) -> 0.495 | O28: =IF($A$12<=BSSA14_Coeffs!$AB26,BSSA14!$N28,IF(AND($A$12>BSSA14_Coeffs!$AB26,$A$12<=BSSA14_Coeffs!$AC26),$N28+BSSA14_Coeffs!$AD26*(LN($A$12/BSSA14_Coeffs!$AB26)/(LN(BSSA14_Coeffs!$AC26/BSSA14_Coeffs!$AB26))),$N28+BSSA14_Coeffs!$AD26)) -> 0.495 | P28: =IF($A$15>=BSSA14_Coeffs!$AG26,$O28,IF(AND($A$15>=BSSA14_Coeffs!$AF26,$A$15<=BSSA14_Coeffs!$AG26),$O28-BSSA14_Coeffs!$AE26*(LN(BSSA14_Coeffs!$AG26/$A$15)/LN(BSSA14_Coeffs!$AG26/BSSA14_Coeffs!$AF26)),$O28-BSSA14_Coeffs!$AE26)) -> 0.495 | Q28: =SQRT($M28^2+$N28^2) -> 0.6050859443 | R28: =SQRT($M28^2+$P28^2) -> 0.6050859443 | S28: =BSSA_14($A$6,$A$12,$A$18,$A$21,$A$24,$A$15,$A$30,$A$27,$A$38,$D28) -> 0.4409512129 | T28: =BSSA14_stdev($A$6,$A$12,$A$15,D28) -> 0.6050859443
A29: Region | C29: PGV (cm/s) | D29: -1 | E29: =IF($A$6<=BSSA14_Coeffs!$I27,(BSSA14_Coeffs!$B27*$A$18+BSSA14_Coeffs!$C27*$A$33+BSSA14_Coeffs!$D27*$A$24+BSSA14_Coeffs!$E27*$A$21+BSSA14_Coeffs!$F27*($A$6-BSSA14_Coeffs!$I27)+BSSA14_Coeffs!$G27*($A$6-BSSA14_Coeffs!I27)^2),(BSSA14_Coeffs!$B27*$A$18+BSSA14_Coeffs!$C27*$A$33+BSSA14_Coeffs!$D27*$A$24+BSSA14_Coeffs!$E27*$A$21+BSSA14_Coeffs!$H27*($A$6-BSSA14_Coeffs!$I27))) -> 5.666504 | F29: =IF($A$30=0,((BSSA14_Coeffs!$J27+BSSA14_Coeffs!$K27*($A$6-BSSA14_Coeffs!$M27))*LN(SQRT(BSSA14!$A$12^2+(BSSA14_Coeffs!$O27^2))/BSSA14_Coeffs!$N27)+(BSSA14_Coeffs!$L27+BSSA14_Coeffs!$P27)*(SQRT(BSSA14!$A$12^2+(BSSA14_Coeffs!$O27^2))-BSSA14_Coeffs!$N27)),IF($A$30=1,((BSSA14_Coeffs!$J27+BSSA14_Coeffs!$K27*($A$6-BSSA14_Coeffs!$M27))*LN(SQRT(BSSA14!$A$12^2+(BSSA14_Coeffs!$O27^2))/BSSA14_Coeffs!$N27)+(BSSA14_Coeffs!$L27+BSSA14_Coeffs!$Q27)*(SQRT(BSSA14!$A$12^2+(BSSA14_Coeffs!$O27^2))-BSSA14_Coeffs!$N27)),IF($A$30=3,((BSSA14_Coeffs!$J27+BSSA14_Coeffs!$K27*($A$6-BSSA14_Coeffs!$M27))*LN(SQRT(BSSA14!$A$12^2+(BSSA14_Coeffs!$O27^2))/BSSA14_Coeffs!$N27)+(BSSA14_Coeffs!$L27+BSSA14_Coeffs!$R27)*(SQRT(BSSA14!$A$12^2+(BSSA14_Coeffs!$O27^2))-BSSA14_Coeffs!$N27)), ((BSSA14_Coeffs!$J27+BSSA14_Coeffs!$K27*($A$6-BSSA14_Coeffs!$M27))*LN(SQRT(BSSA14!$A$12^2+(BSSA14_Coeffs!$O27^2))/BSSA14_Coeffs!$N27)+(BSSA14_Coeffs!$L27+BSSA14_Coeffs!$P27)*(SQRT(BSSA14!$A$12^2+(BSSA14_Coeffs!$O27^2))-BSSA14_Coeffs!$N27))))) -> -1.532684357 | G29: =IF($A$15<= BSSA14_Coeffs!$T27, BSSA14_Coeffs!$S27 * LN(BSSA14!$A$15/ 760), BSSA14_Coeffs!$S27* LN(BSSA14_Coeffs!$T27/ 760)) -> 0 | H29: =BSSA14_Coeffs!$V27 + (BSSA14_Coeffs!$X27 * ((EXP(BSSA14_Coeffs!$Y27* (MIN($A$15,760) - 360))) - EXP(BSSA14_Coeffs!$Y27* (760 - 360)))) * LN((BSSA14!$A$38 + BSSA14_Coeffs!$W27) / BSSA14_Coeffs!$W27) -> 0 | I29: =IF($A$27=999,0,$A$27-(IF($A$30 = 0, (EXP(-7.15 / 4 * LN(($A$15 ^ 4 + 570.94 ^ 4) / (1360 ^ 4 + 570.94 ^ 4))) / 1000), IF($A$30 = 2, (EXP(-5.23 / 2 * LN(($A$15 ^ 2 + 412.39 ^ 2) / (1360 ^ 2 + 412.39 ^ 2))) / 1000), (EXP(-7.15 / 4 * LN(($A$15 ^ 4 + 570.94 ^ 4) / (1360 ^ 4 + 570.94 ^ 4))) / 1000))))) -> 0.006686793915 | J29: =IF($D29 < 0.65, 0, IF(AND($D29 >= 0.65,$I29 <= (BSSA14_Coeffs!$AA27/ BSSA14_Coeffs!$Z27)), BSSA14_Coeffs!$Z27* BSSA14!$I29, IF(AND($D29>= 0.65,$I29 > (BSSA14_Coeffs!$AA27 /BSSA14_Coeffs!$Z27)), BSSA14_Coeffs!$AA27))) -> 0 | K29: =SUM(G29:H29,J29) -> 0 | L29: =EXP(SUM($E29,$F29,$K29,I29)) -> 62.83463514 | M29: =IF($A$6<=4.5,BSSA14_Coeffs!$AJ27,IF(AND($A$6>4.5,$A$6<5.5),BSSA14_Coeffs!$AJ27+(BSSA14_Coeffs!$AK27-BSSA14_Coeffs!$AJ27)*(BSSA14!$A$6-4.5),BSSA14_Coeffs!$AK27)) -> 0.346 | N29: =IF($A$6<=4.5,BSSA14_Coeffs!$AH27,IF(AND($A$6>4.5,$A$6<5.5),BSSA14_Coeffs!$AH27+(BSSA14_Coeffs!$AI27-BSSA14_Coeffs!$AH27)*(BSSA14!$A$6-4.5),BSSA14_Coeffs!$AI27)) -> 0.552 | O29: =IF($A$12<=BSSA14_Coeffs!$AB27,BSSA14!$N29,IF(AND($A$12>BSSA14_Coeffs!$AB27,$A$12<=BSSA14_Coeffs!$AC27),$N29+BSSA14_Coeffs!$AD27*(LN($A$12/BSSA14_Coeffs!$AB27)/(LN(BSSA14_Coeffs!$AC27/BSSA14_Coeffs!$AB27))),$N29+BSSA14_Coeffs!$AD27)) -> 0.552 | P29: =IF($A$15>=BSSA14_Coeffs!$AG27,$O29,IF(AND($A$15>=BSSA14_Coeffs!$AF27,$A$15<=BSSA14_Coeffs!$AG27),$O29-BSSA14_Coeffs!$AE27*(LN(BSSA14_Coeffs!$AG27/$A$15)/LN(BSSA14_Coeffs!$AG27/BSSA14_Coeffs!$AF27)),$O29-BSSA14_Coeffs!$AE27)) -> 0.552 | Q29: =SQRT($M29^2+$N29^2) -> 0.651475249 | R29: =SQRT($M29^2+$P29^2) -> 0.651475249 | S29: =BSSA_14($A$6,$A$12,$A$18,$A$21,$A$24,$A$15,$A$30,$A$27,$A$38,$D29) -> 39.66366949 | T29: =BSSA14_stdev($A$6,$A$12,$A$15,D29) -> 0.651475249
A30: =Main!$B$101 -> 0
A32: SS
A33: =Main!$B$92 -> 1 | B33: Auto calculated
A35: Input variables with defaults (If entered 999 as input):
A37: PGAr (g) | B37: =Main!$C$86 -> 
A38: =PGAr_calc($A$6,$A$12,$A$18,$A$21,$A$24,$A$30,$D$28) -> 0.4409512129
A40: dz1 | B40: 0: DEFAULT
A41: =IF($A$27=999,0,dz1_calc($A$15,$A$27,$A$30,D$6)) -> 0.006686793915
A79: Definition of Parameters
A81: PSA
A82: PGA
A83: PGV
A84: A1100
A85: M
A86: RRUP
A87: RJB
A88: RX
A89: FRV
A90: FNM
A91: ZHYP
A92: ZTOR
A93: ZBOR
A94: ZBOT
A95: W
A96: d
A97: VS30
A98: Z2.5
A99: SJ
A100: SJP
A101: SCH

Sheet BSSA14_Coeffs
A1: BOORE - STEWART - SEYHAN - ATKINSON - NGA-WEST2 MODEL COEFFICIENTS [BSSA14] (EQS 2013) & sigma updates:
A3: T (s) | B3: e0 | C3: e1 | D3: e2 | E3: e3 | F3: e4 | G3: e5 | H3: e6 | I3: Mh | J3: c1 | K3: c2 | L3: c3 | M3: Mref | N3: Rref (km) | O3: h (km) | P3: Dc3 (globalCATW) | Q3: Dc3 (ChinaTurkey) | R3: Dc3 (ItalyJapan) | S3: c | T3: Vc (m/s) | U3: Vref (m/s) | V3: f1 | W3: f3 | X3: f4 | Y3: f5 | Z3: f6 (1/km) | AA3: f7 | AB3: R1 (km) | AC3: R2 (km) | AD3: DfR | AE3: DfV | AF3: V1 (m/s) | AG3: V2 (m/s) | AH3: f1 | AI3: f2 | AJ3: t1 | AK3: t2
A5: 0.01 | B5: 0.4534 | C5: 0.4916 | D5: 0.2519 | E5: 0.4599 | F5: 1.421 | G5: 0.04932 | H5: -0.1659 | I5: 5.5 | J5: -1.134 | K5: 0.1916 | L5: -0.008088 | M5: 4.5 | N5: 1 | O5: 4.5 | P5: 0 | Q5: 0.00282 | R5: -0.00244 | S5: -0.6037 | T5: 1500.2 | U5: 760 | V5: 0 | W5: 0.1 | X5: -0.1483 | Y5: -0.00701 | Z5: -9.9 | AA5: -9.9 | AB5: 111.67 | AC5: 270 | AD5: 0.096 | AE5: 0.07 | AF5: 225 | AG5: 300 | AH5: 0.698 | AI5: 0.499 | AJ5: 0.402 | AK5: 0.345
A6: 0.02 | B6: 0.48598 | C6: 0.52359 | D6: 0.29707 | E6: 0.48875 | F6: 1.4331 | G6: 0.053388 | H6: -0.16561 | I6: 5.5 | J6: -1.1394 | K6: 0.18962 | L6: -0.008074 | M6: 4.5 | N6: 1 | O6: 4.5 | P6: 0 | Q6: 0.00278 | R6: -0.00234 | S6: -0.5739 | T6: 1500.36 | U6: 760 | V6: 0 | W6: 0.1 | X6: -0.1471 | Y6: -0.00728 | Z6: -9.9 | AA6: -9.9 | AB6: 113.1 | AC6: 270 | AD6: 0.092 | AE6: 0.03 | AF6: 225 | AG6: 300 | AH6: 0.702 | AI6: 0.502 | AJ6: 0.409 | AK6: 0.346
A7: 0.03 | B7: 0.56916 | C7: 0.6092 | D7: 0.40391 | E7: 0.55783 | F7: 1.4261 | G7: 0.061444 | H7: -0.1669 | I7: 5.5 | J7: -1.1421 | K7: 0.18842 | L7: -0.008336 | M7: 4.5 | N7: 1 | O7: 4.49 | P7: 0 | Q7: 0.00276 | R7: -0.00217 | S7: -0.5341 | T7: 1502.95 | U7: 760 | V7: 0 | W7: 0.1 | X7: -0.1549 | Y7: -0.00735 | Z7: -9.9 | AA7: -9.9 | AB7: 112.13 | AC7: 270 | AD7: 0.081 | AE7: 0.029 | AF7: 225 | AG7: 300 | AH7: 0.721 | AI7: 0.514 | AJ7: 0.445 | AK7: 0.364
A8: 0.05 | B8: 0.75436 | C8: 0.79905 | D8: 0.60652 | E8: 0.72726 | F8: 1.3974 | G8: 0.067357 | H8: -0.18082 | I8: 5.5 | J8: -1.1159 | K8: 0.18709 | L8: -0.009819 | M8: 4.5 | N8: 1 | O8: 4.2 | P8: 0 | Q8: 0.00296 | R8: -0.00199 | S8: -0.458 | T8: 1501.42 | U8: 760 | V8: 0 | W8: 0.1 | X8: -0.1963 | Y8: -0.00647 | Z8: -9.9 | AA8: -9.9 | AB8: 97.93 | AC8: 270 | AD8: 0.063 | AE8: 0.03 | AF8: 225 | AG8: 300 | AH8: 0.753 | AI8: 0.532 | AJ8: 0.503 | AK8: 0.426
A9: 0.075 | B9: 0.96447 | C9: 1.0077 | D9: 0.77678 | E9: 0.9563 | F9: 1.4174 | G9: 0.073549 | H9: -0.19665 | I9: 5.5 | J9: -1.0831 | K9: 0.18225 | L9: -0.01058 | M9: 4.5 | N9: 1 | O9: 4.04 | P9: 0 | Q9: 0.00296 | R9: -0.00216 | S9: -0.4441 | T9: 1494 | U9: 760 | V9: 0 | W9: 0.1 | X9: -0.2287 | Y9: -0.00573 | Z9: -9.9 | AA9: -9.9 | AB9: 85.99 | AC9: 270.04 | AD9: 0.064 | AE9: 0.022 | AF9: 225 | AG9: 300 | AH9: 0.745 | AI9: 0.542 | AJ9: 0.474 | AK9: 0.466
A10: 0.1 | B10: 1.1268 | C10: 1.1669 | D10: 0.8871 | E10: 1.1454 | F10: 1.4293 | G10: 0.055231 | H10: -0.19838 | I10: 5.54 | J10: -1.0652 | K10: 0.17203 | L10: -0.0102 | M10: 4.5 | N10: 1 | O10: 4.13 | P10: 0 | Q10: 0.00288 | R10: -0.00244 | S10: -0.4872 | T10: 1479.12 | U10: 760 | V10: 0 | W10: 0.1 | X10: -0.2492 | Y10: -0.0056 | Z10: -9.9 | AA10: -9.9 | AB10: 79.59 | AC10: 270.09 | AD10: 0.087 | AE10: 0.014 | AF10: 225 | AG10: 300 | AH10: 0.728 | AI10: 0.541 | AJ10: 0.415 | AK10: 0.458
A11: 0.15 | B11: 1.3095 | C11: 1.3481 | D11: 1.0648 | E11: 1.3324 | F11: 1.2844 | G11: -0.042065 | H11: -0.18234 | I11: 5.74 | J11: -1.0532 | K11: 0.15401 | L11: -0.008977 | M11: 4.5 | N11: 1 | O11: 4.39 | P11: 0 | Q11: 0.00279 | R11: -0.00271 | S11: -0.5796 | T11: 1442.85 | U11: 760 | V11: 0 | W11: 0.1 | X11: -0.2571 | Y11: -0.00585 | Z11: -9.9 | AA11: -9.9 | AB11: 81.33 | AC11: 270.16 | AD11: 0.12 | AE11: 0.015 | AF11: 225 | AG11: 300 | AH11: 0.72 | AI11: 0.537 | AJ11: 0.354 | AK11: 0.388
A12: 0.2 | B12: 1.3255 | C12: 1.359 | D12: 1.122 | E12: 1.3414 | F12: 1.1349 | G12: -0.11096 | H12: -0.15852 | I12: 5.92 | J12: -1.0607 | K12: 0.14489 | L12: -0.007717 | M12: 4.5 | N12: 1 | O12: 4.61 | P12: 0 | Q12: 0.00261 | R12: -0.00297 | S12: -0.6876 | T12: 1392.61 | U12: 760 | V12: 0 | W12: 0.1 | X12: -0.2466 | Y12: -0.00614 | Z12: -9.9 | AA12: -9.9 | AB12: 90.91 | AC12: 270 | AD12: 0.136 | AE12: 0.045 | AF12: 225 | AG12: 300 | AH12: 0.711 | AI12: 0.539 | AJ12: 0.344 | AK12: 0.309
A13: 0.25 | B13: 1.2766 | C13: 1.3017 | D13: 1.0828 | E13: 1.3052 | F13: 1.0166 | G13: -0.16213 | H13: -0.12784 | I13: 6.05 | J13: -1.0773 | K13: 0.13925 | L13: -0.006517 | M13: 4.5 | N13: 1 | O13: 4.78 | P13: 0 | Q13: 0.00244 | R13: -0.00314 | S13: -0.7718 | T13: 1356.21 | U13: 760 | V13: 0 | W13: 0.1 | X13: -0.2357 | Y13: -0.00644 | Z13: -9.9 | AA13: -9.9 | AB13: 97.04 | AC13: 269.45 | AD13: 0.141 | AE13: 0.055 | AF13: 225 | AG13: 300 | AH13: 0.698 | AI13: 0.547 | AJ13: 0.35 | AK13: 0.266
A14: 0.3 | B14: 1.2217 | C14: 1.2401 | D14: 1.0246 | E14: 1.2653 | F14: 0.95676 | G14: -0.1959 | H14: -0.092855 | I14: 6.14 | J14: -1.0948 | K14: 0.13388 | L14: -0.005475 | M14: 4.5 | N14: 1 | O14: 4.93 | P14: 0 | Q14: 0.0022 | R14: -0.0033 | S14: -0.8417 | T14: 1308.47 | U14: 760 | V14: 0 | W14: 0.1 | X14: -0.2191 | Y14: -0.0067 | Z14: -9.9 | AA14: -9.9 | AB14: 103.15 | AC14: 268.59 | AD14: 0.138 | AE14: 0.05 | AF14: 225 | AG14: 300 | AH14: 0.675 | AI14: 0.561 | AJ14: 0.363 | AK14: 0.229
A15: 0.4 | B15: 1.1046 | C15: 1.1214 | D15: 0.89765 | E15: 1.1552 | F15: 0.96766 | G15: -0.22608 | H15: -0.023189 | I15: 6.2 | J15: -1.1243 | K15: 0.12512 | L15: -0.004053 | M15: 4.5 | N15: 1 | O15: 5.16 | P15: 0 | Q15: 0.00211 | R15: -0.00321 | S15: -0.9109 | T15: 1252.66 | U15: 760 | V15: 0 | W15: 0.1 | X15: -0.1958 | Y15: -0.00713 | Z15: -9.9 | AA15: -9.9 | AB15: 106.02 | AC15: 266.54 | AD15: 0.122 | AE15: 0.049 | AF15: 225 | AG15: 300 | AH15: 0.643 | AI15: 0.58 | AJ15: 0.381 | AK15: 0.21
A16: 0.5 | B16: 0.96991 | C16: 0.99106 | D16: 0.7615 | E16: 1.012 | F16: 1.0384 | G16: -0.23522 | H16: 0.029119 | I16: 6.2 | J16: -1.1459 | K16: 0.12015 | L16: -0.00322 | M16: 4.5 | N16: 1 | O16: 5.34 | P16: 0 | Q16: 0.00235 | R16: -0.00291 | S16: -0.9693 | T16: 1203.91 | U16: 760 | V16: 0 | W16: 0.1 | X16: -0.1704 | Y16: -0.00744 | Z16: -9.9 | AA16: -9.9 | AB16: 105.54 | AC16: 265 | AD16: 0.109 | AE16: 0.06 | AF16: 225 | AG16: 300 | AH16: 0.615 | AI16: 0.599 | AJ16: 0.41 | AK16: 0.224
A17: 0.75 | B17: 0.66903 | C17: 0.69737 | D17: 0.47523 | E17: 0.69173 | F17: 1.2871 | G17: -0.21591 | H17: 0.10829 | I17: 6.2 | J17: -1.1777 | K17: 0.11054 | L17: -0.001931 | M17: 4.5 | N17: 1 | O17: 5.6 | P17: 0 | Q17: 0.00269 | R17: -0.00253 | S17: -1.0154 | T17: 1147.59 | U17: 760 | V17: 0 | W17: 0.1 | X17: -0.1387 | Y17: -0.00812 | Z17: 0.092 | AA17: 0.059 | AB17: 108.39 | AC17: 266.51 | AD17: 0.1 | AE17: 0.07 | AF17: 225 | AG17: 300 | AH17: 0.581 | AI17: 0.622 | AJ17: 0.457 | AK17: 0.266
A18: 1 | B18: 0.3932 | C18: 0.4218 | D18: 0.207 | E18: 0.4124 | F18: 1.5004 | G18: -0.18983 | H18: 0.17895 | I18: 6.2 | J18: -1.193 | K18: 0.10248 | L18: -0.00121 | M18: 4.5 | N18: 1 | O18: 5.74 | P18: 0 | Q18: 0.00292 | R18: -0.00209 | S18: -1.05 | T18: 1109.95 | U18: 760 | V18: 0 | W18: 0.1 | X18: -0.1052 | Y18: -0.00844 | Z18: 0.367 | AA18: 0.208 | AB18: 116.39 | AC18: 270 | AD18: 0.098 | AE18: 0.02 | AF18: 225 | AG18: 300 | AH18: 0.553 | AI18: 0.625 | AJ18: 0.498 | AK18: 0.298
A19: 1.5 | B19: -0.14954 | C19: -0.11866 | D19: -0.3138 | E19: -0.1437 | F19: 1.7622 | G19: -0.1467 | H19: 0.33896 | I19: 6.2 | J19: -1.2063 | K19: 0.09645 | L19: -0.000365 | M19: 4.5 | N19: 1 | O19: 6.18 | P19: 0 | Q19: 0.00304 | R19: -0.00152 | S19: -1.0454 | T19: 1072.39 | U19: 760 | V19: 0 | W19: 0.1 | X19: -0.0679 | Y19: -0.00771 | Z19: 0.638 | AA19: 0.309 | AB19: 125.38 | AC19: 262.41 | AD19: 0.104 | AE19: 0.01 | AF19: 225 | AG19: 300 | AH19: 0.532 | AI19: 0.619 | AJ19: 0.525 | AK19: 0.315
A20: 2 | B20: -0.58669 | C20: -0.55003 | D20: -0.71466 | E20: -0.60658 | F20: 1.9152 | G20: -0.11237 | H20: 0.44788 | I20: 6.2 | J20: -1.2159 | K20: 0.09636 | L20: 0 | M20: 4.5 | N20: 1 | O20: 6.54 | P20: 0 | Q20: 0.00292 | R20: -0.00117 | S20: -1.0392 | T20: 1009.49 | U20: 760 | V20: 0 | W20: 0.1 | X20: -0.0361 | Y20: -0.00479 | Z20: 0.871 | AA20: 0.382 | AB20: 130.37 | AC20: 240.14 | AD20: 0.105 | AE20: 0.008 | AF20: 225 | AG20: 300 | AH20: 0.526 | AI20: 0.618 | AJ20: 0.532 | AK20: 0.329
A21: 3 | B21: -1.1898 | C21: -1.142 | D21: -1.23 | E21: -1.2664 | F21: 2.1323 | G21: -0.04332 | H21: 0.62694 | I21: 6.2 | J21: -1.2179 | K21: 0.09764 | L21: 0 | M21: 4.5 | N21: 1 | O21: 6.93 | P21: 0 | Q21: 0.00262 | R21: -0.00119 | S21: -1.0112 | T21: 922.43 | U21: 760 | V21: 0 | W21: 0.1 | X21: -0.0136 | Y21: -0.00183 | Z21: 1.135 | AA21: 0.516 | AB21: 130.36 | AC21: 195 | AD21: 0.088 | AE21: 0 | AF21: 225 | AG21: 300 | AH21: 0.534 | AI21: 0.619 | AJ21: 0.537 | AK21: 0.344
A22: 4 | B22: -1.6388 | C22: -1.5748 | D22: -1.6673 | E22: -1.7516 | F22: 2.204 | G22: -0.014642 | H22: 0.76303 | I22: 6.2 | J22: -1.2162 | K22: 0.10218 | L22: -5.2e-05 | M22: 4.5 | N22: 1 | O22: 7.32 | P22: 0 | Q22: 0.00261 | R22: -0.00108 | S22: -0.9694 | T22: 844.48 | U22: 760 | V22: 0 | W22: 0.1 | X22: -0.0032 | Y22: -0.00152 | Z22: 1.271 | AA22: 0.629 | AB22: 129.49 | AC22: 199.45 | AD22: 0.07 | AE22: 0 | AF22: 225 | AG22: 300 | AH22: 0.536 | AI22: 0.616 | AJ22: 0.543 | AK22: 0.349
A23: 5 | B23: -1.966 | C23: -1.8882 | D23: -2.0245 | E23: -2.0928 | F23: 2.2299 | G23: -0.014855 | H23: 0.87314 | I23: 6.2 | J23: -1.2189 | K23: 0.10353 | L23: 0 | M23: 4.5 | N23: 1 | O23: 7.78 | P23: 0 | Q23: 0.0026 | R23: -0.00057 | S23: -0.9195 | T23: 793.13 | U23: 760 | V23: 0 | W23: 0.1 | X23: -0.0003 | Y23: -0.00144 | Z23: 1.329 | AA23: 0.738 | AB23: 130.22 | AC23: 230 | AD23: 0.061 | AE23: 0 | AF23: 225 | AG23: 300 | AH23: 0.528 | AI23: 0.622 | AJ23: 0.532 | AK23: 0.335
A24: 7.5 | B24: -2.5865 | C24: -2.4874 | D24: -2.8176 | E24: -2.6854 | F24: 2.1187 | G24: -0.081606 | H24: 1.0121 | I24: 6.2 | J24: -1.2543 | K24: 0.12507 | L24: 0 | M24: 4.5 | N24: 1 | O24: 9.48 | P24: 0 | Q24: 0.0026 | R24: 0.00038 | S24: -0.7766 | T24: 771.01 | U24: 760 | V24: 0 | W24: 0.1 | X24: -0.0001 | Y24: -0.00137 | Z24: 1.329 | AA24: 0.809 | AB24: 130.72 | AC24: 250.39 | AD24: 0.058 | AE24: 0 | AF24: 225 | AG24: 300 | AH24: 0.512 | AI24: 0.634 | AJ24: 0.511 | AK24: 0.27
A25: 10 | B25: -3.0702 | C25: -2.9537 | D25: -3.3776 | E25: -3.1726 | F25: 1.8837 | G25: -0.15096 | H25: 1.0651 | I25: 6.2 | J25: -1.3253 | K25: 0.15183 | L25: 0 | M25: 4.5 | N25: 1 | O25: 9.66 | P25: 0 | Q25: 0.00303 | R25: 0.00149 | S25: -0.6558 | T25: 775 | U25: 760 | V25: 0 | W25: 0.1 | X25: 0 | Y25: -0.00136 | Z25: 1.183 | AA25: 0.703 | AB25: 130 | AC25: 210 | AD25: 0.06 | AE25: 0 | AF25: 225 | AG25: 300 | AH25: 0.51 | AI25: 0.604 | AJ25: 0.487 | AK25: 0.239
A26: 0 | B26: 0.4473 | C26: 0.4856 | D26: 0.2459 | E26: 0.4539 | F26: 1.431 | G26: 0.05053 | H26: -0.1662 | I26: 5.5 | J26: -1.134 | K26: 0.1917 | L26: -0.008088 | M26: 4.5 | N26: 1 | O26: 4.5 | P26: 0 | Q26: 0.00286 | R26: -0.00255 | S26: -0.6 | T26: 1500 | U26: 760 | V26: 0 | W26: 0.1 | X26: -0.15 | Y26: -0.00701 | Z26: -9.9 | AA26: -9.9 | AB26: 110 | AC26: 270 | AD26: 0.1 | AE26: 0.07 | AF26: 225 | AG26: 300 | AH26: 0.695 | AI26: 0.495 | AJ26: 0.398 | AK26: 0.348
A27: -1 | B27: 5.037 | C27: 5.078 | D27: 4.849 | E27: 5.033 | F27: 1.073 | G27: -0.1536 | H27: 0.2252 | I27: 6.2 | J27: -1.243 | K27: 0.1489 | L27: -0.00344 | M27: 4.5 | N27: 1 | O27: 5.3 | P27: 0 | Q27: 0.00435 | R27: -0.00033 | S27: -0.84 | T27: 1300 | U27: 760 | V27: 0 | W27: 0.1 | X27: -0.1 | Y27: -0.00844 | Z27: -9.9 | AA27: -9.9 | AB27: 105 | AC27: 272 | AD27: 0.082 | AE27: 0.08 | AF27: 225 | AG27: 300 | AH27: 0.644 | AI27: 0.552 | AJ27: 0.401 | AK27: 0.346

Sheet CB14
A1: CAMPBELL-BOZORGNIA NGA-WEST2 MODEL COEFFICIENTS [CB14] (EQS 2013) & c0 updates:
A3: Input variables | B3: Errors and warnings | Y3: CB_14 (M, Rrup, Rjb, Rx, Frv, Fnm, Fhw,Ztor, W, del, Vs30, Z25, Zhyp, Wd, Zhypd, Region, A, T)
Y4: Visual Basic Calculations
A5: M | C5: GMP | D5: T (s) | Q5: a | R5: flnY | S5: f | T5: tlnY | U5: t | V5: fc | W5: s | X5: sArb | Y5: Median | Z5: s
A6: =Main!$B$24 -> 6.8 | B6: =IF(AND($A$6>=3.3, $A$6<=8.5),"","! Not Applicable !") ->  | C6: PSa (g) | D6: 0.01 | Q6: =IF($A$18<CB14_Coeffs!$AG5,CB14_Coeffs!$AH5*$A$56*(($A$56+CB14_Coeffs!$AJ5*($A$18/CB14_Coeffs!$AG5)^CB14_Coeffs!$AK5)^(-1)-($A$56+CB14_Coeffs!$AJ5)^(-1)),0) -> -0.02936093635 | R6: =IF($A$6<4.5,CB14_Coeffs!$AL5,IF($A$6>5.5,CB14_Coeffs!$AM5,CB14_Coeffs!$AM5+(CB14_Coeffs!$AL5-CB14_Coeffs!$AM5)*(5.5-$A$6)*(5.5-4.5))) -> 0.492 | S6: =SQRT(($R6^2-CB14_Coeffs!$AP5^2)+CB14_Coeffs!$AP5^2+$Q6^2*($R$28^2-CB14_Coeffs!$AP$26^2)+2*$Q6*CB14_Coeffs!$AR5*SQRT($R6^2-CB14_Coeffs!$AP5^2)*SQRT($R$28^2-CB14_Coeffs!$AP$26^2)) -> 0.4829757821 | T6: =IF($A$6<4.5,CB14_Coeffs!$AN5,IF($A$6>5.5,CB14_Coeffs!$AO5,CB14_Coeffs!$AO5+(CB14_Coeffs!$AN5-CB14_Coeffs!$AO5)*(5.5-$A$6)*(5.5-4.5))) -> 0.325 | U6: =SQRT($T6^2+$Q6^2*$T$28^2+2*$Q6*CB14_Coeffs!$AR5*$T6*T$28) -> 0.3155457785 | V6: =CB14_Coeffs!AQ5 -> 0.166 | W6: =SQRT(S6^2+U6^2) -> 0.576918317 | X6: =SQRT(V6^2+W6^2) -> 0.6003255321 | Y6: =CB_14($A$6,$A$9,$A$12,$A$15,$A$21,$A$24,$A$27,$A$33,$A$42,$A$30,$A$18,$A$39,$A$36,$A$62,$A$71,$A$68,$A$48,$A$56,$D6) -> 0.4984355943 | Z6: =W6 -> 0.576918317
D7: 0.02 | Q7: =IF($A$18<CB14_Coeffs!$AG6,CB14_Coeffs!$AH6*$A$56*(($A$56+CB14_Coeffs!$AJ6*($A$18/CB14_Coeffs!$AG6)^CB14_Coeffs!$AK6)^(-1)-($A$56+CB14_Coeffs!$AJ6)^(-1)),0) -> -0.03017789327 | R7: =IF($A$6<4.5,CB14_Coeffs!$AL6,IF($A$6>5.5,CB14_Coeffs!$AM6,CB14_Coeffs!$AM6+(CB14_Coeffs!$AL6-CB14_Coeffs!$AM6)*(5.5-$A$6)*(5.5-4.5))) -> 0.496 | S7: =SQRT(($R7^2-CB14_Coeffs!$AP6^2)+CB14_Coeffs!$AP6^2+$Q7^2*($R$28^2-CB14_Coeffs!$AP$26^2)+2*$Q7*CB14_Coeffs!$AR6*SQRT($R7^2-CB14_Coeffs!$AP6^2)*SQRT($R$28^2-CB14_Coeffs!$AP$26^2)) -> 0.4866997411 | T7: =IF($A$6<4.5,CB14_Coeffs!$AN6,IF($A$6>5.5,CB14_Coeffs!$AO6,CB14_Coeffs!$AO6+(CB14_Coeffs!$AN6-CB14_Coeffs!$AO6)*(5.5-$A$6)*(5.5-4.5))) -> 0.326 | U7: =SQRT($T7^2+$Q7^2*$T$28^2+2*$Q7*CB14_Coeffs!$AR6*$T7*T$28) -> 0.3163027494 | V7: =CB14_Coeffs!AQ6 -> 0.166 | W7: =SQRT(S7^2+U7^2) -> 0.5804516063 | X7: =SQRT(V7^2+W7^2) -> 0.6037218459 | Y7: =CB_14($A$6,$A$9,$A$12,$A$15,$A$21,$A$24,$A$27,$A$33,$A$42,$A$30,$A$18,$A$39,$A$36,$A$62,$A$71,$A$68,$A$48,$A$56,$D7) -> 0.5192864432 | Z7: 0.5804516063
A8: RRUP | D8: 0.03 | Q8: =IF($A$18<CB14_Coeffs!$AG7,CB14_Coeffs!$AH7*$A$56*(($A$56+CB14_Coeffs!$AJ7*($A$18/CB14_Coeffs!$AG7)^CB14_Coeffs!$AK7)^(-1)-($A$56+CB14_Coeffs!$AJ7)^(-1)),0) -> -0.0440647078 | R8: =IF($A$6<4.5,CB14_Coeffs!$AL7,IF($A$6>5.5,CB14_Coeffs!$AM7,CB14_Coeffs!$AM7+(CB14_Coeffs!$AL7-CB14_Coeffs!$AM7)*(5.5-$A$6)*(5.5-4.5))) -> 0.503 | S8: =SQRT(($R8^2-CB14_Coeffs!$AP7^2)+CB14_Coeffs!$AP7^2+$Q8^2*($R$28^2-CB14_Coeffs!$AP$26^2)+2*$Q8*CB14_Coeffs!$AR7*SQRT($R8^2-CB14_Coeffs!$AP7^2)*SQRT($R$28^2-CB14_Coeffs!$AP$26^2)) -> 0.4895133249 | T8: =IF($A$6<4.5,CB14_Coeffs!$AN7,IF($A$6>5.5,CB14_Coeffs!$AO7,CB14_Coeffs!$AO7+(CB14_Coeffs!$AN7-CB14_Coeffs!$AO7)*(5.5-$A$6)*(5.5-4.5))) -> 0.344 | U8: =SQRT($T8^2+$Q8^2*$T$28^2+2*$Q8*CB14_Coeffs!$AR7*$T8*T$28) -> 0.3300182886 | V8: =CB14_Coeffs!AQ7 -> 0.165 | W8: 0.590368839 | X8: 0.6129929576 | Y8: =CB_14($A$6,$A$9,$A$12,$A$15,$A$21,$A$24,$A$27,$A$33,$A$42,$A$30,$A$18,$A$39,$A$36,$A$62,$A$71,$A$68,$A$48,$A$56,$D8) -> 0.619340104 | Z8: 0.590368839
A9: =Main!$B$27 -> 3.16 | B9: =IF(AND($A$9>=0, $A$9<=300),"","! Not Applicable !") ->  | D9: 0.05 | Q9: =IF($A$18<CB14_Coeffs!$AG8,CB14_Coeffs!$AH8*$A$56*(($A$56+CB14_Coeffs!$AJ8*($A$18/CB14_Coeffs!$AG8)^CB14_Coeffs!$AK8)^(-1)-($A$56+CB14_Coeffs!$AJ8)^(-1)),0) -> -0.09000510938 | R9: =IF($A$6<4.5,CB14_Coeffs!$AL8,IF($A$6>5.5,CB14_Coeffs!$AM8,CB14_Coeffs!$AM8+(CB14_Coeffs!$AL8-CB14_Coeffs!$AM8)*(5.5-$A$6)*(5.5-4.5))) -> 0.52 | S9: =SQRT(($R9^2-CB14_Coeffs!$AP8^2)+CB14_Coeffs!$AP8^2+$Q9^2*($R$28^2-CB14_Coeffs!$AP$26^2)+2*$Q9*CB14_Coeffs!$AR8*SQRT($R9^2-CB14_Coeffs!$AP8^2)*SQRT($R$28^2-CB14_Coeffs!$AP$26^2)) -> 0.4936251476 | T9: =IF($A$6<4.5,CB14_Coeffs!$AN8,IF($A$6>5.5,CB14_Coeffs!$AO8,CB14_Coeffs!$AO8+(CB14_Coeffs!$AN8-CB14_Coeffs!$AO8)*(5.5-$A$6)*(5.5-4.5))) -> 0.377 | U9: =SQRT($T9^2+$Q9^2*$T$28^2+2*$Q9*CB14_Coeffs!$AR8*$T9*T$28) -> 0.3499594394 | V9: =CB14_Coeffs!AQ8 -> 0.162 | W9: 0.6050928818 | X9: 0.6264035405 | Y9: =CB_14($A$6,$A$9,$A$12,$A$15,$A$21,$A$24,$A$27,$A$33,$A$42,$A$30,$A$18,$A$39,$A$36,$A$62,$A$71,$A$68,$A$48,$A$56,$D9) -> 0.8441481102 | Z9: 0.6050928818
D10: 0.075 | Q10: =IF($A$18<CB14_Coeffs!$AG9,CB14_Coeffs!$AH9*$A$56*(($A$56+CB14_Coeffs!$AJ9*($A$18/CB14_Coeffs!$AG9)^CB14_Coeffs!$AK9)^(-1)-($A$56+CB14_Coeffs!$AJ9)^(-1)),0) -> -0.1083945099 | R10: =IF($A$6<4.5,CB14_Coeffs!$AL9,IF($A$6>5.5,CB14_Coeffs!$AM9,CB14_Coeffs!$AM9+(CB14_Coeffs!$AL9-CB14_Coeffs!$AM9)*(5.5-$A$6)*(5.5-4.5))) -> 0.535 | S10: =SQRT(($R10^2-CB14_Coeffs!$AP9^2)+CB14_Coeffs!$AP9^2+$Q10^2*($R$28^2-CB14_Coeffs!$AP$26^2)+2*$Q10*CB14_Coeffs!$AR9*SQRT($R10^2-CB14_Coeffs!$AP9^2)*SQRT($R$28^2-CB14_Coeffs!$AP$26^2)) -> 0.504772577 | T10: =IF($A$6<4.5,CB14_Coeffs!$AN9,IF($A$6>5.5,CB14_Coeffs!$AO9,CB14_Coeffs!$AO9+(CB14_Coeffs!$AN9-CB14_Coeffs!$AO9)*(5.5-$A$6)*(5.5-4.5))) -> 0.418 | U10: =SQRT($T10^2+$Q10^2*$T$28^2+2*$Q10*CB14_Coeffs!$AR9*$T10*T$28) -> 0.3873764402 | V10: =CB14_Coeffs!AQ9 -> 0.158 | W10: 0.6362828466 | X10: 0.6556064833 | Y10: =CB_14($A$6,$A$9,$A$12,$A$15,$A$21,$A$24,$A$27,$A$33,$A$42,$A$30,$A$18,$A$39,$A$36,$A$62,$A$71,$A$68,$A$48,$A$56,$D10) -> 0.9838534756 | Z10: 0.6362828466
A11: RJB | D11: 0.1 | Q11: =IF($A$18<CB14_Coeffs!$AG10,CB14_Coeffs!$AH10*$A$56*(($A$56+CB14_Coeffs!$AJ10*($A$18/CB14_Coeffs!$AG10)^CB14_Coeffs!$AK10)^(-1)-($A$56+CB14_Coeffs!$AJ10)^(-1)),0) -> -0.100896818 | R11: =IF($A$6<4.5,CB14_Coeffs!$AL10,IF($A$6>5.5,CB14_Coeffs!$AM10,CB14_Coeffs!$AM10+(CB14_Coeffs!$AL10-CB14_Coeffs!$AM10)*(5.5-$A$6)*(5.5-4.5))) -> 0.543 | S11: =SQRT(($R11^2-CB14_Coeffs!$AP10^2)+CB14_Coeffs!$AP10^2+$Q11^2*($R$28^2-CB14_Coeffs!$AP$26^2)+2*$Q11*CB14_Coeffs!$AR10*SQRT($R11^2-CB14_Coeffs!$AP10^2)*SQRT($R$28^2-CB14_Coeffs!$AP$26^2)) -> 0.5151811871 | T11: =IF($A$6<4.5,CB14_Coeffs!$AN10,IF($A$6>5.5,CB14_Coeffs!$AO10,CB14_Coeffs!$AO10+(CB14_Coeffs!$AN10-CB14_Coeffs!$AO10)*(5.5-$A$6)*(5.5-4.5))) -> 0.426 | U11: =SQRT($T11^2+$Q11^2*$T$28^2+2*$Q11*CB14_Coeffs!$AR10*$T11*T$28) -> 0.3980572077 | V11: =CB14_Coeffs!AQ10 -> 0.17 | W11: 0.651046232 | X11: 0.6728753199 | Y11: 0.9957717027 | Z11: 0.651046232
A12: =Main!$B$30 -> 1 | D12: 0.15 | Q12: =IF($A$18<CB14_Coeffs!$AG11,CB14_Coeffs!$AH11*$A$56*(($A$56+CB14_Coeffs!$AJ11*($A$18/CB14_Coeffs!$AG11)^CB14_Coeffs!$AK11)^(-1)-($A$56+CB14_Coeffs!$AJ11)^(-1)),0) -> -0.05359299427 | R12: =IF($A$6<4.5,CB14_Coeffs!$AL11,IF($A$6>5.5,CB14_Coeffs!$AM11,CB14_Coeffs!$AM11+(CB14_Coeffs!$AL11-CB14_Coeffs!$AM11)*(5.5-$A$6)*(5.5-4.5))) -> 0.543 | S12: =SQRT(($R12^2-CB14_Coeffs!$AP11^2)+CB14_Coeffs!$AP11^2+$Q12^2*($R$28^2-CB14_Coeffs!$AP$26^2)+2*$Q12*CB14_Coeffs!$AR11*SQRT($R12^2-CB14_Coeffs!$AP11^2)*SQRT($R$28^2-CB14_Coeffs!$AP$26^2)) -> 0.5279335768 | T12: =IF($A$6<4.5,CB14_Coeffs!$AN11,IF($A$6>5.5,CB14_Coeffs!$AO11,CB14_Coeffs!$AO11+(CB14_Coeffs!$AN11-CB14_Coeffs!$AO11)*(5.5-$A$6)*(5.5-4.5))) -> 0.387 | U12: =SQRT($T12^2+$Q12^2*$T$28^2+2*$Q12*CB14_Coeffs!$AR11*$T12*T$28) -> 0.3719760474 | V12: =CB14_Coeffs!AQ11 -> 0.18 | W12: 0.6458173436 | X12: 0.6704327269 | Y12: 0.9943470554 | Z12: 0.6458173436
D13: 0.2 | Q13: =IF($A$18<CB14_Coeffs!$AG12,CB14_Coeffs!$AH12*$A$56*(($A$56+CB14_Coeffs!$AJ12*($A$18/CB14_Coeffs!$AG12)^CB14_Coeffs!$AK12)^(-1)-($A$56+CB14_Coeffs!$AJ12)^(-1)),0) -> 0 | R13: =IF($A$6<4.5,CB14_Coeffs!$AL12,IF($A$6>5.5,CB14_Coeffs!$AM12,CB14_Coeffs!$AM12+(CB14_Coeffs!$AL12-CB14_Coeffs!$AM12)*(5.5-$A$6)*(5.5-4.5))) -> 0.552 | S13: =SQRT(($R13^2-CB14_Coeffs!$AP12^2)+CB14_Coeffs!$AP12^2+$Q13^2*($R$28^2-CB14_Coeffs!$AP$26^2)+2*$Q13*CB14_Coeffs!$AR12*SQRT($R13^2-CB14_Coeffs!$AP12^2)*SQRT($R$28^2-CB14_Coeffs!$AP$26^2)) -> 0.552 | T13: =IF($A$6<4.5,CB14_Coeffs!$AN12,IF($A$6>5.5,CB14_Coeffs!$AO12,CB14_Coeffs!$AO12+(CB14_Coeffs!$AN12-CB14_Coeffs!$AO12)*(5.5-$A$6)*(5.5-4.5))) -> 0.338 | U13: =SQRT($T13^2+$Q13^2*$T$28^2+2*$Q13*CB14_Coeffs!$AR12*$T13*T$28) -> 0.338 | V13: =CB14_Coeffs!AQ12 -> 0.186 | W13: 0.6472619253 | X13: 0.6734567544 | Y13: 0.903102823 | Z13: 0.6472619253
A14: RX | D14: 0.25 | Q14: =IF($A$18<CB14_Coeffs!$AG13,CB14_Coeffs!$AH13*$A$56*(($A$56+CB14_Coeffs!$AJ13*($A$18/CB14_Coeffs!$AG13)^CB14_Coeffs!$AK13)^(-1)-($A$56+CB14_Coeffs!$AJ13)^(-1)),0) -> 0 | R14: =IF($A$6<4.5,CB14_Coeffs!$AL13,IF($A$6>5.5,CB14_Coeffs!$AM13,CB14_Coeffs!$AM13+(CB14_Coeffs!$AL13-CB14_Coeffs!$AM13)*(5.5-$A$6)*(5.5-4.5))) -> 0.545 | S14: =SQRT(($R14^2-CB14_Coeffs!$AP13^2)+CB14_Coeffs!$AP13^2+$Q14^2*($R$28^2-CB14_Coeffs!$AP$26^2)+2*$Q14*CB14_Coeffs!$AR13*SQRT($R14^2-CB14_Coeffs!$AP13^2)*SQRT($R$28^2-CB14_Coeffs!$AP$26^2)) -> 0.545 | T14: =IF($A$6<4.5,CB14_Coeffs!$AN13,IF($A$6>5.5,CB14_Coeffs!$AO13,CB14_Coeffs!$AO13+(CB14_Coeffs!$AN13-CB14_Coeffs!$AO13)*(5.5-$A$6)*(5.5-4.5))) -> 0.316 | U14: =SQRT($T14^2+$Q14^2*$T$28^2+2*$Q14*CB14_Coeffs!$AR13*$T14*T$28) -> 0.316 | V14: =CB14_Coeffs!AQ13 -> 0.191 | W14: 0.6299849205 | X14: 0.6583023621 | Y14: 0.8279296198 | Z14: 0.6299849205
A15: =Main!$B$33 -> 1 | D15: 0.3 | Q15: =IF($A$18<CB14_Coeffs!$AG14,CB14_Coeffs!$AH14*$A$56*(($A$56+CB14_Coeffs!$AJ14*($A$18/CB14_Coeffs!$AG14)^CB14_Coeffs!$AK14)^(-1)-($A$56+CB14_Coeffs!$AJ14)^(-1)),0) -> 0 | R15: =IF($A$6<4.5,CB14_Coeffs!$AL14,IF($A$6>5.5,CB14_Coeffs!$AM14,CB14_Coeffs!$AM14+(CB14_Coeffs!$AL14-CB14_Coeffs!$AM14)*(5.5-$A$6)*(5.5-4.5))) -> 0.568 | S15: =SQRT(($R15^2-CB14_Coeffs!$AP14^2)+CB14_Coeffs!$AP14^2+$Q15^2*($R$28^2-CB14_Coeffs!$AP$26^2)+2*$Q15*CB14_Coeffs!$AR14*SQRT($R15^2-CB14_Coeffs!$AP14^2)*SQRT($R$28^2-CB14_Coeffs!$AP$26^2)) -> 0.568 | T15: =IF($A$6<4.5,CB14_Coeffs!$AN14,IF($A$6>5.5,CB14_Coeffs!$AO14,CB14_Coeffs!$AO14+(CB14_Coeffs!$AN14-CB14_Coeffs!$AO14)*(5.5-$A$6)*(5.5-4.5))) -> 0.3 | U15: =SQRT($T15^2+$Q15^2*$T$28^2+2*$Q15*CB14_Coeffs!$AR14*$T15*T$28) -> 0.3 | V15: =CB14_Coeffs!AQ14 -> 0.198 | W15: 0.6423581555 | X15: 0.6721815231 | Y15: =CB_14($A$6,$A$9,$A$12,$A$15,$A$21,$A$24,$A$27,$A$33,$A$42,$A$30,$A$18,$A$39,$A$36,$A$62,$A$71,$A$68,$A$48,$A$56,$D15) -> 0.7489210603 | Z15: 0.6423581555
D16: 0.4 | Q16: =IF($A$18<CB14_Coeffs!$AG15,CB14_Coeffs!$AH15*$A$56*(($A$56+CB14_Coeffs!$AJ15*($A$18/CB14_Coeffs!$AG15)^CB14_Coeffs!$AK15)^(-1)-($A$56+CB14_Coeffs!$AJ15)^(-1)),0) -> 0 | R16: =IF($A$6<4.5,CB14_Coeffs!$AL15,IF($A$6>5.5,CB14_Coeffs!$AM15,CB14_Coeffs!$AM15+(CB14_Coeffs!$AL15-CB14_Coeffs!$AM15)*(5.5-$A$6)*(5.5-4.5))) -> 0.593 | S16: =SQRT(($R16^2-CB14_Coeffs!$AP15^2)+CB14_Coeffs!$AP15^2+$Q16^2*($R$28^2-CB14_Coeffs!$AP$26^2)+2*$Q16*CB14_Coeffs!$AR15*SQRT($R16^2-CB14_Coeffs!$AP15^2)*SQRT($R$28^2-CB14_Coeffs!$AP$26^2)) -> 0.593 | T16: =IF($A$6<4.5,CB14_Coeffs!$AN15,IF($A$6>5.5,CB14_Coeffs!$AO15,CB14_Coeffs!$AO15+(CB14_Coeffs!$AN15-CB14_Coeffs!$AO15)*(5.5-$A$6)*(5.5-4.5))) -> 0.264 | U16: =SQRT($T16^2+$Q16^2*$T$28^2+2*$Q16*CB14_Coeffs!$AR15*$T16*T$28) -> 0.264 | V16: =CB14_Coeffs!AQ15 -> 0.206 | W16: 0.6491109304 | X16: 0.6810146841 | Y16: 0.6471519692 | Z16: 0.6491109304
A17: VS30 | D17: 0.5 | Q17: =IF($A$18<CB14_Coeffs!$AG16,CB14_Coeffs!$AH16*$A$56*(($A$56+CB14_Coeffs!$AJ16*($A$18/CB14_Coeffs!$AG16)^CB14_Coeffs!$AK16)^(-1)-($A$56+CB14_Coeffs!$AJ16)^(-1)),0) -> 0 | R17: =IF($A$6<4.5,CB14_Coeffs!$AL16,IF($A$6>5.5,CB14_Coeffs!$AM16,CB14_Coeffs!$AM16+(CB14_Coeffs!$AL16-CB14_Coeffs!$AM16)*(5.5-$A$6)*(5.5-4.5))) -> 0.611 | S17: =SQRT(($R17^2-CB14_Coeffs!$AP16^2)+CB14_Coeffs!$AP16^2+$Q17^2*($R$28^2-CB14_Coeffs!$AP$26^2)+2*$Q17*CB14_Coeffs!$AR16*SQRT($R17^2-CB14_Coeffs!$AP16^2)*SQRT($R$28^2-CB14_Coeffs!$AP$26^2)) -> 0.611 | T17: =IF($A$6<4.5,CB14_Coeffs!$AN16,IF($A$6>5.5,CB14_Coeffs!$AO16,CB14_Coeffs!$AO16+(CB14_Coeffs!$AN16-CB14_Coeffs!$AO16)*(5.5-$A$6)*(5.5-4.5))) -> 0.263 | U17: =SQRT($T17^2+$Q17^2*$T$28^2+2*$Q17*CB14_Coeffs!$AR16*$T17*T$28) -> 0.263 | V17: =CB14_Coeffs!AQ16 -> 0.208 | W17: 0.6651992183 | X17: 0.6969605441 | Y17: 0.5371370771 | Z17: 0.6651992183
A18: =Main!$B$39 -> 760 | B18: =IF($A$18<150,"! Not Applicable !", IF(AND($A$18>=150, $A$18<=1500),"","! Not Applicable !")) ->  | D18: 0.75 | Q18: =IF($A$18<CB14_Coeffs!$AG17,CB14_Coeffs!$AH17*$A$56*(($A$56+CB14_Coeffs!$AJ17*($A$18/CB14_Coeffs!$AG17)^CB14_Coeffs!$AK17)^(-1)-($A$56+CB14_Coeffs!$AJ17)^(-1)),0) -> 0 | R18: =IF($A$6<4.5,CB14_Coeffs!$AL17,IF($A$6>5.5,CB14_Coeffs!$AM17,CB14_Coeffs!$AM17+(CB14_Coeffs!$AL17-CB14_Coeffs!$AM17)*(5.5-$A$6)*(5.5-4.5))) -> 0.633 | S18: =SQRT(($R18^2-CB14_Coeffs!$AP17^2)+CB14_Coeffs!$AP17^2+$Q18^2*($R$28^2-CB14_Coeffs!$AP$26^2)+2*$Q18*CB14_Coeffs!$AR17*SQRT($R18^2-CB14_Coeffs!$AP17^2)*SQRT($R$28^2-CB14_Coeffs!$AP$26^2)) -> 0.633 | T18: =IF($A$6<4.5,CB14_Coeffs!$AN17,IF($A$6>5.5,CB14_Coeffs!$AO17,CB14_Coeffs!$AO17+(CB14_Coeffs!$AN17-CB14_Coeffs!$AO17)*(5.5-$A$6)*(5.5-4.5))) -> 0.326 | U18: =SQRT($T18^2+$Q18^2*$T$28^2+2*$Q18*CB14_Coeffs!$AR17*$T18*T$28) -> 0.326 | V18: =CB14_Coeffs!AQ17 -> 0.221 | W18: 0.712014747 | X18: 0.7455239768 | Y18: =CB_14($A$6,$A$9,$A$12,$A$15,$A$21,$A$24,$A$27,$A$33,$A$42,$A$30,$A$18,$A$39,$A$36,$A$62,$A$71,$A$68,$A$48,$A$56,$D18) -> 0.388250198 | Z18: 0.712014747
D19: 1 | Q19: =IF($A$18<CB14_Coeffs!$AG18,CB14_Coeffs!$AH18*$A$56*(($A$56+CB14_Coeffs!$AJ18*($A$18/CB14_Coeffs!$AG18)^CB14_Coeffs!$AK18)^(-1)-($A$56+CB14_Coeffs!$AJ18)^(-1)),0) -> 0 | R19: =IF($A$6<4.5,CB14_Coeffs!$AL18,IF($A$6>5.5,CB14_Coeffs!$AM18,CB14_Coeffs!$AM18+(CB14_Coeffs!$AL18-CB14_Coeffs!$AM18)*(5.5-$A$6)*(5.5-4.5))) -> 0.628 | S19: =SQRT(($R19^2-CB14_Coeffs!$AP18^2)+CB14_Coeffs!$AP18^2+$Q19^2*($R$28^2-CB14_Coeffs!$AP$26^2)+2*$Q19*CB14_Coeffs!$AR18*SQRT($R19^2-CB14_Coeffs!$AP18^2)*SQRT($R$28^2-CB14_Coeffs!$AP$26^2)) -> 0.628 | T19: =IF($A$6<4.5,CB14_Coeffs!$AN18,IF($A$6>5.5,CB14_Coeffs!$AO18,CB14_Coeffs!$AO18+(CB14_Coeffs!$AN18-CB14_Coeffs!$AO18)*(5.5-$A$6)*(5.5-4.5))) -> 0.353 | U19: =SQRT($T19^2+$Q19^2*$T$28^2+2*$Q19*CB14_Coeffs!$AR18*$T19*T$28) -> 0.353 | V19: =CB14_Coeffs!AQ18 -> 0.225 | W19: 0.7204116879 | X19: 0.7547304154 | Y19: 0.2957293125 | Z19: 0.7204116879
A20: FRV | D20: 1.5 | Q20: =IF($A$18<CB14_Coeffs!$AG19,CB14_Coeffs!$AH19*$A$56*(($A$56+CB14_Coeffs!$AJ19*($A$18/CB14_Coeffs!$AG19)^CB14_Coeffs!$AK19)^(-1)-($A$56+CB14_Coeffs!$AJ19)^(-1)),0) -> 0 | R20: =IF($A$6<4.5,CB14_Coeffs!$AL19,IF($A$6>5.5,CB14_Coeffs!$AM19,CB14_Coeffs!$AM19+(CB14_Coeffs!$AL19-CB14_Coeffs!$AM19)*(5.5-$A$6)*(5.5-4.5))) -> 0.603 | S20: =SQRT(($R20^2-CB14_Coeffs!$AP19^2)+CB14_Coeffs!$AP19^2+$Q20^2*($R$28^2-CB14_Coeffs!$AP$26^2)+2*$Q20*CB14_Coeffs!$AR19*SQRT($R20^2-CB14_Coeffs!$AP19^2)*SQRT($R$28^2-CB14_Coeffs!$AP$26^2)) -> 0.603 | T20: =IF($A$6<4.5,CB14_Coeffs!$AN19,IF($A$6>5.5,CB14_Coeffs!$AO19,CB14_Coeffs!$AO19+(CB14_Coeffs!$AN19-CB14_Coeffs!$AO19)*(5.5-$A$6)*(5.5-4.5))) -> 0.399 | U20: =SQRT($T20^2+$Q20^2*$T$28^2+2*$Q20*CB14_Coeffs!$AR19*$T20*T$28) -> 0.399 | V20: =CB14_Coeffs!AQ19 -> 0.222 | W20: 0.7230560144 | X20: 0.7563689576 | Y20: 0.1778922293 | Z20: 0.7230560144
A21: =Main!$B$45 -> 0 | B21: =IF(AND($A$21=1,$A$6<=8),"",IF($A$21=0,"","! Not Applicable !")) ->  | D21: 2 | Q21: =IF($A$18<CB14_Coeffs!$AG20,CB14_Coeffs!$AH20*$A$56*(($A$56+CB14_Coeffs!$AJ20*($A$18/CB14_Coeffs!$AG20)^CB14_Coeffs!$AK20)^(-1)-($A$56+CB14_Coeffs!$AJ20)^(-1)),0) -> 0 | R21: =IF($A$6<4.5,CB14_Coeffs!$AL20,IF($A$6>5.5,CB14_Coeffs!$AM20,CB14_Coeffs!$AM20+(CB14_Coeffs!$AL20-CB14_Coeffs!$AM20)*(5.5-$A$6)*(5.5-4.5))) -> 0.588 | S21: =SQRT(($R21^2-CB14_Coeffs!$AP20^2)+CB14_Coeffs!$AP20^2+$Q21^2*($R$28^2-CB14_Coeffs!$AP$26^2)+2*$Q21*CB14_Coeffs!$AR20*SQRT($R21^2-CB14_Coeffs!$AP20^2)*SQRT($R$28^2-CB14_Coeffs!$AP$26^2)) -> 0.588 | T21: =IF($A$6<4.5,CB14_Coeffs!$AN20,IF($A$6>5.5,CB14_Coeffs!$AO20,CB14_Coeffs!$AO20+(CB14_Coeffs!$AN20-CB14_Coeffs!$AO20)*(5.5-$A$6)*(5.5-4.5))) -> 0.4 | U21: =SQRT($T21^2+$Q21^2*$T$28^2+2*$Q21*CB14_Coeffs!$AR20*$T21*T$28) -> 0.4 | V21: =CB14_Coeffs!AQ20 -> 0.226 | W21: 0.7111568041 | X21: 0.7462037255 | Y21: 0.124157174 | Z21: 0.7111568041
D22: 3 | Q22: =IF($A$18<CB14_Coeffs!$AG21,CB14_Coeffs!$AH21*$A$56*(($A$56+CB14_Coeffs!$AJ21*($A$18/CB14_Coeffs!$AG21)^CB14_Coeffs!$AK21)^(-1)-($A$56+CB14_Coeffs!$AJ21)^(-1)),0) -> 0 | R22: =IF($A$6<4.5,CB14_Coeffs!$AL21,IF($A$6>5.5,CB14_Coeffs!$AM21,CB14_Coeffs!$AM21+(CB14_Coeffs!$AL21-CB14_Coeffs!$AM21)*(5.5-$A$6)*(5.5-4.5))) -> 0.578 | S22: =SQRT(($R22^2-CB14_Coeffs!$AP21^2)+CB14_Coeffs!$AP21^2+$Q22^2*($R$28^2-CB14_Coeffs!$AP$26^2)+2*$Q22*CB14_Coeffs!$AR21*SQRT($R22^2-CB14_Coeffs!$AP21^2)*SQRT($R$28^2-CB14_Coeffs!$AP$26^2)) -> 0.578 | T22: =IF($A$6<4.5,CB14_Coeffs!$AN21,IF($A$6>5.5,CB14_Coeffs!$AO21,CB14_Coeffs!$AO21+(CB14_Coeffs!$AN21-CB14_Coeffs!$AO21)*(5.5-$A$6)*(5.5-4.5))) -> 0.417 | U22: =SQRT($T22^2+$Q22^2*$T$28^2+2*$Q22*CB14_Coeffs!$AR21*$T22*T$28) -> 0.417 | V22: =CB14_Coeffs!AQ21 -> 0.229 | W22: 0.712722246 | X22: 0.7486080416 | Y22: 0.07631935166 | Z22: 0.712722246
A23: FNM | D23: 4 | Q23: =IF($A$18<CB14_Coeffs!$AG22,CB14_Coeffs!$AH22*$A$56*(($A$56+CB14_Coeffs!$AJ22*($A$18/CB14_Coeffs!$AG22)^CB14_Coeffs!$AK22)^(-1)-($A$56+CB14_Coeffs!$AJ22)^(-1)),0) -> 0 | R23: =IF($A$6<4.5,CB14_Coeffs!$AL22,IF($A$6>5.5,CB14_Coeffs!$AM22,CB14_Coeffs!$AM22+(CB14_Coeffs!$AL22-CB14_Coeffs!$AM22)*(5.5-$A$6)*(5.5-4.5))) -> 0.559 | S23: =SQRT(($R23^2-CB14_Coeffs!$AP22^2)+CB14_Coeffs!$AP22^2+$Q23^2*($R$28^2-CB14_Coeffs!$AP$26^2)+2*$Q23*CB14_Coeffs!$AR22*SQRT($R23^2-CB14_Coeffs!$AP22^2)*SQRT($R$28^2-CB14_Coeffs!$AP$26^2)) -> 0.559 | T23: =IF($A$6<4.5,CB14_Coeffs!$AN22,IF($A$6>5.5,CB14_Coeffs!$AO22,CB14_Coeffs!$AO22+(CB14_Coeffs!$AN22-CB14_Coeffs!$AO22)*(5.5-$A$6)*(5.5-4.5))) -> 0.393 | U23: =SQRT($T23^2+$Q23^2*$T$28^2+2*$Q23*CB14_Coeffs!$AR22*$T23*T$28) -> 0.393 | V23: =CB14_Coeffs!AQ22 -> 0.237 | W23: 0.6833227641 | X23: 0.723255833 | Y23: 0.04891501314 | Z23: 0.6833227641
A24: =Main!$B$48 -> 0 | D24: 5 | Q24: =IF($A$18<CB14_Coeffs!$AG23,CB14_Coeffs!$AH23*$A$56*(($A$56+CB14_Coeffs!$AJ23*($A$18/CB14_Coeffs!$AG23)^CB14_Coeffs!$AK23)^(-1)-($A$56+CB14_Coeffs!$AJ23)^(-1)),0) -> 0 | R24: =IF($A$6<4.5,CB14_Coeffs!$AL23,IF($A$6>5.5,CB14_Coeffs!$AM23,CB14_Coeffs!$AM23+(CB14_Coeffs!$AL23-CB14_Coeffs!$AM23)*(5.5-$A$6)*(5.5-4.5))) -> 0.551 | S24: =SQRT(($R24^2-CB14_Coeffs!$AP23^2)+CB14_Coeffs!$AP23^2+$Q24^2*($R$28^2-CB14_Coeffs!$AP$26^2)+2*$Q24*CB14_Coeffs!$AR23*SQRT($R24^2-CB14_Coeffs!$AP23^2)*SQRT($R$28^2-CB14_Coeffs!$AP$26^2)) -> 0.551 | T24: =IF($A$6<4.5,CB14_Coeffs!$AN23,IF($A$6>5.5,CB14_Coeffs!$AO23,CB14_Coeffs!$AO23+(CB14_Coeffs!$AN23-CB14_Coeffs!$AO23)*(5.5-$A$6)*(5.5-4.5))) -> 0.421 | U24: =SQRT($T24^2+$Q24^2*$T$28^2+2*$Q24*CB14_Coeffs!$AR23*$T24*T$28) -> 0.421 | V24: =CB14_Coeffs!AQ23 -> 0.237 | W24: 0.6934277179 | X24: 0.7328103438 | Y24: 0.03495715079 | Z24: 0.6934277179
D25: 7.5 | Q25: =IF($A$18<CB14_Coeffs!$AG24,CB14_Coeffs!$AH24*$A$56*(($A$56+CB14_Coeffs!$AJ24*($A$18/CB14_Coeffs!$AG24)^CB14_Coeffs!$AK24)^(-1)-($A$56+CB14_Coeffs!$AJ24)^(-1)),0) -> 0 | R25: =IF($A$6<4.5,CB14_Coeffs!$AL24,IF($A$6>5.5,CB14_Coeffs!$AM24,CB14_Coeffs!$AM24+(CB14_Coeffs!$AL24-CB14_Coeffs!$AM24)*(5.5-$A$6)*(5.5-4.5))) -> 0.546 | S25: =SQRT(($R25^2-CB14_Coeffs!$AP24^2)+CB14_Coeffs!$AP24^2+$Q25^2*($R$28^2-CB14_Coeffs!$AP$26^2)+2*$Q25*CB14_Coeffs!$AR24*SQRT($R25^2-CB14_Coeffs!$AP24^2)*SQRT($R$28^2-CB14_Coeffs!$AP$26^2)) -> 0.546 | T25: =IF($A$6<4.5,CB14_Coeffs!$AN24,IF($A$6>5.5,CB14_Coeffs!$AO24,CB14_Coeffs!$AO24+(CB14_Coeffs!$AN24-CB14_Coeffs!$AO24)*(5.5-$A$6)*(5.5-4.5))) -> 0.438 | U25: =SQRT($T25^2+$Q25^2*$T$28^2+2*$Q25*CB14_Coeffs!$AR24*$T25*T$28) -> 0.438 | V25: =CB14_Coeffs!AQ24 -> 0.271 | W25: 0.699971428 | X25: 0.7506004263 | Y25: 0.01491348406 | Z25: 0.699971428
A26: FHW | D26: 10 | Q26: =IF($A$18<CB14_Coeffs!$AG25,CB14_Coeffs!$AH25*$A$56*(($A$56+CB14_Coeffs!$AJ25*($A$18/CB14_Coeffs!$AG25)^CB14_Coeffs!$AK25)^(-1)-($A$56+CB14_Coeffs!$AJ25)^(-1)),0) -> 0 | R26: =IF($A$6<4.5,CB14_Coeffs!$AL25,IF($A$6>5.5,CB14_Coeffs!$AM25,CB14_Coeffs!$AM25+(CB14_Coeffs!$AL25-CB14_Coeffs!$AM25)*(5.5-$A$6)*(5.5-4.5))) -> 0.543 | S26: =SQRT(($R26^2-CB14_Coeffs!$AP25^2)+CB14_Coeffs!$AP25^2+$Q26^2*($R$28^2-CB14_Coeffs!$AP$26^2)+2*$Q26*CB14_Coeffs!$AR25*SQRT($R26^2-CB14_Coeffs!$AP25^2)*SQRT($R$28^2-CB14_Coeffs!$AP$26^2)) -> 0.543 | T26: =IF($A$6<4.5,CB14_Coeffs!$AN25,IF($A$6>5.5,CB14_Coeffs!$AO25,CB14_Coeffs!$AO25+(CB14_Coeffs!$AN25-CB14_Coeffs!$AO25)*(5.5-$A$6)*(5.5-4.5))) -> 0.438 | U26: =SQRT($T26^2+$Q26^2*$T$28^2+2*$Q26*CB14_Coeffs!$AR25*$T26*T$28) -> 0.438 | V26: =CB14_Coeffs!AQ25 -> 0.29 | W26: 0.6976338581 | X26: 0.7555084381 | Y26: 0.01024431918 | Z26: 0.6976338581
A27: =Main!$B$51 -> 0
C28: PGA (g) | D28: 0 | Q28: =IF($A$18<CB14_Coeffs!$AG26,CB14_Coeffs!$AH26*$A$56*(($A$56+CB14_Coeffs!$AJ26*($A$18/CB14_Coeffs!$AG26)^CB14_Coeffs!$AK26)^(-1)-($A$56+CB14_Coeffs!$AJ26)^(-1)),0) -> -0.02936093635 | R28: =IF($A$6<4.5,CB14_Coeffs!$AL26,IF($A$6>5.5,CB14_Coeffs!$AM26,CB14_Coeffs!$AM26+(CB14_Coeffs!$AL26-CB14_Coeffs!$AM26)*(5.5-$A$6)*(5.5-4.5))) -> 0.492 | S28: =SQRT(($R28^2-CB14_Coeffs!$AP26^2)+CB14_Coeffs!$AP26^2+$Q28^2*($R$28^2-CB14_Coeffs!$AP26^2)+2*$Q28*CB14_Coeffs!$AR26*SQRT($R28^2-CB14_Coeffs!$AP26^2)*SQRT($R$28^2-CB14_Coeffs!$AP26^2)) -> 0.4829757821 | T28: =IF($A$6<4.5,CB14_Coeffs!$AN26,IF($A$6>5.5,CB14_Coeffs!$AO26,CB14_Coeffs!$AO26+(CB14_Coeffs!$AN26-CB14_Coeffs!$AO26)*(5.5-$A$6)*(5.5-4.5))) -> 0.322 | U28: =SQRT($T28^2+$Q28^2*$T$28^2+2*$Q28*CB14_Coeffs!$AR26*$T28*T$28) -> 0.3125457785 | V28: =CB14_Coeffs!AQ26 -> 0.166 | W28: =SQRT(S28^2+U28^2) -> 0.5752829476 | X28: =SQRT(V28^2+W28^2) -> 0.5987540979 | Y28: =CB_14($A$6,$A$9,$A$12,$A$15,$A$21,$A$24,$A$27,$A$33,$A$42,$A$30,$A$18,$A$39,$A$36,$A$62,$A$71,$A$68,$A$48,$A$56,$D28) -> 0.4803879261 | Z28: =W28 -> 0.5752829476
A29: d | C29: PGV (cm/s) | D29: -1 | Q29: =IF($A$18<CB14_Coeffs!$AG27,CB14_Coeffs!$AH27*$A$56*(($A$56+CB14_Coeffs!$AJ27*($A$18/CB14_Coeffs!$AG27)^CB14_Coeffs!$AK27)^(-1)-($A$56+CB14_Coeffs!$AJ27)^(-1)),0) -> 0 | R29: =IF($A$6<4.5,CB14_Coeffs!$AL27,IF($A$6>5.5,CB14_Coeffs!$AM27,CB14_Coeffs!$AM27+(CB14_Coeffs!$AL27-CB14_Coeffs!$AM27)*(5.5-$A$6)*(5.5-4.5))) -> 0.494 | S29: =SQRT(($R29^2-CB14_Coeffs!$AP27^2)+CB14_Coeffs!$AP27^2+$Q29^2*($R$28^2-CB14_Coeffs!$AP27^2)+2*$Q29*CB14_Coeffs!$AR27*SQRT($R29^2-CB14_Coeffs!$AP27^2)*SQRT($R$28^2-CB14_Coeffs!$AP27^2)) -> 0.494 | T29: =IF($A$6<4.5,CB14_Coeffs!$AN27,IF($A$6>5.5,CB14_Coeffs!$AO27,CB14_Coeffs!$AO27+(CB14_Coeffs!$AN27-CB14_Coeffs!$AO27)*(5.5-$A$6)*(5.5-4.5))) -> 0.297 | U29: =SQRT($T29^2+$Q29^2*$T$28^2+2*$Q29*CB14_Coeffs!$AR27*$T29*T$28) -> 0.297 | V29: =CB14_Coeffs!AQ27 -> 0.19 | W29: =SQRT(S29^2+U29^2) -> 0.5764069743 | X29: =SQRT(V29^2+W29^2) -> 0.6069143267 | Y29: =CB_14($A$6,$A$9,$A$12,$A$15,$A$21,$A$24,$A$27,$A$33,$A$42,$A$30,$A$18,$A$39,$A$36,$A$62,$A$71,$A$68,$A$48,$A$56,$D29) -> 41.98720574 | Z29: =W29 -> 0.5764069743
A30: =Main!$B$54 -> 90 | B30: =IF(AND($A$30>=15, $A$30<=90),"","! Not Applicable !") -> 
A32: ZTOR | B32: If unknown use 999
A33: =Main!$B$57 -> 0 | B33: =IF(OR($A$33>=0, $A$33<=20,$A$33=-999),"","! Not Applicable !") -> 
A35: ZHYP | B35: If unknown use 999
A36: =Main!$B$60 -> 8 | B36: =IF(OR($A$36>=0, $A$36<=20,$A$36=999),"","! Not Applicable !") -> 
A38: Z2.5 | B38: If unknown use 999
A39: =Main!$B$66 -> 0.607 | B39: =IF(OR($A$39>=0, $A$39<=10, $A$39=999),"","! Not Applicable !") -> 
A41: W | B41: If unknown use 999
A42: =Main!$B$69 -> 10
A44: ZBOT
A45: =Main!$B$89 -> 15
A47: Region
A48: =Main!$B$101 -> 0
A50: Z2.5 (Vs30=1100)
A51: =IF($A$39=999,Main!$F$112,$A$39) -> 0.607
A53: Input variables with defaults (If entered 999 as input):
A55: A1100
A56: =A1100_CB($A$6,$A$9,$A$12,$A$15,$A$21,$A$24,$A$27,$A$42,$A$30,$A$33,$A$39,$A$36,$A$62,$A$71,$A$68,$A$48,$D$28) -> 0.4451386188
A58: Z2.5 (Vs30) | B58: Default
A59: =IF((1-$A$48)*EXP(7.089-1.144*LN($A$18))+$A$48*EXP(5.359-1.102*LN($A$18))>10,"NA",(1-$A$48)*EXP(7.089-1.144*LN($A$18))+$A$48*EXP(5.359-1.102*LN($A$18))) -> 0.606824117
A61: ZTOR (M,F)
A62: =Main!$F$115 -> 0.3529785744
A64: Z2.5 (Vs30=1100)
A65: =Main!$F$112 -> 0.3975212509
A67: ZHYP ( M,ZBOR,ZTOR,d)
A68: =Main!$F$114 -> 10.57965866
A70: W (M,ZBOT,ZTOR,d)
A71: =Main!$F$109 -> 14.64702143
A73: ZBOR (W,d)
A74: =Main!$F$116 -> 15

Sheet CB14_Coeffs
A1: CAMPBELL-BOZORGNIA NGA-WEST2 MODEL COEFFICIENTS [CB14] (EQS 2013) & c0-c6 updates:
A3: T (s) | B3: c0 | C3: c1 | D3: c2 | E3: c3 | F3: c4 | G3: c5 | H3: c6 | I3: c7 | J3: c8 | K3: c9 | L3: c10 | M3: c11 | N3: c12 | O3: c13 | P3: c14 | Q3: c15 | R3: c16 | S3: c17 | T3: c18 | U3: c19 | V3: c20 | W3: Dc20 (CA) | X3: Dc20 (JP) | Y3: Dc20 (CH) | Z3: a2 | AA3: h1 | AB3: h2 | AC3: h3 | AD3: h4 | AE3: h5 | AF3: h6 | AG3: k1 | AH3: k2 | AI3: k3 | AJ3: c | AK3: n | AL3: f1 | AM3: f2 | AN3: t1 | AO3: t2 | AP3: flnAF | AQ3: fC | AR3: rlnPGA,lnY
A5: 0.01 | B5: -4.365 | C5: 0.977 | D5: 0.533 | E5: -1.485 | F5: -0.499 | G5: -2.773 | H5: 0.248 | I5: 6.753 | J5: 0 | K5: -0.214 | L5: 0.72 | M5: 1.094 | N5: 2.191 | O5: 1.416 | P5: -0.007 | Q5: -0.207 | R5: 0.39 | S5: 0.0981 | T5: 0.0334 | U5: 0.00755 | V5: -0.0055 | W5: 0 | X5: -0.0035 | Y5: 0.0036 | Z5: 0.168 | AA5: 0.242 | AB5: 1.471 | AC5: -0.714 | AD5: 1 | AE5: -0.336 | AF5: -0.27 | AG5: 865 | AH5: -1.186 | AI5: 1.839 | AJ5: 1.88 | AK5: 1.18 | AL5: 0.734 | AM5: 0.492 | AN5: 0.404 | AO5: 0.325 | AP5: 0.3 | AQ5: 0.166 | AR5: 1
A6: 0.02 | B6: -4.348 | C6: 0.976 | D6: 0.549 | E6: -1.488 | F6: -0.501 | G6: -2.772 | H6: 0.247 | I6: 6.502 | J6: 0 | K6: -0.208 | L6: 0.73 | M6: 1.149 | N6: 2.189 | O6: 1.453 | P6: -0.0167 | Q6: -0.199 | R6: 0.387 | S6: 0.1009 | T6: 0.0327 | U6: 0.00759 | V6: -0.0055 | W6: 0 | X6: -0.0035 | Y6: 0.0036 | Z6: 0.166 | AA6: 0.244 | AB6: 1.467 | AC6: -0.711 | AD6: 1 | AE6: -0.339 | AF6: -0.263 | AG6: 865 | AH6: -1.219 | AI6: 1.84 | AJ6: 1.88 | AK6: 1.18 | AL6: 0.738 | AM6: 0.496 | AN6: 0.417 | AO6: 0.326 | AP6: 0.3 | AQ6: 0.166 | AR6: 0.998
A7: 0.03 | B7: -4.024 | C7: 0.931 | D7: 0.628 | E7: -1.494 | F7: -0.517 | G7: -2.782 | H7: 0.246 | I7: 6.291 | J7: 0 | K7: -0.213 | L7: 0.759 | M7: 1.29 | N7: 2.164 | O7: 1.476 | P7: -0.0422 | Q7: -0.202 | R7: 0.378 | S7: 0.1095 | T7: 0.0331 | U7: 0.0079 | V7: -0.0057 | W7: 0 | X7: -0.0034 | Y7: 0.0037 | Z7: 0.167 | AA7: 0.246 | AB7: 1.467 | AC7: -0.713 | AD7: 1 | AE7: -0.338 | AF7: -0.259 | AG7: 908 | AH7: -1.273 | AI7: 1.841 | AJ7: 1.88 | AK7: 1.18 | AL7: 0.747 | AM7: 0.503 | AN7: 0.446 | AO7: 0.344 | AP7: 0.3 | AQ7: 0.165 | AR7: 0.986
A8: 0.05 | B8: -3.479 | C8: 0.887 | D8: 0.674 | E8: -1.388 | F8: -0.615 | G8: -2.791 | H8: 0.24 | I8: 6.317 | J8: 0 | K8: -0.244 | L8: 0.826 | M8: 1.449 | N8: 2.138 | O8: 1.549 | P8: -0.0663 | Q8: -0.339 | R8: 0.295 | S8: 0.1226 | T8: 0.027 | U8: 0.00803 | V8: -0.0063 | W8: 0 | X8: -0.0037 | Y8: 0.004 | Z8: 0.173 | AA8: 0.251 | AB8: 1.449 | AC8: -0.701 | AD8: 1 | AE8: -0.338 | AF8: -0.263 | AG8: 1054 | AH8: -1.346 | AI8: 1.843 | AJ8: 1.88 | AK8: 1.18 | AL8: 0.777 | AM8: 0.52 | AN8: 0.508 | AO8: 0.377 | AP8: 0.3 | AQ8: 0.162 | AR8: 0.938
A9: 0.075 | B9: -3.293 | C9: 0.902 | D9: 0.726 | E9: -1.469 | F9: -0.596 | G9: -2.745 | H9: 0.227 | I9: 6.861 | J9: 0 | K9: -0.266 | L9: 0.815 | M9: 1.535 | N9: 2.446 | O9: 1.772 | P9: -0.0794 | Q9: -0.404 | R9: 0.322 | S9: 0.1165 | T9: 0.0288 | U9: 0.00811 | V9: -0.007 | W9: 0 | X9: -0.0037 | Y9: 0.0039 | Z9: 0.198 | AA9: 0.26 | AB9: 1.435 | AC9: -0.695 | AD9: 1 | AE9: -0.347 | AF9: -0.219 | AG9: 1086 | AH9: -1.471 | AI9: 1.845 | AJ9: 1.88 | AK9: 1.18 | AL9: 0.782 | AM9: 0.535 | AN9: 0.504 | AO9: 0.418 | AP9: 0.3 | AQ9: 0.158 | AR9: 0.887
A10: 0.1 | B10: -3.666 | C10: 0.993 | D10: 0.698 | E10: -1.572 | F10: -0.536 | G10: -2.633 | H10: 0.21 | I10: 7.294 | J10: 0 | K10: -0.229 | L10: 0.831 | M10: 1.615 | N10: 2.969 | O10: 1.916 | P10: -0.0294 | Q10: -0.416 | R10: 0.384 | S10: 0.0998 | T10: 0.0325 | U10: 0.00744 | V10: -0.0073 | W10: 0 | X10: -0.0034 | Y10: 0.0042 | Z10: 0.174 | AA10: 0.259 | AB10: 1.449 | AC10: -0.708 | AD10: 1 | AE10: -0.391 | AF10: -0.201 | AG10: 1032 | AH10: -1.624 | AI10: 1.847 | AJ10: 1.88 | AK10: 1.18 | AL10: 0.769 | AM10: 0.543 | AN10: 0.445 | AO10: 0.426 | AP10: 0.3 | AQ10: 0.17 | AR10: 0.87
A11: 0.15 | B11: -4.866 | C11: 1.267 | D11: 0.51 | E11: -1.669 | F11: -0.49 | G11: -2.458 | H11: 0.183 | I11: 8.031 | J11: 0 | K11: -0.211 | L11: 0.749 | M11: 1.877 | N11: 3.544 | O11: 2.161 | P11: 0.0642 | Q11: -0.407 | R11: 0.417 | S11: 0.076 | T11: 0.0388 | U11: 0.00716 | V11: -0.0069 | W11: 0 | X11: -0.003 | Y11: 0.0042 | Z11: 0.198 | AA11: 0.254 | AB11: 1.461 | AC11: -0.715 | AD11: 1 | AE11: -0.449 | AF11: -0.099 | AG11: 878 | AH11: -1.931 | AI11: 1.852 | AJ11: 1.88 | AK11: 1.18 | AL11: 0.769 | AM11: 0.543 | AN11: 0.382 | AO11: 0.387 | AP11: 0.3 | AQ11: 0.18 | AR11: 0.876
A12: 0.2 | B12: -5.411 | C12: 1.366 | D12: 0.447 | E12: -1.75 | F12: -0.451 | G12: -2.421 | H12: 0.182 | I12: 8.385 | J12: 0 | K12: -0.163 | L12: 0.764 | M12: 2.069 | N12: 3.707 | O12: 2.465 | P12: 0.0968 | Q12: -0.311 | R12: 0.404 | S12: 0.0571 | T12: 0.0437 | U12: 0.00688 | V12: -0.006 | W12: 0 | X12: -0.0031 | Y12: 0.0041 | Z12: 0.204 | AA12: 0.237 | AB12: 1.484 | AC12: -0.721 | AD12: 1 | AE12: -0.393 | AF12: -0.198 | AG12: 748 | AH12: -2.188 | AI12: 1.856 | AJ12: 1.88 | AK12: 1.18 | AL12: 0.761 | AM12: 0.552 | AN12: 0.339 | AO12: 0.338 | AP12: 0.3 | AQ12: 0.186 | AR12: 0.87
A13: 0.25 | B13: -5.962 | C13: 1.458 | D13: 0.274 | E13: -1.711 | F13: -0.404 | G13: -2.392 | H13: 0.189 | I13: 7.534 | J13: 0 | K13: -0.15 | L13: 0.716 | M13: 2.205 | N13: 3.343 | O13: 2.766 | P13: 0.1441 | Q13: -0.172 | R13: 0.466 | S13: 0.0437 | T13: 0.0463 | U13: 0.00556 | V13: -0.0055 | W13: 0 | X13: -0.0033 | Y13: 0.0036 | Z13: 0.185 | AA13: 0.206 | AB13: 1.581 | AC13: -0.787 | AD13: 1 | AE13: -0.339 | AF13: -0.21 | AG13: 654 | AH13: -2.381 | AI13: 1.861 | AJ13: 1.88 | AK13: 1.18 | AL13: 0.744 | AM13: 0.545 | AN13: 0.34 | AO13: 0.316 | AP13: 0.3 | AQ13: 0.191 | AR13: 0.85
A14: 0.3 | B14: -6.403 | C14: 1.528 | D14: 0.193 | E14: -1.77 | F14: -0.321 | G14: -2.376 | H14: 0.195 | I14: 6.99 | J14: 0 | K14: -0.131 | L14: 0.737 | M14: 2.306 | N14: 3.334 | O14: 3.011 | P14: 0.1597 | Q14: -0.084 | R14: 0.528 | S14: 0.0323 | T14: 0.0508 | U14: 0.00458 | V14: -0.0049 | W14: 0 | X14: -0.0035 | Y14: 0.0031 | Z14: 0.164 | AA14: 0.21 | AB14: 1.586 | AC14: -0.795 | AD14: 1 | AE14: -0.447 | AF14: -0.121 | AG14: 587 | AH14: -2.518 | AI14: 1.865 | AJ14: 1.88 | AK14: 1.18 | AL14: 0.727 | AM14: 0.568 | AN14: 0.34 | AO14: 0.3 | AP14: 0.3 | AQ14: 0.198 | AR14: 0.819
A15: 0.4 | B15: -7.566 | C15: 1.739 | D15: -0.02 | E15: -1.594 | F15: -0.426 | G15: -2.303 | H15: 0.185 | I15: 7.012 | J15: 0 | K15: -0.159 | L15: 0.738 | M15: 2.398 | N15: 3.544 | O15: 3.203 | P15: 0.141 | Q15: 0.085 | R15: 0.54 | S15: 0.0209 | T15: 0.0432 | U15: 0.00401 | V15: -0.0037 | W15: 0 | X15: -0.0034 | Y15: 0.0028 | Z15: 0.16 | AA15: 0.226 | AB15: 1.544 | AC15: -0.77 | AD15: 1 | AE15: -0.525 | AF15: -0.086 | AG15: 503 | AH15: -2.657 | AI15: 1.874 | AJ15: 1.88 | AK15: 1.18 | AL15: 0.69 | AM15: 0.593 | AN15: 0.356 | AO15: 0.264 | AP15: 0.3 | AQ15: 0.206 | AR15: 0.743
A16: 0.5 | B16: -8.379 | C16: 1.872 | D16: -0.121 | E16: -1.577 | F16: -0.44 | G16: -2.296 | H16: 0.186 | I16: 6.902 | J16: 0 | K16: -0.153 | L16: 0.718 | M16: 2.355 | N16: 3.016 | O16: 3.333 | P16: 0.1474 | Q16: 0.233 | R16: 0.638 | S16: 0.0092 | T16: 0.0405 | U16: 0.00388 | V16: -0.0027 | W16: 0 | X16: -0.0034 | Y16: 0.0025 | Z16: 0.184 | AA16: 0.217 | AB16: 1.554 | AC16: -0.77 | AD16: 1 | AE16: -0.407 | AF16: -0.281 | AG16: 457 | AH16: -2.669 | AI16: 1.883 | AJ16: 1.88 | AK16: 1.18 | AL16: 0.663 | AM16: 0.611 | AN16: 0.379 | AO16: 0.263 | AP16: 0.3 | AQ16: 0.208 | AR16: 0.684
A17: 0.75 | B17: -9.841 | C17: 2.021 | D17: -0.042 | E17: -1.757 | F17: -0.443 | G17: -2.232 | H17: 0.186 | I17: 5.522 | J17: 0 | K17: -0.09 | L17: 0.795 | M17: 1.995 | N17: 2.616 | O17: 3.054 | P17: 0.1764 | Q17: 0.411 | R17: 0.776 | S17: -0.0082 | T17: 0.042 | U17: 0.0042 | V17: -0.0016 | W17: 0 | X17: -0.0032 | Y17: 0.0016 | Z17: 0.216 | AA17: 0.154 | AB17: 1.626 | AC17: -0.78 | AD17: 1 | AE17: -0.371 | AF17: -0.285 | AG17: 410 | AH17: -2.401 | AI17: 1.906 | AJ17: 1.88 | AK17: 1.18 | AL17: 0.606 | AM17: 0.633 | AN17: 0.43 | AO17: 0.326 | AP17: 0.3 | AQ17: 0.221 | AR17: 0.562
A18: 1 | B18: -11.011 | C18: 2.18 | D18: -0.069 | E18: -1.707 | F18: -0.527 | G18: -2.158 | H18: 0.169 | I18: 5.65 | J18: 0 | K18: -0.105 | L18: 0.556 | M18: 1.447 | N18: 2.47 | O18: 2.562 | P18: 0.2593 | Q18: 0.479 | R18: 0.771 | S18: -0.0131 | T18: 0.0426 | U18: 0.00409 | V18: -0.0006 | W18: 0 | X18: -0.003 | Y18: 0.0006 | Z18: 0.596 | AA18: 0.117 | AB18: 1.616 | AC18: -0.733 | AD18: 1 | AE18: -0.128 | AF18: -0.756 | AG18: 400 | AH18: -1.955 | AI18: 1.929 | AJ18: 1.88 | AK18: 1.18 | AL18: 0.579 | AM18: 0.628 | AN18: 0.47 | AO18: 0.353 | AP18: 0.3 | AQ18: 0.225 | AR18: 0.467
A19: 1.5 | B19: -12.469 | C19: 2.27 | D19: 0.047 | E19: -1.621 | F19: -0.63 | G19: -2.063 | H19: 0.158 | I19: 5.795 | J19: 0 | K19: -0.058 | L19: 0.48 | M19: 0.33 | N19: 2.108 | O19: 1.453 | P19: 0.2881 | Q19: 0.566 | R19: 0.748 | S19: -0.0187 | T19: 0.038 | U19: 0.00424 | V19: 0 | W19: 0 | X19: -0.0019 | Y19: 0 | Z19: 0.596 | AA19: 0.117 | AB19: 1.616 | AC19: -0.733 | AD19: 1 | AE19: -0.128 | AF19: -0.756 | AG19: 400 | AH19: -1.025 | AI19: 1.974 | AJ19: 1.88 | AK19: 1.18 | AL19: 0.541 | AM19: 0.603 | AN19: 0.497 | AO19: 0.399 | AP19: 0.3 | AQ19: 0.222 | AR19: 0.364
A20: 2 | B20: -12.969 | C20: 2.271 | D20: 0.149 | E20: -1.512 | F20: -0.768 | G20: -2.104 | H20: 0.158 | I20: 6.632 | J20: 0 | K20: -0.028 | L20: 0.401 | M20: -0.514 | N20: 1.327 | O20: 0.657 | P20: 0.3112 | Q20: 0.562 | R20: 0.763 | S20: -0.0258 | T20: 0.0252 | U20: 0.00448 | V20: 0 | W20: 0 | X20: -0.0005 | Y20: 0 | Z20: 0.596 | AA20: 0.117 | AB20: 1.616 | AC20: -0.733 | AD20: 1 | AE20: -0.128 | AF20: -0.756 | AG20: 400 | AH20: -0.299 | AI20: 2.019 | AJ20: 1.88 | AK20: 1.18 | AL20: 0.529 | AM20: 0.588 | AN20: 0.499 | AO20: 0.4 | AP20: 0.3 | AQ20: 0.226 | AR20: 0.298
A21: 3 | B21: -13.306 | C21: 2.15 | D21: 0.368 | E21: -1.315 | F21: -0.89 | G21: -2.051 | H21: 0.148 | I21: 6.759 | J21: 0 | K21: 0 | L21: 0.206 | M21: -0.848 | N21: 0.601 | O21: 0.367 | P21: 0.3478 | Q21: 0.534 | R21: 0.686 | S21: -0.0311 | T21: 0.0236 | U21: 0.00345 | V21: 0 | W21: 0 | X21: 0 | Y21: 0 | Z21: 0.596 | AA21: 0.117 | AB21: 1.616 | AC21: -0.733 | AD21: 1 | AE21: -0.128 | AF21: -0.756 | AG21: 400 | AH21: 0 | AI21: 2.11 | AJ21: 1.88 | AK21: 1.18 | AL21: 0.527 | AM21: 0.578 | AN21: 0.5 | AO21: 0.417 | AP21: 0.3 | AQ21: 0.229 | AR21: 0.234
A22: 4 | B22: -14.02 | C22: 2.132 | D22: 0.726 | E22: -1.506 | F22: -0.885 | G22: -1.986 | H22: 0.135 | I22: 7.978 | J22: 0 | K22: 0 | L22: 0.105 | M22: -0.793 | N22: 0.568 | O22: 0.306 | P22: 0.3747 | Q22: 0.522 | R22: 0.691 | S22: -0.0413 | T22: 0.0102 | U22: 0.00603 | V22: 0 | W22: 0 | X22: 0 | Y22: 0 | Z22: 0.596 | AA22: 0.117 | AB22: 1.616 | AC22: -0.733 | AD22: 1 | AE22: -0.128 | AF22: -0.756 | AG22: 400 | AH22: 0 | AI22: 2.2 | AJ22: 1.88 | AK22: 1.18 | AL22: 0.521 | AM22: 0.559 | AN22: 0.543 | AO22: 0.393 | AP22: 0.3 | AQ22: 0.237 | AR22: 0.202
A23: 5 | B23: -14.558 | C23: 2.116 | D23: 1.027 | E23: -1.721 | F23: -0.878 | G23: -2.021 | H23: 0.135 | I23: 8.538 | J23: 0 | K23: 0 | L23: 0 | M23: -0.748 | N23: 0.356 | O23: 0.268 | P23: 0.3382 | Q23: 0.477 | R23: 0.67 | S23: -0.0281 | T23: 0.0034 | U23: 0.00805 | V23: 0 | W23: 0 | X23: 0 | Y23: 0 | Z23: 0.596 | AA23: 0.117 | AB23: 1.616 | AC23: -0.733 | AD23: 1 | AE23: -0.128 | AF23: -0.756 | AG23: 400 | AH23: 0 | AI23: 2.291 | AJ23: 1.88 | AK23: 1.18 | AL23: 0.502 | AM23: 0.551 | AN23: 0.534 | AO23: 0.421 | AP23: 0.3 | AQ23: 0.237 | AR23: 0.184
A24: 7.5 | B24: -15.509 | C24: 2.223 | D24: 0.169 | E24: -0.756 | F24: -1.077 | G24: -2.179 | H24: 0.165 | I24: 8.468 | J24: 0 | K24: 0 | L24: 0 | M24: -0.664 | N24: 0.075 | O24: 0.374 | P24: 0.3754 | Q24: 0.321 | R24: 0.757 | S24: -0.0205 | T24: 0.005 | U24: 0.0028 | V24: 0 | W24: 0 | X24: 0 | Y24: 0 | Z24: 0.596 | AA24: 0.117 | AB24: 1.616 | AC24: -0.733 | AD24: 1 | AE24: -0.128 | AF24: -0.756 | AG24: 400 | AH24: 0 | AI24: 2.517 | AJ24: 1.88 | AK24: 1.18 | AL24: 0.457 | AM24: 0.546 | AN24: 0.523 | AO24: 0.438 | AP24: 0.3 | AQ24: 0.271 | AR24: 0.176
A25: 10 | B25: -15.975 | C25: 2.132 | D25: 0.367 | E25: -0.8 | F25: -1.282 | G25: -2.244 | H25: 0.18 | I25: 6.564 | J25: 0 | K25: 0 | L25: 0 | M25: -0.576 | N25: -0.027 | O25: 0.297 | P25: 0.3506 | Q25: 0.174 | R25: 0.621 | S25: 0.0009 | T25: 0.0099 | U25: 0.00458 | V25: 0 | W25: 0 | X25: 0 | Y25: 0 | Z25: 0.596 | AA25: 0.117 | AB25: 1.616 | AC25: -0.733 | AD25: 1 | AE25: -0.128 | AF25: -0.756 | AG25: 400 | AH25: 0 | AI25: 2.744 | AJ25: 1.88 | AK25: 1.18 | AL25: 0.441 | AM25: 0.543 | AN25: 0.466 | AO25: 0.438 | AP25: 0.3 | AQ25: 0.29 | AR25: 0.154
A26: 0.001 | B26: -4.416 | C26: 0.984 | D26: 0.537 | E26: -1.499 | F26: -0.496 | G26: -2.773 | H26: 0.248 | I26: 6.768 | J26: 0 | K26: -0.212 | L26: 0.72 | M26: 1.09 | N26: 2.186 | O26: 1.42 | P26: -0.0064 | Q26: -0.202 | R26: 0.393 | S26: 0.0977 | T26: 0.0333 | U26: 0.00757 | V26: -0.0055 | W26: 0 | X26: -0.0035 | Y26: 0.0036 | Z26: 0.167 | AA26: 0.241 | AB26: 1.474 | AC26: -0.715 | AD26: 1 | AE26: -0.337 | AF26: -0.27 | AG26: 865 | AH26: -1.186 | AI26: 1.839 | AJ26: 1.88 | AK26: 1.18 | AL26: 0.734 | AM26: 0.492 | AN26: 0.409 | AO26: 0.322 | AP26: 0.3 | AQ26: 0.166 | AR26: 1
A27: -1 | B27: -2.895 | C27: 1.51 | D27: 0.27 | E27: -1.299 | F27: -0.453 | G27: -2.466 | H27: 0.204 | I27: 5.837 | J27: 0 | K27: -0.168 | L27: 0.305 | M27: 1.713 | N27: 2.602 | O27: 2.457 | P27: 0.106 | Q27: 0.332 | R27: 0.585 | S27: 0.0517 | T27: 0.0327 | U27: 0.00613 | V27: -0.0017 | W27: 0 | X27: -0.0006 | Y27: 0.0017 | Z27: 0.596 | AA27: 0.117 | AB27: 1.616 | AC27: -0.733 | AD27: 1 | AE27: -0.128 | AF27: -0.756 | AG27: 400 | AH27: -1.955 | AI27: 1.929 | AJ27: 1.88 | AK27: 1.18 | AL27: 0.655 | AM27: 0.494 | AN27: 0.317 | AO27: 0.297 | AP27: 0.3 | AQ27: 0.19 | AR27: 0.684

Sheet CY14
A1: CHIOU - YOUNGS NGA-WEST2 MODEL COEFFICIENTS [CY14] (DEC 2014, EQS):
A3: Input variables | B3: Errors and warnings | U3: CY_14 (M, Rrup, Rjb, Rx, Vs30, Frv, Fnm, Fhw, del, Ztor, Region, Z1, DDPP, T)
U4: Visual Basic Calculations
A5: M | C5: GMP | D5: T (s) | U5: Median | V5: s
A6: =Main!$B$24 -> 6.8 | B6: =IF(AND($A$24=0, $A$21=0,$A$6>=3.5,$A$6<=8.5),"",IF(AND($A$21=1,$A$6>=3.5,$A$6<=8),"",IF(AND($A$24=1,$A$6>=3.5,$A$6<=8),"","! Not Applicable !"))) ->  | C6: PSa (g) | D6: 0.01 | U6: =CY_14($A$6,$A$9,$A$12,$A$15,$A$18,$A$21,$A$24,$A$27,$A$30,$A$33,$A$42,$A$36,$A$59,$A$45,$D6) -> 0.4166951874 | V6: =CY14_stdev($A$6,$A$9,$A$12,$A$15,$A$18,$A$21,$A$24,$A$27,$A$30,$A$33,$A$42,$A$36,$A$45,$A$39,$D6) -> 0.5655054999
D7: 0.02 | U7: =CY_14($A$6,$A$9,$A$12,$A$15,$A$18,$A$21,$A$24,$A$27,$A$30,$A$33,$A$42,$A$36,$A$59,$A$45,$D7) -> 0.4216114187 | V7: =CY14_stdev($A$6,$A$9,$A$12,$A$15,$A$18,$A$21,$A$24,$A$27,$A$30,$A$33,$A$42,$A$36,$A$45,$A$39,$D7) -> 0.5675068386
A8: RRUP | D8: 0.03 | U8: =CY_14($A$6,$A$9,$A$12,$A$15,$A$18,$A$21,$A$24,$A$27,$A$30,$A$33,$A$42,$A$36,$A$59,$A$45,$D8) -> 0.4711396515 | V8: 0.5802006357
A9: =Main!$B$27 -> 3.16 | B9: =IF(AND($A$9>=0, $A$9<=300),"","! Not Applicable !") ->  | D9: 0.05 | U9: =CY_14($A$6,$A$9,$A$12,$A$15,$A$18,$A$21,$A$24,$A$27,$A$30,$A$33,$A$42,$A$36,$A$59,$A$45,$D9) -> 0.6275208724 | V9: 0.5952184195
D10: 0.075 | U10: =CY_14($A$6,$A$9,$A$12,$A$15,$A$18,$A$21,$A$24,$A$27,$A$30,$A$33,$A$42,$A$36,$A$59,$A$45,$D10) -> 0.8227438666 | V10: 0.6058425633
A11: RJB | D11: 0.1 | U11: =CY_14($A$6,$A$9,$A$12,$A$15,$A$18,$A$21,$A$24,$A$27,$A$30,$A$33,$A$42,$A$36,$A$59,$A$45,$D11) -> 0.9339741179 | V11: 0.6142805495
A12: =Main!$B$30 -> 1 | B12: =IF($A$12>$A$9,"Rjb cannot be greater than Rrup","") ->  | D12: 0.15 | U12: 1.022808882 | V12: 0.6285666612
D13: 0.2 | U13: 1.001260777 | V13: 0.6395579078
A14: RX | D14: 0.25 | U14: 0.9324751852 | V14: 0.648263946
A15: =Main!$B$33 -> 1 | D15: 0.3 | U15: 0.8559753308 | V15: 0.6553819105
D16: 0.4 | U16: 0.7219301174 | V16: 0.6660258835
A17: VS30 | D17: 0.5 | U17: 0.6167689609 | V17: 0.6737413346
A18: =Main!$B$39 -> 760 | B18: =IF($A$18<180,"! Not Applicable !", IF(AND($A$18>=180, $A$18<=1500),"","! Not Applicable !")) ->  | D18: 0.75 | U18: 0.4266454194 | V18: 0.6853679255
D19: 1 | U19: 0.3058745863 | V19: 0.690363705
A20: FRV | D20: 1.5 | U20: 0.1826165755 | V20: 0.6968418982
A21: =Main!$B$45 -> 0 | B21: =IF(AND($A$21=1,$A$6>=3.5,$A$6<=8),"",IF($A$21=0,"","! Not Applicable !")) ->  | D21: 2 | U21: 0.1260122993 | V21: 0.6959860812
D22: 3 | U22: 0.07182854057 | V22: 0.6901578569
A23: FNM | D23: 4 | U23: 0.0450839527 | V23: 0.6869561326
A24: =Main!$B$48 -> 0 | B24: =IF(AND($A$24=1,$A$6>=3.5,$A$6<=8),"",IF($A$24=0,"","! Not Applicable !")) ->  | D24: 5 | U24: 0.02978490198 | V24: 0.6838260561
D25: 7.5 | U25: 0.01359092091 | V25: 0.677845194
A26: FHW | D26: 10 | U26: 0.007570115386 | V26: 0.6735783934
A27: =Main!$B$51 -> 0
C28: PGA (g) | D28: 0 | U28: =CY_14($A$6,$A$9,$A$12,$A$15,$A$18,$A$21,$A$24,$A$27,$A$30,$A$33,$A$42,$A$36,$A$59,$A$45,$D28) -> 0.4166951874 | V28: =CY14_stdev($A$6,$A$9,$A$12,$A$15,$A$18,$A$21,$A$24,$A$27,$A$30,$A$33,$A$42,$A$36,$A$45,$A$39,$D28) -> 0.5655054999
A29: d | C29: PGV (cm/s) | D29: -1 | U29: =CY_14($A$6,$A$9,$A$12,$A$15,$A$18,$A$21,$A$24,$A$27,$A$30,$A$33,$A$42,$A$36,$A$59,$A$45,$D29) -> 35.94550934 | V29: =CY14_stdev($A$6,$A$9,$A$12,$A$15,$A$18,$A$21,$A$24,$A$27,$A$30,$A$33,$A$42,$A$36,$A$45,$A$39,$D29) -> 0.5442962996
A30: =Main!$B$54 -> 90
A32: ZTOR | B32: =IF($A$9<A33,"Rrup cannot be less than Ztor","") -> 
A33: =Main!$B$57 -> 0 | B33: =IF($A$33<=20,"","! Not Applicable !") -> 
E34: =2.704 - 1.226 * (7- 5.849) -> 1.292874 | F34: =E34^2 -> 1.67152318
A35: Z1.0 | B35: If unknown use 999
A36: =Main!$B$63 -> 0.048
A38: Vs30flag
A39: =Main!$B$95 -> 0
A41: Region
A42: =Main!$B$101 -> 0
A44: DDPP
A45: 0
A47: SJp-It
A48: 0
A50: SWn
A51: 0
A53: Input variables with defaults (If entered 999 as input):
A55: ZTOR (M,F)
A56: =Main!$G$115 -> 0.3529785744
A58: Z1.0 (SJ,VS30)
A59: =Main!$G$110 -> 0.04130664243

Sheet CY14_Coeffs
A1: CHIOU - YOUNGS NGA-WEST2 MODEL COEFFICIENTS [CY14] (DEC 2014, EQS):
A3: T (s) | B3: c2 | C3: c4 | D3: c4a | E3: cRB | F3: c8 | G3: c8a | H3: c1 | I3: c1a | J3: c1b | K3: c1c | L3: c1d | M3: cn | N3: cM | O3: c3 | P3: c5 | Q3: cHM | R3: c6 | S3: c7 | T3: c7b | U3: c8b | V3: c9 | W3: c9a | X3: c9b | Y3: c11 | Z3: c11b | AA3: cg1 | AB3: cg2 | AC3: cg3 | AD3: f1 | AE3: f2 | AF3: f3 | AG3: f4 | AH3: f5 | AI3: f6 | AJ3: t1 | AK3: t2 | AL3: s1 | AM3: s2 | AN3: s3 | AO3: s2,JP | AP3: gJp-It | AQ3: gWn | AR3: f1Jp | AS3: f5JP | AT3: f6JP
A5: 0.01 | B5: 1.06 | C5: -2.1 | D5: -0.5 | E5: 50 | F5: 0 | G5: 0.2695 | H5: -1.5065 | I5: 0.165 | J5: -0.255 | K5: -0.165 | L5: 0.255 | M5: 16.0875 | N5: 4.9993 | O5: 1.9636 | P5: 6.4551 | Q5: 3.0956 | R5: 0.4908 | S5: 0.0352 | T5: 0.0462 | U5: 0.4833 | V5: 0.9228 | W5: 0.1202 | X5: 6.8607 | Y5: 0 | Z5: -0.4536 | AA5: -0.007146 | AB5: -0.006758 | AC5: 4.2542 | AD5: -0.521 | AE5: -0.1417 | AF5: -0.00701 | AG5: 0.102151 | AH5: 0 | AI5: 300 | AJ5: 0.4 | AK5: 0.26 | AL5: 0.4912 | AM5: 0.3762 | AN5: 0.8 | AO5: 0.4528 | AP5: 1.5817 | AQ5: 0.7594 | AR5: -0.6846 | AS5: 0.459 | AT5: 800
A6: 0.02 | B6: 1.06 | C6: -2.1 | D6: -0.5 | E6: 50 | F6: 0 | G6: 0.2695 | H6: -1.4798 | I6: 0.165 | J6: -0.255 | K6: -0.165 | L6: 0.255 | M6: 15.7118 | N6: 4.9993 | O6: 1.9636 | P6: 6.4551 | Q6: 3.0963 | R6: 0.4925 | S6: 0.0352 | T6: 0.0472 | U6: 1.2144 | V6: 0.9296 | W6: 0.1217 | X6: 6.8697 | Y6: 0 | Z6: -0.4536 | AA6: -0.007249 | AB6: -0.006758 | AC6: 4.2386 | AD6: -0.5055 | AE6: -0.1364 | AF6: -0.007279 | AG6: 0.10836 | AH6: 0 | AI6: 300 | AJ6: 0.4026 | AK6: 0.2637 | AL6: 0.4904 | AM6: 0.3762 | AN6: 0.8 | AO6: 0.4551 | AP6: 1.574 | AQ6: 0.7606 | AR6: -0.6681 | AS6: 0.458 | AT6: 800
A7: 0.03 | B7: 1.06 | C7: -2.1 | D7: -0.5 | E7: 50 | F7: 0 | G7: 0.2695 | H7: -1.2972 | I7: 0.165 | J7: -0.255 | K7: -0.165 | L7: 0.255 | M7: 15.8819 | N7: 4.9993 | O7: 1.9636 | P7: 6.4551 | Q7: 3.0974 | R7: 0.4992 | S7: 0.0352 | T7: 0.0533 | U7: 1.6421 | V7: 0.9396 | W7: 0.1194 | X7: 6.9113 | Y7: 0 | Z7: -0.4536 | AA7: -0.007869 | AB7: -0.006758 | AC7: 4.2519 | AD7: -0.4368 | AE7: -0.1403 | AF7: -0.007354 | AG7: 0.119888 | AH7: 0 | AI7: 300 | AJ7: 0.4063 | AK7: 0.2689 | AL7: 0.4988 | AM7: 0.3849 | AN7: 0.8 | AO7: 0.4571 | AP7: 1.5544 | AQ7: 0.7642 | AR7: -0.6314 | AS7: 0.462 | AT7: 800
A8: 0.04 | B8: 1.06 | C8: -2.1 | D8: -0.5 | E8: 50 | F8: 0 | G8: 0.2695 | H8: -1.1007 | I8: 0.165 | J8: -0.255 | K8: -0.165 | L8: 0.255 | M8: 16.4556 | N8: 4.9993 | O8: 1.9636 | P8: 6.4551 | Q8: 3.0988 | R8: 0.5037 | S8: 0.0352 | T8: 0.0596 | U8: 1.9456 | V8: 0.9661 | W8: 0.1166 | X8: 7.0271 | Y8: 0 | Z8: -0.4536 | AA8: -0.008316 | AB8: -0.006758 | AC8: 4.296 | AD8: -0.3752 | AE8: -0.1591 | AF8: -0.006977 | AG8: 0.133641 | AH8: 0 | AI8: 300 | AJ8: 0.4095 | AK8: 0.2736 | AL8: 0.5049 | AM8: 0.391 | AN8: 0.8 | AO8: 0.4642 | AP8: 1.5502 | AQ8: 0.7676 | AR8: -0.5855 | AS8: 0.453 | AT8: 800
A9: 0.05 | B9: 1.06 | C9: -2.1 | D9: -0.5 | E9: 50 | F9: 0 | G9: 0.2695 | H9: -0.9292 | I9: 0.165 | J9: -0.255 | K9: -0.165 | L9: 0.255 | M9: 17.6453 | N9: 4.9993 | O9: 1.9636 | P9: 6.4551 | Q9: 3.1011 | R9: 0.5048 | S9: 0.0352 | T9: 0.0639 | U9: 2.181 | V9: 0.9794 | W9: 0.1176 | X9: 7.0959 | Y9: 0 | Z9: -0.4536 | AA9: -0.008743 | AB9: -0.006758 | AC9: 4.3578 | AD9: -0.3469 | AE9: -0.1862 | AF9: -0.006467 | AG9: 0.148927 | AH9: 0 | AI9: 300 | AJ9: 0.4124 | AK9: 0.2777 | AL9: 0.5096 | AM9: 0.3957 | AN9: 0.8 | AO9: 0.4716 | AP9: 1.5391 | AQ9: 0.7739 | AR9: -0.5457 | AS9: 0.436 | AT9: 800
A10: 0.075 | B10: 1.06 | C10: -2.1 | D10: -0.5 | E10: 50 | F10: 0 | G10: 0.2695 | H10: -0.658 | I10: 0.165 | J10: -0.254 | K10: -0.165 | L10: 0.254 | M10: 20.1772 | N10: 5.0031 | O10: 1.9636 | P10: 6.4551 | Q10: 3.1094 | R10: 0.5048 | S10: 0.0352 | T10: 0.063 | U10: 2.6087 | V10: 1.026 | W10: 0.1171 | X10: 7.3298 | Y10: 0 | Z10: -0.4536 | AA10: -0.009537 | AB10: -0.00619 | AC10: 4.5455 | AD10: -0.3747 | AE10: -0.2538 | AF10: -0.005734 | AG10: 0.190596 | AH10: 0 | AI10: 300 | AJ10: 0.4179 | AK10: 0.2855 | AL10: 0.5179 | AM10: 0.4043 | AN10: 0.8 | AO10: 0.5022 | AP10: 1.4804 | AQ10: 0.7956 | AR10: -0.4685 | AS10: 0.383 | AT10: 800
A11: 0.1 | B11: 1.06 | C11: -2.1 | D11: -0.5 | E11: 50 | F11: 0 | G11: 0.2695 | H11: -0.5613 | I11: 0.165 | J11: -0.253 | K11: -0.165 | L11: 0.253 | M11: 19.9992 | N11: 5.0172 | O11: 1.9636 | P11: 6.8305 | Q11: 3.2381 | R11: 0.5048 | S11: 0.0352 | T11: 0.0532 | U11: 2.9122 | V11: 1.0177 | W11: 0.1146 | X11: 7.2588 | Y11: 0 | Z11: -0.4536 | AA11: -0.00983 | AB11: -0.005332 | AC11: 4.7603 | AD11: -0.444 | AE11: -0.2943 | AF11: -0.005604 | AG11: 0.230662 | AH11: 0 | AI11: 300 | AJ11: 0.4219 | AK11: 0.2913 | AL11: 0.5236 | AM11: 0.4104 | AN11: 0.8 | AO11: 0.523 | AP11: 1.4094 | AQ11: 0.7932 | AR11: -0.4985 | AS11: 0.375 | AT11: 800
A12: 0.12 | B12: 1.06 | C12: -2.1 | D12: -0.5 | E12: 50 | F12: 0 | G12: 0.2695 | H12: -0.5342 | I12: 0.165 | J12: -0.252 | K12: -0.165 | L12: 0.252 | M12: 18.7106 | N12: 5.0315 | O12: 1.9795 | P12: 7.1333 | Q12: 3.3407 | R12: 0.5048 | S12: 0.0352 | T12: 0.0452 | U12: 3.1045 | V12: 1.0008 | W12: 0.1128 | X12: 7.2372 | Y12: 0 | Z12: -0.4536 | AA12: -0.009913 | AB12: -0.004732 | AC12: 4.8963 | AD12: -0.4895 | AE12: -0.3077 | AF12: -0.005696 | AG12: 0.253169 | AH12: 0 | AI12: 300 | AJ12: 0.4244 | AK12: 0.2949 | AL12: 0.527 | AM12: 0.4143 | AN12: 0.8 | AO12: 0.5278 | AP12: 1.3682 | AQ12: 0.7768 | AR12: -0.5603 | AS12: 0.377 | AT12: 800
A13: 0.15 | B13: 1.06 | C13: -2.1 | D13: -0.5 | E13: 50 | F13: 0 | G13: 0.2695 | H13: -0.5462 | I13: 0.165 | J13: -0.25 | K13: -0.165 | L13: 0.25 | M13: 16.6246 | N13: 5.0547 | O13: 2.0362 | P13: 7.3621 | Q13: 3.43 | R13: 0.5045 | S13: 0.0352 | T13: 0.0345 | U13: 3.3399 | V13: 0.9801 | W13: 0.1106 | X13: 7.2109 | Y13: 0 | Z13: -0.4536 | AA13: -0.009896 | AB13: -0.003806 | AC13: 5.0644 | AD13: -0.5477 | AE13: -0.3113 | AF13: -0.005845 | AG13: 0.266468 | AH13: 0 | AI13: 300 | AJ13: 0.4275 | AK13: 0.2993 | AL13: 0.5308 | AM13: 0.4191 | AN13: 0.8 | AO13: 0.5304 | AP13: 1.3241 | AQ13: 0.7437 | AR13: -0.6451 | AS13: 0.379 | AT13: 800
A14: 0.17 | B14: 1.06 | C14: -2.1 | D14: -0.5 | E14: 50 | F14: 0 | G14: 0.2695 | H14: -0.5858 | I14: 0.165 | J14: -0.248 | K14: -0.165 | L14: 0.248 | M14: 15.3709 | N14: 5.0704 | O14: 2.0823 | P14: 7.4365 | Q14: 3.4688 | R14: 0.5036 | S14: 0.0352 | T14: 0.0283 | U14: 3.4719 | V14: 0.9652 | W14: 0.115 | X14: 7.2491 | Y14: 0 | Z14: -0.4536 | AA14: -0.009787 | AB14: -0.00328 | AC14: 5.1371 | AD14: -0.5922 | AE14: -0.3062 | AF14: -0.005959 | AG14: 0.26506 | AH14: 0 | AI14: 300 | AJ14: 0.4292 | AK14: 0.3017 | AL14: 0.5328 | AM14: 0.4217 | AN14: 0.8 | AO14: 0.531 | AP14: 1.3071 | AQ14: 0.7219 | AR14: -0.6981 | AS14: 0.38 | AT14: 800
A15: 0.2 | B15: 1.06 | C15: -2.1 | D15: -0.5 | E15: 50 | F15: 0 | G15: 0.2695 | H15: -0.6798 | I15: 0.165 | J15: -0.2449 | K15: -0.165 | L15: 0.2449 | M15: 13.7012 | N15: 5.0939 | O15: 2.1521 | P15: 7.4972 | Q15: 3.5146 | R15: 0.5016 | S15: 0.0352 | T15: 0.0202 | U15: 3.6434 | V15: 0.9459 | W15: 0.1208 | X15: 7.2988 | Y15: 0 | Z15: -0.444 | AA15: -0.009505 | AB15: -0.00269 | AC15: 5.188 | AD15: -0.6693 | AE15: -0.2927 | AF15: -0.006141 | AG15: 0.255253 | AH15: 0 | AI15: 300 | AJ15: 0.4313 | AK15: 0.3047 | AL15: 0.5351 | AM15: 0.4252 | AN15: 0.8 | AO15: 0.5312 | AP15: 1.2931 | AQ15: 0.6922 | AR15: -0.7653 | AS15: 0.384 | AT15: 800
A16: 0.25 | B16: 1.06 | C16: -2.1 | D16: -0.5 | E16: 50 | F16: 0 | G16: 0.2695 | H16: -0.8663 | I16: 0.165 | J16: -0.2382 | K16: -0.165 | L16: 0.2382 | M16: 11.2667 | N16: 5.1315 | O16: 2.2574 | P16: 7.5416 | Q16: 3.5746 | R16: 0.4971 | S16: 0.0352 | T16: 0.009 | U16: 3.8787 | V16: 0.9196 | W16: 0.1208 | X16: 7.3691 | Y16: 0 | Z16: -0.3539 | AA16: -0.008918 | AB16: -0.002128 | AC16: 5.2164 | AD16: -0.7766 | AE16: -0.2662 | AF16: -0.006439 | AG16: 0.231541 | AH16: 0 | AI16: 300 | AJ16: 0.4341 | AK16: 0.3087 | AL16: 0.5377 | AM16: 0.4299 | AN16: 0.7999 | AO16: 0.5309 | AP16: 1.315 | AQ16: 0.6579 | AR16: -0.8469 | AS16: 0.393 | AT16: 800
A17: 0.3 | B17: 1.06 | C17: -2.1 | D17: -0.5 | E17: 50 | F17: 0 | G17: 0.2695 | H17: -1.0514 | I17: 0.165 | J17: -0.2313 | K17: -0.165 | L17: 0.2313 | M17: 9.1908 | N17: 5.167 | O17: 2.344 | P17: 7.56 | Q17: 3.6232 | R17: 0.4919 | S17: 0.0352 | T17: -0.0004 | U17: 4.0711 | V17: 0.8829 | W17: 0.1175 | X17: 6.8789 | Y17: 0 | Z17: -0.2688 | AA17: -0.008251 | AB17: -0.001812 | AC17: 5.1954 | AD17: -0.8501 | AE17: -0.2405 | AF17: -0.006704 | AG17: 0.207277 | AH17: 0.001 | AI17: 300 | AJ17: 0.4363 | AK17: 0.3119 | AL17: 0.5395 | AM17: 0.4338 | AN17: 0.7997 | AO17: 0.5307 | AP17: 1.3514 | AQ17: 0.6362 | AR17: -0.8999 | AS17: 0.408 | AT17: 800
A18: 0.4 | B18: 1.06 | C18: -2.1 | D18: -0.5 | E18: 50 | F18: 0 | G18: 0.2695 | H18: -1.3794 | I18: 0.165 | J18: -0.2146 | K18: -0.165 | L18: 0.2146 | M18: 6.5459 | N18: 5.2317 | O18: 2.4709 | P18: 7.5735 | Q18: 3.6945 | R18: 0.4807 | S18: 0.0352 | T18: -0.0155 | U18: 4.3745 | V18: 0.8302 | W18: 0.106 | X18: 6.5334 | Y18: 0 | Z18: -0.1793 | AA18: -0.007267 | AB18: -0.001274 | AC18: 5.0899 | AD18: -0.9431 | AE18: -0.1975 | AF18: -0.007125 | AG18: 0.165464 | AH18: 0.004 | AI18: 300 | AJ18: 0.4396 | AK18: 0.3165 | AL18: 0.5422 | AM18: 0.4399 | AN18: 0.7988 | AO18: 0.531 | AP18: 1.4051 | AQ18: 0.6049 | AR18: -0.9618 | AS18: 0.462 | AT18: 800
A19: 0.5 | B19: 1.06 | C19: -2.1 | D19: -0.5 | E19: 50 | F19: 0.0991 | G19: 0.2695 | H19: -1.6508 | I19: 0.165 | J19: -0.1972 | K19: -0.165 | L19: 0.1972 | M19: 5.2305 | N19: 5.2893 | O19: 2.5567 | P19: 7.5778 | Q19: 3.7401 | R19: 0.4707 | S19: 0.0352 | T19: -0.0278 | U19: 4.6099 | V19: 0.7884 | W19: 0.1061 | X19: 6.526 | Y19: 0 | Z19: -0.1428 | AA19: -0.006492 | AB19: -0.001074 | AC19: 4.7854 | AD19: -1.0044 | AE19: -0.1633 | AF19: -0.007435 | AG19: 0.133828 | AH19: 0.01 | AI19: 300 | AJ19: 0.4419 | AK19: 0.3199 | AL19: 0.5433 | AM19: 0.4446 | AN19: 0.7966 | AO19: 0.5313 | AP19: 1.4402 | AQ19: 0.5507 | AR19: -0.9945 | AS19: 0.524 | AT19: 800
A20: 0.75 | B20: 1.06 | C20: -2.1 | D20: -0.5 | E20: 50 | F20: 0.1982 | G20: 0.2695 | H20: -2.1511 | I20: 0.165 | J20: -0.162 | K20: -0.165 | L20: 0.162 | M20: 3.7896 | N20: 5.4109 | O20: 2.6812 | P20: 7.5808 | Q20: 3.7941 | R20: 0.4575 | S20: 0.0352 | T20: -0.0477 | U20: 5.0376 | V20: 0.6754 | W20: 0.1 | X20: 6.5 | Y20: 0 | Z20: -0.1138 | AA20: -0.005147 | AB20: -0.001115 | AC20: 4.3304 | AD20: -1.0602 | AE20: -0.1028 | AF20: -0.00812 | AG20: 0.085153 | AH20: 0.034 | AI20: 300 | AJ20: 0.4459 | AK20: 0.3255 | AL20: 0.5294 | AM20: 0.4533 | AN20: 0.7792 | AO20: 0.5309 | AP20: 1.528 | AQ20: 0.3582 | AR20: -1.0225 | AS20: 0.658 | AT20: 800
A21: 1 | B21: 1.06 | C21: -2.1 | D21: -0.5 | E21: 50 | F21: 0.2154 | G21: 0.2695 | H21: -2.5365 | I21: 0.165 | J21: -0.14 | K21: -0.165 | L21: 0.14 | M21: 3.3024 | N21: 5.5106 | O21: 2.7474 | P21: 7.5814 | Q21: 3.8144 | R21: 0.4522 | S21: 0.0352 | T21: -0.0559 | U21: 5.3411 | V21: 0.6196 | W21: 0.1 | X21: 6.5 | Y21: 0 | Z21: -0.1062 | AA21: -0.004277 | AB21: -0.001197 | AC21: 4.1667 | AD21: -1.0941 | AE21: -0.0699 | AF21: -0.008444 | AG21: 0.058595 | AH21: 0.067 | AI21: 300 | AJ21: 0.4484 | AK21: 0.3291 | AL21: 0.5105 | AM21: 0.4594 | AN21: 0.7504 | AO21: 0.5302 | AP21: 1.6523 | AQ21: 0.2003 | AR21: -1.0002 | AS21: 0.78 | AT21: 800
A22: 1.5 | B22: 1.06 | C22: -2.1 | D22: -0.5 | E22: 50 | F22: 0.2154 | G22: 0.2695 | H22: -3.0686 | I22: 0.165 | J22: -0.1184 | K22: -0.165 | L22: 0.1184 | M22: 2.8498 | N22: 5.6705 | O22: 2.8161 | P22: 7.5817 | Q22: 3.8284 | R22: 0.4501 | S22: 0.0352 | T22: -0.063 | U22: 5.7688 | V22: 0.5101 | W22: 0.1 | X22: 6.5 | Y22: 0 | Z22: -0.102 | AA22: -0.002979 | AB22: -0.001675 | AC22: 4.0029 | AD22: -1.1142 | AE22: -0.0425 | AF22: -0.007707 | AG22: 0.031787 | AH22: 0.143 | AI22: 300 | AJ22: 0.4515 | AK22: 0.3335 | AL22: 0.4783 | AM22: 0.468 | AN22: 0.7136 | AO22: 0.5276 | AP22: 1.8872 | AQ22: 0.0356 | AR22: -0.9245 | AS22: 0.96 | AT22: 800
A23: 2 | B23: 1.06 | C23: -2.1 | D23: -0.5 | E23: 50 | F23: 0.2154 | G23: 0.2695 | H23: -3.4148 | I23: 0.1645 | J23: -0.11 | K23: -0.1645 | L23: 0.11 | M23: 2.5417 | N23: 5.7981 | O23: 2.8514 | P23: 7.5818 | Q23: 3.833 | R23: 0.45 | S23: 0.0352 | T23: -0.0665 | U23: 6.0723 | V23: 0.3917 | W23: 0.1 | X23: 6.5 | Y23: 0 | Z23: -0.1009 | AA23: -0.002301 | AB23: -0.002349 | AC23: 3.8949 | AD23: -1.1154 | AE23: -0.0302 | AF23: -0.004792 | AG23: 0.019716 | AH23: 0.203 | AI23: 300 | AJ23: 0.4534 | AK23: 0.3363 | AL23: 0.4681 | AM23: 0.4681 | AN23: 0.7035 | AO23: 0.5167 | AP23: 2.1348 | AQ23: 0 | AR23: -0.8626 | AS23: 1.11 | AT23: 800
A24: 3 | B24: 1.06 | C24: -2.1 | D24: -0.5 | E24: 50 | F24: 0.2154 | G24: 0.2695 | H24: -3.9013 | I24: 0.1168 | J24: -0.104 | K24: -0.1168 | L24: 0.104 | M24: 2.1488 | N24: 5.9983 | O24: 2.8875 | P24: 7.5818 | Q24: 3.8361 | R24: 0.45 | S24: 0.016 | T24: -0.0516 | U24: 6.5 | V24: 0.1244 | W24: 0.1 | X24: 6.5 | Y24: 0 | Z24: -0.1003 | AA24: -0.001344 | AB24: -0.003306 | AC24: 3.7928 | AD24: -1.1081 | AE24: -0.0129 | AF24: -0.001828 | AG24: 0.009643 | AH24: 0.277 | AI24: 300 | AJ24: 0.4558 | AK24: 0.3398 | AL24: 0.4617 | AM24: 0.4617 | AN24: 0.7006 | AO24: 0.4917 | AP24: 3.5752 | AQ24: 0 | AR24: -0.7882 | AS24: 1.291 | AT24: 800
A25: 4 | B25: 1.06 | C25: -2.1 | D25: -0.5 | E25: 50 | F25: 0.2154 | G25: 0.2695 | H25: -4.2466 | I25: 0.0732 | J25: -0.102 | K25: -0.0732 | L25: 0.102 | M25: 1.8957 | N25: 6.1552 | O25: 2.9058 | P25: 7.5818 | Q25: 3.8369 | R25: 0.45 | S25: 0.0062 | T25: -0.0448 | U25: 6.8035 | V25: 0.0086 | W25: 0.1 | X25: 6.5 | Y25: 0 | Z25: -0.1001 | AA25: -0.001084 | AB25: -0.003566 | AC25: 3.7443 | AD25: -1.0603 | AE25: -0.0016 | AF25: -0.001523 | AG25: 0.005379 | AH25: 0.309 | AI25: 300 | AJ25: 0.4574 | AK25: 0.3419 | AL25: 0.4571 | AM25: 0.4571 | AN25: 0.7001 | AO25: 0.4682 | AP25: 3.8646 | AQ25: 0 | AR25: -0.7195 | AS25: 1.387 | AT25: 800
A26: 5 | B26: 1.06 | C26: -2.1 | D26: -0.5 | E26: 50 | F26: 0.2154 | G26: 0.2695 | H26: -4.5143 | I26: 0.0484 | J26: -0.101 | K26: -0.0484 | L26: 0.101 | M26: 1.7228 | N26: 6.2856 | O26: 2.9169 | P26: 7.5818 | Q26: 3.8376 | R26: 0.45 | S26: 0.0029 | T26: -0.0424 | U26: 7.0389 | V26: 0 | W26: 0.1 | X26: 6.5 | Y26: 0 | Z26: -0.1001 | AA26: -0.00101 | AB26: -0.00364 | AC26: 3.709 | AD26: -0.9872 | AE26: 0 | AF26: -0.00144 | AG26: 0.003223 | AH26: 0.321 | AI26: 300 | AJ26: 0.4584 | AK26: 0.3435 | AL26: 0.4535 | AM26: 0.4535 | AN26: 0.7 | AO26: 0.4517 | AP26: 3.7292 | AQ26: 0 | AR26: -0.656 | AS26: 1.433 | AT26: 800
A27: 7.5 | B27: 1.06 | C27: -2.1 | D27: -0.5 | E27: 50 | F27: 0.2154 | G27: 0.2695 | H27: -5.0009 | I27: 0.022 | J27: -0.101 | K27: -0.022 | L27: 0.101 | M27: 1.5737 | N27: 6.5428 | O27: 2.932 | P27: 7.5818 | Q27: 3.838 | R27: 0.45 | S27: 0.0007 | T27: -0.0348 | U27: 7.4666 | V27: 0 | W27: 0.1 | X27: 6.5 | Y27: 0 | Z27: -0.1 | AA27: -0.000964 | AB27: -0.003686 | AC27: 3.6632 | AD27: -0.8274 | AE27: 0 | AF27: -0.001369 | AG27: 0.001134 | AH27: 0.329 | AI27: 300 | AJ27: 0.4601 | AK27: 0.3459 | AL27: 0.4471 | AM27: 0.4471 | AN27: 0.7 | AO27: 0.4167 | AP27: 2.3763 | AQ27: 0 | AR27: -0.5202 | AS27: 1.46 | AT27: 800
A28: 10 | B28: 1.06 | C28: -2.1 | D28: -0.5 | E28: 50 | F28: 0.2154 | G28: 0.2695 | H28: -5.3461 | I28: 0.0124 | J28: -0.1 | K28: -0.0124 | L28: 0.1 | M28: 1.5265 | N28: 6.7415 | O28: 2.9396 | P28: 7.5818 | Q28: 3.838 | R28: 0.45 | S28: 0.0003 | T28: -0.0253 | U28: 7.77 | V28: 0 | W28: 0.1 | X28: 6.5 | Y28: 0 | Z28: -0.1 | AA28: -0.00095 | AB28: -0.0037 | AC28: 3.623 | AD28: -0.7053 | AE28: 0 | AF28: -0.001361 | AG28: 0.000515 | AH28: 0.33 | AI28: 300 | AJ28: 0.4612 | AK28: 0.3474 | AL28: 0.4426 | AM28: 0.4426 | AN28: 0.7 | AO28: 0.3755 | AP28: 1.7679 | AQ28: 0 | AR28: -0.4068 | AS28: 1.464 | AT28: 800
A29: 0 | B29: =B5 -> 1.06 | C29: =C5 -> -2.1 | D29: -0.5 | E29: 50 | F29: 0 | G29: 0.2695 | H29: -1.5065 | I29: 0.165 | J29: -0.255 | K29: -0.165 | L29: 0.255 | M29: 16.0875 | N29: 4.9993 | O29: 1.9636 | P29: 6.4551 | Q29: 3.0956 | R29: 0.4908 | S29: 0.0352 | T29: 0.0462 | U29: 0.4833 | V29: 0.9228 | W29: 0.1202 | X29: 6.8607 | Y29: 0 | Z29: -0.4536 | AA29: -0.007146 | AB29: -0.006758 | AC29: 4.2542 | AD29: -0.521 | AE29: -0.1417 | AF29: -0.00701 | AG29: 0.102151 | AH29: 0 | AI29: 300 | AJ29: 0.4 | AK29: 0.26 | AL29: 0.4912 | AM29: 0.3762 | AN29: 0.8 | AO29: 0.4528 | AP29: 1.5817 | AQ29: 0.7594 | AR29: -0.6846 | AS29: 0.459 | AT29: =AT5 -> 800
A30: -1 | B30: 1.06 | C30: -2.1 | D30: -0.5 | E30: 50 | F30: 0.2154 | G30: 0.2695 | H30: 2.3549 | I30: 0.165 | J30: -0.0626 | K30: -0.165 | L30: 0.0626 | M30: 3.3024 | N30: 5.423 | O30: 2.3152 | P30: 5.8096 | Q30: 3.0514 | R30: 0.4407 | S30: 0.0324 | T30: 0.0097 | U30: 5 | V30: 0.3079 | W30: 0.1 | X30: 6.5 | Y30: 0 | Z30: -0.3834 | AA30: -0.001852 | AB30: -0.007403 | AC30: 4.3439 | AD30: -0.7936 | AE30: -0.0699 | AF30: -0.008444 | AG30: 5.41 | AH30: 0.0202 | AI30: 300 | AJ30: 0.3894 | AK30: 0.2578 | AL30: 0.4785 | AM30: 0.36292 | AN30: 0.7504 | AO30: 0.3918 | AP30: 2.2306 | AQ30: 0.335 | AR30: -0.7966 | AS30: 0.9488 | AT30: 800

Sheet I14
A1: IDRISS NGA-WEST2 MODEL COEFFICIENTS [I14] (MAY 2013, PEER REPORT 2013/08):
A3: Input variables | B3: Errors and warnings | L3: I_14 (M, Rrup, F, Vs30, T)
L4: Visual Basic Calculations
A5: M | C5: GMP | D5: T (s) | L5: Median | M5: s
A6: =Main!B24 -> 6.8 | B6: =IF($A$6<5, "! Not Applicable !", "") ->  | C6: PSa (g) | D6: 0.01 | L6: =I_14($A$6,$A$9,$A$15,$A$12,D6) -> 0.4789549226 | M6: =I_14_stdev($A$6,D6) -> 0.6671493704
D7: 0.02 | L7: =I_14($A$6,$A$9,$A$15,$A$12,D7) -> 0.4920628664 | M7: =I_14_stdev($A$6,D7) -> 0.6671493704
A8: Rrup(km) | D8: 0.03 | L8: 0.5400201673 | M8: 0.6671493704
A9: =Main!B27 -> 3.16 | B9: =IF($A$9>150, "! Not Applicable !", "") ->  | D9: 0.05 | L9: 0.5717016524 | M9: 0.6671493704
D10: 0.075 | L10: 0.7379419031 | M10: 0.6813406492
A11: VS30 (m/s) | D11: 0.1 | L11: 0.8693190736 | M11: 0.6914095217
A12: =Main!B39 -> 760 | B12: =IF($A$12<450,"! Not Applicable !","") ->  | D12: 0.15 | L12: 0.9399445704 | M12: 0.7056008005
D13: 0.2 | L13: 0.9287821821 | M13: 0.7156696731
A14: F | D14: 0.25 | L14: 0.8394798203 | M14: 0.7234796974
A15: =Main!B45 -> 0 | B15: =IF($A$15=1,"1: reverse fault","") ->  | D15: 0.3 | L15: 0.7372278 | M15: 0.7298609518
D16: 0.4 | L16: 0.6004514479 | M16: 0.7399298244
D17: 0.5 | L17: 0.5153790814 | M17: 0.7477398487
D18: 0.75 | L18: 0.2989350789 | M18: 0.7619311275
D19: 1 | L19: 0.2225987692 | M19: 0.772
D20: 1.5 | L20: 0.1356234783 | M20: 0.7861912788
D21: 2 | L21: 0.09602611273 | M21: 0.7962601513
D22: 3 | L22: 0.07490026663 | M22: 0.8104514301
D23: 4 | L23: 0.05150168268 | M23: 0.8104514301
D24: 5 | L24: 0.04310813101 | M24: 0.8104514301
D25: 7.5 | L25: 0.02429137067 | M25: 0.8104514301
D26: 10 | L26: 0.01357274558 | M26: 0.8104514301
C28: PGA (g) | D28: 0 | L28: =I_14($A$6,$A$9,$A$15,$A$12,D28) -> 0.4789549226 | M28: =I_14_stdev($A$6,D28) -> 0.6671493704
C29: PGV (cm/s) | D29: -1 | L29: - | M29: -
I50: 7.5 | J50: =I_13($A$6,$A$9,$A$15,$A$12,I50) -> 
I51: 10 | J51: =I_13($A$6,$A$9,$A$15,$A$12,I51) -> 
I52: 0 | J52: =I_13($A$6,$A$9,$A$15,$A$12,I52) -> 

Sheet I14_Coeffs
A1: IDRISS NGA-WEST2 MODEL COEFFICIENTS [I14] (MAY 2013, PEER REPORT 2013/08):
A3: T (s) | B3: a1 | C3: a2 | D3: b1 | E3: b2 | F3: a1 | G3: a2 | H3: b1 | I3: b2 | J3: a3 | K3: x | L3: g | M3: j
B4: M ≤ 6.75, VS30 ≥ 450 m/sec | F4: M > 6.75, VS30 ≥ 450 m/sec
A5: 0.01 | B5: 7.0887 | C5: 0.2058 | D5: 2.9935 | E5: -0.2287 | F5: 9.0138 | G5: -0.0794 | H5: 2.9935 | I5: -0.2287 | J5: 0.0589 | K5: -0.854 | L5: -0.0027 | M5: 0.08
A6: 0.02 | B6: 7.1157 | C6: 0.2058 | D6: 2.9935 | E6: -0.2287 | F6: 9.0408 | G6: -0.0794 | H6: 2.9935 | I6: -0.2287 | J6: 0.0589 | K6: -0.854 | L6: -0.0027 | M6: 0.08
A7: 0.03 | B7: 7.2087 | C7: 0.2058 | D7: 2.9935 | E7: -0.2287 | F7: 9.1338 | G7: -0.0794 | H7: 2.9935 | I7: -0.2287 | J7: 0.0589 | K7: -0.854 | L7: -0.0027 | M7: 0.08
A8: 0.05 | B8: 6.2638 | C8: 0.0625 | D8: 2.8664 | E8: -0.2418 | F8: 7.9837 | G8: -0.1923 | H8: 2.7995 | I8: -0.2319 | J8: 0.0417 | K8: -0.631 | L8: -0.0061 | M8: 0.08
A9: 0.075 | B9: 5.9051 | C9: 0.1128 | D9: 2.9406 | E9: -0.2513 | F9: 7.756 | G9: -0.1614 | H9: 2.8143 | I9: -0.2326 | J9: 0.0527 | K9: -0.591 | L9: -0.0056 | M9: 0.08
A10: 0.1 | B10: 7.5791 | C10: 0.0848 | D10: 3.019 | E10: -0.2516 | F10: 9.4252 | G10: -0.1887 | H10: 2.8131 | I10: -0.2211 | J10: 0.0442 | K10: -0.757 | L10: -0.0042 | M10: 0.08
A11: 0.15 | B11: 8.019 | C11: 0.1713 | D11: 2.7871 | E11: -0.2236 | F11: 9.6242 | G11: -0.0665 | H11: 2.4091 | I11: -0.1676 | J11: 0.0329 | K11: -0.911 | L11: -0.0046 | M11: 0.08
A12: 0.2 | B12: 9.2812 | C12: 0.1041 | D12: 2.8611 | E12: -0.2229 | F12: 11.13 | G12: -0.1698 | H12: 2.4938 | I12: -0.1685 | J12: 0.0188 | K12: -0.998 | L12: -0.003 | M12: 0.08
A13: 0.25 | B13: 9.5804 | C13: 0.0875 | D13: 2.8289 | E13: -0.22 | F13: 11.3629 | G13: -0.1766 | H13: 2.3773 | I13: -0.1531 | J13: 0.0095 | K13: -1.042 | L13: -0.0028 | M13: 0.08
A14: 0.3 | B14: 9.8912 | C14: 0.0003 | D14: 2.8423 | E14: -0.2284 | F14: 11.7818 | G14: -0.2798 | H14: 2.3772 | I14: -0.1595 | J14: -0.0039 | K14: -1.03 | L14: -0.0029 | M14: 0.08
A15: 0.4 | B15: 9.5342 | C15: 0.0027 | D15: 2.83 | E15: -0.2318 | F15: 11.6097 | G15: -0.3048 | H15: 2.3413 | I15: -0.1594 | J15: -0.0133 | K15: -1.019 | L15: -0.0028 | M15: 0.08
A16: 0.5 | B16: 9.2142 | C16: 0.0399 | D16: 2.856 | E16: -0.2337 | F16: 11.4484 | G16: -0.2911 | H16: 2.3477 | I16: -0.1584 | J16: -0.0224 | K16: -1.023 | L16: -0.0021 | M16: 0.08
A17: 0.75 | B17: 8.3517 | C17: 0.0689 | D17: 2.7544 | E17: -0.2392 | F17: 10.9065 | G17: -0.3097 | H17: 2.2042 | I17: -0.1577 | J17: -0.0267 | K17: -1.056 | L17: -0.0029 | M17: 0.08
A18: 1 | B18: 7.0453 | C18: 0.16 | D18: 2.7339 | E18: -0.2398 | F18: 9.8565 | G18: -0.2565 | H18: 2.1493 | I18: -0.1532 | J18: -0.0198 | K18: -1.009 | L18: -0.0032 | M18: 0.06
A19: 1.5 | B19: 5.1307 | C19: 0.2429 | D19: 2.68 | E19: -0.2417 | F19: 8.3363 | G19: -0.232 | H19: 2.0408 | I19: -0.147 | J19: -0.0367 | K19: -0.898 | L19: -0.0033 | M19: 0.04
A20: 2 | B20: 3.361 | C20: 0.3966 | D20: 2.6837 | E20: -0.245 | F20: 6.8656 | G20: -0.1226 | H20: 2.0013 | I20: -0.1439 | J20: -0.0291 | K20: -0.851 | L20: -0.0032 | M20: 0.02
A21: 3 | B21: 0.1784 | C21: 0.756 | D21: 2.6907 | E21: -0.2389 | F21: 4.1178 | G21: 0.1724 | H21: 1.9408 | I21: -0.1278 | J21: -0.0214 | K21: -0.761 | L21: -0.0031 | M21: 0.02
A22: 4 | B22: -2.4301 | C22: 0.9283 | D22: 2.5782 | E22: -0.2514 | F22: 1.8102 | G22: 0.3001 | H22: 1.7763 | I22: -0.1326 | J22: -0.024 | K22: -0.675 | L22: -0.0051 | M22: 0
A23: 5 | B23: -4.357 | C23: 1.1209 | D23: 2.5468 | E23: -0.2541 | F23: 0.0977 | G23: 0.4609 | H23: 1.703 | I23: -0.1291 | J23: -0.0202 | K23: -0.629 | L23: -0.0059 | M23: 0
A24: 7.5 | B24: -7.8275 | C24: 1.4016 | D24: 2.4478 | E24: -0.2593 | F24: -3.0563 | G24: 0.6948 | H24: 1.5212 | I24: -0.122 | J24: -0.0219 | K24: -0.531 | L24: -0.0057 | M24: 0
A25: 10 | B25: -9.2857 | C25: 1.5574 | D25: 2.3922 | E25: -0.2586 | F25: -4.4387 | G25: 0.8393 | H25: 1.4195 | I25: -0.1145 | J25: -0.0035 | K25: -0.586 | L25: -0.0061 | M25: 0
A26: 0 | B26: 7.0887 | C26: 0.2058 | D26: 2.9935 | E26: -0.2287 | F26: 9.0138 | G26: -0.0794 | H26: 2.9935 | I26: -0.2287 | J26: 0.0589 | K26: -0.854 | L26: -0.0027 | M26: 0.08

Sheet GMPEs Comparison (hidden)
A2: Option for Sa value | B2: Arithmetic | C2: =IF(B2="Arithmetic","Weighted average of the spectral values","Weighted average of the natural logarithm of the spectral values") -> Weighted average of the spectral values
A4: GMPEs | B4: ASK14 | C4: BSSA14 | D4: CB14 | E4: CY14 | F4: I14
A5: Weight | B5: =Main!$C$14 -> 0.25 | C5: =Main!$D$14 -> 0.25 | D5: =Main!$E$14 -> 0.25 | E5: =Main!$F$14 -> 0.25 | F5: =Main!$G$14 -> 0
A7: # of std. dev. | B7: =Main!$C$16 -> 1 | D7: =IF(AND(SUM($B$5:$F$5)>0.99,SUM($B$5:$F$5)<1.01)," ","WARNING: Weights should sum up to 1") -> 
A8: Damping ratio (%) | B8: =Main!$C$17 -> 5
D10: ASK14 | E10: BSSA14 | F10: CB14 | G10: CY14 | H10: I14
B11: GMP | C11: T (s) | D11: ="Sa Median (" &$B$8 & "% damping)" -> Sa Median (5% damping)
B12: PSa (g), Sd (cm) | C12: 0.01 | D12: =DSF!$S22*IF(Main!$C$14<>0,'ASK14'!E6,0) -> 0.4110960477 | E12: =DSF!$S22*IF(Main!$D$14<>0,BSSA14!S6,0) -> 0.4436219607 | F12: =DSF!$S22*IF(Main!$E$14<>0,'CB14'!Y6,0) -> 0.4984355943 | G12: =DSF!$S22*IF(Main!$F$14<>0,'CY14'!U6,0) -> 0.4166951874 | H12: =DSF!$S22*IF(Main!$G$14<>0,'I14'!L6,0) -> 0
C13: 0.02 | D13: =DSF!$S23*IF(Main!$C$14<>0,'ASK14'!E7,0) -> 0.4213594036 | E13: =DSF!$S23*IF(Main!$D$14<>0,BSSA14!S7,0) -> 0.4513209866 | F13: =DSF!$S23*IF(Main!$E$14<>0,'CB14'!Y7,0) -> 0.5192864432 | G13: =DSF!$S23*IF(Main!$F$14<>0,'CY14'!U7,0) -> 0.4216114187 | H13: =DSF!$S23*IF(Main!$G$14<>0,'I14'!L7,0) -> 0
C14: 0.03 | D14: =DSF!$S24*IF(Main!$C$14<>0,'ASK14'!E8,0) -> 0.4466188746 | E14: =DSF!$S24*IF(Main!$D$14<>0,BSSA14!S8,0) -> 0.4870690627 | F14: =DSF!$S24*IF(Main!$E$14<>0,'CB14'!Y8,0) -> 0.619340104 | G14: =DSF!$S24*IF(Main!$F$14<>0,'CY14'!U8,0) -> 0.4711396515 | H14: =DSF!$S24*IF(Main!$G$14<>0,'I14'!L8,0) -> 0
C15: 0.05 | D15: =DSF!$S25*IF(Main!$C$14<>0,'ASK14'!E9,0) -> 0.5082413643 | E15: =DSF!$S25*IF(Main!$D$14<>0,BSSA14!S9,0) -> 0.6241431189 | F15: =DSF!$S25*IF(Main!$E$14<>0,'CB14'!Y9,0) -> 0.8441481102 | G15: =DSF!$S25*IF(Main!$F$14<>0,'CY14'!U9,0) -> 0.6275208724 | H15: =DSF!$S25*IF(Main!$G$14<>0,'I14'!L9,0) -> 0
C16: 0.075 | D16: =DSF!$S26*IF(Main!$C$14<>0,'ASK14'!E10,0) -> 0.656362049 | E16: =DSF!$S26*IF(Main!$D$14<>0,BSSA14!S10,0) -> 0.7976048252 | F16: =DSF!$S26*IF(Main!$E$14<>0,'CB14'!Y10,0) -> 0.9858211825 | G16: =DSF!$S26*IF(Main!$F$14<>0,'CY14'!U10,0) -> 0.8243893544 | H16: =DSF!$S26*IF(Main!$G$14<>0,'I14'!L10,0) -> 0
C17: 0.1 | D17: =DSF!$S27*IF(Main!$C$14<>0,'ASK14'!E11,0) -> 0.793800585 | E17: =DSF!$S27*IF(Main!$D$14<>0,BSSA14!S11,0) -> 0.9204824121 | F17: =DSF!$S27*IF(Main!$E$14<>0,'CB14'!Y11,0) -> 0.9977632461 | G17: =DSF!$S27*IF(Main!$F$14<>0,'CY14'!U11,0) -> 0.9358420661 | H17: =DSF!$S27*IF(Main!$G$14<>0,'I14'!L11,0) -> 0
C18: 0.15 | D18: =DSF!$S28*IF(Main!$C$14<>0,'ASK14'!E12,0) -> 0.9877398485 | E18: =DSF!$S28*IF(Main!$D$14<>0,BSSA14!S12,0) -> 1.076461582 | F18: =DSF!$S28*IF(Main!$E$14<>0,'CB14'!Y12,0) -> 0.9963357495 | G18: =DSF!$S28*IF(Main!$F$14<>0,'CY14'!U12,0) -> 1.0248545 | H18: =DSF!$S28*IF(Main!$G$14<>0,'I14'!L12,0) -> 0
C19: 0.2 | D19: =DSF!$S29*IF(Main!$C$14<>0,'ASK14'!E13,0) -> 0.97874038 | E19: =DSF!$S29*IF(Main!$D$14<>0,BSSA14!S13,0) -> 1.065429323 | F19: =DSF!$S29*IF(Main!$E$14<>0,'CB14'!Y13,0) -> 0.9040059258 | G19: =DSF!$S29*IF(Main!$F$14<>0,'CY14'!U13,0) -> 1.002262037 | H19: =DSF!$S29*IF(Main!$G$14<>0,'I14'!L13,0) -> 0
C20: 0.25 | D20: =DSF!$S30*IF(Main!$C$14<>0,'ASK14'!E14,0) -> 0.8739048393 | E20: =DSF!$S30*IF(Main!$D$14<>0,BSSA14!S14,0) -> 0.9840966028 | F20: =DSF!$S30*IF(Main!$E$14<>0,'CB14'!Y14,0) -> 0.8312413383 | G20: =DSF!$S30*IF(Main!$F$14<>0,'CY14'!U14,0) -> 0.9362050859 | H20: =DSF!$S30*IF(Main!$G$14<>0,'I14'!L14,0) -> 0
C21: 0.3 | D21: =DSF!$S31*IF(Main!$C$14<>0,'ASK14'!E15,0) -> 0.7517992548 | E21: =DSF!$S31*IF(Main!$D$14<>0,BSSA14!S15,0) -> 0.8927500483 | F21: =DSF!$S31*IF(Main!$E$14<>0,'CB14'!Y15,0) -> 0.7496699814 | G21: =DSF!$S31*IF(Main!$F$14<>0,'CY14'!U15,0) -> 0.8568313062 | H21: =DSF!$S31*IF(Main!$G$14<>0,'I14'!L15,0) -> 0
C22: 0.4 | D22: =DSF!$S32*IF(Main!$C$14<>0,'ASK14'!E16,0) -> 0.5792854685 | E22: =DSF!$S32*IF(Main!$D$14<>0,BSSA14!S16,0) -> 0.7431424526 | F22: =DSF!$S32*IF(Main!$E$14<>0,'CB14'!Y16,0) -> 0.6477991211 | G22: =DSF!$S32*IF(Main!$F$14<>0,'CY14'!U16,0) -> 0.7226520476 | H22: =DSF!$S32*IF(Main!$G$14<>0,'I14'!L16,0) -> 0
C23: 0.5 | D23: =DSF!$S33*IF(Main!$C$14<>0,'ASK14'!E17,0) -> 0.4805963177 | E23: =DSF!$S33*IF(Main!$D$14<>0,BSSA14!S17,0) -> 0.6209967733 | F23: =DSF!$S33*IF(Main!$E$14<>0,'CB14'!Y17,0) -> 0.5376742141 | G23: =DSF!$S33*IF(Main!$F$14<>0,'CY14'!U17,0) -> 0.6173857299 | H23: =DSF!$S33*IF(Main!$G$14<>0,'I14'!L17,0) -> 0
C24: 0.75 | D24: =DSF!$S34*IF(Main!$C$14<>0,'ASK14'!E18,0) -> 0.3263231445 | E24: =DSF!$S34*IF(Main!$D$14<>0,BSSA14!S18,0) -> 0.4267782612 | F24: =DSF!$S34*IF(Main!$E$14<>0,'CB14'!Y18,0) -> 0.388250198 | G24: =DSF!$S34*IF(Main!$F$14<>0,'CY14'!U18,0) -> 0.4266454194 | H24: =DSF!$S34*IF(Main!$G$14<>0,'I14'!L18,0) -> 0
C25: 1 | D25: =DSF!$S35*IF(Main!$C$14<>0,'ASK14'!E19,0) -> 0.2416562694 | E25: =DSF!$S35*IF(Main!$D$14<>0,BSSA14!S19,0) -> 0.312746093 | F25: =DSF!$S35*IF(Main!$E$14<>0,'CB14'!Y19,0) -> 0.2954335832 | G25: =DSF!$S35*IF(Main!$F$14<>0,'CY14'!U19,0) -> 0.3055687117 | H25: =DSF!$S35*IF(Main!$G$14<>0,'I14'!L19,0) -> 0
C26: 1.5 | D26: =DSF!$S36*IF(Main!$C$14<>0,'ASK14'!E20,0) -> 0.1529713235 | E26: =DSF!$S36*IF(Main!$D$14<>0,BSSA14!S20,0) -> 0.1794811932 | F26: =DSF!$S36*IF(Main!$E$14<>0,'CB14'!Y20,0) -> 0.1780701215 | G26: =DSF!$S36*IF(Main!$F$14<>0,'CY14'!U20,0) -> 0.182799192 | H26: =DSF!$S36*IF(Main!$G$14<>0,'I14'!L20,0) -> 0
C27: 2 | D27: =DSF!$S37*IF(Main!$C$14<>0,'ASK14'!E21,0) -> 0.109229182 | E27: =DSF!$S37*IF(Main!$D$14<>0,BSSA14!S21,0) -> 0.1157700487 | F27: =DSF!$S37*IF(Main!$E$14<>0,'CB14'!Y21,0) -> 0.1239088597 | G27: =DSF!$S37*IF(Main!$F$14<>0,'CY14'!U21,0) -> 0.1257602747 | H27: =DSF!$S37*IF(Main!$G$14<>0,'I14'!L21,0) -> 0
C28: 3 | D28: =DSF!$S38*IF(Main!$C$14<>0,'ASK14'!E22,0) -> 0.06649591013 | E28: =DSF!$S38*IF(Main!$D$14<>0,BSSA14!S22,0) -> 0.06764865202 | F28: =DSF!$S38*IF(Main!$E$14<>0,'CB14'!Y22,0) -> 0.07616671295 | G28: =DSF!$S38*IF(Main!$F$14<>0,'CY14'!U22,0) -> 0.07168488349 | H28: =DSF!$S38*IF(Main!$G$14<>0,'I14'!L22,0) -> 0
C29: 4 | D29: =DSF!$S39*IF(Main!$C$14<>0,'ASK14'!E23,0) -> 0.04707021855 | E29: =DSF!$S39*IF(Main!$D$14<>0,BSSA14!S23,0) -> 0.04632626417 | F29: =DSF!$S39*IF(Main!$E$14<>0,'CB14'!Y23,0) -> 0.04886609813 | G29: =DSF!$S39*IF(Main!$F$14<>0,'CY14'!U23,0) -> 0.04503886874 | H29: =DSF!$S39*IF(Main!$G$14<>0,'I14'!L23,0) -> 0
C30: 5 | D30: =DSF!$S40*IF(Main!$C$14<>0,'ASK14'!E24,0) -> 0.03497950477 | E30: =DSF!$S40*IF(Main!$D$14<>0,BSSA14!S24,0) -> 0.03406106362 | F30: =DSF!$S40*IF(Main!$E$14<>0,'CB14'!Y24,0) -> 0.03481732218 | G30: =DSF!$S40*IF(Main!$F$14<>0,'CY14'!U24,0) -> 0.02966576237 | H30: =DSF!$S40*IF(Main!$G$14<>0,'I14'!L24,0) -> 0
C31: 7.5 | D31: =DSF!$S41*IF(Main!$C$14<>0,'ASK14'!E25,0) -> 0.01874266566 | E31: =DSF!$S41*IF(Main!$D$14<>0,BSSA14!S25,0) -> 0.01740929901 | F31: =DSF!$S41*IF(Main!$E$14<>0,'CB14'!Y25,0) -> 0.01491348406 | G31: =DSF!$S41*IF(Main!$F$14<>0,'CY14'!U25,0) -> 0.01359092091 | H31: =DSF!$S41*IF(Main!$G$14<>0,'I14'!L25,0) -> 0
C32: 10 | D32: =DSF!$S42*IF(Main!$C$14<>0,'ASK14'!E26,0) -> 0.01118720731 | E32: =DSF!$S42*IF(Main!$D$14<>0,BSSA14!S26,0) -> 0.01079465205 | F32: =DSF!$S42*IF(Main!$E$14<>0,'CB14'!Y26,0) -> 0.01021358623 | G32: =DSF!$S42*IF(Main!$F$14<>0,'CY14'!U26,0) -> 0.00754740504 | H32: =DSF!$S42*IF(Main!$G$14<>0,'I14'!L26,0) -> 0
B34: PGA (g) | C34: 0 | D34: =DSF!$S22*IF(Main!$C$14<>0,'ASK14'!$E28,0) -> 0.4110960477 | E34: =DSF!$S22*IF(Main!$D$14<>0,BSSA14!$S28,0) -> 0.4409512129 | F34: =DSF!$S22*IF(Main!$E$14<>0,'CB14'!$Y28,0) -> 0.4803879261 | G34: =DSF!$S22*IF(Main!$F$14<>0,'CY14'!$U28,0) -> 0.4166951874 | H34: =DSF!$S22*IF(Main!$G$14<>0,'I14'!$L28,0) -> 0
B35: PGV (cm/s) | C35: -1 | D35: =DSF!$S23*IF(Main!$C$14<>0,'ASK14'!$E29,0) -> 35.84385025 | E35: =DSF!$S23*IF(Main!$D$14<>0,BSSA14!$S29,0) -> 39.66366949 | F35: =DSF!$S23*IF(Main!$E$14<>0,'CB14'!$Y29,0) -> 41.98720574 | G35: =DSF!$S23*IF(Main!$F$14<>0,'CY14'!$U29,0) -> 35.94550934 | H35: =DSF!$S23*IF(Main!$G$14<>0,'I14'!$L29,0) -> 0

Sheet DSF
B1: By: Sanaz Rezaeian (sanazr128@yahoo.com)
B2: I.M. Idriss, Yousef Bozorgnia, Ken Campbell, Norm Abrahamson, Walt Silva
A4: Damping Scaling Factor (DSF) calculation:
A6: Definition:
A7: DSF = (Pseudo-Spectral Acceleration for beta damping) / (Pseudo-Spectral Acceleration for 5% damping)
A9: Model:
A10: ln(DSF) = [ b0 + b1*ln(beta) + b2*((ln(beta))^2) ] + [ b3 + b4*ln(beta) + b5*((ln(beta))^2) ] * M + [ b6 + b7*ln(beta) + b8*((ln(beta))^2) ] * ln(Rrup+1) + epsilon
A11: Stdv (ln(DSF)) = abs [ a0*ln(beta/5) + a1*((ln(beta/5))^2) ]
A13: For the use of DSF in Main Sheet: It is assumed that standard deviation of GMPE is the same for 5% and B%
A15: User Defined Parameters:
A16: M= | B16: =Main!$B$24 -> 6.8 | C16: (moment magnitude)
A17: Rrup= | B17: =Main!$B$27 -> 3.16 | C17: (closest distance, km)
A18: beta= | B18: =Main!$C$17 -> 5 | C18: (damping ratio, %)
A21: T | B21: b0 | C21: b1 | D21: b2 | E21: b3 | F21: b4 | G21: b5 | H21: b6 | I21: b7 | J21: b8 | K21: a0 | L21: a1 | M21: SE of sigma | O21: const. | P21: M term | Q21: R term | R21: ln(DSF) | S21: DSF | U21: if beta<=5 | V21: if beta>5 | W21: Stdv
A22: 0.01 | B22: 0.00173 | C22: -0.000207 | D22: -0.000629 | E22: 1.08e-06 | F22: -8.24e-05 | G22: 7.36e-05 | H22: -0.00107 | I22: 0.000908 | J22: -0.000202 | K22: -0.0037 | L22: 0.00023 | M22: 0.000188 | O22: =B22+C22*LN($B$18)+D22*(LN($B$18)^2) -> -0.0002324463057 | P22: =(E22+F22*LN($B$18)+G22*(LN($B$18)^2))*$B$16 -> 0.0004019322853 | Q22: =(H22+I22*LN($B$18)+J22*(LN($B$18)^2))*LN($B$17+1) -> -0.0001879812974 | R22: =O22+P22+Q22 -> -1.849531776e-05 | S22: =ROUND(EXP(R22),3) -> 1 | U22: =(LN($B$18/5)*K22+(LN($B$18/5)^2)*L22)*IF($B$18<=5,1,0) -> 0 | V22: =-(LN($B$18/5)*K22+(LN($B$18/5)^2)*L22)*IF($B$18>5,1,0) -> 0 | W22: =U22+V22 -> 0
A23: 0.02 | B23: 0.0553 | C23: -0.0377 | D23: 0.00215 | E23: -0.0043 | F23: 0.00321 | G23: -0.000332 | H23: -0.00475 | I23: 0.00252 | J23: 0.000229 | K23: -0.0219 | L23: 0.00211 | M23: 0.000499 | O23: =B23+C23*LN($B$18)+D23*(LN($B$18)^2) -> 0.0001933150483 | P23: =(E23+F23*LN($B$18)+G23*(LN($B$18)^2))*$B$16 -> 4.297115916e-05 | Q23: =(H23+I23*LN($B$18)+J23*(LN($B$18)^2))*LN($B$17+1) -> -0.0001440339867 | R23: =O23+P23+Q23 -> 9.225222074e-05 | S23: =ROUND(EXP(R23),3) -> 1 | U23: =(LN($B$18/5)*K23+(LN($B$18/5)^2)*L23)*IF($B$18<=5,1,0) -> 0 | V23: =-(LN($B$18/5)*K23+(LN($B$18/5)^2)*L23)*IF($B$18>5,1,0) -> 0 | W23: =U23+V23 -> 0
A24: 0.03 | B24: 0.122 | C24: -0.0702 | D24: -0.00228 | E24: -0.00321 | F24: 6.91e-05 | G24: 0.000982 | H24: -0.013 | I24: 0.00782 | J24: 0.000227 | K24: -0.0521 | L24: 0.0046 | M24: 0.00104 | O24: 0.003111596449 | P24: -0.003774834179 | Q24: 0.0002477550825 | R24: -0.0004154826475 | S24: 1 | U24: 0 | V24: 0 | W24: 0
A25: 0.05 | B25: 0.239 | C25: -0.106 | D25: -0.0263 | E25: -0.000857 | F25: -0.00743 | G25: 0.00487 | H25: -0.0169 | I25: 0.00808 | J25: 0.00171 | K25: -0.0957 | L25: 0.00131 | M25: 0.0047 | O25: 0.0002749439203 | P25: -0.001362784401 | Q25: 0.0007607331132 | R25: -0.0003271073673 | S25: 1 | U25: 0 | V25: 0 | W25: 0
A26: 0.075 | B26: 0.305 | C26: -0.0732 | D26: -0.0729 | E26: 0.000202 | F26: -0.0164 | G26: 0.0103 | H26: -0.000926 | I26: -0.0064 | J26: 0.00442 | K26: -0.121 | L26: -0.00579 | M26: 0.0046 | O26: -0.001643024911 | P26: 0.0033130232 | Q26: 0.0003174349823 | R26: 0.001987433271 | S26: 1.002 | U26: 0 | V26: 0 | W26: 0
A27: 0.1 | B27: 0.269 | C27: 0.00418 | D27: -0.107 | E27: 0.0058 | F27: -0.0249 | G27: 0.0134 | H27: 0.0235 | I27: -0.0237 | J27: 0.00584 | K27: -0.124 | L27: -0.0108 | M27: 0.0038 | O27: -0.001433621682 | P27: 0.002957233366 | Q27: 0.0006894038599 | R27: 0.002213015544 | S27: 1.002 | U27: 0 | V27: 0 | W27: 0
A28: 0.15 | B28: 0.141 | C28: 0.1 | D28: -0.118 | E28: 0.0301 | F28: -0.0409 | G28: 0.0141 | H28: 0.0316 | I28: -0.0247 | J28: 0.00315 | K28: -0.115 | L28: -0.0114 | M28: 0.00397 | O28: -0.003710475246 | P28: 0.005420170769 | Q28: 8.978327174e-06 | R28: 0.00171867385 | S28: 1.002 | U28: 0 | V28: 0 | W28: 0
A29: 0.2 | B29: 0.0501 | C29: 0.145 | D29: -0.111 | E29: 0.0469 | F29: -0.0477 | G29: 0.0118 | H29: 0.031 | I29: -0.0229 | J29: 0.00241 | K29: -0.108 | L29: -0.00885 | M29: 0.00464 | O29: -0.004053736429 | P29: 0.004727619936 | Q29: 0.0005509211696 | R29: 0.001224804677 | S29: 1.001 | U29: 0 | V29: 0 | W29: 0
A30: 0.25 | B30: 0.0228 | C30: 0.143 | D30: -0.0973 | E30: 0.052 | F30: -0.047 | G30: 0.00947 | H30: 0.0271 | I30: -0.0202 | J30: 0.00131 | K30: -0.104 | L30: -0.00735 | M30: 0.00466 | O30: 0.0009143661438 | P30: 0.006027983397 | Q30: -0.002875784809 | R30: 0.004066564731 | S30: 1.004 | U30: 0 | V30: 0 | W30: 0
A31: 0.3 | B31: -0.0158 | C31: 0.148 | D31: -0.0883 | E31: 0.0521 | F31: -0.0436 | G31: 0.00733 | H31: 0.0387 | I31: -0.0266 | J31: 0.00176 | K31: -0.101 | L31: -0.0069 | M31: 0.00531 | O31: -0.006325830748 | P31: 0.006224282119 | Q31: 0.0006384349198 | R31: 0.0005368862907 | S31: 1.001 | U31: 0 | V31: 0 | W31: 0
A32: 0.4 | B32: 0.0224 | C32: 0.103 | D32: -0.0741 | E32: 0.0463 | F32: -0.0358 | G32: 0.00465 | H32: 0.0363 | I32: -0.0245 | J32: 0.00118 | K32: -0.102 | L32: -0.00671 | M32: 0.00621 | O32: -0.003768413213 | P32: 0.004943416855 | Q32: -0.0001064662893 | R32: 0.001068537352 | S32: 1.001 | U32: 0 | V32: 0 | W32: 0
A33: 0.5 | B33: 0.0319 | C33: 0.0704 | D33: -0.0557 | E33: 0.0425 | F33: -0.0294 | G33: 0.00188 | H33: 0.0387 | I33: -0.0247 | J33: 0.000313 | K33: -0.101 | L33: -0.00622 | M33: 0.00713 | O33: 0.0009252540907 | P33: 0.0003554449428 | Q33: -0.000345481481 | R33: 0.0009352175524 | S33: 1.001 | U33: 0 | V33: 0 | W33: 0
A34: 0.75 | B34: 0.0104 | C34: 0.0533 | D34: -0.0372 | E34: 0.0447 | F34: -0.024 | G34: -0.0024 | H34: 0.0347 | I34: -0.0259 | J34: 0.0029 | K34: -0.101 | L34: -0.00586 | M34: 0.00685 | O34: -0.0001757619233 | P34: -0.000973806539 | Q34: 0.0007518169502 | R34: -0.0003977515121 | S34: 1 | U34: 0 | V34: 0 | W34: 0
A35: 1 | B35: -0.0884 | C35: 0.0892 | D35: -0.0214 | E35: 0.0498 | F35: -0.0236 | G35: -0.0047 | H35: 0.0502 | I35: -0.0343 | J35: 0.00232 | K35: -0.102 | L35: -0.00731 | M35: 0.00666 | O35: -0.0002703526421 | P35: -0.002428277179 | Q35: 0.001433716515 | R35: -0.001264913306 | S35: 0.999 | U35: 0 | V35: 0 | W35: 0
A36: 1.5 | B36: -0.157 | C36: 0.0933 | D36: 0.00328 | E36: 0.0585 | F36: -0.0236 | G36: -0.00802 | H36: 0.0481 | I36: -0.033 | J36: 0.0021 | K36: -0.102 | L36: -0.00875 | M36: 0.00666 | O36: 0.001656709722 | P36: -0.001746673114 | Q36: 0.0006103467053 | R36: 0.0005203833141 | S36: 1.001 | U36: 0 | V36: 0 | W36: 0
A37: 2 | B37: -0.296 | C37: 0.15 | D37: 0.0209 | E37: 0.073 | F37: -0.0296 | G37: -0.00995 | H37: 0.0524 | I37: -0.0332 | J37: 0.000686 | K37: -0.103 | L37: -0.00922 | M37: 0.00604 | O37: -0.0004472439007 | P37: -0.002806711071 | Q37: 0.001060013747 | R37: -0.002193941225 | S37: 0.998 | U37: 0 | V37: 0 | W37: 0
A38: 3 | B38: -0.407 | C38: 0.197 | D38: 0.0328 | E38: 0.0835 | F38: -0.0354 | G38: -0.0101 | H38: 0.0557 | I38: -0.0291 | J38: -0.00317 | K38: -0.0963 | L38: -0.0107 | M38: 0.00603 | O38: -0.004979206328 | P38: 0.00247496146 | Q38: 0.0009324810127 | R38: -0.001571763855 | S38: 0.998 | U38: 0 | V38: 0 | W38: 0
A39: 4 | B39: -0.449 | C39: 0.207 | D39: 0.0442 | E39: 0.0875 | F39: -0.0359 | G39: -0.0114 | H39: 0.0507 | I39: -0.0243 | J39: -0.00467 | K39: -0.0983 | L39: -0.0137 | M39: 0.00337 | O39: -0.001355516712 | P39: 0.001304705475 | Q39: -0.0007213069384 | R39: -0.0007721181754 | S39: 0.999 | U39: 0 | V39: 0 | W39: 0
A40: 5 | B40: -0.498 | C40: 0.217 | D40: 0.0536 | E40: 0.0903 | F40: -0.0348 | G40: -0.0129 | H40: 0.0519 | I40: -0.023 | J40: -0.00568 | K40: -0.0942 | L40: -0.0153 | M40: 0.00299 | O40: -0.009912407884 | P40: 0.005962339042 | Q40: 0.0002424495742 | R40: -0.003707619269 | S40: 0.996 | U40: 0 | V40: 0 | W40: 0
A41: 7.5 | B41: -0.525 | C41: 0.206 | D41: 0.0779 | E41: 0.0988 | F41: -0.0376 | G41: -0.0151 | H41: 0.0291 | I41: -0.00493 | J41: -0.00902 | K41: -0.0895 | L41: -0.0163 | M41: 0.00259 | O41: 0.008327831652 | P41: -0.005632103105 | Q41: -0.003134633895 | R41: -0.0004389053476 | S41: 1 | U41: 0 | V41: 0 | W41: 0
A42: 10 | B42: -0.389 | C42: 0.143 | D42: 0.0612 | E42: 0.0714 | F42: -0.0236 | G42: -0.013 | H42: 0.0233 | I42: -0.00546 | J42: -0.00592 | K42: -0.0689 | L42: -0.0143 | M42: 0.00194 | O42: -0.0003246064103 | P42: -0.001744267015 | Q42: -0.001171844858 | R42: -0.003240718284 | S42: 0.997 | U42: 0 | V42: 0 | W42: 0

Sheet Sheet1 (hidden)
A1: T | B1: 0.5 | C1: 1 | D1: 2 | E1: 3 | F1: 5 | G1: 7 | H1: 10 | I1: 15 | J1: 20 | K1: 25 | L1: 30
A2: 0.01 | B2: 0.01 | C2: 0 | D2: 0 | E2: 0 | F2: ‐ | G2: 0.02 | H2: 0.02 | I2: 0.01 | J2: ‐0.01 | K2: ‐0.02 | L2: ‐0.03 | N2: =SQRT(x^2+DSF!$W22^2+2*x*DSF!$W22*Sheet1!B2) -> 
A3: 0.02 | B3: 0.01 | C3: 0.03 | D3: 0.04 | E3: 0.06 | F3: ‐ | G3: ‐0.06 | H3: ‐0.06 | I3: ‐0.07 | J3: ‐0.08 | K3: ‐0.09 | L3: ‐0.09
A4: 0.03 | B4: 0.12 | C4: 0.12 | D4: 0.12 | E4: 0.13 | F4: ‐ | G4: ‐0.14 | H4: ‐0.15 | I4: ‐0.17 | J4: ‐0.17 | K4: ‐0.17 | L4: ‐0.17
A5: 0.05 | B5: 0.15 | C5: 0.17 | D5: 0.17 | E5: 0.18 | F5: ‐ | G5: ‐0.21 | H5: ‐0.21 | I5: ‐0.22 | J5: ‐0.22 | K5: ‐0.22 | L5: ‐0.22
A6: 0.075 | B6: 0.1 | C6: 0.12 | D6: 0.15 | E6: 0.15 | F6: ‐ | G6: ‐0.16 | H6: ‐0.18 | I6: ‐0.19 | J6: ‐0.20 | K6: ‐0.20 | L6: ‐0.20
A7: 0.1 | B7: 0.06 | C7: 0.09 | D7: 0.1 | E7: 0.11 | F7: ‐ | G7: ‐0.14 | H7: ‐0.16 | I7: ‐0.18 | J7: ‐0.18 | K7: ‐0.18 | L7: ‐0.18
A8: 0.15 | B8: 0 | C8: 0.01 | D8: 0.03 | E8: 0.04 | F8: ‐ | G8: ‐0.10 | H8: ‐0.12 | I8: ‐0.14 | J8: ‐0.14 | K8: ‐0.15 | L8: ‐0.15
A9: 0.2 | B9: 0.03 | C9: 0.05 | D9: 0.07 | E9: 0.06 | F9: ‐ | G9: ‐0.10 | H9: ‐0.12 | I9: ‐0.14 | J9: ‐0.14 | K9: ‐0.14 | L9: ‐0.14
A10: 0.25 | B10: 0.04 | C10: 0.06 | D10: 0.08 | E10: 0.08 | F10: ‐ | G10: ‐0.09 | H10: ‐0.10 | I10: ‐0.11 | J10: ‐0.12 | K10: ‐0.12 | L10: ‐0.12
A11: 0.3 | B11: 0.02 | C11: 0.03 | D11: 0.05 | E11: 0.06 | F11: ‐ | G11: ‐0.09 | H11: ‐0.11 | I11: ‐0.13 | J11: ‐0.13 | K11: ‐0.13 | L11: ‐0.13
A12: 0.4 | B12: 0 | C12: 0.02 | D12: 0.04 | E12: 0.05 | F12: ‐ | G12: ‐0.10 | H12: ‐0.11 | I12: ‐0.12 | J12: ‐0.13 | K12: ‐0.13 | L12: ‐0.13
A13: 0.5 | B13: ‐0.01 | C13: 0.01 | D13: 0.03 | E13: 0.05 | F13: ‐ | G13: ‐0.11 | H13: ‐0.13 | I13: ‐0.15 | J13: ‐0.16 | K13: ‐0.17 | L13: ‐0.17
A14: 0.75 | B14: 0.08 | C14: 0.09 | D14: 0.11 | E14: 0.13 | F14: ‐ | G14: ‐0.19 | H14: ‐0.23 | I14: ‐0.28 | J14: ‐0.30 | K14: ‐0.32 | L14: ‐0.34
A15: 1 | B15: 0.07 | C15: 0.08 | D15: 0.1 | E15: 0.11 | F15: ‐ | G15: ‐0.19 | H15: ‐0.24 | I15: ‐0.29 | J15: ‐0.32 | K15: ‐0.35 | L15: ‐0.37
A16: 1.5 | B16: 0.17 | C16: 0.19 | D16: 0.22 | E16: 0.22 | F16: ‐ | G16: ‐0.27 | H16: ‐0.32 | I16: ‐0.37 | J16: ‐0.40 | K16: ‐0.43 | L16: ‐0.44
A17: 2 | B17: 0.25 | C17: 0.25 | D17: 0.25 | E17: 0.26 | F17: ‐ | G17: ‐0.33 | H17: ‐0.37 | I17: ‐0.42 | J17: ‐0.46 | K17: ‐0.49 | L17: ‐0.51
A18: 3 | B18: 0.32 | C18: 0.32 | D18: 0.31 | E18: 0.32 | F18: ‐ | G18: ‐0.35 | H18: ‐0.39 | I18: ‐0.43 | J18: ‐0.46 | K18: ‐0.48 | L18: ‐0.50
A19: 4 | B19: 0.33 | C19: 0.33 | D19: 0.34 | E19: 0.34 | F19: ‐ | G19: ‐0.36 | H19: ‐0.38 | I19: ‐0.41 | J19: ‐0.43 | K19: ‐0.44 | L19: ‐0.46
A20: 5 | B20: 0.38 | C20: 0.38 | D20: 0.39 | E20: 0.38 | F20: ‐ | G20: ‐0.40 | H20: ‐0.42 | I20: ‐0.45 | J20: ‐0.47 | K20: ‐0.49 | L20: ‐0.51
A21: 7.5 | B21: 0.49 | C21: 0.49 | D21: 0.49 | E21: 0.49 | F21: ‐ | G21: ‐0.51 | H21: ‐0.53 | I21: ‐0.55 | J21: ‐0.57 | K21: ‐0.58 | L21: ‐0.59
A22: 10 | B22: 0.38 | C22: 0.39 | D22: 0.41 | E22: 0.41 | F22: ‐ | G22: ‐0.42 | H22: ‐0.44 | I22: ‐0.47 | J22: ‐0.49 | K22: ‐0.51 | L22: ‐0.52
